Workbook

Sheet Menu
B2: TABLERO DE CONTROL 2015 INSTITUTO COLOMBIANO DE BIENESTAR FAMILIAR ICBF MENU
C5: El tablero de control 2015, es la herramienta gerencial para medir los avances de la gestión institucional a nivel nacional y regional. A continuación se presentan las siguientes opciones para navegar en la herramienta:
D7: Generalidades del tablero
D9: Guia metodologica para el uso de la herramienta
D11: Avances de la gestión institucional a nivel nacional y regional

Sheet generalidades
B2: TABLERO DE CONTROL 2015 INSTITUTO COLOMBIANO DE BIENESTAR FAMILIAR ICBF GENERALIDADES TABLERO DE CONTROL
E5: Generalidades
E6: Temáticas
E7: Metodología de calculo
D10: Generalidades
C11: El tablero de control 2015 se estructuró con la siguientes temáticas:
E13: Objetivos institucionales
E14: Plan Indicativo 2015 - 2018
E15: Plan de Acción (Decreto 2482 DAFP - Líneas de Politica y sus componentes)
E16: Mapa de Procesos ICBF
E17: Objetivos SIGE
E18: Areas ICBF
C20: Esta compuesto por un total de 195 indicadores, de los cuales 80 aplican a nivel regional. Cada uno de los indicadores presentan la siguiente categorización (además del código del indicador definido en la hoja de vida):
E22: Principales: | F22: Indicadores denominados con las letras "PA" relacionados en el Plan de Acción ICBF para la vigencia 2015
E23: Secundarios: | F23: Resto de indicadores que se encuentran en el tablero de control 2015 denominados con la nomenclatura establecida para los macroprocesos y procesos
C26: Cada uno esta identificado con su ambito de medición (resultado, producto o gestión) y su dimensión (eficiencia o eficacia)
C28: Para el presente cuatrienio los indicadores del plan de acción recogen mayor relevancia para la entidad en cuanto a su importancia en el cumplimiento de las estrategias establecidas en este cuatrienio, por lo tanto, la ponderación de los indicadores se establece de acuerdo a su relevancia como se muestra en el siguiente cuadro:
H30: Tablero | J30: Plan de acción | L30: Plan indicativo
H31: Ind | I31: Pond % | J31: Ind | K31: Pond % | L31: Ind | M31: Pond %
G32: Misionales | H32: 78 | I32: 0.4196298702 | J32: 44 | K32: 0.3337086903 | L32: 36 | M32: 0.2667319461
G33: Apoyo | H33: 79 | I33: 0.3341524193 | J33: 34 | K33: 0.249498164 | L33: 19 | M33: 0.1331701346
G34: Estratégicos | H34: 25 | I34: 0.1471886667 | J34: 16 | K34: 0.1227906977 | L34: 11 | M34: 0.08744186047
G35: Evaluación | H35: 13 | I35: 0.09902904373 | J35: 11 | K35: 0.09400244798 | L35: 8 | M35: 0.06609547124
G36: Total | H36: 195 | I36: 1 | J36: 105 | K36: 0.8 | L36: 74 | M36: 0.5534394125
D52: Tematicas (agregados)
C54: Objetivos institucionales
E56: Objetivo 1: | F56: Ampliar cobertura y mejorar calidad en la atención integral a la Primera Infancia.
E57: Objetivo 2: | F57: Promover los derechos de los NNA y prevenir los riesgos o amenazas de vulneración de los mismos
E58: Objetivo 3: | F58: Fortalecer en las familias y comunidades étnicas capacidades que promuevan su desarrollo, fortalezcan sus vínculos de cuidado mutuo y prevengan la violencia intrafamiliar y de género.
E60: Objetivo 4: | F60: Promover la seguridad alimentaria y nutricional en el desarrollo de la primera infancia, los NNA y la familia.
E61: Objetivo 5: | F61: Garantizar la protección integral de los NNA en coordinación con las instancias del SNBF.
E62: Objetivo 6: | F62: Lograr una adecuada y eficiente gestión institucional a través de la articulación entre servidores, áreas y niveles territoriales; el apoyo administrativo a los procesos misionales, la apropiación de una cultura de la evaluación y la optimización del uso de los recursos
C68: Plan de Acción (Decreto 2482 DAFP - Líneas de Politica y sus componentes)
E70: Lineas de Politica | J70: Componentes
E71: LP1: | F71: Gestión misional y de gobierno | J71: LP1-C1: | K71: Indicadores y metas de gobierno
E72: LP2: | F72: Transparencia, participación y servicio al ciudadano | J72: LP2-C1: | K72: Transparencia y acceso a la información pública
J73: LP2-C2: | K73: Participación Ciudadana en la Gestión
J74: LP2-C3: | K74: Rendición de cuentas
J75: LP2-C4: | K75: Servicio al ciudadano
E76: LP3: | F76: Gestión del talento humano | J76: LP3-C1: | K76: Plan Estratégico de Recursos Humanos
J77: LP3-C2: | K77: Plan Anual de Vacantes
J78: LP3-C3: | K78: Capacitación
J79: LP3-C4: | K79: Bienestar e Incentivos
E80: LP4: | F80: Eficiencia administrativa | J80: LP4-C1: | K80: Gestión de la calidad
J81: LP4-C2: | K81: Eficiencia administrativa y cero papel
J82: LP4-C3: | K82: Racionalización de trámites
J83: LP4-C4: | K83: Modernización institucional
J84: LP4-C5: | K84: Gestión de Tecnologías de información
J85: LP4-C6: | K85: Gestión documental
E86: LP5: | F86: Gestión Financiera | J86: LP5-C1: | K86: Programación y ejecución presupuestal
J87: LP5-C2: | K87: Programa Anual Mensualizado de Caja – PAC
J88: LP5-C3: | K88: Formulación y seguimiento a Proyectos de Inversión
J89: LP5-C4: | K89: Plan Anual de Adquisiciones (PAA)
C93: Mapa de Procesos ICBF
E95: Macroprocesos | J95: Procesos
E96: MPM1: | F96: Gestión para la Atención Integral a la Primera Infancia
E97: MPM2: | F97: Gestión para la promoción y Prevención para la protección integral de las niñez y la adolescencia
E98: MPM3: | F98: Gestión para la atención de las familias y comunidades
E99: MPM4: | F99: Gestión para la Nutrición
E100: MPM5: | F100: Gestión para la Protección | J100: MPM5-P1: | K100: Gestión Restablecimiento de Derechos
J101: MPM5-P2: | K101: Gestión de Adopciones
J102: MPM5-P3: | K102: Gestión Responsabilidad Penal
E103: MPA1: | F103: Gestión Soporte | J103: MPA1-P1: | K103: Gestión Humana
J104: MPA1-P2: | K104: Gestión Financiera
J105: MPA1-P3: | K105: Gestión Control interno Disciplinario
J106: MPA1-P4: | K106: Gestión Abastecimiento
J107: MPA1-P5: | K107: Gestión Administrativa
J108: MPA1-P6: | K108: Gestión Contratación
E109: MPA2: | F109: Gestión Jurídica
E110: MPA3: | F110: Gestión Regional
E111: MPA4: | F111: Gestión Cooperación
E112: MPA5: | F112: Gestión Servicio y Atención | J112: MPA5-P1: | K112: Gestión Servicio a Beneficiarios
J113: MPA5-P2: | K113: Gestión Atención PQR y sugerencias
E114: MPA6: | F114: Gestión Tecnológica
E115: MPA7: | F115: Gestión Comunicaciones
E116: MPE1: | F116: Direccionamiento Estratégico
E117: MPE2: | F117: Mejoramiento Continuo
E118: MPE3: | F118: Coordinación y Articulación del SNBF
E119: MPEV1: | F119: Evaluación, Monitoreo y Control de la Gestión | J119: MPEV1-P1: | K119: Evaluación y Monitoreo de la Gestión
J120: MPEV1-P2: | K120: Evaluación Independiente
E121: MPEV2: | F121: Aseguramiento de la Calidad de los Servicios Misionales del ICBF | J121: MPEV2-P1: | K121: Evaluación de la Calidad de los Servicios Misionales del ICBF
J122: MPEV2-P2: | K122: Asistencia Técnica a los Actores del Macro Proceso Aseguramiento de la Calidad de los Servicios Misionales del ICBF
C127: Objetivos SIGE
E129: SIGE1: | F129: Ampliar cobertura y mejorar calidad en la atención integral a la Primera Infancia.
E130: SIGE2: | F130: Promover los derechos de los NNA y prevenir los riesgos o amenazas de vulneración de los mismos
E131: SIGE3: | F131: Fortalecer en las familias y comunidades étnicas capacidades que promuevan su desarrollo, fortalezcan sus vínculos de cuidado mutuo y prevengan la violencia intrafamiliar y de género.
E133: SIGE4: | F133: Promover la seguridad alimentaria y nutricional en el desarrollo de la primera infancia, los NNA y la familia.
E134: SIGE5: | F134: Garantizar la protección integral de los NNA en coordinación con las instancias del SNBF.
E135: SIGE6: | F135: Lograr una adecuada y eficiente gestión institucional a través de la articulación entre servidores, áreas y niveles territoriales; el apoyo administrativo a los procesos misionales, la apropiación de una cultura de la evaluación y la optimización del uso de los recursos
E138: SIGE7: | F138: Promover condiciones laborales que hagan del ICBF el mejor lugar para trabajar.
E139: SIGE8: | F139: Reducir los impactos ambientales generados por nuestra actividad.
E140: SIGE9: | F140: Impulsar una cultura de gestión de la calidad y el mejoramiento continuo.
E141: SIGE10: | F141: Gestionar el conocimiento institucional, con sistemas de información confiables, integrados y disponibles.
C145: Áreas ICBF
E147: Misionales
E148: M1 | F148: Dirección de Primera Infancia
E149: M2 | F149: Dirección de Niñez y Adolescencia
E150: M3 | F150: Dirección de Familia y Comunidades
E151: M4 | F151: Dirección de Nutrición
E152: M5 | F152: Dirección de Protección
E154: Apoyo
E155: A1 | F155: Dirección de Gestión Humana
E156: A2 | F156: Dirección Financiera
E157: A3 | F157: Oficina de Control Interno Disciplinario
E158: A4 | F158: Dirección de Abastecimiento
E159: A5 | F159: Dirección Administrativa
E160: A6 | F160: Dirección de Contratación
E161: A7 | F161: Oficina Asesora Jurídica
E162: A8 | F162: Oficina de Gestión Regional
E163: A9 | F163: Oficina de Cooperación y Convenios
E164: A10 | F164: Dirección de Servicio y Atención
E165: A11 | F165: Dirección de Información y Tecnología
E166: A12 | F166: Oficina Asesora de Comunicaciones
E167: A13 | F167: Dirección de Planeación
E168: A14 | F168: Dirección del SNBF
E169: A15 | F169: Oficina de Control Interno
E170: A16 | F170: Oficina de Aseguramiento a la calidad
E171: A17 | F171: Subdirección General
D174: Metodología de calculo
E176: Para calcular cada una de las temáticas relacionadas se tiene en cuenta:
E177: 1. El rango de valoración de cada indicador definido en la hoja de vida, que permite la estandarización de resultados de los indicadores para evitar que indicadores con porcentajes altos oculten resultados negativos:
H179: Optimo
H180: Adecuado
H181: En riesgo
H182: Crítico
E186: 2. La ponderación de cada indicador, por su relevancia y pertinencia dentro del grupo de indicadores que conforman cada macroproceso, se establece a nivel nacional para el total de 195 indicadores.
E190: 3. El calculo a través de los rangos y la ponderación se realiza de la siguiente manera:
H192: Rango | I192: Puntos | J192: valor calculo | K192: calculo
H193: Optimo | I193: 4 | J193: 1 | K193: (pond. Indicador*valor de calculo rango)
H194: Adecuado | I194: 3 | J194: 0.85
H195: En riesgo | I195: 2 | J195: 0.6
H196: Crítico | I196: 1 | J196: 0.3
E198: Para la ponderación de los indicadores a nivel regional se toma el ponderado nacional y sobre el total que arroja, se realizan los calculos de las diferentes temáticas. En el caso que el indicador tenga una valoración de "NA" (no aplica), no se tiene en cuenta ese peso porcentual en los diferentes cálculos
E202: 4. La sumatoria de los resultados finales se agrupan para cada temática y se comparan con la sumatoria de la ponderación inicial de cada temática, esto da los porcentajes de avance mostrado en el resumen de resultados del tablero de control con los siguientes rangos de valoración (solo aplica para las temáticas)
H204: 90%≤x≤100% | I204: Satisfactorio
H205: 80%≤x<90% | I205: Requiere mejora
H206: 70%≤x<80% | I206: Atención prioritaria
H207: 0%≤x<70% | I207: Atención inmediata

Sheet Guia
B2: TABLERO DE CONTROL 2015 INSTITUTO COLOMBIANO DE BIENESTAR FAMILIAR ICBF GUIA PARA USO DE LA HERRAMIENTA
E5: Nacional
E6: Regional
E7: Zonal
D9: La herramienta de monitoreo esta construida para la revisión del comportamiento general de la gestión institucional a nivel nacional y regional
D13: Nacional
D14: En la parte inicial de la salida de avances, se presenta el mes de corte sobre el cual se debera seleccionar para revisar la información que se quiere analizar
D18: Una vez seleccionado el mes se debe dar click en el botón verde para actualizar la información
D22: Posterior a la selección del mes de analisis se encontrarán las secciones que muestran el comportamiento de la gestión:
E23: Sección 1: Comportamiento nacional y regional
E24: Sección 2: Comportamiento general agregados
E25: Sección 3: Analisis agregados, regionales e indicadores
D27: En la sección 1 se encontrará:
E28: a. La información general del plan de acción, plan indicativo y tablero de control, con el comportamiento de los indicadores por su valoración. En esta parte se podrá hacer click en el siguiente link que llevara al detalle del tablero de control
E32: En el tablero de control se debe dar click en el siguiente click para volver al resumen general
E35: b. Los mapas que evidencian el comportamiento del plan de acción, plan indicativo y tablero de control, así como la información detallada de los avances mes a mes de cada agregado.
E38: c. El ranking regional con corte al mes señalado, en la parte final de la gráfica se encontrará el enlace para seleccionar la regional y cargar la información para detallar el avance a nivel regional
D44: En la sección 2 se encontrará:
E45: a. Avances de objetivos institucionales
E46: b. Avances de Plan de Acción a traves de las líneas de política y sus componentes
E47: c. Avances de macroprocesos y procesos
E48: d. Avances de objetivos SIGE
E49: e. Avances por cada una de las áreas
D51: En la sección 3 se encontrará
E52: a. La información detallada por cada uno de los agregados, donde se encontrará el mapa y los avances presentados por regional para cada agregado y los indicadores que estan contenidos dentro del mismo. En esta sección se deben seguir los siguientes pasos:
E55: 1er paso: | F55: Seleccionar la categoria
E63: 2do paso: | F63: Seleccionar el segundo nivel
E67: 3er paso: | F67: Seleccionar el tercer nivel (si aplica)
E71: En la parte final de la sección 3 se encuentran detallados los indicadores que componen el agregado seleccionado, para la revisión de los indicadores críticos es necesario seleccionar lo siguiente:
E102: Una vez se hay hecho la selección del nivel a analizar, se debe dar click en el siguiente botón para actualizar la información del mapa:
E106: Así mismo, se preparó una salida para revisar cada uno de los indicadores con su desagregación regional en el siguiente link:
E109: Una vez se haya dado click en este link aparecerá la misma informacion seleccionada de categoria y los codigos referenciados, allí se debera seleccionar el indicador en la siguiente parte:
D130: Regional
D131: En la parte inicial de la salida de avances, se presenta el mes de corte sobre el cual se debera seleccionar para revisar la información que se quiere analizar
D135: Una vez seleccionado el mes se debe dar click en el botón verde para actualizar la información
D139: Posterior a la selección del mes de analisis se encontrarán las secciones que muestran el comportamiento de la gestión:
E140: Sección 1: Comportamiento general regional
E141: Sección 2: Comportamiento general agregados
E142: Sección 3: Analisis agregados e indicadores
D144: En la sección 1 se encontrará:
E145: a. La información general del plan de acción, plan indicativo y tablero de control, con el comportamiento de los indicadores por su valoración. En esta parte se podrá hacer click en el siguiente link que llevara al detalle del tablero de control
E149: En el tablero de control se debe dar click en el siguiente click para volver al resumen regional
E152: b. Los mapas que evidencian el comportamiento del plan de acción y su comparativo con las demás regionales que hacen parte de la macroregional
E155: c. La información del ranking regional con corte al mes señalado.
E157: d. En la parte inferior del recuadro que referencia la información macroregional se encontrará el siguiente link que presentará la información a nivel zonal:
D161: En la sección 2 se encontrará:
E162: a. Avances de objetivos institucionales
E163: b. Avances de Plan de Acción a traves de las líneas de política y sus componentes
E164: c. Avances de macroprocesos y procesos
E165: d. Avances de objetivos SIGE
E166: e. Avances por cada una de las áreas
D168: En la sección 3 se encontrará
E169: a. La información detallada por cada uno de los agregados que aplican a la regional mostrando los indicadores que estan contenidos dentro del mismo. En esta sección se deben seguir los siguientes pasos:
E172: 1er paso: | F172: Seleccionar la categoria
E180: 2do paso: | F180: Seleccionar el segundo nivel
E184: 3er paso: | F184: Seleccionar el tercer nivel (si aplica)
E188: En la parte final de la sección 3 se encuentran detallados los indicadores que componen el agregado seleccionado, para la revisión de los indicadores críticos es necesario seleccionar lo siguiente:
D221: Zonal
D222: En la parte inicial de la salida de avances, se presenta el mes de corte sobre el cual se debera seleccionar para revisar la información que se quiere analizar (aplica a partir del mes de mayo)
D226: Una vez seleccionado el mes se debe dar click en el botón verde para actualizar la información
D230: Posterior a la selección del mes de analisis se encontrarán las secciones que muestran el comportamiento de la gestión:
E231: Sección 1: Comportamiento general regional y zonal
E232: Sección 2: Análisis de indicadores zonales
D234: En la sección 1 se encontrará:
E235: a. La información general de la regional de plan de acción, plan indicativo y tablero de control
E237: b. Información de avance de los centros zonales que componen a la regional, con su respectivo ranking dentro de la regional
D239: En la sección 2 se encontrará
E240: a. La información detallada de los indicadores relacionados para cada centro zonal. En esta sección se deben seguir el siguiente paso:
E243: 1er paso: | F243: Seleccionar el centro zonal
E247: En la parte final de la sección 2 se encuentran detallados los indicadores que componen el agregado seleccionado, para la revisión de los indicadores críticos es necesario seleccionar lo siguiente:

Sheet avances nal
B2: TABLERO DE CONTROL 2015 INSTITUTO COLOMBIANO DE BIENESTAR FAMILIAR ICBF SEGUIMIENTO METAS - ANÁLISIS GENERAL
T3: =+VLOOKUP(D5,'info graficas'!$Y$2:$Z$13,2,FALSE) -> 39 | U3: =+VLOOKUP(D5,'info graficas'!$Y$2:$AC$7,5,FALSE) -> 
C5: Mes de analisis | D5: Diciembre | E5: De click para actualizar la información
C7: Sección 1: Comportamiento nacional y regional
I9: Comportamiento gral.
I10: Plan de Acción | J10: Plan Indicativo | K10: T. control
H11: Optimo | I11: =IFERROR(IF($D$5="enero",VLOOKUP(H11,td!$A$2820:$B$2824,2,FALSE),IF($D$5="febrero",VLOOKUP(H11,td!$C$2820:$D$2824,2,FALSE),IF($D$5="marzo",VLOOKUP(H11,td!$E$2820:$F$2824,2,FALSE),IF($D$5="abril",VLOOKUP(H11,td!$G$2820:$H$2824,2,FALSE),IF($D$5="mayo",VLOOKUP(H11,td!$I$2820:$J$2824,2,FALSE),IF($D$5="junio",VLOOKUP(H11,td!$K$2820:$L$2824,2,FALSE),IF($D$5="julio",VLOOKUP(H11,td!$M$2820:$N$2824,2,FALSE),IF($D$5="agosto",VLOOKUP(H11,td!$O$2820:$P$2824,2,FALSE),IF($D$5="septiembre",VLOOKUP(H11,td!$Q$2820:$R$2824,2,FALSE),IF($D$5="octubre",VLOOKUP(H11,td!$S$2820:$T$2824,2,FALSE),IF($D$5="noviembre",VLOOKUP(H11,td!$U$2820:$V$2824,2,FALSE),IF($D$5="diciembre",VLOOKUP(H11,td!$W$2820:$X$2824,2,FALSE),0)))))))))))),0) -> 69 | J11: =IFERROR(IF($D$5="enero",VLOOKUP(H11,td!$A$2830:$B$2834,2,FALSE),IF($D$5="febrero",VLOOKUP(H11,td!$C$2830:$D$2834,2,FALSE),IF($D$5="marzo",VLOOKUP(H11,td!$E$2830:$F$2834,2,FALSE),IF($D$5="abril",VLOOKUP(H11,td!$G$2830:$H$2834,2,FALSE),IF($D$5="mayo",VLOOKUP(H11,td!$I$2830:$J$2834,2,FALSE),IF($D$5="junio",VLOOKUP(H11,td!$K$2830:$L$2834,2,FALSE),IF($D$5="julio",VLOOKUP(H11,td!$M$2830:$N$2834,2,FALSE),IF($D$5="agosto",VLOOKUP(H11,td!$O$2830:$P$2834,2,FALSE),IF($D$5="septiembre",VLOOKUP(H11,td!$Q$2830:$R$2834,2,FALSE),IF($D$5="octubre",VLOOKUP(H11,td!$S$2830:$T$2834,2,FALSE),IF($D$5="noviembre",VLOOKUP(H11,td!$U$2830:$V$2834,2,FALSE),IF($D$5="diciembre",VLOOKUP(H11,td!$W$2830:$X$2834,2,FALSE),0)))))))))))),0) -> 54 | K11: =IFERROR(IF($D$5="enero",VLOOKUP(H11,td!$A$2840:$B$2844,2,FALSE),IF($D$5="febrero",VLOOKUP(H11,td!$C$2840:$D$2844,2,FALSE),IF($D$5="marzo",VLOOKUP(H11,td!$E$2840:$F$2844,2,FALSE),IF($D$5="abril",VLOOKUP(H11,td!$G$2840:$H$2844,2,FALSE),IF($D$5="mayo",VLOOKUP(H11,td!$I$2840:$J$2844,2,FALSE),IF($D$5="junio",VLOOKUP(H11,td!$K$2840:$L$2844,2,FALSE),IF($D$5="julio",VLOOKUP(H11,td!$M$2840:$N$2844,2,FALSE),IF($D$5="agosto",VLOOKUP(H11,td!$O$2840:$P$2844,2,FALSE),IF($D$5="septiembre",VLOOKUP(H11,td!$Q$2840:$R$2844,2,FALSE),IF($D$5="octubre",VLOOKUP(H11,td!$S$2840:$T$2844,2,FALSE),IF($D$5="noviembre",VLOOKUP(H11,td!$U$2840:$V$2844,2,FALSE),IF($D$5="diciembre",VLOOKUP(H11,td!$W$2840:$X$2844,2,FALSE),0)))))))))))),0) -> 100 | N11: Información detallada del tablero general
H12: Adecuado | I12: =IFERROR(IF($D$5="enero",VLOOKUP(H12,td!$A$2820:$B$2824,2,FALSE),IF($D$5="febrero",VLOOKUP(H12,td!$C$2820:$D$2824,2,FALSE),IF($D$5="marzo",VLOOKUP(H12,td!$E$2820:$F$2824,2,FALSE),IF($D$5="abril",VLOOKUP(H12,td!$G$2820:$H$2824,2,FALSE),IF($D$5="mayo",VLOOKUP(H12,td!$I$2820:$J$2824,2,FALSE),IF($D$5="junio",VLOOKUP(H12,td!$K$2820:$L$2824,2,FALSE),IF($D$5="julio",VLOOKUP(H12,td!$M$2820:$N$2824,2,FALSE),IF($D$5="agosto",VLOOKUP(H12,td!$O$2820:$P$2824,2,FALSE),IF($D$5="septiembre",VLOOKUP(H12,td!$Q$2820:$R$2824,2,FALSE),IF($D$5="octubre",VLOOKUP(H12,td!$S$2820:$T$2824,2,FALSE),IF($D$5="noviembre",VLOOKUP(H12,td!$U$2820:$V$2824,2,FALSE),IF($D$5="diciembre",VLOOKUP(H12,td!$W$2820:$X$2824,2,FALSE),0)))))))))))),0) -> 28 | J12: =IFERROR(IF($D$5="enero",VLOOKUP(H12,td!$A$2830:$B$2834,2,FALSE),IF($D$5="febrero",VLOOKUP(H12,td!$C$2830:$D$2834,2,FALSE),IF($D$5="marzo",VLOOKUP(H12,td!$E$2830:$F$2834,2,FALSE),IF($D$5="abril",VLOOKUP(H12,td!$G$2830:$H$2834,2,FALSE),IF($D$5="mayo",VLOOKUP(H12,td!$I$2830:$J$2834,2,FALSE),IF($D$5="junio",VLOOKUP(H12,td!$K$2830:$L$2834,2,FALSE),IF($D$5="julio",VLOOKUP(H12,td!$M$2830:$N$2834,2,FALSE),IF($D$5="agosto",VLOOKUP(H12,td!$O$2830:$P$2834,2,FALSE),IF($D$5="septiembre",VLOOKUP(H12,td!$Q$2830:$R$2834,2,FALSE),IF($D$5="octubre",VLOOKUP(H12,td!$S$2830:$T$2834,2,FALSE),IF($D$5="noviembre",VLOOKUP(H12,td!$U$2830:$V$2834,2,FALSE),IF($D$5="diciembre",VLOOKUP(H12,td!$W$2830:$X$2834,2,FALSE),0)))))))))))),0) -> 15 | K12: =IFERROR(IF($D$5="enero",VLOOKUP(H12,td!$A$2840:$B$2844,2,FALSE),IF($D$5="febrero",VLOOKUP(H12,td!$C$2840:$D$2844,2,FALSE),IF($D$5="marzo",VLOOKUP(H12,td!$E$2840:$F$2844,2,FALSE),IF($D$5="abril",VLOOKUP(H12,td!$G$2840:$H$2844,2,FALSE),IF($D$5="mayo",VLOOKUP(H12,td!$I$2840:$J$2844,2,FALSE),IF($D$5="junio",VLOOKUP(H12,td!$K$2840:$L$2844,2,FALSE),IF($D$5="julio",VLOOKUP(H12,td!$M$2840:$N$2844,2,FALSE),IF($D$5="agosto",VLOOKUP(H12,td!$O$2840:$P$2844,2,FALSE),IF($D$5="septiembre",VLOOKUP(H12,td!$Q$2840:$R$2844,2,FALSE),IF($D$5="octubre",VLOOKUP(H12,td!$S$2840:$T$2844,2,FALSE),IF($D$5="noviembre",VLOOKUP(H12,td!$U$2840:$V$2844,2,FALSE),IF($D$5="diciembre",VLOOKUP(H12,td!$W$2840:$X$2844,2,FALSE),0)))))))))))),0) -> 59
H13: En riesgo | I13: =IFERROR(IF($D$5="enero",VLOOKUP(H13,td!$A$2820:$B$2824,2,FALSE),IF($D$5="febrero",VLOOKUP(H13,td!$C$2820:$D$2824,2,FALSE),IF($D$5="marzo",VLOOKUP(H13,td!$E$2820:$F$2824,2,FALSE),IF($D$5="abril",VLOOKUP(H13,td!$G$2820:$H$2824,2,FALSE),IF($D$5="mayo",VLOOKUP(H13,td!$I$2820:$J$2824,2,FALSE),IF($D$5="junio",VLOOKUP(H13,td!$K$2820:$L$2824,2,FALSE),IF($D$5="julio",VLOOKUP(H13,td!$M$2820:$N$2824,2,FALSE),IF($D$5="agosto",VLOOKUP(H13,td!$O$2820:$P$2824,2,FALSE),IF($D$5="septiembre",VLOOKUP(H13,td!$Q$2820:$R$2824,2,FALSE),IF($D$5="octubre",VLOOKUP(H13,td!$S$2820:$T$2824,2,FALSE),IF($D$5="noviembre",VLOOKUP(H13,td!$U$2820:$V$2824,2,FALSE),IF($D$5="diciembre",VLOOKUP(H13,td!$W$2820:$X$2824,2,FALSE),0)))))))))))),0) -> 4 | J13: =IFERROR(IF($D$5="enero",VLOOKUP(H13,td!$A$2830:$B$2834,2,FALSE),IF($D$5="febrero",VLOOKUP(H13,td!$C$2830:$D$2834,2,FALSE),IF($D$5="marzo",VLOOKUP(H13,td!$E$2830:$F$2834,2,FALSE),IF($D$5="abril",VLOOKUP(H13,td!$G$2830:$H$2834,2,FALSE),IF($D$5="mayo",VLOOKUP(H13,td!$I$2830:$J$2834,2,FALSE),IF($D$5="junio",VLOOKUP(H13,td!$K$2830:$L$2834,2,FALSE),IF($D$5="julio",VLOOKUP(H13,td!$M$2830:$N$2834,2,FALSE),IF($D$5="agosto",VLOOKUP(H13,td!$O$2830:$P$2834,2,FALSE),IF($D$5="septiembre",VLOOKUP(H13,td!$Q$2830:$R$2834,2,FALSE),IF($D$5="octubre",VLOOKUP(H13,td!$S$2830:$T$2834,2,FALSE),IF($D$5="noviembre",VLOOKUP(H13,td!$U$2830:$V$2834,2,FALSE),IF($D$5="diciembre",VLOOKUP(H13,td!$W$2830:$X$2834,2,FALSE),0)))))))))))),0) -> 3 | K13: =IFERROR(IF($D$5="enero",VLOOKUP(H13,td!$A$2840:$B$2844,2,FALSE),IF($D$5="febrero",VLOOKUP(H13,td!$C$2840:$D$2844,2,FALSE),IF($D$5="marzo",VLOOKUP(H13,td!$E$2840:$F$2844,2,FALSE),IF($D$5="abril",VLOOKUP(H13,td!$G$2840:$H$2844,2,FALSE),IF($D$5="mayo",VLOOKUP(H13,td!$I$2840:$J$2844,2,FALSE),IF($D$5="junio",VLOOKUP(H13,td!$K$2840:$L$2844,2,FALSE),IF($D$5="julio",VLOOKUP(H13,td!$M$2840:$N$2844,2,FALSE),IF($D$5="agosto",VLOOKUP(H13,td!$O$2840:$P$2844,2,FALSE),IF($D$5="septiembre",VLOOKUP(H13,td!$Q$2840:$R$2844,2,FALSE),IF($D$5="octubre",VLOOKUP(H13,td!$S$2840:$T$2844,2,FALSE),IF($D$5="noviembre",VLOOKUP(H13,td!$U$2840:$V$2844,2,FALSE),IF($D$5="diciembre",VLOOKUP(H13,td!$W$2840:$X$2844,2,FALSE),0)))))))))))),0) -> 15
H14: Critico | I14: =IFERROR(IF($D$5="enero",VLOOKUP(H14,td!$A$2820:$B$2824,2,FALSE),IF($D$5="febrero",VLOOKUP(H14,td!$C$2820:$D$2824,2,FALSE),IF($D$5="marzo",VLOOKUP(H14,td!$E$2820:$F$2824,2,FALSE),IF($D$5="abril",VLOOKUP(H14,td!$G$2820:$H$2824,2,FALSE),IF($D$5="mayo",VLOOKUP(H14,td!$I$2820:$J$2824,2,FALSE),IF($D$5="junio",VLOOKUP(H14,td!$K$2820:$L$2824,2,FALSE),IF($D$5="julio",VLOOKUP(H14,td!$M$2820:$N$2824,2,FALSE),IF($D$5="agosto",VLOOKUP(H14,td!$O$2820:$P$2824,2,FALSE),IF($D$5="septiembre",VLOOKUP(H14,td!$Q$2820:$R$2824,2,FALSE),IF($D$5="octubre",VLOOKUP(H14,td!$S$2820:$T$2824,2,FALSE),IF($D$5="noviembre",VLOOKUP(H14,td!$U$2820:$V$2824,2,FALSE),IF($D$5="diciembre",VLOOKUP(H14,td!$W$2820:$X$2824,2,FALSE),0)))))))))))),0) -> 4 | J14: =IFERROR(IF($D$5="enero",VLOOKUP(H14,td!$A$2830:$B$2834,2,FALSE),IF($D$5="febrero",VLOOKUP(H14,td!$C$2830:$D$2834,2,FALSE),IF($D$5="marzo",VLOOKUP(H14,td!$E$2830:$F$2834,2,FALSE),IF($D$5="abril",VLOOKUP(H14,td!$G$2830:$H$2834,2,FALSE),IF($D$5="mayo",VLOOKUP(H14,td!$I$2830:$J$2834,2,FALSE),IF($D$5="junio",VLOOKUP(H14,td!$K$2830:$L$2834,2,FALSE),IF($D$5="julio",VLOOKUP(H14,td!$M$2830:$N$2834,2,FALSE),IF($D$5="agosto",VLOOKUP(H14,td!$O$2830:$P$2834,2,FALSE),IF($D$5="septiembre",VLOOKUP(H14,td!$Q$2830:$R$2834,2,FALSE),IF($D$5="octubre",VLOOKUP(H14,td!$S$2830:$T$2834,2,FALSE),IF($D$5="noviembre",VLOOKUP(H14,td!$U$2830:$V$2834,2,FALSE),IF($D$5="diciembre",VLOOKUP(H14,td!$W$2830:$X$2834,2,FALSE),0)))))))))))),0) -> 2 | K14: =IFERROR(IF($D$5="enero",VLOOKUP(H14,td!$A$2840:$B$2844,2,FALSE),IF($D$5="febrero",VLOOKUP(H14,td!$C$2840:$D$2844,2,FALSE),IF($D$5="marzo",VLOOKUP(H14,td!$E$2840:$F$2844,2,FALSE),IF($D$5="abril",VLOOKUP(H14,td!$G$2840:$H$2844,2,FALSE),IF($D$5="mayo",VLOOKUP(H14,td!$I$2840:$J$2844,2,FALSE),IF($D$5="junio",VLOOKUP(H14,td!$K$2840:$L$2844,2,FALSE),IF($D$5="julio",VLOOKUP(H14,td!$M$2840:$N$2844,2,FALSE),IF($D$5="agosto",VLOOKUP(H14,td!$O$2840:$P$2844,2,FALSE),IF($D$5="septiembre",VLOOKUP(H14,td!$Q$2840:$R$2844,2,FALSE),IF($D$5="octubre",VLOOKUP(H14,td!$S$2840:$T$2844,2,FALSE),IF($D$5="noviembre",VLOOKUP(H14,td!$U$2840:$V$2844,2,FALSE),IF($D$5="diciembre",VLOOKUP(H14,td!$W$2840:$X$2844,2,FALSE),0)))))))))))),0) -> 21
H15: NA | I15: =IFERROR(IF($D$5="enero",VLOOKUP(H15,td!$A$2820:$B$2824,2,FALSE),IF($D$5="febrero",VLOOKUP(H15,td!$C$2820:$D$2824,2,FALSE),IF($D$5="marzo",VLOOKUP(H15,td!$E$2820:$F$2824,2,FALSE),IF($D$5="abril",VLOOKUP(H15,td!$G$2820:$H$2824,2,FALSE),IF($D$5="mayo",VLOOKUP(H15,td!$I$2820:$J$2824,2,FALSE),IF($D$5="junio",VLOOKUP(H15,td!$K$2820:$L$2824,2,FALSE),IF($D$5="julio",VLOOKUP(H15,td!$M$2820:$N$2824,2,FALSE),IF($D$5="agosto",VLOOKUP(H15,td!$O$2820:$P$2824,2,FALSE),IF($D$5="septiembre",VLOOKUP(H15,td!$Q$2820:$R$2824,2,FALSE),IF($D$5="octubre",VLOOKUP(H15,td!$S$2820:$T$2824,2,FALSE),IF($D$5="noviembre",VLOOKUP(H15,td!$U$2820:$V$2824,2,FALSE),IF($D$5="diciembre",VLOOKUP(H15,td!$W$2820:$X$2824,2,FALSE),0)))))))))))),0) -> 0 | J15: =IFERROR(IF($D$5="enero",VLOOKUP(H15,td!$A$2830:$B$2834,2,FALSE),IF($D$5="febrero",VLOOKUP(H15,td!$C$2830:$D$2834,2,FALSE),IF($D$5="marzo",VLOOKUP(H15,td!$E$2830:$F$2834,2,FALSE),IF($D$5="abril",VLOOKUP(H15,td!$G$2830:$H$2834,2,FALSE),IF($D$5="mayo",VLOOKUP(H15,td!$I$2830:$J$2834,2,FALSE),IF($D$5="junio",VLOOKUP(H15,td!$K$2830:$L$2834,2,FALSE),IF($D$5="julio",VLOOKUP(H15,td!$M$2830:$N$2834,2,FALSE),IF($D$5="agosto",VLOOKUP(H15,td!$O$2830:$P$2834,2,FALSE),IF($D$5="septiembre",VLOOKUP(H15,td!$Q$2830:$R$2834,2,FALSE),IF($D$5="octubre",VLOOKUP(H15,td!$S$2830:$T$2834,2,FALSE),IF($D$5="noviembre",VLOOKUP(H15,td!$U$2830:$V$2834,2,FALSE),IF($D$5="diciembre",VLOOKUP(H15,td!$W$2830:$X$2834,2,FALSE),0)))))))))))),0) -> 0 | K15: =IFERROR(IF($D$5="enero",VLOOKUP(H15,td!$A$2840:$B$2844,2,FALSE),IF($D$5="febrero",VLOOKUP(H15,td!$C$2840:$D$2844,2,FALSE),IF($D$5="marzo",VLOOKUP(H15,td!$E$2840:$F$2844,2,FALSE),IF($D$5="abril",VLOOKUP(H15,td!$G$2840:$H$2844,2,FALSE),IF($D$5="mayo",VLOOKUP(H15,td!$I$2840:$J$2844,2,FALSE),IF($D$5="junio",VLOOKUP(H15,td!$K$2840:$L$2844,2,FALSE),IF($D$5="julio",VLOOKUP(H15,td!$M$2840:$N$2844,2,FALSE),IF($D$5="agosto",VLOOKUP(H15,td!$O$2840:$P$2844,2,FALSE),IF($D$5="septiembre",VLOOKUP(H15,td!$Q$2840:$R$2844,2,FALSE),IF($D$5="octubre",VLOOKUP(H15,td!$S$2840:$T$2844,2,FALSE),IF($D$5="noviembre",VLOOKUP(H15,td!$U$2840:$V$2844,2,FALSE),IF($D$5="diciembre",VLOOKUP(H15,td!$W$2840:$X$2844,2,FALSE),0)))))))))))),0) -> 0
H16: Total | I16: =SUM(I11:I15) -> 105 | J16: =SUM(J11:J15) -> 74 | K16: =SUM(K11:K15) -> 195
D18: =+"Corte "&D5 -> Corte Diciembre
C21: Plan de Acción | L21: Plan Indicativo
L22: =+VLOOKUP("Total general PI",td!$B$45:$AN$45,$T$3,FALSE) -> 0.9325548478
C23: =+VLOOKUP("Total general PA",td!$B$34:$AN$34,$T$3,FALSE) -> 0.9150856793 | H23: Ranking
L43: Tablero de Control
L44: =+VLOOKUP("Total general tc",td!$B$10:$AN$45,$T$3,FALSE) -> 0.8898561402
E61: Seleccione la regional y de click en el boton para ir a la información detallada
I62: N Santander
C67: Sección 2: Comportamiento general agregados
C69: Objetivos institucionales
G71: Objetivo 1: | H71: Ampliar cobertura y mejorar calidad en la atención integral a la Primera Infancia.
G72: Objetivo 2: | H72: Promover los derechos de los NNA y prevenir los riesgos o amenazas de vulneración de los mismos
G73: Objetivo 3: | H73: Fortalecer en las familias y comunidades étnicas capacidades que promuevan su desarrollo, fortalezcan sus vínculos de cuidado mutuo y prevengan la violencia intrafamiliar y de género.
G74: Objetivo 4: | H74: Promover la seguridad alimentaria y nutricional en el desarrollo de la primera infancia, los NNA y la familia.
G75: Objetivo 5: | H75: Garantizar la protección integral de los NNA en coordinación con las instancias del SNBF.
G76: Objetivo 6: | H76: Lograr una adecuada y eficiente gestión institucional a través de la articulación entre servidores, áreas y niveles territoriales; el apoyo administrativo a los procesos misionales, la apropiación de una cultura de la evaluación y la optimización del uso de los recursos
C81: Plan de Acción / Líneas de Política
C83: Lineas de Politica | E83: Componentes
J84: Lineas de Politica | O84: Componentes
I85: LP1: | J85: Gestión misional y de gobierno | N85: LP1-C1: | O85: Indicadores y metas de gobierno
I86: LP2: | J86: Transparencia, participación y servicio al ciudadano | N86: LP2-C1: | O86: Transparencia y acceso a la información pública
N87: LP2-C2: | O87: Participación Ciudadana en la Gestión
N88: LP2-C3: | O88: Rendición de cuentas
N89: LP2-C4: | O89: Servicio al ciudadano
I90: LP3: | J90: Gestión del talento humano | N90: LP3-C1: | O90: Plan Estratégico de Recursos Humanos
N91: LP3-C2: | O91: Plan Anual de Vacantes
N92: LP3-C3: | O92: Capacitación
N93: LP3-C4: | O93: Bienestar e Incentivos
I94: LP4: | J94: Eficiencia administrativa | N94: LP4-C1: | O94: Gestión de la calidad
N95: LP4-C2: | O95: Eficiencia administrativa y cero papel
N96: LP4-C3: | O96: Racionalización de trámites
N97: LP4-C4: | O97: Modernización institucional
N98: LP4-C5: | O98: Gestión de Tecnologías de información
N99: LP4-C6: | O99: Gestión documental
I100: LP5: | J100: Gestión Financiera | N100: LP5-C1: | O100: Programación y ejecución presupuestal
N101: LP5-C2: | O101: Programa Anual Mensualizado de Caja – PAC
N102: LP5-C3: | O102: Formulación y seguimiento a Proyectos de Inversión
N103: LP5-C4: | O103: Plan Anual de Adquisiciones (PAA)
C108: Macroprocesos / Procesos
C110: Macroprocesos | E110: Procesos | J110: Macroprocesos | O110: Procesos
I111: MPM1: | J111: Gestión para la Atención Integral a la Primera Infancia
I112: MPM2: | J112: Gestión para la promoción y Prevención para la protección integral de las niñez y la adolescencia
I113: MPM3: | J113: Gestión para la atención de las familias y comunidades
I114: MPM4: | J114: Gestión para la Nutrición
I115: MPM5: | J115: Gestión para la Protección | N115: MPM5-P1: | O115: Gestión Restablecimiento de Derechos
N116: MPM5-P2: | O116: Gestión de Adopciones
N117: MPM5-P3: | O117: Gestión Responsabilidad Penal
I118: MPA1: | J118: Gestión Soporte | N118: MPA1-P1: | O118: Gestión Humana
N119: MPA1-P2: | O119: Gestión Financiera
N120: MPA1-P3: | O120: Gestión Control interno Disciplinario
N121: MPA1-P4: | O121: Gestión Abastecimiento
N122: MPA1-P5: | O122: Gestión Administrativa
N123: MPA1-P6: | O123: Gestión Contratación
I124: MPA2: | J124: Gestión Jurídica
I125: MPA3: | J125: Gestión Regional
I126: MPA4: | J126: Gestión Cooperación
I127: MPA5: | J127: Gestión Servicio y Atención | N127: MPA5-P1: | O127: Gestión Servicio a Beneficiarios
N128: MPA5-P2: | O128: Gestión Atención PQR y sugerencias
I129: MPA6: | J129: Gestión Tecnológica
I130: MPA7: | J130: Gestión Comunicaciones
I131: MPE1: | J131: Direccionamiento Estratégico
I132: MPE2: | J132: Mejoramiento Continuo
I133: MPE3: | J133: Coordinación y Articulación del SNBF
I134: MPEV1: | J134: Evaluación, Monitoreo y Control de la Gestión | N134: MPEV1-P1: | O134: Evaluación y Monitoreo de la Gestión
N135: MPEV1-P2: | O135: Evaluación Independiente
I136: MPEV2: | J136: Aseguramiento de la Calidad de los Servicios Misionales del ICBF | N136: MPEV2-P1: | O136: Evaluación de la Calidad de los Servicios Misionales del ICBF
N137: MPEV2-P2: | O137: Asistencia Técnica a los Actores del Macro Proceso Aseguramiento de la Calidad de los Servicios Misionales del ICBF
C142: Objetivos SIGE
G144: SIGE1: | H144: Ampliar cobertura y mejorar calidad en la atención integral a la Primera Infancia.
G145: SIGE2: | H145: Promover los derechos de los NNA y prevenir los riesgos o amenazas de vulneración de los mismos
G146: SIGE3: | H146: Fortalecer en las familias y comunidades étnicas capacidades que promuevan su desarrollo, fortalezcan sus vínculos de cuidado mutuo y prevengan la violencia intrafamiliar y de género.
G147: SIGE4: | H147: Promover la seguridad alimentaria y nutricional en el desarrollo de la primera infancia, los NNA y la familia.
G148: SIGE5: | H148: Garantizar la protección integral de los NNA en coordinación con las instancias del SNBF.
G149: SIGE6: | H149: Lograr una adecuada y eficiente gestión institucional a través de la articulación entre servidores, áreas y niveles territoriales; el apoyo administrativo a los procesos misionales, la apropiación de una cultura de la evaluación y la optimización del uso de los recursos
G150: SIGE7: | H150: Promover condiciones laborales que hagan del ICBF el mejor lugar para trabajar.
G151: SIGE8: | H151: Reducir los impactos ambientales generados por nuestra actividad.
G152: SIGE9: | H152: Impulsar una cultura de gestión de la calidad y el mejoramiento continuo.
G153: SIGE10: | H153: Gestionar el conocimiento institucional, con sistemas de información confiables, integrados y disponibles.
C157: Areas
D160: Áreas | H160: Áreas
G161: M1 | H161: Dirección de Primera Infancia
G162: M2 | H162: Dirección de Niñez y Adolescencia
G163: M3 | H163: Dirección de Familia y Comunidades
G164: M4 | H164: Dirección de Nutrición
G165: M5 | H165: Dirección de Protección
G167: A1 | H167: Dirección de Gestión Humana
G168: A2 | H168: Dirección Financiera
G169: A3 | H169: Oficina de Control Interno Disciplinario
G170: A4 | H170: Dirección de Abastecimiento
G171: A5 | H171: Dirección Administrativa
G172: A6 | H172: Dirección de Contratación
G173: A7 | H173: Oficina Asesora Jurídica
G174: A8 | H174: Oficina de Gestión Regional
G175: A9 | H175: Oficina de Cooperación y Convenios
G176: A10 | H176: Dirección de Servicio y Atención
G177: A11 | H177: Dirección de Información y Tecnología
G178: A12 | H178: Oficina Asesora de Comunicaciones
G179: A13 | H179: Dirección de Planeación
G180: A14 | H180: Dirección del SNBF
G181: A15 | H181: Oficina de Control Interno
G182: A16 | H182: Oficina de Aseguramiento a la calidad
G183: A17 | H183: Subdirección General
C188: Proyectos de inversión
F190: Proyectos de Inversión (código SUIFP)
F191: 1004001210000: | G191: Asistencia a la primera infancia a nivel nacional
F192: 2012011000127: | G192: Prevención y promoción para la protección integral de los derechos de la niñez y adolescencia a nivel nacional
F193: 1004001230000: | G193: Apoyo formativo a la familia para ser garante de derechos a nivel nacional
F194: 2012011000130: | G194: Desarrollar acciones de promoción y prevención en el marco de la política de seguridad alimentaria y nutricional en el territorio nacional
F195: 1004000480000: | G195: Protección - acciones para preservar y restituir el ejercicio integral de los derechos de la niñez y la familia
F196: 2012011000129: | G196: Atención alimentaria en la transición a las familias víctimas del conflicto armado en condición de desplazamiento a nivel nacional
F197: 1004000010000: | G197: Asistencia para el fortalecimiento del SNBF para la prestación del servicio público de bienestar familiar
F198: 0016001840000: | G198: Construcción, remodelación, mantenimiento, dotación de sedes administrativas, regionales, centros zonales y unidades de servicio
F199: 1004000520000: | G199: Aplicación de la promoción y fomento para la construcción de una cultura de los derechos de la niñez y la familia
F200: 1004000020000: | G200: Implementación del plan estratégico de desarrollo informático y tecnológico del ICBF
F201: 1004000490000: | G201: Estudios sociales operativos y administrativos para mejorar la gestión institucional
C205: Sección 3: Analisis agregados, regionales e indicadores
C207: Categoria | D207: Objetivos Institucionales | E207: =IFERROR(VLOOKUP(D207,referencias!$B$13:$H$18,4,FALSE),"") -> objet_ins | H207: Al finalizar la selección de click para actualizar la información del mapa
C209: =IFERROR("Seleccionar código de "&VLOOKUP(D207,referencias!$B$13:$C$18,2,FALSE),"") -> Seleccionar código de Objetivo
C211: Código | D211: 1 | E211: =+IFERROR(VLOOKUP(D211,referencias!$C$20:$D$125,2,FALSE),"") -> -
C213: =IFERROR(VLOOKUP(D207,referencias!$B$13:$C$17,2,FALSE),"") -> Objetivo | D213: =IFERROR(VLOOKUP(D211,td!$B$4:$C$175,2,FALSE),"") -> Ampliar cobertura y mejorar calidad en la atención integral a la Primera Infancia. | H213: información detallada por indicador
C215: =IFERROR(IF(VLOOKUP(D207,referencias!$B$13:$D$17,3,FALSE)="","","Seleccionar código de "&VLOOKUP(D207,referencias!$B$13:$D$17,3,FALSE)),"") -> 
C217: =+IF(C215="","","Código") -> 
C219: =+IF(C215="","",VLOOKUP(D207,referencias!$B$13:$D$17,3,FALSE)) ->  | D219: =+IFERROR(VLOOKUP(D217,td!$B$4:$C$175,2,FALSE),"") -> 
I220: =+VLOOKUP(D5,U224:V235,2,FALSE) -> 40
J221: Regional | P221: Comportamiento gral.
D223: =+$C$258&"."&E223 -> 1.5 | E223: 5 | J223: Antioquia | K223: =+IFERROR(VLOOKUP(D223,td!$A$180:$AN$2813,$I$220,FALSE),"") -> 0.8551696284 | P223: Optimo | Q223: =+COUNTIF($M$260:$M$376,"optimo") -> 10
D224: =+$C$258&"."&E224 -> 1.8 | E224: 8 | J224: Atlántico | K224: =+IFERROR(VLOOKUP(D224,td!$A$180:$AN$2813,$I$220,FALSE),"") -> 0.8469843834 | P224: Adecuado | Q224: =+COUNTIF($M$260:$M$376,"adecuado") -> 8 | U224: Enero | V224: 29
D225: 1.11 | E225: 11 | J225: Bogotá | K225: =+IFERROR(VLOOKUP(D225,td!$A$180:$AN$2813,$I$220,FALSE),"") -> 0.8227158499 | P225: En riesgo | Q225: =+COUNTIF($M$260:$M$376,"en riesgo") -> 0 | U225: Febrero | V225: =+V224+1 -> 30
C226: Nacional | D226: 1.13 | E226: 13 | J226: Bolivar | K226: =+IFERROR(VLOOKUP(D226,td!$A$180:$AN$2813,$I$220,FALSE),"") -> 0.9042810985 | P226: Critico | Q226: =+COUNTIF($M$260:$M$376,"critico") -> 0 | U226: Marzo | V226: =+V225+1 -> 31
C227: =+IFERROR(VLOOKUP(C258,td!$B$4:$AN$146,$T$3,FALSE),"") -> 0.9602374754 | D227: 1.15 | E227: 15 | J227: Boyacá | K227: =+IFERROR(VLOOKUP(D227,td!$A$180:$AN$2813,$I$220,FALSE),"") -> 0.9042810985 | P227: NA | Q227: =+COUNTIF($M$260:$M$376,"NA") -> 0 | U227: Abril | V227: 32
D228: 1.17 | E228: 17 | J228: Caldas | K228: =+IFERROR(VLOOKUP(D228,td!$A$180:$AN$2813,$I$220,FALSE),"") -> 0.9042810985 | P228: Total | Q228: =SUM(Q223:Q227) -> 18 | U228: Mayo | V228: 33
D229: 1.18 | E229: 18 | J229: Caquetá | K229: =+IFERROR(VLOOKUP(D229,td!$A$180:$AN$2813,$I$220,FALSE),"") -> 0.9585621971 | U229: Junio | V229: 34
D230: 1.19 | E230: 19 | J230: Cauca | K230: =+IFERROR(VLOOKUP(D230,td!$A$180:$AN$2813,$I$220,FALSE),"") -> 0.9042810985 | U230: Julio | V230: 35
D231: 1.20 | E231: 20 | J231: Cesar | K231: =+IFERROR(VLOOKUP(D231,td!$A$180:$AN$2813,$I$220,FALSE),"") -> 0.9503769521 | U231: Agosto | V231: 36
D232: 1.23 | E232: 23 | J232: Cordoba | K232: =+IFERROR(VLOOKUP(D232,td!$A$180:$AN$2813,$I$220,FALSE),"") -> 0.8988242685 | U232: Septiembre | V232: 37
D233: 1.25 | E233: 25 | J233: Cundinamarca | K233: =+IFERROR(VLOOKUP(D233,td!$A$180:$AN$2813,$I$220,FALSE),"") -> 0.8960958535 | U233: Octubre | V233: 38
D234: 1.27 | E234: 27 | J234: Choco | K234: =+IFERROR(VLOOKUP(D234,td!$A$180:$AN$2813,$I$220,FALSE),"") -> 0.8761443188 | U234: Noviembre | V234: 39
D235: 1.41 | E235: 41 | J235: Huila | K235: =+IFERROR(VLOOKUP(D235,td!$A$180:$AN$2813,$I$220,FALSE),"") -> 0.9421917071 | U235: Diciembre | V235: 40
D236: 1.44 | E236: 44 | J236: Guajira | K236: =+IFERROR(VLOOKUP(D236,td!$A$180:$AN$2813,$I$220,FALSE),"") -> 0.7055376055
D237: 1.47 | E237: 47 | J237: Magdalena | K237: =+IFERROR(VLOOKUP(D237,td!$A$180:$AN$2813,$I$220,FALSE),"") -> 0.9042810985
D238: 1.50 | E238: 50 | J238: Meta | K238: =+IFERROR(VLOOKUP(D238,td!$A$180:$AN$2813,$I$220,FALSE),"") -> 0.9421917071
D239: 1.52 | E239: 52 | J239: Nariño | K239: =+IFERROR(VLOOKUP(D239,td!$A$180:$AN$2813,$I$220,FALSE),"") -> 0.9042810985
D240: 1.54 | E240: 54 | J240: N Santander | K240: =+IFERROR(VLOOKUP(D240,td!$A$180:$AN$2813,$I$220,FALSE),"") -> 0.9042810985
D241: 1.63 | E241: 63 | J241: Quindío | K241: =+IFERROR(VLOOKUP(D241,td!$A$180:$AN$2813,$I$220,FALSE),"") -> 0.8832525579
D242: 1.66 | E242: 66 | J242: Risaralda | K242: =+IFERROR(VLOOKUP(D242,td!$A$180:$AN$2813,$I$220,FALSE),"") -> 0.9042810985
D243: 1.68 | E243: 68 | J243: Santander | K243: =+IFERROR(VLOOKUP(D243,td!$A$180:$AN$2813,$I$220,FALSE),"") -> 0.9288368336
D244: 1.70 | E244: 70 | J244: Sucre | K244: =+IFERROR(VLOOKUP(D244,td!$A$180:$AN$2813,$I$220,FALSE),"") -> 0.86637049
D245: 1.73 | E245: 73 | J245: Tolima | K245: =+IFERROR(VLOOKUP(D245,td!$A$180:$AN$2813,$I$220,FALSE),"") -> 0.8988242685
D246: 1.76 | E246: 76 | J246: Valle | K246: =+IFERROR(VLOOKUP(D246,td!$A$180:$AN$2813,$I$220,FALSE),"") -> 0.8745557351
D247: 1.81 | E247: 81 | J247: Arauca | K247: =+IFERROR(VLOOKUP(D247,td!$A$180:$AN$2813,$I$220,FALSE),"") -> 0.9503769521
D248: 1.85 | E248: 85 | J248: Casanare | K248: =+IFERROR(VLOOKUP(D248,td!$A$180:$AN$2813,$I$220,FALSE),"") -> 0.9042810985
D249: 1.86 | E249: 86 | J249: Putumayo | K249: =+IFERROR(VLOOKUP(D249,td!$A$180:$AN$2813,$I$220,FALSE),"") -> 0.9585621971
D250: 1.88 | E250: 88 | J250: San Andrés | K250: =+IFERROR(VLOOKUP(D250,td!$A$180:$AN$2813,$I$220,FALSE),"") -> 0.9754442649
D251: 1.91 | E251: 91 | J251: Amazonas | K251: =+IFERROR(VLOOKUP(D251,td!$A$180:$AN$2813,$I$220,FALSE),"") -> 0.8528858933
D252: 1.94 | E252: 94 | J252: Guainía | K252: =+IFERROR(VLOOKUP(D252,td!$A$180:$AN$2813,$I$220,FALSE),"") -> 0.7415606607
D253: 1.95 | E253: 95 | J253: Guaviare | K253: =+IFERROR(VLOOKUP(D253,td!$A$180:$AN$2813,$I$220,FALSE),"") -> 0.9124663436
D254: 1.97 | E254: 97 | J254: Vaupés | K254: =+IFERROR(VLOOKUP(D254,td!$A$180:$AN$2813,$I$220,FALSE),"") -> 0.9421917071
D255: 1.99 | E255: 99 | J255: Vichada | K255: =+IFERROR(VLOOKUP(D255,td!$A$180:$AN$2813,$I$220,FALSE),"") -> 0.928549632
D257: 1.0 | E257: 0 | J257: Sede Nacional | K257: =+IFERROR(VLOOKUP(D257,td!$A$180:$AN$2813,$I$220,FALSE),"") -> 
C258: =+IF(D217="",D211,D217) -> 1 | H258: 2 | I258: =+VLOOKUP($D$5,referencias!$N$1:$S$12,2,FALSE) -> 58 | J258: =+VLOOKUP($D$5,referencias!$N$1:$S$12,3,FALSE) -> 59 | K258: =+VLOOKUP($D$5,referencias!$N$1:$S$12,4,FALSE) -> 60 | L258: =+VLOOKUP($D$5,referencias!$N$1:$S$12,5,FALSE) -> 61 | M258: =+VLOOKUP($D$5,referencias!$N$1:$S$12,6,FALSE) -> 62
C259: Cod indicador | D259: Indicador | F259: Nal | G259: Reg | H259: Meta | I259: Numerador | J259: Denominador | K259: Avance | L259: % avance
A260: 1 | B260: =+$C$258&"."&A260 -> 1.1 | C260: =+IFERROR(VLOOKUP(B260,referencias!$C$128:$D$1213,2,FALSE),"") -> PA-01 | D260: =IFERROR(VLOOKUP(C260,'tc nacional'!$AA$7:$AB$201,2,FALSE),"") -> Número de niños y niñas atendidos en el marco de la Atención Integral. | F260: =IFERROR(VLOOKUP(C260,'tc nacional'!$AA$7:$AG$201,6,FALSE),"") -> x | G260: =IFERROR(IF(VLOOKUP(C260,'tc nacional'!$AA$7:$AG$201,7,FALSE)=0,"-",VLOOKUP(C260,'tc nacional'!$AA$7:$AG$201,7,FALSE)),"") -> x | H260: =IFERROR(IF(VLOOKUP($C260&"Total",base!$D$4:$AI$3035,H$258,FALSE)>1,IF(VLOOKUP($C260&"Total",base!$D$4:$AI$3035,H$258,FALSE)>1000,TEXT(VLOOKUP($C260&"Total",base!$D$4:$AI$3035,H$258,FALSE),"0.000"),TEXT(VLOOKUP($C260&"Total",base!$D$4:$AI$3035,H$258,FALSE),"0")),TEXT(VLOOKUP($C260&"Total",base!$D$4:$AI$3035,H$258,FALSE),"0,0%")),"") -> 1.400.000 | I260: =IFERROR(IF(VLOOKUP($C260&"Total",base!$D$4:$BM$3035,I$258,FALSE)>1000,TEXT(VLOOKUP($C260&"Total",base!$D$4:$BM$3035,I$258,FALSE),"0.000"),TEXT(VLOOKUP($C260&"Total",base!$D$4:$BM$3035,I$258,FALSE),"0")),"") -> 1.123.376 | J260: =IFERROR(IF(VLOOKUP($C260&"Total",base!$D$4:$BM$3035,J$258,FALSE)>1000,TEXT(VLOOKUP($C260&"Total",base!$D$4:$BM$3035,J$258,FALSE),"0.000"),TEXT(VLOOKUP($C260&"Total",base!$D$4:$BM$3035,J$258,FALSE),"0")),"") -> 1.136.332 | K260: =IFERROR(IF(VLOOKUP($C260&"Total",base!$D$4:$BM$3035,K$258,FALSE)>1.8,IF(VLOOKUP($C260&"Total",base!$D$4:$BM$3035,K$258,FALSE)>1000,TEXT(VLOOKUP($C260&"Total",base!$D$4:$BM$3035,K$258,FALSE),"0.000"),TEXT(VLOOKUP($C260&"Total",base!$D$4:$BM$3035,K$258,FALSE),"0")),TEXT(VLOOKUP($C260&"Total",base!$D$4:$BM$3035,K$258,FALSE),"0,0%")),"") -> 1.123.376 | L260: =IFERROR(IF(VLOOKUP($C260&"Total",base!$D$4:$BM$3035,L$258,FALSE)>1.8,IF(VLOOKUP($C260&"Total",base!$D$4:$BM$3035,L$258,FALSE)>1000,TEXT(VLOOKUP($C260&"Total",base!$D$4:$BM$3035,L$258,FALSE),"0.000"),TEXT(VLOOKUP($C260&"Total",base!$D$4:$BM$3035,L$258,FALSE),"0")),TEXT(VLOOKUP($C260&"Total",base!$D$4:$BM$3035,L$258,FALSE),"0,0%")),"") -> 98,9% | M260: =IFERROR(IF(VLOOKUP($C260&"Total",base!$D$4:$BM$3035,M$258,FALSE)>1,IF(VLOOKUP($C260&"Total",base!$D$4:$BM$3035,M$258,FALSE)>1000,TEXT(VLOOKUP($C260&"Total",base!$D$4:$BM$3035,M$258,FALSE),"0.000"),TEXT(VLOOKUP($C260&"Total",base!$D$4:$BM$3035,M$258,FALSE),"0")),TEXT(VLOOKUP($C260&"Total",base!$D$4:$BM$3035,M$258,FALSE),"0,0%")),"") -> ADECUADO
A261: 2 | B261: =+$C$258&"."&A261 -> 1.2 | C261: =+IFERROR(VLOOKUP(B261,referencias!$C$128:$D$1213,2,FALSE),"") -> PA-02 | D261: =IFERROR(VLOOKUP(C261,'tc nacional'!$AA$7:$AB$201,2,FALSE),"") -> Porcentaje de niños y niñas atendidos en Hogares Comunitarios transitados a las Modalidades de Atención Integral | F261: =IFERROR(VLOOKUP(C261,'tc nacional'!$AA$7:$AG$201,6,FALSE),"") -> x | G261: =IFERROR(IF(VLOOKUP(C261,'tc nacional'!$AA$7:$AG$201,7,FALSE)=0,"-",VLOOKUP(C261,'tc nacional'!$AA$7:$AG$201,7,FALSE)),"") -> - | H261: =IFERROR(IF(VLOOKUP($C261&"Total",base!$D$4:$AI$3035,H$258,FALSE)>1,IF(VLOOKUP($C261&"Total",base!$D$4:$AI$3035,H$258,FALSE)>1000,TEXT(VLOOKUP($C261&"Total",base!$D$4:$AI$3035,H$258,FALSE),"0.000"),TEXT(VLOOKUP($C261&"Total",base!$D$4:$AI$3035,H$258,FALSE),"0")),TEXT(VLOOKUP($C261&"Total",base!$D$4:$AI$3035,H$258,FALSE),"0,0%")),"") -> 20,0% | I261: =IFERROR(IF(VLOOKUP($C261&"Total",base!$D$4:$BM$3035,I$258,FALSE)>1000,TEXT(VLOOKUP($C261&"Total",base!$D$4:$BM$3035,I$258,FALSE),"0.000"),TEXT(VLOOKUP($C261&"Total",base!$D$4:$BM$3035,I$258,FALSE),"0")),"") -> 77.996 | J261: =IFERROR(IF(VLOOKUP($C261&"Total",base!$D$4:$BM$3035,J$258,FALSE)>1000,TEXT(VLOOKUP($C261&"Total",base!$D$4:$BM$3035,J$258,FALSE),"0.000"),TEXT(VLOOKUP($C261&"Total",base!$D$4:$BM$3035,J$258,FALSE),"0")),"") -> 784.316 | K261: =IFERROR(IF(VLOOKUP($C261&"Total",base!$D$4:$BM$3035,K$258,FALSE)>1.8,IF(VLOOKUP($C261&"Total",base!$D$4:$BM$3035,K$258,FALSE)>1000,TEXT(VLOOKUP($C261&"Total",base!$D$4:$BM$3035,K$258,FALSE),"0.000"),TEXT(VLOOKUP($C261&"Total",base!$D$4:$BM$3035,K$258,FALSE),"0")),TEXT(VLOOKUP($C261&"Total",base!$D$4:$BM$3035,K$258,FALSE),"0,0%")),"") -> 9,9% | L261: =IFERROR(IF(VLOOKUP($C261&"Total",base!$D$4:$BM$3035,L$258,FALSE)>1.8,IF(VLOOKUP($C261&"Total",base!$D$4:$BM$3035,L$258,FALSE)>1000,TEXT(VLOOKUP($C261&"Total",base!$D$4:$BM$3035,L$258,FALSE),"0.000"),TEXT(VLOOKUP($C261&"Total",base!$D$4:$BM$3035,L$258,FALSE),"0")),TEXT(VLOOKUP($C261&"Total",base!$D$4:$BM$3035,L$258,FALSE),"0,0%")),"") -> 9,9% | M261: =IFERROR(IF(VLOOKUP($C261&"Total",base!$D$4:$BM$3035,M$258,FALSE)>1,IF(VLOOKUP($C261&"Total",base!$D$4:$BM$3035,M$258,FALSE)>1000,TEXT(VLOOKUP($C261&"Total",base!$D$4:$BM$3035,M$258,FALSE),"0.000"),TEXT(VLOOKUP($C261&"Total",base!$D$4:$BM$3035,M$258,FALSE),"0")),TEXT(VLOOKUP($C261&"Total",base!$D$4:$BM$3035,M$258,FALSE),"0,0%")),"") -> OPTIMO
A262: 3 | B262: 1.3 | C262: =+IFERROR(VLOOKUP(B262,referencias!$C$128:$D$1213,2,FALSE),"") -> PA-03 | D262: =IFERROR(VLOOKUP(C262,'tc nacional'!$AA$7:$AB$201,2,FALSE),"") -> Porcentaje de niños y niñas de las modalidades de Primera Infancia, reportados al Ministerio de Educación para la matricula al sistema educativo. | F262: =IFERROR(VLOOKUP(C262,'tc nacional'!$AA$7:$AG$201,6,FALSE),"") -> x | G262: =IFERROR(IF(VLOOKUP(C262,'tc nacional'!$AA$7:$AG$201,7,FALSE)=0,"-",VLOOKUP(C262,'tc nacional'!$AA$7:$AG$201,7,FALSE)),"") -> - | H262: =IFERROR(IF(VLOOKUP($C262&"Total",base!$D$4:$AI$3035,H$258,FALSE)>1,IF(VLOOKUP($C262&"Total",base!$D$4:$AI$3035,H$258,FALSE)>1000,TEXT(VLOOKUP($C262&"Total",base!$D$4:$AI$3035,H$258,FALSE),"0.000"),TEXT(VLOOKUP($C262&"Total",base!$D$4:$AI$3035,H$258,FALSE),"0")),TEXT(VLOOKUP($C262&"Total",base!$D$4:$AI$3035,H$258,FALSE),"0,0%")),"") -> 80,0% | I262: =IFERROR(IF(VLOOKUP($C262&"Total",base!$D$4:$BM$3035,I$258,FALSE)>1000,TEXT(VLOOKUP($C262&"Total",base!$D$4:$BM$3035,I$258,FALSE),"0.000"),TEXT(VLOOKUP($C262&"Total",base!$D$4:$BM$3035,I$258,FALSE),"0")),"") -> 259.696 | J262: =IFERROR(IF(VLOOKUP($C262&"Total",base!$D$4:$BM$3035,J$258,FALSE)>1000,TEXT(VLOOKUP($C262&"Total",base!$D$4:$BM$3035,J$258,FALSE),"0.000"),TEXT(VLOOKUP($C262&"Total",base!$D$4:$BM$3035,J$258,FALSE),"0")),"") -> 259.748 | K262: =IFERROR(IF(VLOOKUP($C262&"Total",base!$D$4:$BM$3035,K$258,FALSE)>1.8,IF(VLOOKUP($C262&"Total",base!$D$4:$BM$3035,K$258,FALSE)>1000,TEXT(VLOOKUP($C262&"Total",base!$D$4:$BM$3035,K$258,FALSE),"0.000"),TEXT(VLOOKUP($C262&"Total",base!$D$4:$BM$3035,K$258,FALSE),"0")),TEXT(VLOOKUP($C262&"Total",base!$D$4:$BM$3035,K$258,FALSE),"0,0%")),"") -> 100,0% | L262: =IFERROR(IF(VLOOKUP($C262&"Total",base!$D$4:$BM$3035,L$258,FALSE)>1.8,IF(VLOOKUP($C262&"Total",base!$D$4:$BM$3035,L$258,FALSE)>1000,TEXT(VLOOKUP($C262&"Total",base!$D$4:$BM$3035,L$258,FALSE),"0.000"),TEXT(VLOOKUP($C262&"Total",base!$D$4:$BM$3035,L$258,FALSE),"0")),TEXT(VLOOKUP($C262&"Total",base!$D$4:$BM$3035,L$258,FALSE),"0,0%")),"") -> 100,0% | M262: =IFERROR(IF(VLOOKUP($C262&"Total",base!$D$4:$BM$3035,M$258,FALSE)>1,IF(VLOOKUP($C262&"Total",base!$D$4:$BM$3035,M$258,FALSE)>1000,TEXT(VLOOKUP($C262&"Total",base!$D$4:$BM$3035,M$258,FALSE),"0.000"),TEXT(VLOOKUP($C262&"Total",base!$D$4:$BM$3035,M$258,FALSE),"0")),TEXT(VLOOKUP($C262&"Total",base!$D$4:$BM$3035,M$258,FALSE),"0,0%")),"") -> OPTIMO
A263: 4 | B263: 1.4 | C263: =+IFERROR(VLOOKUP(B263,referencias!$C$128:$D$1213,2,FALSE),"") -> PA-04 | D263: =IFERROR(VLOOKUP(C263,'tc nacional'!$AA$7:$AB$201,2,FALSE),"") -> Porcentaje de Hogares Comunitarios que cumplen los estándares de la estrategia de Cero a Siempre. | F263: =IFERROR(VLOOKUP(C263,'tc nacional'!$AA$7:$AG$201,6,FALSE),"") -> x | G263: =IFERROR(IF(VLOOKUP(C263,'tc nacional'!$AA$7:$AG$201,7,FALSE)=0,"-",VLOOKUP(C263,'tc nacional'!$AA$7:$AG$201,7,FALSE)),"") -> - | H263: =IFERROR(IF(VLOOKUP($C263&"Total",base!$D$4:$AI$3035,H$258,FALSE)>1,IF(VLOOKUP($C263&"Total",base!$D$4:$AI$3035,H$258,FALSE)>1000,TEXT(VLOOKUP($C263&"Total",base!$D$4:$AI$3035,H$258,FALSE),"0.000"),TEXT(VLOOKUP($C263&"Total",base!$D$4:$AI$3035,H$258,FALSE),"0")),TEXT(VLOOKUP($C263&"Total",base!$D$4:$AI$3035,H$258,FALSE),"0,0%")),"") -> 20,0% | I263: =IFERROR(IF(VLOOKUP($C263&"Total",base!$D$4:$BM$3035,I$258,FALSE)>1000,TEXT(VLOOKUP($C263&"Total",base!$D$4:$BM$3035,I$258,FALSE),"0.000"),TEXT(VLOOKUP($C263&"Total",base!$D$4:$BM$3035,I$258,FALSE),"0")),"") -> 4.622 | J263: =IFERROR(IF(VLOOKUP($C263&"Total",base!$D$4:$BM$3035,J$258,FALSE)>1000,TEXT(VLOOKUP($C263&"Total",base!$D$4:$BM$3035,J$258,FALSE),"0.000"),TEXT(VLOOKUP($C263&"Total",base!$D$4:$BM$3035,J$258,FALSE),"0")),"") -> 16.000 | K263: =IFERROR(IF(VLOOKUP($C263&"Total",base!$D$4:$BM$3035,K$258,FALSE)>1.8,IF(VLOOKUP($C263&"Total",base!$D$4:$BM$3035,K$258,FALSE)>1000,TEXT(VLOOKUP($C263&"Total",base!$D$4:$BM$3035,K$258,FALSE),"0.000"),TEXT(VLOOKUP($C263&"Total",base!$D$4:$BM$3035,K$258,FALSE),"0")),TEXT(VLOOKUP($C263&"Total",base!$D$4:$BM$3035,K$258,FALSE),"0,0%")),"") -> 28,9% | L263: =IFERROR(IF(VLOOKUP($C263&"Total",base!$D$4:$BM$3035,L$258,FALSE)>1.8,IF(VLOOKUP($C263&"Total",base!$D$4:$BM$3035,L$258,FALSE)>1000,TEXT(VLOOKUP($C263&"Total",base!$D$4:$BM$3035,L$258,FALSE),"0.000"),TEXT(VLOOKUP($C263&"Total",base!$D$4:$BM$3035,L$258,FALSE),"0")),TEXT(VLOOKUP($C263&"Total",base!$D$4:$BM$3035,L$258,FALSE),"0,0%")),"") -> 28,9% | M263: =IFERROR(IF(VLOOKUP($C263&"Total",base!$D$4:$BM$3035,M$258,FALSE)>1,IF(VLOOKUP($C263&"Total",base!$D$4:$BM$3035,M$258,FALSE)>1000,TEXT(VLOOKUP($C263&"Total",base!$D$4:$BM$3035,M$258,FALSE),"0.000"),TEXT(VLOOKUP($C263&"Total",base!$D$4:$BM$3035,M$258,FALSE),"0")),TEXT(VLOOKUP($C263&"Total",base!$D$4:$BM$3035,M$258,FALSE),"0,0%")),"") -> OPTIMO
A264: 5 | B264: 1.5 | C264: =+IFERROR(VLOOKUP(B264,referencias!$C$128:$D$1213,2,FALSE),"") -> PA-05 | D264: =IFERROR(VLOOKUP(C264,'tc nacional'!$AA$7:$AB$201,2,FALSE),"") -> Número de agentes educativos en proceso de formación y/o cualificación en Atención Integral a la Primera Infancia. | F264: =IFERROR(VLOOKUP(C264,'tc nacional'!$AA$7:$AG$201,6,FALSE),"") -> x | G264: =IFERROR(IF(VLOOKUP(C264,'tc nacional'!$AA$7:$AG$201,7,FALSE)=0,"-",VLOOKUP(C264,'tc nacional'!$AA$7:$AG$201,7,FALSE)),"") -> - | H264: =IFERROR(IF(VLOOKUP($C264&"Total",base!$D$4:$AI$3035,H$258,FALSE)>1,IF(VLOOKUP($C264&"Total",base!$D$4:$AI$3035,H$258,FALSE)>1000,TEXT(VLOOKUP($C264&"Total",base!$D$4:$AI$3035,H$258,FALSE),"0.000"),TEXT(VLOOKUP($C264&"Total",base!$D$4:$AI$3035,H$258,FALSE),"0")),TEXT(VLOOKUP($C264&"Total",base!$D$4:$AI$3035,H$258,FALSE),"0,0%")),"") -> 20.000 | I264: =IFERROR(IF(VLOOKUP($C264&"Total",base!$D$4:$BM$3035,I$258,FALSE)>1000,TEXT(VLOOKUP($C264&"Total",base!$D$4:$BM$3035,I$258,FALSE),"0.000"),TEXT(VLOOKUP($C264&"Total",base!$D$4:$BM$3035,I$258,FALSE),"0")),"") -> 20.000 | J264: =IFERROR(IF(VLOOKUP($C264&"Total",base!$D$4:$BM$3035,J$258,FALSE)>1000,TEXT(VLOOKUP($C264&"Total",base!$D$4:$BM$3035,J$258,FALSE),"0.000"),TEXT(VLOOKUP($C264&"Total",base!$D$4:$BM$3035,J$258,FALSE),"0")),"") -> 20.000 | K264: =IFERROR(IF(VLOOKUP($C264&"Total",base!$D$4:$BM$3035,K$258,FALSE)>1.8,IF(VLOOKUP($C264&"Total",base!$D$4:$BM$3035,K$258,FALSE)>1000,TEXT(VLOOKUP($C264&"Total",base!$D$4:$BM$3035,K$258,FALSE),"0.000"),TEXT(VLOOKUP($C264&"Total",base!$D$4:$BM$3035,K$258,FALSE),"0")),TEXT(VLOOKUP($C264&"Total",base!$D$4:$BM$3035,K$258,FALSE),"0,0%")),"") -> 20.000 | L264: =IFERROR(IF(VLOOKUP($C264&"Total",base!$D$4:$BM$3035,L$258,FALSE)>1.8,IF(VLOOKUP($C264&"Total",base!$D$4:$BM$3035,L$258,FALSE)>1000,TEXT(VLOOKUP($C264&"Total",base!$D$4:$BM$3035,L$258,FALSE),"0.000"),TEXT(VLOOKUP($C264&"Total",base!$D$4:$BM$3035,L$258,FALSE),"0")),TEXT(VLOOKUP($C264&"Total",base!$D$4:$BM$3035,L$258,FALSE),"0,0%")),"") -> 100,0% | M264: =IFERROR(IF(VLOOKUP($C264&"Total",base!$D$4:$BM$3035,M$258,FALSE)>1,IF(VLOOKUP($C264&"Total",base!$D$4:$BM$3035,M$258,FALSE)>1000,TEXT(VLOOKUP($C264&"Total",base!$D$4:$BM$3035,M$258,FALSE),"0.000"),TEXT(VLOOKUP($C264&"Total",base!$D$4:$BM$3035,M$258,FALSE),"0")),TEXT(VLOOKUP($C264&"Total",base!$D$4:$BM$3035,M$258,FALSE),"0,0%")),"") -> OPTIMO
A265: 6 | B265: 1.6 | C265: =+IFERROR(VLOOKUP(B265,referencias!$C$128:$D$1213,2,FALSE),"") -> PA-06 | D265: =IFERROR(VLOOKUP(C265,'tc nacional'!$AA$7:$AB$201,2,FALSE),"") -> Número de CDIs entregados para operación de la modalidades de Atención Integral a la Primera Infancia | F265: =IFERROR(VLOOKUP(C265,'tc nacional'!$AA$7:$AG$201,6,FALSE),"") -> x | G265: =IFERROR(IF(VLOOKUP(C265,'tc nacional'!$AA$7:$AG$201,7,FALSE)=0,"-",VLOOKUP(C265,'tc nacional'!$AA$7:$AG$201,7,FALSE)),"") -> - | H265: =IFERROR(IF(VLOOKUP($C265&"Total",base!$D$4:$AI$3035,H$258,FALSE)>1,IF(VLOOKUP($C265&"Total",base!$D$4:$AI$3035,H$258,FALSE)>1000,TEXT(VLOOKUP($C265&"Total",base!$D$4:$AI$3035,H$258,FALSE),"0.000"),TEXT(VLOOKUP($C265&"Total",base!$D$4:$AI$3035,H$258,FALSE),"0")),TEXT(VLOOKUP($C265&"Total",base!$D$4:$AI$3035,H$258,FALSE),"0,0%")),"") -> 50 | I265: =IFERROR(IF(VLOOKUP($C265&"Total",base!$D$4:$BM$3035,I$258,FALSE)>1000,TEXT(VLOOKUP($C265&"Total",base!$D$4:$BM$3035,I$258,FALSE),"0.000"),TEXT(VLOOKUP($C265&"Total",base!$D$4:$BM$3035,I$258,FALSE),"0")),"") -> 77 | J265: =IFERROR(IF(VLOOKUP($C265&"Total",base!$D$4:$BM$3035,J$258,FALSE)>1000,TEXT(VLOOKUP($C265&"Total",base!$D$4:$BM$3035,J$258,FALSE),"0.000"),TEXT(VLOOKUP($C265&"Total",base!$D$4:$BM$3035,J$258,FALSE),"0")),"") -> 50 | K265: =IFERROR(IF(VLOOKUP($C265&"Total",base!$D$4:$BM$3035,K$258,FALSE)>1.8,IF(VLOOKUP($C265&"Total",base!$D$4:$BM$3035,K$258,FALSE)>1000,TEXT(VLOOKUP($C265&"Total",base!$D$4:$BM$3035,K$258,FALSE),"0.000"),TEXT(VLOOKUP($C265&"Total",base!$D$4:$BM$3035,K$258,FALSE),"0")),TEXT(VLOOKUP($C265&"Total",base!$D$4:$BM$3035,K$258,FALSE),"0,0%")),"") -> 77 | L265: =IFERROR(IF(VLOOKUP($C265&"Total",base!$D$4:$BM$3035,L$258,FALSE)>1.8,IF(VLOOKUP($C265&"Total",base!$D$4:$BM$3035,L$258,FALSE)>1000,TEXT(VLOOKUP($C265&"Total",base!$D$4:$BM$3035,L$258,FALSE),"0.000"),TEXT(VLOOKUP($C265&"Total",base!$D$4:$BM$3035,L$258,FALSE),"0")),TEXT(VLOOKUP($C265&"Total",base!$D$4:$BM$3035,L$258,FALSE),"0,0%")),"") -> 154,0% | M265: =IFERROR(IF(VLOOKUP($C265&"Total",base!$D$4:$BM$3035,M$258,FALSE)>1,IF(VLOOKUP($C265&"Total",base!$D$4:$BM$3035,M$258,FALSE)>1000,TEXT(VLOOKUP($C265&"Total",base!$D$4:$BM$3035,M$258,FALSE),"0.000"),TEXT(VLOOKUP($C265&"Total",base!$D$4:$BM$3035,M$258,FALSE),"0")),TEXT(VLOOKUP($C265&"Total",base!$D$4:$BM$3035,M$258,FALSE),"0,0%")),"") -> OPTIMO
A266: 7 | B266: 1.7 | C266: =+IFERROR(VLOOKUP(B266,referencias!$C$128:$D$1213,2,FALSE),"") -> PA-07 | D266: =IFERROR(VLOOKUP(C266,'tc nacional'!$AA$7:$AB$201,2,FALSE),"") -> Número de Unidades de servicio con planes de implementación para salas de lectura | F266: =IFERROR(VLOOKUP(C266,'tc nacional'!$AA$7:$AG$201,6,FALSE),"") -> x | G266: =IFERROR(IF(VLOOKUP(C266,'tc nacional'!$AA$7:$AG$201,7,FALSE)=0,"-",VLOOKUP(C266,'tc nacional'!$AA$7:$AG$201,7,FALSE)),"") -> - | H266: =IFERROR(IF(VLOOKUP($C266&"Total",base!$D$4:$AI$3035,H$258,FALSE)>1,IF(VLOOKUP($C266&"Total",base!$D$4:$AI$3035,H$258,FALSE)>1000,TEXT(VLOOKUP($C266&"Total",base!$D$4:$AI$3035,H$258,FALSE),"0.000"),TEXT(VLOOKUP($C266&"Total",base!$D$4:$AI$3035,H$258,FALSE),"0")),TEXT(VLOOKUP($C266&"Total",base!$D$4:$AI$3035,H$258,FALSE),"0,0%")),"") -> 70 | I266: =IFERROR(IF(VLOOKUP($C266&"Total",base!$D$4:$BM$3035,I$258,FALSE)>1000,TEXT(VLOOKUP($C266&"Total",base!$D$4:$BM$3035,I$258,FALSE),"0.000"),TEXT(VLOOKUP($C266&"Total",base!$D$4:$BM$3035,I$258,FALSE),"0")),"") -> 70 | J266: =IFERROR(IF(VLOOKUP($C266&"Total",base!$D$4:$BM$3035,J$258,FALSE)>1000,TEXT(VLOOKUP($C266&"Total",base!$D$4:$BM$3035,J$258,FALSE),"0.000"),TEXT(VLOOKUP($C266&"Total",base!$D$4:$BM$3035,J$258,FALSE),"0")),"") -> 70 | K266: =IFERROR(IF(VLOOKUP($C266&"Total",base!$D$4:$BM$3035,K$258,FALSE)>1.8,IF(VLOOKUP($C266&"Total",base!$D$4:$BM$3035,K$258,FALSE)>1000,TEXT(VLOOKUP($C266&"Total",base!$D$4:$BM$3035,K$258,FALSE),"0.000"),TEXT(VLOOKUP($C266&"Total",base!$D$4:$BM$3035,K$258,FALSE),"0")),TEXT(VLOOKUP($C266&"Total",base!$D$4:$BM$3035,K$258,FALSE),"0,0%")),"") -> 70 | L266: =IFERROR(IF(VLOOKUP($C266&"Total",base!$D$4:$BM$3035,L$258,FALSE)>1.8,IF(VLOOKUP($C266&"Total",base!$D$4:$BM$3035,L$258,FALSE)>1000,TEXT(VLOOKUP($C266&"Total",base!$D$4:$BM$3035,L$258,FALSE),"0.000"),TEXT(VLOOKUP($C266&"Total",base!$D$4:$BM$3035,L$258,FALSE),"0")),TEXT(VLOOKUP($C266&"Total",base!$D$4:$BM$3035,L$258,FALSE),"0,0%")),"") -> 100,0% | M266: =IFERROR(IF(VLOOKUP($C266&"Total",base!$D$4:$BM$3035,M$258,FALSE)>1,IF(VLOOKUP($C266&"Total",base!$D$4:$BM$3035,M$258,FALSE)>1000,TEXT(VLOOKUP($C266&"Total",base!$D$4:$BM$3035,M$258,FALSE),"0.000"),TEXT(VLOOKUP($C266&"Total",base!$D$4:$BM$3035,M$258,FALSE),"0")),TEXT(VLOOKUP($C266&"Total",base!$D$4:$BM$3035,M$258,FALSE),"0,0%")),"") -> OPTIMO
A267: 8 | B267: 1.8 | C267: =+IFERROR(VLOOKUP(B267,referencias!$C$128:$D$1213,2,FALSE),"") -> PA-08 | D267: =IFERROR(VLOOKUP(C267,'tc nacional'!$AA$7:$AB$201,2,FALSE),"") -> Porcentaje de EAS de atención a la primera infancia con esquemas de fortalecimiento que generen capacidades para gestionar procesos de calidad. | F267: =IFERROR(VLOOKUP(C267,'tc nacional'!$AA$7:$AG$201,6,FALSE),"") -> x | G267: =IFERROR(IF(VLOOKUP(C267,'tc nacional'!$AA$7:$AG$201,7,FALSE)=0,"-",VLOOKUP(C267,'tc nacional'!$AA$7:$AG$201,7,FALSE)),"") -> - | H267: =IFERROR(IF(VLOOKUP($C267&"Total",base!$D$4:$AI$3035,H$258,FALSE)>1,IF(VLOOKUP($C267&"Total",base!$D$4:$AI$3035,H$258,FALSE)>1000,TEXT(VLOOKUP($C267&"Total",base!$D$4:$AI$3035,H$258,FALSE),"0.000"),TEXT(VLOOKUP($C267&"Total",base!$D$4:$AI$3035,H$258,FALSE),"0")),TEXT(VLOOKUP($C267&"Total",base!$D$4:$AI$3035,H$258,FALSE),"0,0%")),"") -> 50,0% | I267: =IFERROR(IF(VLOOKUP($C267&"Total",base!$D$4:$BM$3035,I$258,FALSE)>1000,TEXT(VLOOKUP($C267&"Total",base!$D$4:$BM$3035,I$258,FALSE),"0.000"),TEXT(VLOOKUP($C267&"Total",base!$D$4:$BM$3035,I$258,FALSE),"0")),"") -> 1.023 | J267: =IFERROR(IF(VLOOKUP($C267&"Total",base!$D$4:$BM$3035,J$258,FALSE)>1000,TEXT(VLOOKUP($C267&"Total",base!$D$4:$BM$3035,J$258,FALSE),"0.000"),TEXT(VLOOKUP($C267&"Total",base!$D$4:$BM$3035,J$258,FALSE),"0")),"") -> 2.040 | K267: =IFERROR(IF(VLOOKUP($C267&"Total",base!$D$4:$BM$3035,K$258,FALSE)>1.8,IF(VLOOKUP($C267&"Total",base!$D$4:$BM$3035,K$258,FALSE)>1000,TEXT(VLOOKUP($C267&"Total",base!$D$4:$BM$3035,K$258,FALSE),"0.000"),TEXT(VLOOKUP($C267&"Total",base!$D$4:$BM$3035,K$258,FALSE),"0")),TEXT(VLOOKUP($C267&"Total",base!$D$4:$BM$3035,K$258,FALSE),"0,0%")),"") -> 50,2% | L267: =IFERROR(IF(VLOOKUP($C267&"Total",base!$D$4:$BM$3035,L$258,FALSE)>1.8,IF(VLOOKUP($C267&"Total",base!$D$4:$BM$3035,L$258,FALSE)>1000,TEXT(VLOOKUP($C267&"Total",base!$D$4:$BM$3035,L$258,FALSE),"0.000"),TEXT(VLOOKUP($C267&"Total",base!$D$4:$BM$3035,L$258,FALSE),"0")),TEXT(VLOOKUP($C267&"Total",base!$D$4:$BM$3035,L$258,FALSE),"0,0%")),"") -> 50,2% | M267: =IFERROR(IF(VLOOKUP($C267&"Total",base!$D$4:$BM$3035,M$258,FALSE)>1,IF(VLOOKUP($C267&"Total",base!$D$4:$BM$3035,M$258,FALSE)>1000,TEXT(VLOOKUP($C267&"Total",base!$D$4:$BM$3035,M$258,FALSE),"0.000"),TEXT(VLOOKUP($C267&"Total",base!$D$4:$BM$3035,M$258,FALSE),"0")),TEXT(VLOOKUP($C267&"Total",base!$D$4:$BM$3035,M$258,FALSE),"0,0%")),"") -> OPTIMO
A268: 9 | B268: 1.9 | C268: =+IFERROR(VLOOKUP(B268,referencias!$C$128:$D$1213,2,FALSE),"") -> PA-10 | D268: =IFERROR(VLOOKUP(C268,'tc nacional'!$AA$7:$AB$201,2,FALSE),"") -> Número de visitas de supervisión realizadas a las modalidades de Primera Infancia. | F268: =IFERROR(VLOOKUP(C268,'tc nacional'!$AA$7:$AG$201,6,FALSE),"") -> x | G268: =IFERROR(IF(VLOOKUP(C268,'tc nacional'!$AA$7:$AG$201,7,FALSE)=0,"-",VLOOKUP(C268,'tc nacional'!$AA$7:$AG$201,7,FALSE)),"") -> x | H268: =IFERROR(IF(VLOOKUP($C268&"Total",base!$D$4:$AI$3035,H$258,FALSE)>1,IF(VLOOKUP($C268&"Total",base!$D$4:$AI$3035,H$258,FALSE)>1000,TEXT(VLOOKUP($C268&"Total",base!$D$4:$AI$3035,H$258,FALSE),"0.000"),TEXT(VLOOKUP($C268&"Total",base!$D$4:$AI$3035,H$258,FALSE),"0")),TEXT(VLOOKUP($C268&"Total",base!$D$4:$AI$3035,H$258,FALSE),"0,0%")),"") -> 54.000 | I268: =IFERROR(IF(VLOOKUP($C268&"Total",base!$D$4:$BM$3035,I$258,FALSE)>1000,TEXT(VLOOKUP($C268&"Total",base!$D$4:$BM$3035,I$258,FALSE),"0.000"),TEXT(VLOOKUP($C268&"Total",base!$D$4:$BM$3035,I$258,FALSE),"0")),"") -> 62.948 | J268: =IFERROR(IF(VLOOKUP($C268&"Total",base!$D$4:$BM$3035,J$258,FALSE)>1000,TEXT(VLOOKUP($C268&"Total",base!$D$4:$BM$3035,J$258,FALSE),"0.000"),TEXT(VLOOKUP($C268&"Total",base!$D$4:$BM$3035,J$258,FALSE),"0")),"") -> 54.000 | K268: =IFERROR(IF(VLOOKUP($C268&"Total",base!$D$4:$BM$3035,K$258,FALSE)>1.8,IF(VLOOKUP($C268&"Total",base!$D$4:$BM$3035,K$258,FALSE)>1000,TEXT(VLOOKUP($C268&"Total",base!$D$4:$BM$3035,K$258,FALSE),"0.000"),TEXT(VLOOKUP($C268&"Total",base!$D$4:$BM$3035,K$258,FALSE),"0")),TEXT(VLOOKUP($C268&"Total",base!$D$4:$BM$3035,K$258,FALSE),"0,0%")),"") -> 62.948 | L268: =IFERROR(IF(VLOOKUP($C268&"Total",base!$D$4:$BM$3035,L$258,FALSE)>1.8,IF(VLOOKUP($C268&"Total",base!$D$4:$BM$3035,L$258,FALSE)>1000,TEXT(VLOOKUP($C268&"Total",base!$D$4:$BM$3035,L$258,FALSE),"0.000"),TEXT(VLOOKUP($C268&"Total",base!$D$4:$BM$3035,L$258,FALSE),"0")),TEXT(VLOOKUP($C268&"Total",base!$D$4:$BM$3035,L$258,FALSE),"0,0%")),"") -> 116,6% | M268: =IFERROR(IF(VLOOKUP($C268&"Total",base!$D$4:$BM$3035,M$258,FALSE)>1,IF(VLOOKUP($C268&"Total",base!$D$4:$BM$3035,M$258,FALSE)>1000,TEXT(VLOOKUP($C268&"Total",base!$D$4:$BM$3035,M$258,FALSE),"0.000"),TEXT(VLOOKUP($C268&"Total",base!$D$4:$BM$3035,M$258,FALSE),"0")),TEXT(VLOOKUP($C268&"Total",base!$D$4:$BM$3035,M$258,FALSE),"0,0%")),"") -> OPTIMO
A269: 10 | B269: 1.10 | C269: =+IFERROR(VLOOKUP(B269,referencias!$C$128:$D$1213,2,FALSE),"") -> MPM1-01 | D269: =IFERROR(VLOOKUP(C269,'tc nacional'!$AA$7:$AB$201,2,FALSE),"") -> Número de niños y niñas atendidos en Hogares Comunitarios de Bienestar Tradicionales. | F269: =IFERROR(VLOOKUP(C269,'tc nacional'!$AA$7:$AG$201,6,FALSE),"") -> x | G269: =IFERROR(IF(VLOOKUP(C269,'tc nacional'!$AA$7:$AG$201,7,FALSE)=0,"-",VLOOKUP(C269,'tc nacional'!$AA$7:$AG$201,7,FALSE)),"") -> x | H269: =IFERROR(IF(VLOOKUP($C269&"Total",base!$D$4:$AI$3035,H$258,FALSE)>1,IF(VLOOKUP($C269&"Total",base!$D$4:$AI$3035,H$258,FALSE)>1000,TEXT(VLOOKUP($C269&"Total",base!$D$4:$AI$3035,H$258,FALSE),"0.000"),TEXT(VLOOKUP($C269&"Total",base!$D$4:$AI$3035,H$258,FALSE),"0")),TEXT(VLOOKUP($C269&"Total",base!$D$4:$AI$3035,H$258,FALSE),"0,0%")),"") -> 934.571 | I269: =IFERROR(IF(VLOOKUP($C269&"Total",base!$D$4:$BM$3035,I$258,FALSE)>1000,TEXT(VLOOKUP($C269&"Total",base!$D$4:$BM$3035,I$258,FALSE),"0.000"),TEXT(VLOOKUP($C269&"Total",base!$D$4:$BM$3035,I$258,FALSE),"0")),"") -> 795.200 | J269: =IFERROR(IF(VLOOKUP($C269&"Total",base!$D$4:$BM$3035,J$258,FALSE)>1000,TEXT(VLOOKUP($C269&"Total",base!$D$4:$BM$3035,J$258,FALSE),"0.000"),TEXT(VLOOKUP($C269&"Total",base!$D$4:$BM$3035,J$258,FALSE),"0")),"") -> 821.393 | K269: =IFERROR(IF(VLOOKUP($C269&"Total",base!$D$4:$BM$3035,K$258,FALSE)>1.8,IF(VLOOKUP($C269&"Total",base!$D$4:$BM$3035,K$258,FALSE)>1000,TEXT(VLOOKUP($C269&"Total",base!$D$4:$BM$3035,K$258,FALSE),"0.000"),TEXT(VLOOKUP($C269&"Total",base!$D$4:$BM$3035,K$258,FALSE),"0")),TEXT(VLOOKUP($C269&"Total",base!$D$4:$BM$3035,K$258,FALSE),"0,0%")),"") -> 795.200 | L269: =IFERROR(IF(VLOOKUP($C269&"Total",base!$D$4:$BM$3035,L$258,FALSE)>1.8,IF(VLOOKUP($C269&"Total",base!$D$4:$BM$3035,L$258,FALSE)>1000,TEXT(VLOOKUP($C269&"Total",base!$D$4:$BM$3035,L$258,FALSE),"0.000"),TEXT(VLOOKUP($C269&"Total",base!$D$4:$BM$3035,L$258,FALSE),"0")),TEXT(VLOOKUP($C269&"Total",base!$D$4:$BM$3035,L$258,FALSE),"0,0%")),"") -> 96,8% | M269: =IFERROR(IF(VLOOKUP($C269&"Total",base!$D$4:$BM$3035,M$258,FALSE)>1,IF(VLOOKUP($C269&"Total",base!$D$4:$BM$3035,M$258,FALSE)>1000,TEXT(VLOOKUP($C269&"Total",base!$D$4:$BM$3035,M$258,FALSE),"0.000"),TEXT(VLOOKUP($C269&"Total",base!$D$4:$BM$3035,M$258,FALSE),"0")),TEXT(VLOOKUP($C269&"Total",base!$D$4:$BM$3035,M$258,FALSE),"0,0%")),"") -> ADECUADO
A270: 11 | B270: 1.11 | C270: =+IFERROR(VLOOKUP(B270,referencias!$C$128:$D$1213,2,FALSE),"") -> MPM1-02 | D270: =IFERROR(VLOOKUP(C270,'tc nacional'!$AA$7:$AB$201,2,FALSE),"") -> Número de niños y niñas con atención a la primera infancia con valoración y seguimiento nutricional. | F270: =IFERROR(VLOOKUP(C270,'tc nacional'!$AA$7:$AG$201,6,FALSE),"") -> x | G270: =IFERROR(IF(VLOOKUP(C270,'tc nacional'!$AA$7:$AG$201,7,FALSE)=0,"-",VLOOKUP(C270,'tc nacional'!$AA$7:$AG$201,7,FALSE)),"") -> x | H270: =IFERROR(IF(VLOOKUP($C270&"Total",base!$D$4:$AI$3035,H$258,FALSE)>1,IF(VLOOKUP($C270&"Total",base!$D$4:$AI$3035,H$258,FALSE)>1000,TEXT(VLOOKUP($C270&"Total",base!$D$4:$AI$3035,H$258,FALSE),"0.000"),TEXT(VLOOKUP($C270&"Total",base!$D$4:$AI$3035,H$258,FALSE),"0")),TEXT(VLOOKUP($C270&"Total",base!$D$4:$AI$3035,H$258,FALSE),"0,0%")),"") -> 1.400.000 | I270: =IFERROR(IF(VLOOKUP($C270&"Total",base!$D$4:$BM$3035,I$258,FALSE)>1000,TEXT(VLOOKUP($C270&"Total",base!$D$4:$BM$3035,I$258,FALSE),"0.000"),TEXT(VLOOKUP($C270&"Total",base!$D$4:$BM$3035,I$258,FALSE),"0")),"") -> 1.575.870 | J270: =IFERROR(IF(VLOOKUP($C270&"Total",base!$D$4:$BM$3035,J$258,FALSE)>1000,TEXT(VLOOKUP($C270&"Total",base!$D$4:$BM$3035,J$258,FALSE),"0.000"),TEXT(VLOOKUP($C270&"Total",base!$D$4:$BM$3035,J$258,FALSE),"0")),"") -> 1.840.457 | K270: =IFERROR(IF(VLOOKUP($C270&"Total",base!$D$4:$BM$3035,K$258,FALSE)>1.8,IF(VLOOKUP($C270&"Total",base!$D$4:$BM$3035,K$258,FALSE)>1000,TEXT(VLOOKUP($C270&"Total",base!$D$4:$BM$3035,K$258,FALSE),"0.000"),TEXT(VLOOKUP($C270&"Total",base!$D$4:$BM$3035,K$258,FALSE),"0")),TEXT(VLOOKUP($C270&"Total",base!$D$4:$BM$3035,K$258,FALSE),"0,0%")),"") -> 1.575.870 | L270: =IFERROR(IF(VLOOKUP($C270&"Total",base!$D$4:$BM$3035,L$258,FALSE)>1.8,IF(VLOOKUP($C270&"Total",base!$D$4:$BM$3035,L$258,FALSE)>1000,TEXT(VLOOKUP($C270&"Total",base!$D$4:$BM$3035,L$258,FALSE),"0.000"),TEXT(VLOOKUP($C270&"Total",base!$D$4:$BM$3035,L$258,FALSE),"0")),TEXT(VLOOKUP($C270&"Total",base!$D$4:$BM$3035,L$258,FALSE),"0,0%")),"") -> 85,6% | M270: =IFERROR(IF(VLOOKUP($C270&"Total",base!$D$4:$BM$3035,M$258,FALSE)>1,IF(VLOOKUP($C270&"Total",base!$D$4:$BM$3035,M$258,FALSE)>1000,TEXT(VLOOKUP($C270&"Total",base!$D$4:$BM$3035,M$258,FALSE),"0.000"),TEXT(VLOOKUP($C270&"Total",base!$D$4:$BM$3035,M$258,FALSE),"0")),TEXT(VLOOKUP($C270&"Total",base!$D$4:$BM$3035,M$258,FALSE),"0,0%")),"") -> ADECUADO
A271: 12 | B271: 1.12 | C271: =+IFERROR(VLOOKUP(B271,referencias!$C$128:$D$1213,2,FALSE),"") -> MPM1-03 | D271: =IFERROR(VLOOKUP(C271,'tc nacional'!$AA$7:$AB$201,2,FALSE),"") -> Número de niños y niñas atendidos integralmente que cuentan con registro civil | F271: =IFERROR(VLOOKUP(C271,'tc nacional'!$AA$7:$AG$201,6,FALSE),"") -> x | G271: =IFERROR(IF(VLOOKUP(C271,'tc nacional'!$AA$7:$AG$201,7,FALSE)=0,"-",VLOOKUP(C271,'tc nacional'!$AA$7:$AG$201,7,FALSE)),"") -> x | H271: =IFERROR(IF(VLOOKUP($C271&"Total",base!$D$4:$AI$3035,H$258,FALSE)>1,IF(VLOOKUP($C271&"Total",base!$D$4:$AI$3035,H$258,FALSE)>1000,TEXT(VLOOKUP($C271&"Total",base!$D$4:$AI$3035,H$258,FALSE),"0.000"),TEXT(VLOOKUP($C271&"Total",base!$D$4:$AI$3035,H$258,FALSE),"0")),TEXT(VLOOKUP($C271&"Total",base!$D$4:$AI$3035,H$258,FALSE),"0,0%")),"") -> 1.400.000 | I271: =IFERROR(IF(VLOOKUP($C271&"Total",base!$D$4:$BM$3035,I$258,FALSE)>1000,TEXT(VLOOKUP($C271&"Total",base!$D$4:$BM$3035,I$258,FALSE),"0.000"),TEXT(VLOOKUP($C271&"Total",base!$D$4:$BM$3035,I$258,FALSE),"0")),"") -> 1.054.178 | J271: =IFERROR(IF(VLOOKUP($C271&"Total",base!$D$4:$BM$3035,J$258,FALSE)>1000,TEXT(VLOOKUP($C271&"Total",base!$D$4:$BM$3035,J$258,FALSE),"0.000"),TEXT(VLOOKUP($C271&"Total",base!$D$4:$BM$3035,J$258,FALSE),"0")),"") -> 1.136.332 | K271: =IFERROR(IF(VLOOKUP($C271&"Total",base!$D$4:$BM$3035,K$258,FALSE)>1.8,IF(VLOOKUP($C271&"Total",base!$D$4:$BM$3035,K$258,FALSE)>1000,TEXT(VLOOKUP($C271&"Total",base!$D$4:$BM$3035,K$258,FALSE),"0.000"),TEXT(VLOOKUP($C271&"Total",base!$D$4:$BM$3035,K$258,FALSE),"0")),TEXT(VLOOKUP($C271&"Total",base!$D$4:$BM$3035,K$258,FALSE),"0,0%")),"") -> 1.054.178 | L271: =IFERROR(IF(VLOOKUP($C271&"Total",base!$D$4:$BM$3035,L$258,FALSE)>1.8,IF(VLOOKUP($C271&"Total",base!$D$4:$BM$3035,L$258,FALSE)>1000,TEXT(VLOOKUP($C271&"Total",base!$D$4:$BM$3035,L$258,FALSE),"0.000"),TEXT(VLOOKUP($C271&"Total",base!$D$4:$BM$3035,L$258,FALSE),"0")),TEXT(VLOOKUP($C271&"Total",base!$D$4:$BM$3035,L$258,FALSE),"0,0%")),"") -> 92,8% | M271: =IFERROR(IF(VLOOKUP($C271&"Total",base!$D$4:$BM$3035,M$258,FALSE)>1,IF(VLOOKUP($C271&"Total",base!$D$4:$BM$3035,M$258,FALSE)>1000,TEXT(VLOOKUP($C271&"Total",base!$D$4:$BM$3035,M$258,FALSE),"0.000"),TEXT(VLOOKUP($C271&"Total",base!$D$4:$BM$3035,M$258,FALSE),"0")),TEXT(VLOOKUP($C271&"Total",base!$D$4:$BM$3035,M$258,FALSE),"0,0%")),"") -> ADECUADO
A272: 13 | B272: 1.13 | C272: =+IFERROR(VLOOKUP(B272,referencias!$C$128:$D$1213,2,FALSE),"") -> MPM1-04 | D272: =IFERROR(VLOOKUP(C272,'tc nacional'!$AA$7:$AB$201,2,FALSE),"") -> Número de niños y niñas atendidos integralmente que cuentan con esquema de vacunación completo | F272: =IFERROR(VLOOKUP(C272,'tc nacional'!$AA$7:$AG$201,6,FALSE),"") -> x | G272: =IFERROR(IF(VLOOKUP(C272,'tc nacional'!$AA$7:$AG$201,7,FALSE)=0,"-",VLOOKUP(C272,'tc nacional'!$AA$7:$AG$201,7,FALSE)),"") -> x | H272: =IFERROR(IF(VLOOKUP($C272&"Total",base!$D$4:$AI$3035,H$258,FALSE)>1,IF(VLOOKUP($C272&"Total",base!$D$4:$AI$3035,H$258,FALSE)>1000,TEXT(VLOOKUP($C272&"Total",base!$D$4:$AI$3035,H$258,FALSE),"0.000"),TEXT(VLOOKUP($C272&"Total",base!$D$4:$AI$3035,H$258,FALSE),"0")),TEXT(VLOOKUP($C272&"Total",base!$D$4:$AI$3035,H$258,FALSE),"0,0%")),"") -> 1.400.000 | I272: =IFERROR(IF(VLOOKUP($C272&"Total",base!$D$4:$BM$3035,I$258,FALSE)>1000,TEXT(VLOOKUP($C272&"Total",base!$D$4:$BM$3035,I$258,FALSE),"0.000"),TEXT(VLOOKUP($C272&"Total",base!$D$4:$BM$3035,I$258,FALSE),"0")),"") -> 942.806 | J272: =IFERROR(IF(VLOOKUP($C272&"Total",base!$D$4:$BM$3035,J$258,FALSE)>1000,TEXT(VLOOKUP($C272&"Total",base!$D$4:$BM$3035,J$258,FALSE),"0.000"),TEXT(VLOOKUP($C272&"Total",base!$D$4:$BM$3035,J$258,FALSE),"0")),"") -> 1.051.175 | K272: =IFERROR(IF(VLOOKUP($C272&"Total",base!$D$4:$BM$3035,K$258,FALSE)>1.8,IF(VLOOKUP($C272&"Total",base!$D$4:$BM$3035,K$258,FALSE)>1000,TEXT(VLOOKUP($C272&"Total",base!$D$4:$BM$3035,K$258,FALSE),"0.000"),TEXT(VLOOKUP($C272&"Total",base!$D$4:$BM$3035,K$258,FALSE),"0")),TEXT(VLOOKUP($C272&"Total",base!$D$4:$BM$3035,K$258,FALSE),"0,0%")),"") -> 942.806 | L272: =IFERROR(IF(VLOOKUP($C272&"Total",base!$D$4:$BM$3035,L$258,FALSE)>1.8,IF(VLOOKUP($C272&"Total",base!$D$4:$BM$3035,L$258,FALSE)>1000,TEXT(VLOOKUP($C272&"Total",base!$D$4:$BM$3035,L$258,FALSE),"0.000"),TEXT(VLOOKUP($C272&"Total",base!$D$4:$BM$3035,L$258,FALSE),"0")),TEXT(VLOOKUP($C272&"Total",base!$D$4:$BM$3035,L$258,FALSE),"0,0%")),"") -> 89,7% | M272: =IFERROR(IF(VLOOKUP($C272&"Total",base!$D$4:$BM$3035,M$258,FALSE)>1,IF(VLOOKUP($C272&"Total",base!$D$4:$BM$3035,M$258,FALSE)>1000,TEXT(VLOOKUP($C272&"Total",base!$D$4:$BM$3035,M$258,FALSE),"0.000"),TEXT(VLOOKUP($C272&"Total",base!$D$4:$BM$3035,M$258,FALSE),"0")),TEXT(VLOOKUP($C272&"Total",base!$D$4:$BM$3035,M$258,FALSE),"0,0%")),"") -> ADECUADO
A273: 14 | B273: 1.14 | C273: =+IFERROR(VLOOKUP(B273,referencias!$C$128:$D$1213,2,FALSE),"") -> MPM1-05 | D273: =IFERROR(VLOOKUP(C273,'tc nacional'!$AA$7:$AB$201,2,FALSE),"") -> Porcentaje de niños y niñas que durante la atención alcanzan tres de las realizaciones en el marco de la Estrategia de Cero a Siempre | F273: =IFERROR(VLOOKUP(C273,'tc nacional'!$AA$7:$AG$201,6,FALSE),"") -> x | G273: =IFERROR(IF(VLOOKUP(C273,'tc nacional'!$AA$7:$AG$201,7,FALSE)=0,"-",VLOOKUP(C273,'tc nacional'!$AA$7:$AG$201,7,FALSE)),"") -> x | H273: =IFERROR(IF(VLOOKUP($C273&"Total",base!$D$4:$AI$3035,H$258,FALSE)>1,IF(VLOOKUP($C273&"Total",base!$D$4:$AI$3035,H$258,FALSE)>1000,TEXT(VLOOKUP($C273&"Total",base!$D$4:$AI$3035,H$258,FALSE),"0.000"),TEXT(VLOOKUP($C273&"Total",base!$D$4:$AI$3035,H$258,FALSE),"0")),TEXT(VLOOKUP($C273&"Total",base!$D$4:$AI$3035,H$258,FALSE),"0,0%")),"") -> 100,0% | I273: =IFERROR(IF(VLOOKUP($C273&"Total",base!$D$4:$BM$3035,I$258,FALSE)>1000,TEXT(VLOOKUP($C273&"Total",base!$D$4:$BM$3035,I$258,FALSE),"0.000"),TEXT(VLOOKUP($C273&"Total",base!$D$4:$BM$3035,I$258,FALSE),"0")),"") -> 88.939 | J273: =IFERROR(IF(VLOOKUP($C273&"Total",base!$D$4:$BM$3035,J$258,FALSE)>1000,TEXT(VLOOKUP($C273&"Total",base!$D$4:$BM$3035,J$258,FALSE),"0.000"),TEXT(VLOOKUP($C273&"Total",base!$D$4:$BM$3035,J$258,FALSE),"0")),"") -> 97.070 | K273: =IFERROR(IF(VLOOKUP($C273&"Total",base!$D$4:$BM$3035,K$258,FALSE)>1.8,IF(VLOOKUP($C273&"Total",base!$D$4:$BM$3035,K$258,FALSE)>1000,TEXT(VLOOKUP($C273&"Total",base!$D$4:$BM$3035,K$258,FALSE),"0.000"),TEXT(VLOOKUP($C273&"Total",base!$D$4:$BM$3035,K$258,FALSE),"0")),TEXT(VLOOKUP($C273&"Total",base!$D$4:$BM$3035,K$258,FALSE),"0,0%")),"") -> 91,6% | L273: =IFERROR(IF(VLOOKUP($C273&"Total",base!$D$4:$BM$3035,L$258,FALSE)>1.8,IF(VLOOKUP($C273&"Total",base!$D$4:$BM$3035,L$258,FALSE)>1000,TEXT(VLOOKUP($C273&"Total",base!$D$4:$BM$3035,L$258,FALSE),"0.000"),TEXT(VLOOKUP($C273&"Total",base!$D$4:$BM$3035,L$258,FALSE),"0")),TEXT(VLOOKUP($C273&"Total",base!$D$4:$BM$3035,L$258,FALSE),"0,0%")),"") -> 91,6% | M273: =IFERROR(IF(VLOOKUP($C273&"Total",base!$D$4:$BM$3035,M$258,FALSE)>1,IF(VLOOKUP($C273&"Total",base!$D$4:$BM$3035,M$258,FALSE)>1000,TEXT(VLOOKUP($C273&"Total",base!$D$4:$BM$3035,M$258,FALSE),"0.000"),TEXT(VLOOKUP($C273&"Total",base!$D$4:$BM$3035,M$258,FALSE),"0")),TEXT(VLOOKUP($C273&"Total",base!$D$4:$BM$3035,M$258,FALSE),"0,0%")),"") -> ADECUADO
A274: 15 | B274: 1.15 | C274: =+IFERROR(VLOOKUP(B274,referencias!$C$128:$D$1213,2,FALSE),"") -> MPM1-07 | D274: =IFERROR(VLOOKUP(C274,'tc nacional'!$AA$7:$AB$201,2,FALSE),"") -> Número de niños y niñas en primera infancia cuyos padres o cuidadores participan en procesos de formación. | F274: =IFERROR(VLOOKUP(C274,'tc nacional'!$AA$7:$AG$201,6,FALSE),"") -> x | G274: =IFERROR(IF(VLOOKUP(C274,'tc nacional'!$AA$7:$AG$201,7,FALSE)=0,"-",VLOOKUP(C274,'tc nacional'!$AA$7:$AG$201,7,FALSE)),"") -> x | H274: =IFERROR(IF(VLOOKUP($C274&"Total",base!$D$4:$AI$3035,H$258,FALSE)>1,IF(VLOOKUP($C274&"Total",base!$D$4:$AI$3035,H$258,FALSE)>1000,TEXT(VLOOKUP($C274&"Total",base!$D$4:$AI$3035,H$258,FALSE),"0.000"),TEXT(VLOOKUP($C274&"Total",base!$D$4:$AI$3035,H$258,FALSE),"0")),TEXT(VLOOKUP($C274&"Total",base!$D$4:$AI$3035,H$258,FALSE),"0,0%")),"") -> 1.400.000 | I274: =IFERROR(IF(VLOOKUP($C274&"Total",base!$D$4:$BM$3035,I$258,FALSE)>1000,TEXT(VLOOKUP($C274&"Total",base!$D$4:$BM$3035,I$258,FALSE),"0.000"),TEXT(VLOOKUP($C274&"Total",base!$D$4:$BM$3035,I$258,FALSE),"0")),"") -> 902.158 | J274: =IFERROR(IF(VLOOKUP($C274&"Total",base!$D$4:$BM$3035,J$258,FALSE)>1000,TEXT(VLOOKUP($C274&"Total",base!$D$4:$BM$3035,J$258,FALSE),"0.000"),TEXT(VLOOKUP($C274&"Total",base!$D$4:$BM$3035,J$258,FALSE),"0")),"") -> 1.051.175 | K274: =IFERROR(IF(VLOOKUP($C274&"Total",base!$D$4:$BM$3035,K$258,FALSE)>1.8,IF(VLOOKUP($C274&"Total",base!$D$4:$BM$3035,K$258,FALSE)>1000,TEXT(VLOOKUP($C274&"Total",base!$D$4:$BM$3035,K$258,FALSE),"0.000"),TEXT(VLOOKUP($C274&"Total",base!$D$4:$BM$3035,K$258,FALSE),"0")),TEXT(VLOOKUP($C274&"Total",base!$D$4:$BM$3035,K$258,FALSE),"0,0%")),"") -> 902.158 | L274: =IFERROR(IF(VLOOKUP($C274&"Total",base!$D$4:$BM$3035,L$258,FALSE)>1.8,IF(VLOOKUP($C274&"Total",base!$D$4:$BM$3035,L$258,FALSE)>1000,TEXT(VLOOKUP($C274&"Total",base!$D$4:$BM$3035,L$258,FALSE),"0.000"),TEXT(VLOOKUP($C274&"Total",base!$D$4:$BM$3035,L$258,FALSE),"0")),TEXT(VLOOKUP($C274&"Total",base!$D$4:$BM$3035,L$258,FALSE),"0,0%")),"") -> 85,8% | M274: =IFERROR(IF(VLOOKUP($C274&"Total",base!$D$4:$BM$3035,M$258,FALSE)>1,IF(VLOOKUP($C274&"Total",base!$D$4:$BM$3035,M$258,FALSE)>1000,TEXT(VLOOKUP($C274&"Total",base!$D$4:$BM$3035,M$258,FALSE),"0.000"),TEXT(VLOOKUP($C274&"Total",base!$D$4:$BM$3035,M$258,FALSE),"0")),TEXT(VLOOKUP($C274&"Total",base!$D$4:$BM$3035,M$258,FALSE),"0,0%")),"") -> ADECUADO
A275: 16 | B275: 1.16 | C275: =+IFERROR(VLOOKUP(B275,referencias!$C$128:$D$1213,2,FALSE),"") -> MPM1-08 | D275: =IFERROR(VLOOKUP(C275,'tc nacional'!$AA$7:$AB$201,2,FALSE),"") -> Número de niños y niñas de la Red Unidos con Atención a la Primera Infancia - de acuerdo a criterios ANSPE de atención integral | F275: =IFERROR(VLOOKUP(C275,'tc nacional'!$AA$7:$AG$201,6,FALSE),"") -> x | G275: =IFERROR(IF(VLOOKUP(C275,'tc nacional'!$AA$7:$AG$201,7,FALSE)=0,"-",VLOOKUP(C275,'tc nacional'!$AA$7:$AG$201,7,FALSE)),"") -> x | H275: =IFERROR(IF(VLOOKUP($C275&"Total",base!$D$4:$AI$3035,H$258,FALSE)>1,IF(VLOOKUP($C275&"Total",base!$D$4:$AI$3035,H$258,FALSE)>1000,TEXT(VLOOKUP($C275&"Total",base!$D$4:$AI$3035,H$258,FALSE),"0.000"),TEXT(VLOOKUP($C275&"Total",base!$D$4:$AI$3035,H$258,FALSE),"0")),TEXT(VLOOKUP($C275&"Total",base!$D$4:$AI$3035,H$258,FALSE),"0,0%")),"") -> 0,0% | I275: =IFERROR(IF(VLOOKUP($C275&"Total",base!$D$4:$BM$3035,I$258,FALSE)>1000,TEXT(VLOOKUP($C275&"Total",base!$D$4:$BM$3035,I$258,FALSE),"0.000"),TEXT(VLOOKUP($C275&"Total",base!$D$4:$BM$3035,I$258,FALSE),"0")),"") -> 156.667 | J275: =IFERROR(IF(VLOOKUP($C275&"Total",base!$D$4:$BM$3035,J$258,FALSE)>1000,TEXT(VLOOKUP($C275&"Total",base!$D$4:$BM$3035,J$258,FALSE),"0.000"),TEXT(VLOOKUP($C275&"Total",base!$D$4:$BM$3035,J$258,FALSE),"0")),"") -> 117.698 | K275: =IFERROR(IF(VLOOKUP($C275&"Total",base!$D$4:$BM$3035,K$258,FALSE)>1.8,IF(VLOOKUP($C275&"Total",base!$D$4:$BM$3035,K$258,FALSE)>1000,TEXT(VLOOKUP($C275&"Total",base!$D$4:$BM$3035,K$258,FALSE),"0.000"),TEXT(VLOOKUP($C275&"Total",base!$D$4:$BM$3035,K$258,FALSE),"0")),TEXT(VLOOKUP($C275&"Total",base!$D$4:$BM$3035,K$258,FALSE),"0,0%")),"") -> 156.667 | L275: =IFERROR(IF(VLOOKUP($C275&"Total",base!$D$4:$BM$3035,L$258,FALSE)>1.8,IF(VLOOKUP($C275&"Total",base!$D$4:$BM$3035,L$258,FALSE)>1000,TEXT(VLOOKUP($C275&"Total",base!$D$4:$BM$3035,L$258,FALSE),"0.000"),TEXT(VLOOKUP($C275&"Total",base!$D$4:$BM$3035,L$258,FALSE),"0")),TEXT(VLOOKUP($C275&"Total",base!$D$4:$BM$3035,L$258,FALSE),"0,0%")),"") -> 133,1% | M275: =IFERROR(IF(VLOOKUP($C275&"Total",base!$D$4:$BM$3035,M$258,FALSE)>1,IF(VLOOKUP($C275&"Total",base!$D$4:$BM$3035,M$258,FALSE)>1000,TEXT(VLOOKUP($C275&"Total",base!$D$4:$BM$3035,M$258,FALSE),"0.000"),TEXT(VLOOKUP($C275&"Total",base!$D$4:$BM$3035,M$258,FALSE),"0")),TEXT(VLOOKUP($C275&"Total",base!$D$4:$BM$3035,M$258,FALSE),"0,0%")),"") -> OPTIMO
A276: 17 | B276: 1.17 | C276: =+IFERROR(VLOOKUP(B276,referencias!$C$128:$D$1213,2,FALSE),"") -> MPM1-09 | D276: =IFERROR(VLOOKUP(C276,'tc nacional'!$AA$7:$AB$201,2,FALSE),"") -> Número de niños y niñas víctimas de conflicto armado atendidos en las diferentes modalidades de Atención a la Primera Infancia. | F276: =IFERROR(VLOOKUP(C276,'tc nacional'!$AA$7:$AG$201,6,FALSE),"") -> x | G276: =IFERROR(IF(VLOOKUP(C276,'tc nacional'!$AA$7:$AG$201,7,FALSE)=0,"-",VLOOKUP(C276,'tc nacional'!$AA$7:$AG$201,7,FALSE)),"") -> x | H276: =IFERROR(IF(VLOOKUP($C276&"Total",base!$D$4:$AI$3035,H$258,FALSE)>1,IF(VLOOKUP($C276&"Total",base!$D$4:$AI$3035,H$258,FALSE)>1000,TEXT(VLOOKUP($C276&"Total",base!$D$4:$AI$3035,H$258,FALSE),"0.000"),TEXT(VLOOKUP($C276&"Total",base!$D$4:$AI$3035,H$258,FALSE),"0")),TEXT(VLOOKUP($C276&"Total",base!$D$4:$AI$3035,H$258,FALSE),"0,0%")),"") -> 0,0% | I276: =IFERROR(IF(VLOOKUP($C276&"Total",base!$D$4:$BM$3035,I$258,FALSE)>1000,TEXT(VLOOKUP($C276&"Total",base!$D$4:$BM$3035,I$258,FALSE),"0.000"),TEXT(VLOOKUP($C276&"Total",base!$D$4:$BM$3035,I$258,FALSE),"0")),"") -> 416.735 | J276: =IFERROR(IF(VLOOKUP($C276&"Total",base!$D$4:$BM$3035,J$258,FALSE)>1000,TEXT(VLOOKUP($C276&"Total",base!$D$4:$BM$3035,J$258,FALSE),"0.000"),TEXT(VLOOKUP($C276&"Total",base!$D$4:$BM$3035,J$258,FALSE),"0")),"") -> 221.734 | K276: =IFERROR(IF(VLOOKUP($C276&"Total",base!$D$4:$BM$3035,K$258,FALSE)>1.8,IF(VLOOKUP($C276&"Total",base!$D$4:$BM$3035,K$258,FALSE)>1000,TEXT(VLOOKUP($C276&"Total",base!$D$4:$BM$3035,K$258,FALSE),"0.000"),TEXT(VLOOKUP($C276&"Total",base!$D$4:$BM$3035,K$258,FALSE),"0")),TEXT(VLOOKUP($C276&"Total",base!$D$4:$BM$3035,K$258,FALSE),"0,0%")),"") -> 416.735 | L276: =IFERROR(IF(VLOOKUP($C276&"Total",base!$D$4:$BM$3035,L$258,FALSE)>1.8,IF(VLOOKUP($C276&"Total",base!$D$4:$BM$3035,L$258,FALSE)>1000,TEXT(VLOOKUP($C276&"Total",base!$D$4:$BM$3035,L$258,FALSE),"0.000"),TEXT(VLOOKUP($C276&"Total",base!$D$4:$BM$3035,L$258,FALSE),"0")),TEXT(VLOOKUP($C276&"Total",base!$D$4:$BM$3035,L$258,FALSE),"0,0%")),"") -> 2 | M276: =IFERROR(IF(VLOOKUP($C276&"Total",base!$D$4:$BM$3035,M$258,FALSE)>1,IF(VLOOKUP($C276&"Total",base!$D$4:$BM$3035,M$258,FALSE)>1000,TEXT(VLOOKUP($C276&"Total",base!$D$4:$BM$3035,M$258,FALSE),"0.000"),TEXT(VLOOKUP($C276&"Total",base!$D$4:$BM$3035,M$258,FALSE),"0")),TEXT(VLOOKUP($C276&"Total",base!$D$4:$BM$3035,M$258,FALSE),"0,0%")),"") -> OPTIMO
A277: 18 | B277: 1.18 | C277: =+IFERROR(VLOOKUP(B277,referencias!$C$128:$D$1213,2,FALSE),"") -> MPM1-10 | D277: =IFERROR(VLOOKUP(C277,'tc nacional'!$AA$7:$AB$201,2,FALSE),"") -> Porcentaje de cumplimiento a la proyección de ejecución presupuestal de compromisos | F277: =IFERROR(VLOOKUP(C277,'tc nacional'!$AA$7:$AG$201,6,FALSE),"") -> x | G277: =IFERROR(IF(VLOOKUP(C277,'tc nacional'!$AA$7:$AG$201,7,FALSE)=0,"-",VLOOKUP(C277,'tc nacional'!$AA$7:$AG$201,7,FALSE)),"") -> - | H277: =IFERROR(IF(VLOOKUP($C277&"Total",base!$D$4:$AI$3035,H$258,FALSE)>1,IF(VLOOKUP($C277&"Total",base!$D$4:$AI$3035,H$258,FALSE)>1000,TEXT(VLOOKUP($C277&"Total",base!$D$4:$AI$3035,H$258,FALSE),"0.000"),TEXT(VLOOKUP($C277&"Total",base!$D$4:$AI$3035,H$258,FALSE),"0")),TEXT(VLOOKUP($C277&"Total",base!$D$4:$AI$3035,H$258,FALSE),"0,0%")),"") -> 100,0% | I277: =IFERROR(IF(VLOOKUP($C277&"Total",base!$D$4:$BM$3035,I$258,FALSE)>1000,TEXT(VLOOKUP($C277&"Total",base!$D$4:$BM$3035,I$258,FALSE),"0.000"),TEXT(VLOOKUP($C277&"Total",base!$D$4:$BM$3035,I$258,FALSE),"0")),"") -> 3.262.303.153.778 | J277: =IFERROR(IF(VLOOKUP($C277&"Total",base!$D$4:$BM$3035,J$258,FALSE)>1000,TEXT(VLOOKUP($C277&"Total",base!$D$4:$BM$3035,J$258,FALSE),"0.000"),TEXT(VLOOKUP($C277&"Total",base!$D$4:$BM$3035,J$258,FALSE),"0")),"") -> 3.282.528.621.858 | K277: =IFERROR(IF(VLOOKUP($C277&"Total",base!$D$4:$BM$3035,K$258,FALSE)>1.8,IF(VLOOKUP($C277&"Total",base!$D$4:$BM$3035,K$258,FALSE)>1000,TEXT(VLOOKUP($C277&"Total",base!$D$4:$BM$3035,K$258,FALSE),"0.000"),TEXT(VLOOKUP($C277&"Total",base!$D$4:$BM$3035,K$258,FALSE),"0")),TEXT(VLOOKUP($C277&"Total",base!$D$4:$BM$3035,K$258,FALSE),"0,0%")),"") -> 99,4% | L277: =IFERROR(IF(VLOOKUP($C277&"Total",base!$D$4:$BM$3035,L$258,FALSE)>1.8,IF(VLOOKUP($C277&"Total",base!$D$4:$BM$3035,L$258,FALSE)>1000,TEXT(VLOOKUP($C277&"Total",base!$D$4:$BM$3035,L$258,FALSE),"0.000"),TEXT(VLOOKUP($C277&"Total",base!$D$4:$BM$3035,L$258,FALSE),"0")),TEXT(VLOOKUP($C277&"Total",base!$D$4:$BM$3035,L$258,FALSE),"0,0%")),"") -> 99,4% | M277: =IFERROR(IF(VLOOKUP($C277&"Total",base!$D$4:$BM$3035,M$258,FALSE)>1,IF(VLOOKUP($C277&"Total",base!$D$4:$BM$3035,M$258,FALSE)>1000,TEXT(VLOOKUP($C277&"Total",base!$D$4:$BM$3035,M$258,FALSE),"0.000"),TEXT(VLOOKUP($C277&"Total",base!$D$4:$BM$3035,M$258,FALSE),"0")),TEXT(VLOOKUP($C277&"Total",base!$D$4:$BM$3035,M$258,FALSE),"0,0%")),"") -> ADECUADO
A278: 19 | B278: 1.19 | C278: =+IFERROR(VLOOKUP(B278,referencias!$C$128:$D$1213,2,FALSE),"") ->  | D278: =IFERROR(VLOOKUP(C278,'tc nacional'!$AA$7:$AB$201,2,FALSE),"") ->  | F278: =IFERROR(VLOOKUP(C278,'tc nacional'!$AA$7:$AG$201,6,FALSE),"") ->  | G278: =IFERROR(IF(VLOOKUP(C278,'tc nacional'!$AA$7:$AG$201,7,FALSE)=0,"-",VLOOKUP(C278,'tc nacional'!$AA$7:$AG$201,7,FALSE)),"") ->  | H278: =IFERROR(IF(VLOOKUP($C278&"Total",base!$D$4:$AI$3035,H$258,FALSE)>1,IF(VLOOKUP($C278&"Total",base!$D$4:$AI$3035,H$258,FALSE)>1000,TEXT(VLOOKUP($C278&"Total",base!$D$4:$AI$3035,H$258,FALSE),"0.000"),TEXT(VLOOKUP($C278&"Total",base!$D$4:$AI$3035,H$258,FALSE),"0")),TEXT(VLOOKUP($C278&"Total",base!$D$4:$AI$3035,H$258,FALSE),"0,0%")),"") ->  | I278: =IFERROR(IF(VLOOKUP($C278&"Total",base!$D$4:$BM$3035,I$258,FALSE)>1000,TEXT(VLOOKUP($C278&"Total",base!$D$4:$BM$3035,I$258,FALSE),"0.000"),TEXT(VLOOKUP($C278&"Total",base!$D$4:$BM$3035,I$258,FALSE),"0")),"") ->  | J278: =IFERROR(IF(VLOOKUP($C278&"Total",base!$D$4:$BM$3035,J$258,FALSE)>1000,TEXT(VLOOKUP($C278&"Total",base!$D$4:$BM$3035,J$258,FALSE),"0.000"),TEXT(VLOOKUP($C278&"Total",base!$D$4:$BM$3035,J$258,FALSE),"0")),"") ->  | K278: =IFERROR(IF(VLOOKUP($C278&"Total",base!$D$4:$BM$3035,K$258,FALSE)>1.8,IF(VLOOKUP($C278&"Total",base!$D$4:$BM$3035,K$258,FALSE)>1000,TEXT(VLOOKUP($C278&"Total",base!$D$4:$BM$3035,K$258,FALSE),"0.000"),TEXT(VLOOKUP($C278&"Total",base!$D$4:$BM$3035,K$258,FALSE),"0")),TEXT(VLOOKUP($C278&"Total",base!$D$4:$BM$3035,K$258,FALSE),"0,0%")),"") ->  | L278: =IFERROR(IF(VLOOKUP($C278&"Total",base!$D$4:$BM$3035,L$258,FALSE)>1.8,IF(VLOOKUP($C278&"Total",base!$D$4:$BM$3035,L$258,FALSE)>1000,TEXT(VLOOKUP($C278&"Total",base!$D$4:$BM$3035,L$258,FALSE),"0.000"),TEXT(VLOOKUP($C278&"Total",base!$D$4:$BM$3035,L$258,FALSE),"0")),TEXT(VLOOKUP($C278&"Total",base!$D$4:$BM$3035,L$258,FALSE),"0,0%")),"") ->  | M278: =IFERROR(IF(VLOOKUP($C278&"Total",base!$D$4:$BM$3035,M$258,FALSE)>1,IF(VLOOKUP($C278&"Total",base!$D$4:$BM$3035,M$258,FALSE)>1000,TEXT(VLOOKUP($C278&"Total",base!$D$4:$BM$3035,M$258,FALSE),"0.000"),TEXT(VLOOKUP($C278&"Total",base!$D$4:$BM$3035,M$258,FALSE),"0")),TEXT(VLOOKUP($C278&"Total",base!$D$4:$BM$3035,M$258,FALSE),"0,0%")),"") -> 
A279: 20 | B279: 1.20 | C279: =+IFERROR(VLOOKUP(B279,referencias!$C$128:$D$1213,2,FALSE),"") ->  | D279: =IFERROR(VLOOKUP(C279,'tc nacional'!$AA$7:$AB$201,2,FALSE),"") ->  | F279: =IFERROR(VLOOKUP(C279,'tc nacional'!$AA$7:$AG$201,6,FALSE),"") ->  | G279: =IFERROR(IF(VLOOKUP(C279,'tc nacional'!$AA$7:$AG$201,7,FALSE)=0,"-",VLOOKUP(C279,'tc nacional'!$AA$7:$AG$201,7,FALSE)),"") ->  | H279: =IFERROR(IF(VLOOKUP($C279&"Total",base!$D$4:$AI$3035,H$258,FALSE)>1,IF(VLOOKUP($C279&"Total",base!$D$4:$AI$3035,H$258,FALSE)>1000,TEXT(VLOOKUP($C279&"Total",base!$D$4:$AI$3035,H$258,FALSE),"0.000"),TEXT(VLOOKUP($C279&"Total",base!$D$4:$AI$3035,H$258,FALSE),"0")),TEXT(VLOOKUP($C279&"Total",base!$D$4:$AI$3035,H$258,FALSE),"0,0%")),"") ->  | I279: =IFERROR(IF(VLOOKUP($C279&"Total",base!$D$4:$BM$3035,I$258,FALSE)>1000,TEXT(VLOOKUP($C279&"Total",base!$D$4:$BM$3035,I$258,FALSE),"0.000"),TEXT(VLOOKUP($C279&"Total",base!$D$4:$BM$3035,I$258,FALSE),"0")),"") ->  | J279: =IFERROR(IF(VLOOKUP($C279&"Total",base!$D$4:$BM$3035,J$258,FALSE)>1000,TEXT(VLOOKUP($C279&"Total",base!$D$4:$BM$3035,J$258,FALSE),"0.000"),TEXT(VLOOKUP($C279&"Total",base!$D$4:$BM$3035,J$258,FALSE),"0")),"") ->  | K279: =IFERROR(IF(VLOOKUP($C279&"Total",base!$D$4:$BM$3035,K$258,FALSE)>1.8,IF(VLOOKUP($C279&"Total",base!$D$4:$BM$3035,K$258,FALSE)>1000,TEXT(VLOOKUP($C279&"Total",base!$D$4:$BM$3035,K$258,FALSE),"0.000"),TEXT(VLOOKUP($C279&"Total",base!$D$4:$BM$3035,K$258,FALSE),"0")),TEXT(VLOOKUP($C279&"Total",base!$D$4:$BM$3035,K$258,FALSE),"0,0%")),"") ->  | L279: =IFERROR(IF(VLOOKUP($C279&"Total",base!$D$4:$BM$3035,L$258,FALSE)>1.8,IF(VLOOKUP($C279&"Total",base!$D$4:$BM$3035,L$258,FALSE)>1000,TEXT(VLOOKUP($C279&"Total",base!$D$4:$BM$3035,L$258,FALSE),"0.000"),TEXT(VLOOKUP($C279&"Total",base!$D$4:$BM$3035,L$258,FALSE),"0")),TEXT(VLOOKUP($C279&"Total",base!$D$4:$BM$3035,L$258,FALSE),"0,0%")),"") ->  | M279: =IFERROR(IF(VLOOKUP($C279&"Total",base!$D$4:$BM$3035,M$258,FALSE)>1,IF(VLOOKUP($C279&"Total",base!$D$4:$BM$3035,M$258,FALSE)>1000,TEXT(VLOOKUP($C279&"Total",base!$D$4:$BM$3035,M$258,FALSE),"0.000"),TEXT(VLOOKUP($C279&"Total",base!$D$4:$BM$3035,M$258,FALSE),"0")),TEXT(VLOOKUP($C279&"Total",base!$D$4:$BM$3035,M$258,FALSE),"0,0%")),"") -> 
A280: 21 | B280: 1.21 | C280: =+IFERROR(VLOOKUP(B280,referencias!$C$128:$D$1213,2,FALSE),"") ->  | D280: =IFERROR(VLOOKUP(C280,'tc nacional'!$AA$7:$AB$201,2,FALSE),"") ->  | F280: =IFERROR(VLOOKUP(C280,'tc nacional'!$AA$7:$AG$201,6,FALSE),"") ->  | G280: =IFERROR(IF(VLOOKUP(C280,'tc nacional'!$AA$7:$AG$201,7,FALSE)=0,"-",VLOOKUP(C280,'tc nacional'!$AA$7:$AG$201,7,FALSE)),"") ->  | H280: =IFERROR(IF(VLOOKUP($C280&"Total",base!$D$4:$AI$3035,H$258,FALSE)>1,IF(VLOOKUP($C280&"Total",base!$D$4:$AI$3035,H$258,FALSE)>1000,TEXT(VLOOKUP($C280&"Total",base!$D$4:$AI$3035,H$258,FALSE),"0.000"),TEXT(VLOOKUP($C280&"Total",base!$D$4:$AI$3035,H$258,FALSE),"0")),TEXT(VLOOKUP($C280&"Total",base!$D$4:$AI$3035,H$258,FALSE),"0,0%")),"") ->  | I280: =IFERROR(IF(VLOOKUP($C280&"Total",base!$D$4:$BM$3035,I$258,FALSE)>1000,TEXT(VLOOKUP($C280&"Total",base!$D$4:$BM$3035,I$258,FALSE),"0.000"),TEXT(VLOOKUP($C280&"Total",base!$D$4:$BM$3035,I$258,FALSE),"0")),"") ->  | J280: =IFERROR(IF(VLOOKUP($C280&"Total",base!$D$4:$BM$3035,J$258,FALSE)>1000,TEXT(VLOOKUP($C280&"Total",base!$D$4:$BM$3035,J$258,FALSE),"0.000"),TEXT(VLOOKUP($C280&"Total",base!$D$4:$BM$3035,J$258,FALSE),"0")),"") ->  | K280: =IFERROR(IF(VLOOKUP($C280&"Total",base!$D$4:$BM$3035,K$258,FALSE)>1.8,IF(VLOOKUP($C280&"Total",base!$D$4:$BM$3035,K$258,FALSE)>1000,TEXT(VLOOKUP($C280&"Total",base!$D$4:$BM$3035,K$258,FALSE),"0.000"),TEXT(VLOOKUP($C280&"Total",base!$D$4:$BM$3035,K$258,FALSE),"0")),TEXT(VLOOKUP($C280&"Total",base!$D$4:$BM$3035,K$258,FALSE),"0,0%")),"") ->  | L280: =IFERROR(IF(VLOOKUP($C280&"Total",base!$D$4:$BM$3035,L$258,FALSE)>1.8,IF(VLOOKUP($C280&"Total",base!$D$4:$BM$3035,L$258,FALSE)>1000,TEXT(VLOOKUP($C280&"Total",base!$D$4:$BM$3035,L$258,FALSE),"0.000"),TEXT(VLOOKUP($C280&"Total",base!$D$4:$BM$3035,L$258,FALSE),"0")),TEXT(VLOOKUP($C280&"Total",base!$D$4:$BM$3035,L$258,FALSE),"0,0%")),"") ->  | M280: =IFERROR(IF(VLOOKUP($C280&"Total",base!$D$4:$BM$3035,M$258,FALSE)>1,IF(VLOOKUP($C280&"Total",base!$D$4:$BM$3035,M$258,FALSE)>1000,TEXT(VLOOKUP($C280&"Total",base!$D$4:$BM$3035,M$258,FALSE),"0.000"),TEXT(VLOOKUP($C280&"Total",base!$D$4:$BM$3035,M$258,FALSE),"0")),TEXT(VLOOKUP($C280&"Total",base!$D$4:$BM$3035,M$258,FALSE),"0,0%")),"") -> 
A281: 22 | B281: 1.22 | C281: =+IFERROR(VLOOKUP(B281,referencias!$C$128:$D$1213,2,FALSE),"") ->  | D281: =IFERROR(VLOOKUP(C281,'tc nacional'!$AA$7:$AB$201,2,FALSE),"") ->  | F281: =IFERROR(VLOOKUP(C281,'tc nacional'!$AA$7:$AG$201,6,FALSE),"") ->  | G281: =IFERROR(IF(VLOOKUP(C281,'tc nacional'!$AA$7:$AG$201,7,FALSE)=0,"-",VLOOKUP(C281,'tc nacional'!$AA$7:$AG$201,7,FALSE)),"") ->  | H281: =IFERROR(IF(VLOOKUP($C281&"Total",base!$D$4:$AI$3035,H$258,FALSE)>1,IF(VLOOKUP($C281&"Total",base!$D$4:$AI$3035,H$258,FALSE)>1000,TEXT(VLOOKUP($C281&"Total",base!$D$4:$AI$3035,H$258,FALSE),"0.000"),TEXT(VLOOKUP($C281&"Total",base!$D$4:$AI$3035,H$258,FALSE),"0")),TEXT(VLOOKUP($C281&"Total",base!$D$4:$AI$3035,H$258,FALSE),"0,0%")),"") ->  | I281: =IFERROR(IF(VLOOKUP($C281&"Total",base!$D$4:$BM$3035,I$258,FALSE)>1000,TEXT(VLOOKUP($C281&"Total",base!$D$4:$BM$3035,I$258,FALSE),"0.000"),TEXT(VLOOKUP($C281&"Total",base!$D$4:$BM$3035,I$258,FALSE),"0")),"") ->  | J281: =IFERROR(IF(VLOOKUP($C281&"Total",base!$D$4:$BM$3035,J$258,FALSE)>1000,TEXT(VLOOKUP($C281&"Total",base!$D$4:$BM$3035,J$258,FALSE),"0.000"),TEXT(VLOOKUP($C281&"Total",base!$D$4:$BM$3035,J$258,FALSE),"0")),"") ->  | K281: =IFERROR(IF(VLOOKUP($C281&"Total",base!$D$4:$BM$3035,K$258,FALSE)>1.8,IF(VLOOKUP($C281&"Total",base!$D$4:$BM$3035,K$258,FALSE)>1000,TEXT(VLOOKUP($C281&"Total",base!$D$4:$BM$3035,K$258,FALSE),"0.000"),TEXT(VLOOKUP($C281&"Total",base!$D$4:$BM$3035,K$258,FALSE),"0")),TEXT(VLOOKUP($C281&"Total",base!$D$4:$BM$3035,K$258,FALSE),"0,0%")),"") ->  | L281: =IFERROR(IF(VLOOKUP($C281&"Total",base!$D$4:$BM$3035,L$258,FALSE)>1.8,IF(VLOOKUP($C281&"Total",base!$D$4:$BM$3035,L$258,FALSE)>1000,TEXT(VLOOKUP($C281&"Total",base!$D$4:$BM$3035,L$258,FALSE),"0.000"),TEXT(VLOOKUP($C281&"Total",base!$D$4:$BM$3035,L$258,FALSE),"0")),TEXT(VLOOKUP($C281&"Total",base!$D$4:$BM$3035,L$258,FALSE),"0,0%")),"") ->  | M281: =IFERROR(IF(VLOOKUP($C281&"Total",base!$D$4:$BM$3035,M$258,FALSE)>1,IF(VLOOKUP($C281&"Total",base!$D$4:$BM$3035,M$258,FALSE)>1000,TEXT(VLOOKUP($C281&"Total",base!$D$4:$BM$3035,M$258,FALSE),"0.000"),TEXT(VLOOKUP($C281&"Total",base!$D$4:$BM$3035,M$258,FALSE),"0")),TEXT(VLOOKUP($C281&"Total",base!$D$4:$BM$3035,M$258,FALSE),"0,0%")),"") -> 
A282: 23 | B282: 1.23 | C282: =+IFERROR(VLOOKUP(B282,referencias!$C$128:$D$1213,2,FALSE),"") ->  | D282: =IFERROR(VLOOKUP(C282,'tc nacional'!$AA$7:$AB$201,2,FALSE),"") ->  | F282: =IFERROR(VLOOKUP(C282,'tc nacional'!$AA$7:$AG$201,6,FALSE),"") ->  | G282: =IFERROR(IF(VLOOKUP(C282,'tc nacional'!$AA$7:$AG$201,7,FALSE)=0,"-",VLOOKUP(C282,'tc nacional'!$AA$7:$AG$201,7,FALSE)),"") ->  | H282: =IFERROR(IF(VLOOKUP($C282&"Total",base!$D$4:$AI$3035,H$258,FALSE)>1,IF(VLOOKUP($C282&"Total",base!$D$4:$AI$3035,H$258,FALSE)>1000,TEXT(VLOOKUP($C282&"Total",base!$D$4:$AI$3035,H$258,FALSE),"0.000"),TEXT(VLOOKUP($C282&"Total",base!$D$4:$AI$3035,H$258,FALSE),"0")),TEXT(VLOOKUP($C282&"Total",base!$D$4:$AI$3035,H$258,FALSE),"0,0%")),"") ->  | I282: =IFERROR(IF(VLOOKUP($C282&"Total",base!$D$4:$BM$3035,I$258,FALSE)>1000,TEXT(VLOOKUP($C282&"Total",base!$D$4:$BM$3035,I$258,FALSE),"0.000"),TEXT(VLOOKUP($C282&"Total",base!$D$4:$BM$3035,I$258,FALSE),"0")),"") ->  | J282: =IFERROR(IF(VLOOKUP($C282&"Total",base!$D$4:$BM$3035,J$258,FALSE)>1000,TEXT(VLOOKUP($C282&"Total",base!$D$4:$BM$3035,J$258,FALSE),"0.000"),TEXT(VLOOKUP($C282&"Total",base!$D$4:$BM$3035,J$258,FALSE),"0")),"") ->  | K282: =IFERROR(IF(VLOOKUP($C282&"Total",base!$D$4:$BM$3035,K$258,FALSE)>1.8,IF(VLOOKUP($C282&"Total",base!$D$4:$BM$3035,K$258,FALSE)>1000,TEXT(VLOOKUP($C282&"Total",base!$D$4:$BM$3035,K$258,FALSE),"0.000"),TEXT(VLOOKUP($C282&"Total",base!$D$4:$BM$3035,K$258,FALSE),"0")),TEXT(VLOOKUP($C282&"Total",base!$D$4:$BM$3035,K$258,FALSE),"0,0%")),"") ->  | L282: =IFERROR(IF(VLOOKUP($C282&"Total",base!$D$4:$BM$3035,L$258,FALSE)>1.8,IF(VLOOKUP($C282&"Total",base!$D$4:$BM$3035,L$258,FALSE)>1000,TEXT(VLOOKUP($C282&"Total",base!$D$4:$BM$3035,L$258,FALSE),"0.000"),TEXT(VLOOKUP($C282&"Total",base!$D$4:$BM$3035,L$258,FALSE),"0")),TEXT(VLOOKUP($C282&"Total",base!$D$4:$BM$3035,L$258,FALSE),"0,0%")),"") ->  | M282: =IFERROR(IF(VLOOKUP($C282&"Total",base!$D$4:$BM$3035,M$258,FALSE)>1,IF(VLOOKUP($C282&"Total",base!$D$4:$BM$3035,M$258,FALSE)>1000,TEXT(VLOOKUP($C282&"Total",base!$D$4:$BM$3035,M$258,FALSE),"0.000"),TEXT(VLOOKUP($C282&"Total",base!$D$4:$BM$3035,M$258,FALSE),"0")),TEXT(VLOOKUP($C282&"Total",base!$D$4:$BM$3035,M$258,FALSE),"0,0%")),"") -> 
A283: 24 | B283: 1.24 | C283: =+IFERROR(VLOOKUP(B283,referencias!$C$128:$D$1213,2,FALSE),"") ->  | D283: =IFERROR(VLOOKUP(C283,'tc nacional'!$AA$7:$AB$201,2,FALSE),"") ->  | F283: =IFERROR(VLOOKUP(C283,'tc nacional'!$AA$7:$AG$201,6,FALSE),"") ->  | G283: =IFERROR(IF(VLOOKUP(C283,'tc nacional'!$AA$7:$AG$201,7,FALSE)=0,"-",VLOOKUP(C283,'tc nacional'!$AA$7:$AG$201,7,FALSE)),"") ->  | H283: =IFERROR(IF(VLOOKUP($C283&"Total",base!$D$4:$AI$3035,H$258,FALSE)>1,IF(VLOOKUP($C283&"Total",base!$D$4:$AI$3035,H$258,FALSE)>1000,TEXT(VLOOKUP($C283&"Total",base!$D$4:$AI$3035,H$258,FALSE),"0.000"),TEXT(VLOOKUP($C283&"Total",base!$D$4:$AI$3035,H$258,FALSE),"0")),TEXT(VLOOKUP($C283&"Total",base!$D$4:$AI$3035,H$258,FALSE),"0,0%")),"") ->  | I283: =IFERROR(IF(VLOOKUP($C283&"Total",base!$D$4:$BM$3035,I$258,FALSE)>1000,TEXT(VLOOKUP($C283&"Total",base!$D$4:$BM$3035,I$258,FALSE),"0.000"),TEXT(VLOOKUP($C283&"Total",base!$D$4:$BM$3035,I$258,FALSE),"0")),"") ->  | J283: =IFERROR(IF(VLOOKUP($C283&"Total",base!$D$4:$BM$3035,J$258,FALSE)>1000,TEXT(VLOOKUP($C283&"Total",base!$D$4:$BM$3035,J$258,FALSE),"0.000"),TEXT(VLOOKUP($C283&"Total",base!$D$4:$BM$3035,J$258,FALSE),"0")),"") ->  | K283: =IFERROR(IF(VLOOKUP($C283&"Total",base!$D$4:$BM$3035,K$258,FALSE)>1.8,IF(VLOOKUP($C283&"Total",base!$D$4:$BM$3035,K$258,FALSE)>1000,TEXT(VLOOKUP($C283&"Total",base!$D$4:$BM$3035,K$258,FALSE),"0.000"),TEXT(VLOOKUP($C283&"Total",base!$D$4:$BM$3035,K$258,FALSE),"0")),TEXT(VLOOKUP($C283&"Total",base!$D$4:$BM$3035,K$258,FALSE),"0,0%")),"") ->  | L283: =IFERROR(IF(VLOOKUP($C283&"Total",base!$D$4:$BM$3035,L$258,FALSE)>1.8,IF(VLOOKUP($C283&"Total",base!$D$4:$BM$3035,L$258,FALSE)>1000,TEXT(VLOOKUP($C283&"Total",base!$D$4:$BM$3035,L$258,FALSE),"0.000"),TEXT(VLOOKUP($C283&"Total",base!$D$4:$BM$3035,L$258,FALSE),"0")),TEXT(VLOOKUP($C283&"Total",base!$D$4:$BM$3035,L$258,FALSE),"0,0%")),"") ->  | M283: =IFERROR(IF(VLOOKUP($C283&"Total",base!$D$4:$BM$3035,M$258,FALSE)>1,IF(VLOOKUP($C283&"Total",base!$D$4:$BM$3035,M$258,FALSE)>1000,TEXT(VLOOKUP($C283&"Total",base!$D$4:$BM$3035,M$258,FALSE),"0.000"),TEXT(VLOOKUP($C283&"Total",base!$D$4:$BM$3035,M$258,FALSE),"0")),TEXT(VLOOKUP($C283&"Total",base!$D$4:$BM$3035,M$258,FALSE),"0,0%")),"") -> 
A284: 25 | B284: 1.25 | C284: =+IFERROR(VLOOKUP(B284,referencias!$C$128:$D$1213,2,FALSE),"") ->  | D284: =IFERROR(VLOOKUP(C284,'tc nacional'!$AA$7:$AB$201,2,FALSE),"") ->  | F284: =IFERROR(VLOOKUP(C284,'tc nacional'!$AA$7:$AG$201,6,FALSE),"") ->  | G284: =IFERROR(IF(VLOOKUP(C284,'tc nacional'!$AA$7:$AG$201,7,FALSE)=0,"-",VLOOKUP(C284,'tc nacional'!$AA$7:$AG$201,7,FALSE)),"") ->  | H284: =IFERROR(IF(VLOOKUP($C284&"Total",base!$D$4:$AI$3035,H$258,FALSE)>1,IF(VLOOKUP($C284&"Total",base!$D$4:$AI$3035,H$258,FALSE)>1000,TEXT(VLOOKUP($C284&"Total",base!$D$4:$AI$3035,H$258,FALSE),"0.000"),TEXT(VLOOKUP($C284&"Total",base!$D$4:$AI$3035,H$258,FALSE),"0")),TEXT(VLOOKUP($C284&"Total",base!$D$4:$AI$3035,H$258,FALSE),"0,0%")),"") ->  | I284: =IFERROR(IF(VLOOKUP($C284&"Total",base!$D$4:$BM$3035,I$258,FALSE)>1000,TEXT(VLOOKUP($C284&"Total",base!$D$4:$BM$3035,I$258,FALSE),"0.000"),TEXT(VLOOKUP($C284&"Total",base!$D$4:$BM$3035,I$258,FALSE),"0")),"") ->  | J284: =IFERROR(IF(VLOOKUP($C284&"Total",base!$D$4:$BM$3035,J$258,FALSE)>1000,TEXT(VLOOKUP($C284&"Total",base!$D$4:$BM$3035,J$258,FALSE),"0.000"),TEXT(VLOOKUP($C284&"Total",base!$D$4:$BM$3035,J$258,FALSE),"0")),"") ->  | K284: =IFERROR(IF(VLOOKUP($C284&"Total",base!$D$4:$BM$3035,K$258,FALSE)>1.8,IF(VLOOKUP($C284&"Total",base!$D$4:$BM$3035,K$258,FALSE)>1000,TEXT(VLOOKUP($C284&"Total",base!$D$4:$BM$3035,K$258,FALSE),"0.000"),TEXT(VLOOKUP($C284&"Total",base!$D$4:$BM$3035,K$258,FALSE),"0")),TEXT(VLOOKUP($C284&"Total",base!$D$4:$BM$3035,K$258,FALSE),"0,0%")),"") ->  | L284: =IFERROR(IF(VLOOKUP($C284&"Total",base!$D$4:$BM$3035,L$258,FALSE)>1.8,IF(VLOOKUP($C284&"Total",base!$D$4:$BM$3035,L$258,FALSE)>1000,TEXT(VLOOKUP($C284&"Total",base!$D$4:$BM$3035,L$258,FALSE),"0.000"),TEXT(VLOOKUP($C284&"Total",base!$D$4:$BM$3035,L$258,FALSE),"0")),TEXT(VLOOKUP($C284&"Total",base!$D$4:$BM$3035,L$258,FALSE),"0,0%")),"") ->  | M284: =IFERROR(IF(VLOOKUP($C284&"Total",base!$D$4:$BM$3035,M$258,FALSE)>1,IF(VLOOKUP($C284&"Total",base!$D$4:$BM$3035,M$258,FALSE)>1000,TEXT(VLOOKUP($C284&"Total",base!$D$4:$BM$3035,M$258,FALSE),"0.000"),TEXT(VLOOKUP($C284&"Total",base!$D$4:$BM$3035,M$258,FALSE),"0")),TEXT(VLOOKUP($C284&"Total",base!$D$4:$BM$3035,M$258,FALSE),"0,0%")),"") -> 
A285: 26 | B285: 1.26 | C285: =+IFERROR(VLOOKUP(B285,referencias!$C$128:$D$1213,2,FALSE),"") ->  | D285: =IFERROR(VLOOKUP(C285,'tc nacional'!$AA$7:$AB$201,2,FALSE),"") ->  | F285: =IFERROR(VLOOKUP(C285,'tc nacional'!$AA$7:$AG$201,6,FALSE),"") ->  | G285: =IFERROR(IF(VLOOKUP(C285,'tc nacional'!$AA$7:$AG$201,7,FALSE)=0,"-",VLOOKUP(C285,'tc nacional'!$AA$7:$AG$201,7,FALSE)),"") ->  | H285: =IFERROR(IF(VLOOKUP($C285&"Total",base!$D$4:$AI$3035,H$258,FALSE)>1,IF(VLOOKUP($C285&"Total",base!$D$4:$AI$3035,H$258,FALSE)>1000,TEXT(VLOOKUP($C285&"Total",base!$D$4:$AI$3035,H$258,FALSE),"0.000"),TEXT(VLOOKUP($C285&"Total",base!$D$4:$AI$3035,H$258,FALSE),"0")),TEXT(VLOOKUP($C285&"Total",base!$D$4:$AI$3035,H$258,FALSE),"0,0%")),"") ->  | I285: =IFERROR(IF(VLOOKUP($C285&"Total",base!$D$4:$BM$3035,I$258,FALSE)>1000,TEXT(VLOOKUP($C285&"Total",base!$D$4:$BM$3035,I$258,FALSE),"0.000"),TEXT(VLOOKUP($C285&"Total",base!$D$4:$BM$3035,I$258,FALSE),"0")),"") ->  | J285: =IFERROR(IF(VLOOKUP($C285&"Total",base!$D$4:$BM$3035,J$258,FALSE)>1000,TEXT(VLOOKUP($C285&"Total",base!$D$4:$BM$3035,J$258,FALSE),"0.000"),TEXT(VLOOKUP($C285&"Total",base!$D$4:$BM$3035,J$258,FALSE),"0")),"") ->  | K285: =IFERROR(IF(VLOOKUP($C285&"Total",base!$D$4:$BM$3035,K$258,FALSE)>1.8,IF(VLOOKUP($C285&"Total",base!$D$4:$BM$3035,K$258,FALSE)>1000,TEXT(VLOOKUP($C285&"Total",base!$D$4:$BM$3035,K$258,FALSE),"0.000"),TEXT(VLOOKUP($C285&"Total",base!$D$4:$BM$3035,K$258,FALSE),"0")),TEXT(VLOOKUP($C285&"Total",base!$D$4:$BM$3035,K$258,FALSE),"0,0%")),"") ->  | L285: =IFERROR(IF(VLOOKUP($C285&"Total",base!$D$4:$BM$3035,L$258,FALSE)>1.8,IF(VLOOKUP($C285&"Total",base!$D$4:$BM$3035,L$258,FALSE)>1000,TEXT(VLOOKUP($C285&"Total",base!$D$4:$BM$3035,L$258,FALSE),"0.000"),TEXT(VLOOKUP($C285&"Total",base!$D$4:$BM$3035,L$258,FALSE),"0")),TEXT(VLOOKUP($C285&"Total",base!$D$4:$BM$3035,L$258,FALSE),"0,0%")),"") ->  | M285: =IFERROR(IF(VLOOKUP($C285&"Total",base!$D$4:$BM$3035,M$258,FALSE)>1,IF(VLOOKUP($C285&"Total",base!$D$4:$BM$3035,M$258,FALSE)>1000,TEXT(VLOOKUP($C285&"Total",base!$D$4:$BM$3035,M$258,FALSE),"0.000"),TEXT(VLOOKUP($C285&"Total",base!$D$4:$BM$3035,M$258,FALSE),"0")),TEXT(VLOOKUP($C285&"Total",base!$D$4:$BM$3035,M$258,FALSE),"0,0%")),"") -> 
A286: 27 | B286: 1.27 | C286: =+IFERROR(VLOOKUP(B286,referencias!$C$128:$D$1213,2,FALSE),"") ->  | D286: =IFERROR(VLOOKUP(C286,'tc nacional'!$AA$7:$AB$201,2,FALSE),"") ->  | F286: =IFERROR(VLOOKUP(C286,'tc nacional'!$AA$7:$AG$201,6,FALSE),"") ->  | G286: =IFERROR(IF(VLOOKUP(C286,'tc nacional'!$AA$7:$AG$201,7,FALSE)=0,"-",VLOOKUP(C286,'tc nacional'!$AA$7:$AG$201,7,FALSE)),"") ->  | H286: =IFERROR(IF(VLOOKUP($C286&"Total",base!$D$4:$AI$3035,H$258,FALSE)>1,IF(VLOOKUP($C286&"Total",base!$D$4:$AI$3035,H$258,FALSE)>1000,TEXT(VLOOKUP($C286&"Total",base!$D$4:$AI$3035,H$258,FALSE),"0.000"),TEXT(VLOOKUP($C286&"Total",base!$D$4:$AI$3035,H$258,FALSE),"0")),TEXT(VLOOKUP($C286&"Total",base!$D$4:$AI$3035,H$258,FALSE),"0,0%")),"") ->  | I286: =IFERROR(IF(VLOOKUP($C286&"Total",base!$D$4:$BM$3035,I$258,FALSE)>1000,TEXT(VLOOKUP($C286&"Total",base!$D$4:$BM$3035,I$258,FALSE),"0.000"),TEXT(VLOOKUP($C286&"Total",base!$D$4:$BM$3035,I$258,FALSE),"0")),"") ->  | J286: =IFERROR(IF(VLOOKUP($C286&"Total",base!$D$4:$BM$3035,J$258,FALSE)>1000,TEXT(VLOOKUP($C286&"Total",base!$D$4:$BM$3035,J$258,FALSE),"0.000"),TEXT(VLOOKUP($C286&"Total",base!$D$4:$BM$3035,J$258,FALSE),"0")),"") ->  | K286: =IFERROR(IF(VLOOKUP($C286&"Total",base!$D$4:$BM$3035,K$258,FALSE)>1.8,IF(VLOOKUP($C286&"Total",base!$D$4:$BM$3035,K$258,FALSE)>1000,TEXT(VLOOKUP($C286&"Total",base!$D$4:$BM$3035,K$258,FALSE),"0.000"),TEXT(VLOOKUP($C286&"Total",base!$D$4:$BM$3035,K$258,FALSE),"0")),TEXT(VLOOKUP($C286&"Total",base!$D$4:$BM$3035,K$258,FALSE),"0,0%")),"") ->  | L286: =IFERROR(IF(VLOOKUP($C286&"Total",base!$D$4:$BM$3035,L$258,FALSE)>1.8,IF(VLOOKUP($C286&"Total",base!$D$4:$BM$3035,L$258,FALSE)>1000,TEXT(VLOOKUP($C286&"Total",base!$D$4:$BM$3035,L$258,FALSE),"0.000"),TEXT(VLOOKUP($C286&"Total",base!$D$4:$BM$3035,L$258,FALSE),"0")),TEXT(VLOOKUP($C286&"Total",base!$D$4:$BM$3035,L$258,FALSE),"0,0%")),"") ->  | M286: =IFERROR(IF(VLOOKUP($C286&"Total",base!$D$4:$BM$3035,M$258,FALSE)>1,IF(VLOOKUP($C286&"Total",base!$D$4:$BM$3035,M$258,FALSE)>1000,TEXT(VLOOKUP($C286&"Total",base!$D$4:$BM$3035,M$258,FALSE),"0.000"),TEXT(VLOOKUP($C286&"Total",base!$D$4:$BM$3035,M$258,FALSE),"0")),TEXT(VLOOKUP($C286&"Total",base!$D$4:$BM$3035,M$258,FALSE),"0,0%")),"") -> 
... 90 more rows

Sheet info detallada indic
B2: TABLERO DE CONTROL 2015 INSTITUTO COLOMBIANO DE BIENESTAR FAMILIAR ICBF SEGUIMIENTO METAS - ANÁLISIS POR INDICADOR
C5: =+'avances nal'!C207 -> Categoria | D5: =+'avances nal'!D207 -> Objetivos Institucionales
K6: Volver al resumen por agregados
C7: =+IF('avances nal'!C211=0,"",'avances nal'!C211) -> Código | D7: =+IF('avances nal'!D211=0,"",'avances nal'!D211) -> 1 | F7: =IFERROR(VLOOKUP(D7,referencias!$C$20:$E$125,3,FALSE),"") -> O_1
C9: =+IF('avances nal'!C213=0,"",'avances nal'!C213) -> Objetivo | D9: =+IF('avances nal'!D213=0,"",'avances nal'!D213) -> Ampliar cobertura y mejorar calidad en la atención integral a la Primera Infancia.
C11: =+IF('avances nal'!C217=0,"",'avances nal'!C217) ->  | D11: =+IF('avances nal'!D217=0,"",'avances nal'!D217) ->  | F11: =IFERROR(VLOOKUP(D11,referencias!$C$20:$E$125,3,FALSE),"") -> 
C13: =+IF('avances nal'!C219=0,"",'avances nal'!C219) ->  | D13: =+IF('avances nal'!D219=0,"",'avances nal'!D219) -> 
C15: =+IF(F11="",F7,F11) -> O_1 | I15: =+'avance reg'!F182 -> 2 | J15: =+'avance reg'!G182 -> 58 | K15: =+'avance reg'!H182 -> 59 | L15: =+'avance reg'!I182 -> 60 | M15: =+'avance reg'!J182 -> 61 | N15: =+'avance reg'!K182 -> 62
C16: Cod indicador | D16: Indicador | G16: Nal | H16: Reg | I16: Meta | J16: Numerador | K16: Denominador | L16: Avance | M16: % avance
C17: MPE2-01 | D17: =IFERROR(VLOOKUP(C17,'tc nacional'!$AA$7:$AB$201,2,FALSE),"") -> Porcentaje de Acciones correctivas eficaces | G17: =IFERROR(VLOOKUP(C17,'tc nacional'!$AA$7:$AG$201,6,FALSE),"") -> x | H17: =IFERROR(IF(VLOOKUP(C17,'tc nacional'!$AA$7:$AG$201,7,FALSE)=0,"-",VLOOKUP(C17,'tc nacional'!$AA$7:$AG$201,7,FALSE)),"") -> x | I17: =IFERROR(IF(VLOOKUP($C17&"Total",base!$D$4:$AI$3035,I15,FALSE)>1,IF(VLOOKUP($C17&"Total",base!$D$4:$AI$3035,I15,FALSE)>1000,TEXT(VLOOKUP($C17&"Total",base!$D$4:$AI$3035,I15,FALSE),"0.000"),TEXT(VLOOKUP($C17&"Total",base!$D$4:$AI$3035,I15,FALSE),"0")),TEXT(VLOOKUP($C17&"Total",base!$D$4:$AI$3035,I15,FALSE),"0,0%")),"") -> 85,0% | J17: =IFERROR(IF(VLOOKUP($C17&"Total",base!$D$4:$BM$3035,J15,FALSE)>1,IF(VLOOKUP($C17&"Total",base!$D$4:$BM$3035,J15,FALSE)>1000,TEXT(VLOOKUP($C17&"Total",base!$D$4:$BM$3035,J15,FALSE),"0.000"),TEXT(VLOOKUP($C17&"Total",base!$D$4:$BM$3035,J15,FALSE),"0")),TEXT(VLOOKUP($C17&"Total",base!$D$4:$BM$3035,J15,FALSE),"0,0%")),"") -> 235 | K17: =IFERROR(IF(VLOOKUP($C17&"Total",base!$D$4:$BM$3035,K15,FALSE)>1,IF(VLOOKUP($C17&"Total",base!$D$4:$BM$3035,K15,FALSE)>1000,TEXT(VLOOKUP($C17&"Total",base!$D$4:$BM$3035,K15,FALSE),"0.000"),TEXT(VLOOKUP($C17&"Total",base!$D$4:$BM$3035,K15,FALSE),"0")),TEXT(VLOOKUP($C17&"Total",base!$D$4:$BM$3035,K15,FALSE),"0,0%")),"") -> 323 | L17: =IFERROR(IF(VLOOKUP($C17&"Total",base!$D$4:$BM$3035,L15,FALSE)>1,IF(VLOOKUP($C17&"Total",base!$D$4:$BM$3035,L15,FALSE)>1000,TEXT(VLOOKUP($C17&"Total",base!$D$4:$BM$3035,L15,FALSE),"0.000"),TEXT(VLOOKUP($C17&"Total",base!$D$4:$BM$3035,L15,FALSE),"0")),TEXT(VLOOKUP($C17&"Total",base!$D$4:$BM$3035,L15,FALSE),"0,0%")),"") -> 72,8% | M17: =IFERROR(IF(VLOOKUP($C17&"Total",base!$D$4:$BM$3035,M15,FALSE)>1,IF(VLOOKUP($C17&"Total",base!$D$4:$BM$3035,M15,FALSE)>1000,TEXT(VLOOKUP($C17&"Total",base!$D$4:$BM$3035,M15,FALSE),"0.000"),TEXT(VLOOKUP($C17&"Total",base!$D$4:$BM$3035,M15,FALSE),"0")),TEXT(VLOOKUP($C17&"Total",base!$D$4:$BM$3035,M15,FALSE),"0,0%")),"") -> 72,8% | N17: =IFERROR(IF(VLOOKUP($C17&"Total",base!$D$4:$BM$3035,N15,FALSE)>1,IF(VLOOKUP($C17&"Total",base!$D$4:$BM$3035,N15,FALSE)>1000,TEXT(VLOOKUP($C17&"Total",base!$D$4:$BM$3035,N15,FALSE),"0.000"),TEXT(VLOOKUP($C17&"Total",base!$D$4:$BM$3035,N15,FALSE),"0")),TEXT(VLOOKUP($C17&"Total",base!$D$4:$BM$3035,N15,FALSE),"0,0%")),"") -> ADECUADO
F19: Cod | G19: Regional | I19: Meta | J19: Numerador | K19: Denominador | L19: Avance | M19: % avance
E20: =+$C$17&G20 -> MPE2-01Antioquia | F20: 5 | G20: Antioquia | I20: =IFERROR(IF(VLOOKUP($E20,base!$D$4:$AI$3035,I$15,FALSE)>1,IF(VLOOKUP($E20,base!$D$4:$AI$3035,I$15,FALSE)>1000,TEXT(VLOOKUP($E20,base!$D$4:$AI$3035,I$15,FALSE),"0.000"),TEXT(VLOOKUP($E20,base!$D$4:$AI$3035,I$15,FALSE),"0")),TEXT(VLOOKUP($E20,base!$D$4:$AI$3035,I$15,FALSE),"0,0%")),"") -> 85,0% | J20: =IFERROR(IF(VLOOKUP($E20,base!$D$4:$BM$3035,J$15,FALSE)>1,IF(VLOOKUP($E20,base!$D$4:$BM$3035,J$15,FALSE)>1000,TEXT(VLOOKUP($E20,base!$D$4:$BM$3035,J$15,FALSE),"0.000"),TEXT(VLOOKUP($E20,base!$D$4:$BM$3035,J$15,FALSE),"0")),TEXT(VLOOKUP($E20,base!$D$4:$BM$3035,J$15,FALSE),"0,0%")),"") -> 38 | K20: =IFERROR(IF(VLOOKUP($E20,base!$D$4:$BM$3035,K$15,FALSE)>1,IF(VLOOKUP($E20,base!$D$4:$BM$3035,K$15,FALSE)>1000,TEXT(VLOOKUP($E20,base!$D$4:$BM$3035,K$15,FALSE),"0.000"),TEXT(VLOOKUP($E20,base!$D$4:$BM$3035,K$15,FALSE),"0")),TEXT(VLOOKUP($E20,base!$D$4:$BM$3035,K$15,FALSE),"0,0%")),"") -> 40 | L20: =IFERROR(IF(VLOOKUP($E20,base!$D$4:$BM$3035,L$15,FALSE)>1,IF(VLOOKUP($E20,base!$D$4:$BM$3035,L$15,FALSE)>1000,TEXT(VLOOKUP($E20,base!$D$4:$BM$3035,L$15,FALSE),"0.000"),TEXT(VLOOKUP($E20,base!$D$4:$BM$3035,L$15,FALSE),"0")),TEXT(VLOOKUP($E20,base!$D$4:$BM$3035,L$15,FALSE),"0,0%")),"") -> 95,0% | M20: =IFERROR(IF(VLOOKUP($E20,base!$D$4:$BM$3035,M$15,FALSE)>1,IF(VLOOKUP($E20,base!$D$4:$BM$3035,M$15,FALSE)>1000,TEXT(VLOOKUP($E20,base!$D$4:$BM$3035,M$15,FALSE),"0.000"),TEXT(VLOOKUP($E20,base!$D$4:$BM$3035,M$15,FALSE),"0")),TEXT(VLOOKUP($E20,base!$D$4:$BM$3035,M$15,FALSE),"0,0%")),"") -> 95,0% | N20: =IFERROR(IF(VLOOKUP($E20,base!$D$4:$BM$3035,N$15,FALSE)>1,IF(VLOOKUP($E20,base!$D$4:$BM$3035,N$15,FALSE)>1000,TEXT(VLOOKUP($E20,base!$D$4:$BM$3035,N$15,FALSE),"0.000"),TEXT(VLOOKUP($E20,base!$D$4:$BM$3035,N$15,FALSE),"0")),TEXT(VLOOKUP($E20,base!$D$4:$BM$3035,N$15,FALSE),"0,0%")),"") -> OPTIMO
E21: =+$C$17&G21 -> MPE2-01Atlántico | F21: 8 | G21: Atlántico | I21: =IFERROR(IF(VLOOKUP($E21,base!$D$4:$AI$3035,I$15,FALSE)>1,IF(VLOOKUP($E21,base!$D$4:$AI$3035,I$15,FALSE)>1000,TEXT(VLOOKUP($E21,base!$D$4:$AI$3035,I$15,FALSE),"0.000"),TEXT(VLOOKUP($E21,base!$D$4:$AI$3035,I$15,FALSE),"0")),TEXT(VLOOKUP($E21,base!$D$4:$AI$3035,I$15,FALSE),"0,0%")),"") -> 85,0% | J21: =IFERROR(IF(VLOOKUP($E21,base!$D$4:$BM$3035,J$15,FALSE)>1,IF(VLOOKUP($E21,base!$D$4:$BM$3035,J$15,FALSE)>1000,TEXT(VLOOKUP($E21,base!$D$4:$BM$3035,J$15,FALSE),"0.000"),TEXT(VLOOKUP($E21,base!$D$4:$BM$3035,J$15,FALSE),"0")),TEXT(VLOOKUP($E21,base!$D$4:$BM$3035,J$15,FALSE),"0,0%")),"") -> 4 | K21: =IFERROR(IF(VLOOKUP($E21,base!$D$4:$BM$3035,K$15,FALSE)>1,IF(VLOOKUP($E21,base!$D$4:$BM$3035,K$15,FALSE)>1000,TEXT(VLOOKUP($E21,base!$D$4:$BM$3035,K$15,FALSE),"0.000"),TEXT(VLOOKUP($E21,base!$D$4:$BM$3035,K$15,FALSE),"0")),TEXT(VLOOKUP($E21,base!$D$4:$BM$3035,K$15,FALSE),"0,0%")),"") -> 5 | L21: =IFERROR(IF(VLOOKUP($E21,base!$D$4:$BM$3035,L$15,FALSE)>1,IF(VLOOKUP($E21,base!$D$4:$BM$3035,L$15,FALSE)>1000,TEXT(VLOOKUP($E21,base!$D$4:$BM$3035,L$15,FALSE),"0.000"),TEXT(VLOOKUP($E21,base!$D$4:$BM$3035,L$15,FALSE),"0")),TEXT(VLOOKUP($E21,base!$D$4:$BM$3035,L$15,FALSE),"0,0%")),"") -> 80,0% | M21: =IFERROR(IF(VLOOKUP($E21,base!$D$4:$BM$3035,M$15,FALSE)>1,IF(VLOOKUP($E21,base!$D$4:$BM$3035,M$15,FALSE)>1000,TEXT(VLOOKUP($E21,base!$D$4:$BM$3035,M$15,FALSE),"0.000"),TEXT(VLOOKUP($E21,base!$D$4:$BM$3035,M$15,FALSE),"0")),TEXT(VLOOKUP($E21,base!$D$4:$BM$3035,M$15,FALSE),"0,0%")),"") -> 80,0% | N21: =IFERROR(IF(VLOOKUP($E21,base!$D$4:$BM$3035,N$15,FALSE)>1,IF(VLOOKUP($E21,base!$D$4:$BM$3035,N$15,FALSE)>1000,TEXT(VLOOKUP($E21,base!$D$4:$BM$3035,N$15,FALSE),"0.000"),TEXT(VLOOKUP($E21,base!$D$4:$BM$3035,N$15,FALSE),"0")),TEXT(VLOOKUP($E21,base!$D$4:$BM$3035,N$15,FALSE),"0,0%")),"") -> ADECUADO
E22: MPE2-01Bogotá | F22: 11 | G22: Bogotá | I22: =IFERROR(IF(VLOOKUP($E22,base!$D$4:$AI$3035,I$15,FALSE)>1,IF(VLOOKUP($E22,base!$D$4:$AI$3035,I$15,FALSE)>1000,TEXT(VLOOKUP($E22,base!$D$4:$AI$3035,I$15,FALSE),"0.000"),TEXT(VLOOKUP($E22,base!$D$4:$AI$3035,I$15,FALSE),"0")),TEXT(VLOOKUP($E22,base!$D$4:$AI$3035,I$15,FALSE),"0,0%")),"") -> 85,0% | J22: =IFERROR(IF(VLOOKUP($E22,base!$D$4:$BM$3035,J$15,FALSE)>1,IF(VLOOKUP($E22,base!$D$4:$BM$3035,J$15,FALSE)>1000,TEXT(VLOOKUP($E22,base!$D$4:$BM$3035,J$15,FALSE),"0.000"),TEXT(VLOOKUP($E22,base!$D$4:$BM$3035,J$15,FALSE),"0")),TEXT(VLOOKUP($E22,base!$D$4:$BM$3035,J$15,FALSE),"0,0%")),"") -> 18 | K22: =IFERROR(IF(VLOOKUP($E22,base!$D$4:$BM$3035,K$15,FALSE)>1,IF(VLOOKUP($E22,base!$D$4:$BM$3035,K$15,FALSE)>1000,TEXT(VLOOKUP($E22,base!$D$4:$BM$3035,K$15,FALSE),"0.000"),TEXT(VLOOKUP($E22,base!$D$4:$BM$3035,K$15,FALSE),"0")),TEXT(VLOOKUP($E22,base!$D$4:$BM$3035,K$15,FALSE),"0,0%")),"") -> 18 | L22: =IFERROR(IF(VLOOKUP($E22,base!$D$4:$BM$3035,L$15,FALSE)>1,IF(VLOOKUP($E22,base!$D$4:$BM$3035,L$15,FALSE)>1000,TEXT(VLOOKUP($E22,base!$D$4:$BM$3035,L$15,FALSE),"0.000"),TEXT(VLOOKUP($E22,base!$D$4:$BM$3035,L$15,FALSE),"0")),TEXT(VLOOKUP($E22,base!$D$4:$BM$3035,L$15,FALSE),"0,0%")),"") -> 100,0% | M22: =IFERROR(IF(VLOOKUP($E22,base!$D$4:$BM$3035,M$15,FALSE)>1,IF(VLOOKUP($E22,base!$D$4:$BM$3035,M$15,FALSE)>1000,TEXT(VLOOKUP($E22,base!$D$4:$BM$3035,M$15,FALSE),"0.000"),TEXT(VLOOKUP($E22,base!$D$4:$BM$3035,M$15,FALSE),"0")),TEXT(VLOOKUP($E22,base!$D$4:$BM$3035,M$15,FALSE),"0,0%")),"") -> 100,0% | N22: =IFERROR(IF(VLOOKUP($E22,base!$D$4:$BM$3035,N$15,FALSE)>1,IF(VLOOKUP($E22,base!$D$4:$BM$3035,N$15,FALSE)>1000,TEXT(VLOOKUP($E22,base!$D$4:$BM$3035,N$15,FALSE),"0.000"),TEXT(VLOOKUP($E22,base!$D$4:$BM$3035,N$15,FALSE),"0")),TEXT(VLOOKUP($E22,base!$D$4:$BM$3035,N$15,FALSE),"0,0%")),"") -> OPTIMO
E23: MPE2-01Bolivar | F23: 13 | G23: Bolivar | I23: =IFERROR(IF(VLOOKUP($E23,base!$D$4:$AI$3035,I$15,FALSE)>1,IF(VLOOKUP($E23,base!$D$4:$AI$3035,I$15,FALSE)>1000,TEXT(VLOOKUP($E23,base!$D$4:$AI$3035,I$15,FALSE),"0.000"),TEXT(VLOOKUP($E23,base!$D$4:$AI$3035,I$15,FALSE),"0")),TEXT(VLOOKUP($E23,base!$D$4:$AI$3035,I$15,FALSE),"0,0%")),"") -> 85,0% | J23: =IFERROR(IF(VLOOKUP($E23,base!$D$4:$BM$3035,J$15,FALSE)>1,IF(VLOOKUP($E23,base!$D$4:$BM$3035,J$15,FALSE)>1000,TEXT(VLOOKUP($E23,base!$D$4:$BM$3035,J$15,FALSE),"0.000"),TEXT(VLOOKUP($E23,base!$D$4:$BM$3035,J$15,FALSE),"0")),TEXT(VLOOKUP($E23,base!$D$4:$BM$3035,J$15,FALSE),"0,0%")),"") -> 2 | K23: =IFERROR(IF(VLOOKUP($E23,base!$D$4:$BM$3035,K$15,FALSE)>1,IF(VLOOKUP($E23,base!$D$4:$BM$3035,K$15,FALSE)>1000,TEXT(VLOOKUP($E23,base!$D$4:$BM$3035,K$15,FALSE),"0.000"),TEXT(VLOOKUP($E23,base!$D$4:$BM$3035,K$15,FALSE),"0")),TEXT(VLOOKUP($E23,base!$D$4:$BM$3035,K$15,FALSE),"0,0%")),"") -> 2 | L23: =IFERROR(IF(VLOOKUP($E23,base!$D$4:$BM$3035,L$15,FALSE)>1,IF(VLOOKUP($E23,base!$D$4:$BM$3035,L$15,FALSE)>1000,TEXT(VLOOKUP($E23,base!$D$4:$BM$3035,L$15,FALSE),"0.000"),TEXT(VLOOKUP($E23,base!$D$4:$BM$3035,L$15,FALSE),"0")),TEXT(VLOOKUP($E23,base!$D$4:$BM$3035,L$15,FALSE),"0,0%")),"") -> 100,0% | M23: =IFERROR(IF(VLOOKUP($E23,base!$D$4:$BM$3035,M$15,FALSE)>1,IF(VLOOKUP($E23,base!$D$4:$BM$3035,M$15,FALSE)>1000,TEXT(VLOOKUP($E23,base!$D$4:$BM$3035,M$15,FALSE),"0.000"),TEXT(VLOOKUP($E23,base!$D$4:$BM$3035,M$15,FALSE),"0")),TEXT(VLOOKUP($E23,base!$D$4:$BM$3035,M$15,FALSE),"0,0%")),"") -> 100,0% | N23: =IFERROR(IF(VLOOKUP($E23,base!$D$4:$BM$3035,N$15,FALSE)>1,IF(VLOOKUP($E23,base!$D$4:$BM$3035,N$15,FALSE)>1000,TEXT(VLOOKUP($E23,base!$D$4:$BM$3035,N$15,FALSE),"0.000"),TEXT(VLOOKUP($E23,base!$D$4:$BM$3035,N$15,FALSE),"0")),TEXT(VLOOKUP($E23,base!$D$4:$BM$3035,N$15,FALSE),"0,0%")),"") -> OPTIMO
E24: MPE2-01Boyacá | F24: 15 | G24: Boyacá | I24: =IFERROR(IF(VLOOKUP($E24,base!$D$4:$AI$3035,I$15,FALSE)>1,IF(VLOOKUP($E24,base!$D$4:$AI$3035,I$15,FALSE)>1000,TEXT(VLOOKUP($E24,base!$D$4:$AI$3035,I$15,FALSE),"0.000"),TEXT(VLOOKUP($E24,base!$D$4:$AI$3035,I$15,FALSE),"0")),TEXT(VLOOKUP($E24,base!$D$4:$AI$3035,I$15,FALSE),"0,0%")),"") -> 85,0% | J24: =IFERROR(IF(VLOOKUP($E24,base!$D$4:$BM$3035,J$15,FALSE)>1,IF(VLOOKUP($E24,base!$D$4:$BM$3035,J$15,FALSE)>1000,TEXT(VLOOKUP($E24,base!$D$4:$BM$3035,J$15,FALSE),"0.000"),TEXT(VLOOKUP($E24,base!$D$4:$BM$3035,J$15,FALSE),"0")),TEXT(VLOOKUP($E24,base!$D$4:$BM$3035,J$15,FALSE),"0,0%")),"") -> 5 | K24: =IFERROR(IF(VLOOKUP($E24,base!$D$4:$BM$3035,K$15,FALSE)>1,IF(VLOOKUP($E24,base!$D$4:$BM$3035,K$15,FALSE)>1000,TEXT(VLOOKUP($E24,base!$D$4:$BM$3035,K$15,FALSE),"0.000"),TEXT(VLOOKUP($E24,base!$D$4:$BM$3035,K$15,FALSE),"0")),TEXT(VLOOKUP($E24,base!$D$4:$BM$3035,K$15,FALSE),"0,0%")),"") -> 24 | L24: =IFERROR(IF(VLOOKUP($E24,base!$D$4:$BM$3035,L$15,FALSE)>1,IF(VLOOKUP($E24,base!$D$4:$BM$3035,L$15,FALSE)>1000,TEXT(VLOOKUP($E24,base!$D$4:$BM$3035,L$15,FALSE),"0.000"),TEXT(VLOOKUP($E24,base!$D$4:$BM$3035,L$15,FALSE),"0")),TEXT(VLOOKUP($E24,base!$D$4:$BM$3035,L$15,FALSE),"0,0%")),"") -> 20,8% | M24: =IFERROR(IF(VLOOKUP($E24,base!$D$4:$BM$3035,M$15,FALSE)>1,IF(VLOOKUP($E24,base!$D$4:$BM$3035,M$15,FALSE)>1000,TEXT(VLOOKUP($E24,base!$D$4:$BM$3035,M$15,FALSE),"0.000"),TEXT(VLOOKUP($E24,base!$D$4:$BM$3035,M$15,FALSE),"0")),TEXT(VLOOKUP($E24,base!$D$4:$BM$3035,M$15,FALSE),"0,0%")),"") -> 20,8% | N24: =IFERROR(IF(VLOOKUP($E24,base!$D$4:$BM$3035,N$15,FALSE)>1,IF(VLOOKUP($E24,base!$D$4:$BM$3035,N$15,FALSE)>1000,TEXT(VLOOKUP($E24,base!$D$4:$BM$3035,N$15,FALSE),"0.000"),TEXT(VLOOKUP($E24,base!$D$4:$BM$3035,N$15,FALSE),"0")),TEXT(VLOOKUP($E24,base!$D$4:$BM$3035,N$15,FALSE),"0,0%")),"") -> CRITICO
E25: MPE2-01Caldas | F25: 17 | G25: Caldas | I25: =IFERROR(IF(VLOOKUP($E25,base!$D$4:$AI$3035,I$15,FALSE)>1,IF(VLOOKUP($E25,base!$D$4:$AI$3035,I$15,FALSE)>1000,TEXT(VLOOKUP($E25,base!$D$4:$AI$3035,I$15,FALSE),"0.000"),TEXT(VLOOKUP($E25,base!$D$4:$AI$3035,I$15,FALSE),"0")),TEXT(VLOOKUP($E25,base!$D$4:$AI$3035,I$15,FALSE),"0,0%")),"") -> 85,0% | J25: =IFERROR(IF(VLOOKUP($E25,base!$D$4:$BM$3035,J$15,FALSE)>1,IF(VLOOKUP($E25,base!$D$4:$BM$3035,J$15,FALSE)>1000,TEXT(VLOOKUP($E25,base!$D$4:$BM$3035,J$15,FALSE),"0.000"),TEXT(VLOOKUP($E25,base!$D$4:$BM$3035,J$15,FALSE),"0")),TEXT(VLOOKUP($E25,base!$D$4:$BM$3035,J$15,FALSE),"0,0%")),"") -> 100,0% | K25: =IFERROR(IF(VLOOKUP($E25,base!$D$4:$BM$3035,K$15,FALSE)>1,IF(VLOOKUP($E25,base!$D$4:$BM$3035,K$15,FALSE)>1000,TEXT(VLOOKUP($E25,base!$D$4:$BM$3035,K$15,FALSE),"0.000"),TEXT(VLOOKUP($E25,base!$D$4:$BM$3035,K$15,FALSE),"0")),TEXT(VLOOKUP($E25,base!$D$4:$BM$3035,K$15,FALSE),"0,0%")),"") -> 100,0% | L25: =IFERROR(IF(VLOOKUP($E25,base!$D$4:$BM$3035,L$15,FALSE)>1,IF(VLOOKUP($E25,base!$D$4:$BM$3035,L$15,FALSE)>1000,TEXT(VLOOKUP($E25,base!$D$4:$BM$3035,L$15,FALSE),"0.000"),TEXT(VLOOKUP($E25,base!$D$4:$BM$3035,L$15,FALSE),"0")),TEXT(VLOOKUP($E25,base!$D$4:$BM$3035,L$15,FALSE),"0,0%")),"") -> 100,0% | M25: =IFERROR(IF(VLOOKUP($E25,base!$D$4:$BM$3035,M$15,FALSE)>1,IF(VLOOKUP($E25,base!$D$4:$BM$3035,M$15,FALSE)>1000,TEXT(VLOOKUP($E25,base!$D$4:$BM$3035,M$15,FALSE),"0.000"),TEXT(VLOOKUP($E25,base!$D$4:$BM$3035,M$15,FALSE),"0")),TEXT(VLOOKUP($E25,base!$D$4:$BM$3035,M$15,FALSE),"0,0%")),"") -> 100,0% | N25: =IFERROR(IF(VLOOKUP($E25,base!$D$4:$BM$3035,N$15,FALSE)>1,IF(VLOOKUP($E25,base!$D$4:$BM$3035,N$15,FALSE)>1000,TEXT(VLOOKUP($E25,base!$D$4:$BM$3035,N$15,FALSE),"0.000"),TEXT(VLOOKUP($E25,base!$D$4:$BM$3035,N$15,FALSE),"0")),TEXT(VLOOKUP($E25,base!$D$4:$BM$3035,N$15,FALSE),"0,0%")),"") -> OPTIMO
E26: MPE2-01Caquetá | F26: 18 | G26: Caquetá | I26: =IFERROR(IF(VLOOKUP($E26,base!$D$4:$AI$3035,I$15,FALSE)>1,IF(VLOOKUP($E26,base!$D$4:$AI$3035,I$15,FALSE)>1000,TEXT(VLOOKUP($E26,base!$D$4:$AI$3035,I$15,FALSE),"0.000"),TEXT(VLOOKUP($E26,base!$D$4:$AI$3035,I$15,FALSE),"0")),TEXT(VLOOKUP($E26,base!$D$4:$AI$3035,I$15,FALSE),"0,0%")),"") -> 85,0% | J26: =IFERROR(IF(VLOOKUP($E26,base!$D$4:$BM$3035,J$15,FALSE)>1,IF(VLOOKUP($E26,base!$D$4:$BM$3035,J$15,FALSE)>1000,TEXT(VLOOKUP($E26,base!$D$4:$BM$3035,J$15,FALSE),"0.000"),TEXT(VLOOKUP($E26,base!$D$4:$BM$3035,J$15,FALSE),"0")),TEXT(VLOOKUP($E26,base!$D$4:$BM$3035,J$15,FALSE),"0,0%")),"") -> 5 | K26: =IFERROR(IF(VLOOKUP($E26,base!$D$4:$BM$3035,K$15,FALSE)>1,IF(VLOOKUP($E26,base!$D$4:$BM$3035,K$15,FALSE)>1000,TEXT(VLOOKUP($E26,base!$D$4:$BM$3035,K$15,FALSE),"0.000"),TEXT(VLOOKUP($E26,base!$D$4:$BM$3035,K$15,FALSE),"0")),TEXT(VLOOKUP($E26,base!$D$4:$BM$3035,K$15,FALSE),"0,0%")),"") -> 5 | L26: =IFERROR(IF(VLOOKUP($E26,base!$D$4:$BM$3035,L$15,FALSE)>1,IF(VLOOKUP($E26,base!$D$4:$BM$3035,L$15,FALSE)>1000,TEXT(VLOOKUP($E26,base!$D$4:$BM$3035,L$15,FALSE),"0.000"),TEXT(VLOOKUP($E26,base!$D$4:$BM$3035,L$15,FALSE),"0")),TEXT(VLOOKUP($E26,base!$D$4:$BM$3035,L$15,FALSE),"0,0%")),"") -> 100,0% | M26: =IFERROR(IF(VLOOKUP($E26,base!$D$4:$BM$3035,M$15,FALSE)>1,IF(VLOOKUP($E26,base!$D$4:$BM$3035,M$15,FALSE)>1000,TEXT(VLOOKUP($E26,base!$D$4:$BM$3035,M$15,FALSE),"0.000"),TEXT(VLOOKUP($E26,base!$D$4:$BM$3035,M$15,FALSE),"0")),TEXT(VLOOKUP($E26,base!$D$4:$BM$3035,M$15,FALSE),"0,0%")),"") -> 100,0% | N26: =IFERROR(IF(VLOOKUP($E26,base!$D$4:$BM$3035,N$15,FALSE)>1,IF(VLOOKUP($E26,base!$D$4:$BM$3035,N$15,FALSE)>1000,TEXT(VLOOKUP($E26,base!$D$4:$BM$3035,N$15,FALSE),"0.000"),TEXT(VLOOKUP($E26,base!$D$4:$BM$3035,N$15,FALSE),"0")),TEXT(VLOOKUP($E26,base!$D$4:$BM$3035,N$15,FALSE),"0,0%")),"") -> OPTIMO
E27: MPE2-01Cauca | F27: 19 | G27: Cauca | I27: =IFERROR(IF(VLOOKUP($E27,base!$D$4:$AI$3035,I$15,FALSE)>1,IF(VLOOKUP($E27,base!$D$4:$AI$3035,I$15,FALSE)>1000,TEXT(VLOOKUP($E27,base!$D$4:$AI$3035,I$15,FALSE),"0.000"),TEXT(VLOOKUP($E27,base!$D$4:$AI$3035,I$15,FALSE),"0")),TEXT(VLOOKUP($E27,base!$D$4:$AI$3035,I$15,FALSE),"0,0%")),"") -> 85,0% | J27: =IFERROR(IF(VLOOKUP($E27,base!$D$4:$BM$3035,J$15,FALSE)>1,IF(VLOOKUP($E27,base!$D$4:$BM$3035,J$15,FALSE)>1000,TEXT(VLOOKUP($E27,base!$D$4:$BM$3035,J$15,FALSE),"0.000"),TEXT(VLOOKUP($E27,base!$D$4:$BM$3035,J$15,FALSE),"0")),TEXT(VLOOKUP($E27,base!$D$4:$BM$3035,J$15,FALSE),"0,0%")),"") -> 100,0% | K27: =IFERROR(IF(VLOOKUP($E27,base!$D$4:$BM$3035,K$15,FALSE)>1,IF(VLOOKUP($E27,base!$D$4:$BM$3035,K$15,FALSE)>1000,TEXT(VLOOKUP($E27,base!$D$4:$BM$3035,K$15,FALSE),"0.000"),TEXT(VLOOKUP($E27,base!$D$4:$BM$3035,K$15,FALSE),"0")),TEXT(VLOOKUP($E27,base!$D$4:$BM$3035,K$15,FALSE),"0,0%")),"") -> 100,0% | L27: =IFERROR(IF(VLOOKUP($E27,base!$D$4:$BM$3035,L$15,FALSE)>1,IF(VLOOKUP($E27,base!$D$4:$BM$3035,L$15,FALSE)>1000,TEXT(VLOOKUP($E27,base!$D$4:$BM$3035,L$15,FALSE),"0.000"),TEXT(VLOOKUP($E27,base!$D$4:$BM$3035,L$15,FALSE),"0")),TEXT(VLOOKUP($E27,base!$D$4:$BM$3035,L$15,FALSE),"0,0%")),"") -> 100,0% | M27: =IFERROR(IF(VLOOKUP($E27,base!$D$4:$BM$3035,M$15,FALSE)>1,IF(VLOOKUP($E27,base!$D$4:$BM$3035,M$15,FALSE)>1000,TEXT(VLOOKUP($E27,base!$D$4:$BM$3035,M$15,FALSE),"0.000"),TEXT(VLOOKUP($E27,base!$D$4:$BM$3035,M$15,FALSE),"0")),TEXT(VLOOKUP($E27,base!$D$4:$BM$3035,M$15,FALSE),"0,0%")),"") -> 100,0% | N27: =IFERROR(IF(VLOOKUP($E27,base!$D$4:$BM$3035,N$15,FALSE)>1,IF(VLOOKUP($E27,base!$D$4:$BM$3035,N$15,FALSE)>1000,TEXT(VLOOKUP($E27,base!$D$4:$BM$3035,N$15,FALSE),"0.000"),TEXT(VLOOKUP($E27,base!$D$4:$BM$3035,N$15,FALSE),"0")),TEXT(VLOOKUP($E27,base!$D$4:$BM$3035,N$15,FALSE),"0,0%")),"") -> OPTIMO
E28: MPE2-01Cesar | F28: 20 | G28: Cesar | I28: =IFERROR(IF(VLOOKUP($E28,base!$D$4:$AI$3035,I$15,FALSE)>1,IF(VLOOKUP($E28,base!$D$4:$AI$3035,I$15,FALSE)>1000,TEXT(VLOOKUP($E28,base!$D$4:$AI$3035,I$15,FALSE),"0.000"),TEXT(VLOOKUP($E28,base!$D$4:$AI$3035,I$15,FALSE),"0")),TEXT(VLOOKUP($E28,base!$D$4:$AI$3035,I$15,FALSE),"0,0%")),"") -> 85,0% | J28: =IFERROR(IF(VLOOKUP($E28,base!$D$4:$BM$3035,J$15,FALSE)>1,IF(VLOOKUP($E28,base!$D$4:$BM$3035,J$15,FALSE)>1000,TEXT(VLOOKUP($E28,base!$D$4:$BM$3035,J$15,FALSE),"0.000"),TEXT(VLOOKUP($E28,base!$D$4:$BM$3035,J$15,FALSE),"0")),TEXT(VLOOKUP($E28,base!$D$4:$BM$3035,J$15,FALSE),"0,0%")),"") -> 2 | K28: =IFERROR(IF(VLOOKUP($E28,base!$D$4:$BM$3035,K$15,FALSE)>1,IF(VLOOKUP($E28,base!$D$4:$BM$3035,K$15,FALSE)>1000,TEXT(VLOOKUP($E28,base!$D$4:$BM$3035,K$15,FALSE),"0.000"),TEXT(VLOOKUP($E28,base!$D$4:$BM$3035,K$15,FALSE),"0")),TEXT(VLOOKUP($E28,base!$D$4:$BM$3035,K$15,FALSE),"0,0%")),"") -> 2 | L28: =IFERROR(IF(VLOOKUP($E28,base!$D$4:$BM$3035,L$15,FALSE)>1,IF(VLOOKUP($E28,base!$D$4:$BM$3035,L$15,FALSE)>1000,TEXT(VLOOKUP($E28,base!$D$4:$BM$3035,L$15,FALSE),"0.000"),TEXT(VLOOKUP($E28,base!$D$4:$BM$3035,L$15,FALSE),"0")),TEXT(VLOOKUP($E28,base!$D$4:$BM$3035,L$15,FALSE),"0,0%")),"") -> 100,0% | M28: =IFERROR(IF(VLOOKUP($E28,base!$D$4:$BM$3035,M$15,FALSE)>1,IF(VLOOKUP($E28,base!$D$4:$BM$3035,M$15,FALSE)>1000,TEXT(VLOOKUP($E28,base!$D$4:$BM$3035,M$15,FALSE),"0.000"),TEXT(VLOOKUP($E28,base!$D$4:$BM$3035,M$15,FALSE),"0")),TEXT(VLOOKUP($E28,base!$D$4:$BM$3035,M$15,FALSE),"0,0%")),"") -> 100,0% | N28: =IFERROR(IF(VLOOKUP($E28,base!$D$4:$BM$3035,N$15,FALSE)>1,IF(VLOOKUP($E28,base!$D$4:$BM$3035,N$15,FALSE)>1000,TEXT(VLOOKUP($E28,base!$D$4:$BM$3035,N$15,FALSE),"0.000"),TEXT(VLOOKUP($E28,base!$D$4:$BM$3035,N$15,FALSE),"0")),TEXT(VLOOKUP($E28,base!$D$4:$BM$3035,N$15,FALSE),"0,0%")),"") -> OPTIMO
E29: MPE2-01Cordoba | F29: 23 | G29: Cordoba | I29: =IFERROR(IF(VLOOKUP($E29,base!$D$4:$AI$3035,I$15,FALSE)>1,IF(VLOOKUP($E29,base!$D$4:$AI$3035,I$15,FALSE)>1000,TEXT(VLOOKUP($E29,base!$D$4:$AI$3035,I$15,FALSE),"0.000"),TEXT(VLOOKUP($E29,base!$D$4:$AI$3035,I$15,FALSE),"0")),TEXT(VLOOKUP($E29,base!$D$4:$AI$3035,I$15,FALSE),"0,0%")),"") -> 85,0% | J29: =IFERROR(IF(VLOOKUP($E29,base!$D$4:$BM$3035,J$15,FALSE)>1,IF(VLOOKUP($E29,base!$D$4:$BM$3035,J$15,FALSE)>1000,TEXT(VLOOKUP($E29,base!$D$4:$BM$3035,J$15,FALSE),"0.000"),TEXT(VLOOKUP($E29,base!$D$4:$BM$3035,J$15,FALSE),"0")),TEXT(VLOOKUP($E29,base!$D$4:$BM$3035,J$15,FALSE),"0,0%")),"") -> 22 | K29: =IFERROR(IF(VLOOKUP($E29,base!$D$4:$BM$3035,K$15,FALSE)>1,IF(VLOOKUP($E29,base!$D$4:$BM$3035,K$15,FALSE)>1000,TEXT(VLOOKUP($E29,base!$D$4:$BM$3035,K$15,FALSE),"0.000"),TEXT(VLOOKUP($E29,base!$D$4:$BM$3035,K$15,FALSE),"0")),TEXT(VLOOKUP($E29,base!$D$4:$BM$3035,K$15,FALSE),"0,0%")),"") -> 25 | L29: =IFERROR(IF(VLOOKUP($E29,base!$D$4:$BM$3035,L$15,FALSE)>1,IF(VLOOKUP($E29,base!$D$4:$BM$3035,L$15,FALSE)>1000,TEXT(VLOOKUP($E29,base!$D$4:$BM$3035,L$15,FALSE),"0.000"),TEXT(VLOOKUP($E29,base!$D$4:$BM$3035,L$15,FALSE),"0")),TEXT(VLOOKUP($E29,base!$D$4:$BM$3035,L$15,FALSE),"0,0%")),"") -> 88,0% | M29: =IFERROR(IF(VLOOKUP($E29,base!$D$4:$BM$3035,M$15,FALSE)>1,IF(VLOOKUP($E29,base!$D$4:$BM$3035,M$15,FALSE)>1000,TEXT(VLOOKUP($E29,base!$D$4:$BM$3035,M$15,FALSE),"0.000"),TEXT(VLOOKUP($E29,base!$D$4:$BM$3035,M$15,FALSE),"0")),TEXT(VLOOKUP($E29,base!$D$4:$BM$3035,M$15,FALSE),"0,0%")),"") -> 88,0% | N29: =IFERROR(IF(VLOOKUP($E29,base!$D$4:$BM$3035,N$15,FALSE)>1,IF(VLOOKUP($E29,base!$D$4:$BM$3035,N$15,FALSE)>1000,TEXT(VLOOKUP($E29,base!$D$4:$BM$3035,N$15,FALSE),"0.000"),TEXT(VLOOKUP($E29,base!$D$4:$BM$3035,N$15,FALSE),"0")),TEXT(VLOOKUP($E29,base!$D$4:$BM$3035,N$15,FALSE),"0,0%")),"") -> OPTIMO
E30: MPE2-01Cundinamarca | F30: 25 | G30: Cundinamarca | I30: =IFERROR(IF(VLOOKUP($E30,base!$D$4:$AI$3035,I$15,FALSE)>1,IF(VLOOKUP($E30,base!$D$4:$AI$3035,I$15,FALSE)>1000,TEXT(VLOOKUP($E30,base!$D$4:$AI$3035,I$15,FALSE),"0.000"),TEXT(VLOOKUP($E30,base!$D$4:$AI$3035,I$15,FALSE),"0")),TEXT(VLOOKUP($E30,base!$D$4:$AI$3035,I$15,FALSE),"0,0%")),"") -> 85,0% | J30: =IFERROR(IF(VLOOKUP($E30,base!$D$4:$BM$3035,J$15,FALSE)>1,IF(VLOOKUP($E30,base!$D$4:$BM$3035,J$15,FALSE)>1000,TEXT(VLOOKUP($E30,base!$D$4:$BM$3035,J$15,FALSE),"0.000"),TEXT(VLOOKUP($E30,base!$D$4:$BM$3035,J$15,FALSE),"0")),TEXT(VLOOKUP($E30,base!$D$4:$BM$3035,J$15,FALSE),"0,0%")),"") -> 3 | K30: =IFERROR(IF(VLOOKUP($E30,base!$D$4:$BM$3035,K$15,FALSE)>1,IF(VLOOKUP($E30,base!$D$4:$BM$3035,K$15,FALSE)>1000,TEXT(VLOOKUP($E30,base!$D$4:$BM$3035,K$15,FALSE),"0.000"),TEXT(VLOOKUP($E30,base!$D$4:$BM$3035,K$15,FALSE),"0")),TEXT(VLOOKUP($E30,base!$D$4:$BM$3035,K$15,FALSE),"0,0%")),"") -> 3 | L30: =IFERROR(IF(VLOOKUP($E30,base!$D$4:$BM$3035,L$15,FALSE)>1,IF(VLOOKUP($E30,base!$D$4:$BM$3035,L$15,FALSE)>1000,TEXT(VLOOKUP($E30,base!$D$4:$BM$3035,L$15,FALSE),"0.000"),TEXT(VLOOKUP($E30,base!$D$4:$BM$3035,L$15,FALSE),"0")),TEXT(VLOOKUP($E30,base!$D$4:$BM$3035,L$15,FALSE),"0,0%")),"") -> 100,0% | M30: =IFERROR(IF(VLOOKUP($E30,base!$D$4:$BM$3035,M$15,FALSE)>1,IF(VLOOKUP($E30,base!$D$4:$BM$3035,M$15,FALSE)>1000,TEXT(VLOOKUP($E30,base!$D$4:$BM$3035,M$15,FALSE),"0.000"),TEXT(VLOOKUP($E30,base!$D$4:$BM$3035,M$15,FALSE),"0")),TEXT(VLOOKUP($E30,base!$D$4:$BM$3035,M$15,FALSE),"0,0%")),"") -> 100,0% | N30: =IFERROR(IF(VLOOKUP($E30,base!$D$4:$BM$3035,N$15,FALSE)>1,IF(VLOOKUP($E30,base!$D$4:$BM$3035,N$15,FALSE)>1000,TEXT(VLOOKUP($E30,base!$D$4:$BM$3035,N$15,FALSE),"0.000"),TEXT(VLOOKUP($E30,base!$D$4:$BM$3035,N$15,FALSE),"0")),TEXT(VLOOKUP($E30,base!$D$4:$BM$3035,N$15,FALSE),"0,0%")),"") -> OPTIMO
E31: MPE2-01Choco | F31: 27 | G31: Choco | I31: =IFERROR(IF(VLOOKUP($E31,base!$D$4:$AI$3035,I$15,FALSE)>1,IF(VLOOKUP($E31,base!$D$4:$AI$3035,I$15,FALSE)>1000,TEXT(VLOOKUP($E31,base!$D$4:$AI$3035,I$15,FALSE),"0.000"),TEXT(VLOOKUP($E31,base!$D$4:$AI$3035,I$15,FALSE),"0")),TEXT(VLOOKUP($E31,base!$D$4:$AI$3035,I$15,FALSE),"0,0%")),"") -> 85,0% | J31: =IFERROR(IF(VLOOKUP($E31,base!$D$4:$BM$3035,J$15,FALSE)>1,IF(VLOOKUP($E31,base!$D$4:$BM$3035,J$15,FALSE)>1000,TEXT(VLOOKUP($E31,base!$D$4:$BM$3035,J$15,FALSE),"0.000"),TEXT(VLOOKUP($E31,base!$D$4:$BM$3035,J$15,FALSE),"0")),TEXT(VLOOKUP($E31,base!$D$4:$BM$3035,J$15,FALSE),"0,0%")),"") -> 11 | K31: =IFERROR(IF(VLOOKUP($E31,base!$D$4:$BM$3035,K$15,FALSE)>1,IF(VLOOKUP($E31,base!$D$4:$BM$3035,K$15,FALSE)>1000,TEXT(VLOOKUP($E31,base!$D$4:$BM$3035,K$15,FALSE),"0.000"),TEXT(VLOOKUP($E31,base!$D$4:$BM$3035,K$15,FALSE),"0")),TEXT(VLOOKUP($E31,base!$D$4:$BM$3035,K$15,FALSE),"0,0%")),"") -> 11 | L31: =IFERROR(IF(VLOOKUP($E31,base!$D$4:$BM$3035,L$15,FALSE)>1,IF(VLOOKUP($E31,base!$D$4:$BM$3035,L$15,FALSE)>1000,TEXT(VLOOKUP($E31,base!$D$4:$BM$3035,L$15,FALSE),"0.000"),TEXT(VLOOKUP($E31,base!$D$4:$BM$3035,L$15,FALSE),"0")),TEXT(VLOOKUP($E31,base!$D$4:$BM$3035,L$15,FALSE),"0,0%")),"") -> 100,0% | M31: =IFERROR(IF(VLOOKUP($E31,base!$D$4:$BM$3035,M$15,FALSE)>1,IF(VLOOKUP($E31,base!$D$4:$BM$3035,M$15,FALSE)>1000,TEXT(VLOOKUP($E31,base!$D$4:$BM$3035,M$15,FALSE),"0.000"),TEXT(VLOOKUP($E31,base!$D$4:$BM$3035,M$15,FALSE),"0")),TEXT(VLOOKUP($E31,base!$D$4:$BM$3035,M$15,FALSE),"0,0%")),"") -> 100,0% | N31: =IFERROR(IF(VLOOKUP($E31,base!$D$4:$BM$3035,N$15,FALSE)>1,IF(VLOOKUP($E31,base!$D$4:$BM$3035,N$15,FALSE)>1000,TEXT(VLOOKUP($E31,base!$D$4:$BM$3035,N$15,FALSE),"0.000"),TEXT(VLOOKUP($E31,base!$D$4:$BM$3035,N$15,FALSE),"0")),TEXT(VLOOKUP($E31,base!$D$4:$BM$3035,N$15,FALSE),"0,0%")),"") -> OPTIMO
E32: MPE2-01Huila | F32: 41 | G32: Huila | I32: =IFERROR(IF(VLOOKUP($E32,base!$D$4:$AI$3035,I$15,FALSE)>1,IF(VLOOKUP($E32,base!$D$4:$AI$3035,I$15,FALSE)>1000,TEXT(VLOOKUP($E32,base!$D$4:$AI$3035,I$15,FALSE),"0.000"),TEXT(VLOOKUP($E32,base!$D$4:$AI$3035,I$15,FALSE),"0")),TEXT(VLOOKUP($E32,base!$D$4:$AI$3035,I$15,FALSE),"0,0%")),"") -> 85,0% | J32: =IFERROR(IF(VLOOKUP($E32,base!$D$4:$BM$3035,J$15,FALSE)>1,IF(VLOOKUP($E32,base!$D$4:$BM$3035,J$15,FALSE)>1000,TEXT(VLOOKUP($E32,base!$D$4:$BM$3035,J$15,FALSE),"0.000"),TEXT(VLOOKUP($E32,base!$D$4:$BM$3035,J$15,FALSE),"0")),TEXT(VLOOKUP($E32,base!$D$4:$BM$3035,J$15,FALSE),"0,0%")),"") -> 100,0% | K32: =IFERROR(IF(VLOOKUP($E32,base!$D$4:$BM$3035,K$15,FALSE)>1,IF(VLOOKUP($E32,base!$D$4:$BM$3035,K$15,FALSE)>1000,TEXT(VLOOKUP($E32,base!$D$4:$BM$3035,K$15,FALSE),"0.000"),TEXT(VLOOKUP($E32,base!$D$4:$BM$3035,K$15,FALSE),"0")),TEXT(VLOOKUP($E32,base!$D$4:$BM$3035,K$15,FALSE),"0,0%")),"") -> 100,0% | L32: =IFERROR(IF(VLOOKUP($E32,base!$D$4:$BM$3035,L$15,FALSE)>1,IF(VLOOKUP($E32,base!$D$4:$BM$3035,L$15,FALSE)>1000,TEXT(VLOOKUP($E32,base!$D$4:$BM$3035,L$15,FALSE),"0.000"),TEXT(VLOOKUP($E32,base!$D$4:$BM$3035,L$15,FALSE),"0")),TEXT(VLOOKUP($E32,base!$D$4:$BM$3035,L$15,FALSE),"0,0%")),"") -> 100,0% | M32: =IFERROR(IF(VLOOKUP($E32,base!$D$4:$BM$3035,M$15,FALSE)>1,IF(VLOOKUP($E32,base!$D$4:$BM$3035,M$15,FALSE)>1000,TEXT(VLOOKUP($E32,base!$D$4:$BM$3035,M$15,FALSE),"0.000"),TEXT(VLOOKUP($E32,base!$D$4:$BM$3035,M$15,FALSE),"0")),TEXT(VLOOKUP($E32,base!$D$4:$BM$3035,M$15,FALSE),"0,0%")),"") -> 100,0% | N32: =IFERROR(IF(VLOOKUP($E32,base!$D$4:$BM$3035,N$15,FALSE)>1,IF(VLOOKUP($E32,base!$D$4:$BM$3035,N$15,FALSE)>1000,TEXT(VLOOKUP($E32,base!$D$4:$BM$3035,N$15,FALSE),"0.000"),TEXT(VLOOKUP($E32,base!$D$4:$BM$3035,N$15,FALSE),"0")),TEXT(VLOOKUP($E32,base!$D$4:$BM$3035,N$15,FALSE),"0,0%")),"") -> OPTIMO
E33: MPE2-01Guajira | F33: 44 | G33: Guajira | I33: =IFERROR(IF(VLOOKUP($E33,base!$D$4:$AI$3035,I$15,FALSE)>1,IF(VLOOKUP($E33,base!$D$4:$AI$3035,I$15,FALSE)>1000,TEXT(VLOOKUP($E33,base!$D$4:$AI$3035,I$15,FALSE),"0.000"),TEXT(VLOOKUP($E33,base!$D$4:$AI$3035,I$15,FALSE),"0")),TEXT(VLOOKUP($E33,base!$D$4:$AI$3035,I$15,FALSE),"0,0%")),"") -> 85,0% | J33: =IFERROR(IF(VLOOKUP($E33,base!$D$4:$BM$3035,J$15,FALSE)>1,IF(VLOOKUP($E33,base!$D$4:$BM$3035,J$15,FALSE)>1000,TEXT(VLOOKUP($E33,base!$D$4:$BM$3035,J$15,FALSE),"0.000"),TEXT(VLOOKUP($E33,base!$D$4:$BM$3035,J$15,FALSE),"0")),TEXT(VLOOKUP($E33,base!$D$4:$BM$3035,J$15,FALSE),"0,0%")),"") -> 18 | K33: =IFERROR(IF(VLOOKUP($E33,base!$D$4:$BM$3035,K$15,FALSE)>1,IF(VLOOKUP($E33,base!$D$4:$BM$3035,K$15,FALSE)>1000,TEXT(VLOOKUP($E33,base!$D$4:$BM$3035,K$15,FALSE),"0.000"),TEXT(VLOOKUP($E33,base!$D$4:$BM$3035,K$15,FALSE),"0")),TEXT(VLOOKUP($E33,base!$D$4:$BM$3035,K$15,FALSE),"0,0%")),"") -> 18 | L33: =IFERROR(IF(VLOOKUP($E33,base!$D$4:$BM$3035,L$15,FALSE)>1,IF(VLOOKUP($E33,base!$D$4:$BM$3035,L$15,FALSE)>1000,TEXT(VLOOKUP($E33,base!$D$4:$BM$3035,L$15,FALSE),"0.000"),TEXT(VLOOKUP($E33,base!$D$4:$BM$3035,L$15,FALSE),"0")),TEXT(VLOOKUP($E33,base!$D$4:$BM$3035,L$15,FALSE),"0,0%")),"") -> 100,0% | M33: =IFERROR(IF(VLOOKUP($E33,base!$D$4:$BM$3035,M$15,FALSE)>1,IF(VLOOKUP($E33,base!$D$4:$BM$3035,M$15,FALSE)>1000,TEXT(VLOOKUP($E33,base!$D$4:$BM$3035,M$15,FALSE),"0.000"),TEXT(VLOOKUP($E33,base!$D$4:$BM$3035,M$15,FALSE),"0")),TEXT(VLOOKUP($E33,base!$D$4:$BM$3035,M$15,FALSE),"0,0%")),"") -> 100,0% | N33: =IFERROR(IF(VLOOKUP($E33,base!$D$4:$BM$3035,N$15,FALSE)>1,IF(VLOOKUP($E33,base!$D$4:$BM$3035,N$15,FALSE)>1000,TEXT(VLOOKUP($E33,base!$D$4:$BM$3035,N$15,FALSE),"0.000"),TEXT(VLOOKUP($E33,base!$D$4:$BM$3035,N$15,FALSE),"0")),TEXT(VLOOKUP($E33,base!$D$4:$BM$3035,N$15,FALSE),"0,0%")),"") -> OPTIMO
E34: MPE2-01Magdalena | F34: 47 | G34: Magdalena | I34: =IFERROR(IF(VLOOKUP($E34,base!$D$4:$AI$3035,I$15,FALSE)>1,IF(VLOOKUP($E34,base!$D$4:$AI$3035,I$15,FALSE)>1000,TEXT(VLOOKUP($E34,base!$D$4:$AI$3035,I$15,FALSE),"0.000"),TEXT(VLOOKUP($E34,base!$D$4:$AI$3035,I$15,FALSE),"0")),TEXT(VLOOKUP($E34,base!$D$4:$AI$3035,I$15,FALSE),"0,0%")),"") -> 85,0% | J34: =IFERROR(IF(VLOOKUP($E34,base!$D$4:$BM$3035,J$15,FALSE)>1,IF(VLOOKUP($E34,base!$D$4:$BM$3035,J$15,FALSE)>1000,TEXT(VLOOKUP($E34,base!$D$4:$BM$3035,J$15,FALSE),"0.000"),TEXT(VLOOKUP($E34,base!$D$4:$BM$3035,J$15,FALSE),"0")),TEXT(VLOOKUP($E34,base!$D$4:$BM$3035,J$15,FALSE),"0,0%")),"") -> 3 | K34: =IFERROR(IF(VLOOKUP($E34,base!$D$4:$BM$3035,K$15,FALSE)>1,IF(VLOOKUP($E34,base!$D$4:$BM$3035,K$15,FALSE)>1000,TEXT(VLOOKUP($E34,base!$D$4:$BM$3035,K$15,FALSE),"0.000"),TEXT(VLOOKUP($E34,base!$D$4:$BM$3035,K$15,FALSE),"0")),TEXT(VLOOKUP($E34,base!$D$4:$BM$3035,K$15,FALSE),"0,0%")),"") -> 3 | L34: =IFERROR(IF(VLOOKUP($E34,base!$D$4:$BM$3035,L$15,FALSE)>1,IF(VLOOKUP($E34,base!$D$4:$BM$3035,L$15,FALSE)>1000,TEXT(VLOOKUP($E34,base!$D$4:$BM$3035,L$15,FALSE),"0.000"),TEXT(VLOOKUP($E34,base!$D$4:$BM$3035,L$15,FALSE),"0")),TEXT(VLOOKUP($E34,base!$D$4:$BM$3035,L$15,FALSE),"0,0%")),"") -> 100,0% | M34: =IFERROR(IF(VLOOKUP($E34,base!$D$4:$BM$3035,M$15,FALSE)>1,IF(VLOOKUP($E34,base!$D$4:$BM$3035,M$15,FALSE)>1000,TEXT(VLOOKUP($E34,base!$D$4:$BM$3035,M$15,FALSE),"0.000"),TEXT(VLOOKUP($E34,base!$D$4:$BM$3035,M$15,FALSE),"0")),TEXT(VLOOKUP($E34,base!$D$4:$BM$3035,M$15,FALSE),"0,0%")),"") -> 100,0% | N34: =IFERROR(IF(VLOOKUP($E34,base!$D$4:$BM$3035,N$15,FALSE)>1,IF(VLOOKUP($E34,base!$D$4:$BM$3035,N$15,FALSE)>1000,TEXT(VLOOKUP($E34,base!$D$4:$BM$3035,N$15,FALSE),"0.000"),TEXT(VLOOKUP($E34,base!$D$4:$BM$3035,N$15,FALSE),"0")),TEXT(VLOOKUP($E34,base!$D$4:$BM$3035,N$15,FALSE),"0,0%")),"") -> OPTIMO
E35: MPE2-01Meta | F35: 50 | G35: Meta | I35: =IFERROR(IF(VLOOKUP($E35,base!$D$4:$AI$3035,I$15,FALSE)>1,IF(VLOOKUP($E35,base!$D$4:$AI$3035,I$15,FALSE)>1000,TEXT(VLOOKUP($E35,base!$D$4:$AI$3035,I$15,FALSE),"0.000"),TEXT(VLOOKUP($E35,base!$D$4:$AI$3035,I$15,FALSE),"0")),TEXT(VLOOKUP($E35,base!$D$4:$AI$3035,I$15,FALSE),"0,0%")),"") -> 85,0% | J35: =IFERROR(IF(VLOOKUP($E35,base!$D$4:$BM$3035,J$15,FALSE)>1,IF(VLOOKUP($E35,base!$D$4:$BM$3035,J$15,FALSE)>1000,TEXT(VLOOKUP($E35,base!$D$4:$BM$3035,J$15,FALSE),"0.000"),TEXT(VLOOKUP($E35,base!$D$4:$BM$3035,J$15,FALSE),"0")),TEXT(VLOOKUP($E35,base!$D$4:$BM$3035,J$15,FALSE),"0,0%")),"") -> 13 | K35: =IFERROR(IF(VLOOKUP($E35,base!$D$4:$BM$3035,K$15,FALSE)>1,IF(VLOOKUP($E35,base!$D$4:$BM$3035,K$15,FALSE)>1000,TEXT(VLOOKUP($E35,base!$D$4:$BM$3035,K$15,FALSE),"0.000"),TEXT(VLOOKUP($E35,base!$D$4:$BM$3035,K$15,FALSE),"0")),TEXT(VLOOKUP($E35,base!$D$4:$BM$3035,K$15,FALSE),"0,0%")),"") -> 13 | L35: =IFERROR(IF(VLOOKUP($E35,base!$D$4:$BM$3035,L$15,FALSE)>1,IF(VLOOKUP($E35,base!$D$4:$BM$3035,L$15,FALSE)>1000,TEXT(VLOOKUP($E35,base!$D$4:$BM$3035,L$15,FALSE),"0.000"),TEXT(VLOOKUP($E35,base!$D$4:$BM$3035,L$15,FALSE),"0")),TEXT(VLOOKUP($E35,base!$D$4:$BM$3035,L$15,FALSE),"0,0%")),"") -> 100,0% | M35: =IFERROR(IF(VLOOKUP($E35,base!$D$4:$BM$3035,M$15,FALSE)>1,IF(VLOOKUP($E35,base!$D$4:$BM$3035,M$15,FALSE)>1000,TEXT(VLOOKUP($E35,base!$D$4:$BM$3035,M$15,FALSE),"0.000"),TEXT(VLOOKUP($E35,base!$D$4:$BM$3035,M$15,FALSE),"0")),TEXT(VLOOKUP($E35,base!$D$4:$BM$3035,M$15,FALSE),"0,0%")),"") -> 100,0% | N35: =IFERROR(IF(VLOOKUP($E35,base!$D$4:$BM$3035,N$15,FALSE)>1,IF(VLOOKUP($E35,base!$D$4:$BM$3035,N$15,FALSE)>1000,TEXT(VLOOKUP($E35,base!$D$4:$BM$3035,N$15,FALSE),"0.000"),TEXT(VLOOKUP($E35,base!$D$4:$BM$3035,N$15,FALSE),"0")),TEXT(VLOOKUP($E35,base!$D$4:$BM$3035,N$15,FALSE),"0,0%")),"") -> OPTIMO
E36: MPE2-01Nariño | F36: 52 | G36: Nariño | I36: =IFERROR(IF(VLOOKUP($E36,base!$D$4:$AI$3035,I$15,FALSE)>1,IF(VLOOKUP($E36,base!$D$4:$AI$3035,I$15,FALSE)>1000,TEXT(VLOOKUP($E36,base!$D$4:$AI$3035,I$15,FALSE),"0.000"),TEXT(VLOOKUP($E36,base!$D$4:$AI$3035,I$15,FALSE),"0")),TEXT(VLOOKUP($E36,base!$D$4:$AI$3035,I$15,FALSE),"0,0%")),"") -> 85,0% | J36: =IFERROR(IF(VLOOKUP($E36,base!$D$4:$BM$3035,J$15,FALSE)>1,IF(VLOOKUP($E36,base!$D$4:$BM$3035,J$15,FALSE)>1000,TEXT(VLOOKUP($E36,base!$D$4:$BM$3035,J$15,FALSE),"0.000"),TEXT(VLOOKUP($E36,base!$D$4:$BM$3035,J$15,FALSE),"0")),TEXT(VLOOKUP($E36,base!$D$4:$BM$3035,J$15,FALSE),"0,0%")),"") -> 100,0% | K36: =IFERROR(IF(VLOOKUP($E36,base!$D$4:$BM$3035,K$15,FALSE)>1,IF(VLOOKUP($E36,base!$D$4:$BM$3035,K$15,FALSE)>1000,TEXT(VLOOKUP($E36,base!$D$4:$BM$3035,K$15,FALSE),"0.000"),TEXT(VLOOKUP($E36,base!$D$4:$BM$3035,K$15,FALSE),"0")),TEXT(VLOOKUP($E36,base!$D$4:$BM$3035,K$15,FALSE),"0,0%")),"") -> 100,0% | L36: =IFERROR(IF(VLOOKUP($E36,base!$D$4:$BM$3035,L$15,FALSE)>1,IF(VLOOKUP($E36,base!$D$4:$BM$3035,L$15,FALSE)>1000,TEXT(VLOOKUP($E36,base!$D$4:$BM$3035,L$15,FALSE),"0.000"),TEXT(VLOOKUP($E36,base!$D$4:$BM$3035,L$15,FALSE),"0")),TEXT(VLOOKUP($E36,base!$D$4:$BM$3035,L$15,FALSE),"0,0%")),"") -> 100,0% | M36: =IFERROR(IF(VLOOKUP($E36,base!$D$4:$BM$3035,M$15,FALSE)>1,IF(VLOOKUP($E36,base!$D$4:$BM$3035,M$15,FALSE)>1000,TEXT(VLOOKUP($E36,base!$D$4:$BM$3035,M$15,FALSE),"0.000"),TEXT(VLOOKUP($E36,base!$D$4:$BM$3035,M$15,FALSE),"0")),TEXT(VLOOKUP($E36,base!$D$4:$BM$3035,M$15,FALSE),"0,0%")),"") -> 100,0% | N36: =IFERROR(IF(VLOOKUP($E36,base!$D$4:$BM$3035,N$15,FALSE)>1,IF(VLOOKUP($E36,base!$D$4:$BM$3035,N$15,FALSE)>1000,TEXT(VLOOKUP($E36,base!$D$4:$BM$3035,N$15,FALSE),"0.000"),TEXT(VLOOKUP($E36,base!$D$4:$BM$3035,N$15,FALSE),"0")),TEXT(VLOOKUP($E36,base!$D$4:$BM$3035,N$15,FALSE),"0,0%")),"") -> OPTIMO
E37: MPE2-01N Santander | F37: 54 | G37: N Santander | I37: =IFERROR(IF(VLOOKUP($E37,base!$D$4:$AI$3035,I$15,FALSE)>1,IF(VLOOKUP($E37,base!$D$4:$AI$3035,I$15,FALSE)>1000,TEXT(VLOOKUP($E37,base!$D$4:$AI$3035,I$15,FALSE),"0.000"),TEXT(VLOOKUP($E37,base!$D$4:$AI$3035,I$15,FALSE),"0")),TEXT(VLOOKUP($E37,base!$D$4:$AI$3035,I$15,FALSE),"0,0%")),"") -> 85,0% | J37: =IFERROR(IF(VLOOKUP($E37,base!$D$4:$BM$3035,J$15,FALSE)>1,IF(VLOOKUP($E37,base!$D$4:$BM$3035,J$15,FALSE)>1000,TEXT(VLOOKUP($E37,base!$D$4:$BM$3035,J$15,FALSE),"0.000"),TEXT(VLOOKUP($E37,base!$D$4:$BM$3035,J$15,FALSE),"0")),TEXT(VLOOKUP($E37,base!$D$4:$BM$3035,J$15,FALSE),"0,0%")),"") -> 7 | K37: =IFERROR(IF(VLOOKUP($E37,base!$D$4:$BM$3035,K$15,FALSE)>1,IF(VLOOKUP($E37,base!$D$4:$BM$3035,K$15,FALSE)>1000,TEXT(VLOOKUP($E37,base!$D$4:$BM$3035,K$15,FALSE),"0.000"),TEXT(VLOOKUP($E37,base!$D$4:$BM$3035,K$15,FALSE),"0")),TEXT(VLOOKUP($E37,base!$D$4:$BM$3035,K$15,FALSE),"0,0%")),"") -> 7 | L37: =IFERROR(IF(VLOOKUP($E37,base!$D$4:$BM$3035,L$15,FALSE)>1,IF(VLOOKUP($E37,base!$D$4:$BM$3035,L$15,FALSE)>1000,TEXT(VLOOKUP($E37,base!$D$4:$BM$3035,L$15,FALSE),"0.000"),TEXT(VLOOKUP($E37,base!$D$4:$BM$3035,L$15,FALSE),"0")),TEXT(VLOOKUP($E37,base!$D$4:$BM$3035,L$15,FALSE),"0,0%")),"") -> 100,0% | M37: =IFERROR(IF(VLOOKUP($E37,base!$D$4:$BM$3035,M$15,FALSE)>1,IF(VLOOKUP($E37,base!$D$4:$BM$3035,M$15,FALSE)>1000,TEXT(VLOOKUP($E37,base!$D$4:$BM$3035,M$15,FALSE),"0.000"),TEXT(VLOOKUP($E37,base!$D$4:$BM$3035,M$15,FALSE),"0")),TEXT(VLOOKUP($E37,base!$D$4:$BM$3035,M$15,FALSE),"0,0%")),"") -> 100,0% | N37: =IFERROR(IF(VLOOKUP($E37,base!$D$4:$BM$3035,N$15,FALSE)>1,IF(VLOOKUP($E37,base!$D$4:$BM$3035,N$15,FALSE)>1000,TEXT(VLOOKUP($E37,base!$D$4:$BM$3035,N$15,FALSE),"0.000"),TEXT(VLOOKUP($E37,base!$D$4:$BM$3035,N$15,FALSE),"0")),TEXT(VLOOKUP($E37,base!$D$4:$BM$3035,N$15,FALSE),"0,0%")),"") -> OPTIMO
E38: MPE2-01Quindío | F38: 63 | G38: Quindío | I38: =IFERROR(IF(VLOOKUP($E38,base!$D$4:$AI$3035,I$15,FALSE)>1,IF(VLOOKUP($E38,base!$D$4:$AI$3035,I$15,FALSE)>1000,TEXT(VLOOKUP($E38,base!$D$4:$AI$3035,I$15,FALSE),"0.000"),TEXT(VLOOKUP($E38,base!$D$4:$AI$3035,I$15,FALSE),"0")),TEXT(VLOOKUP($E38,base!$D$4:$AI$3035,I$15,FALSE),"0,0%")),"") -> 85,0% | J38: =IFERROR(IF(VLOOKUP($E38,base!$D$4:$BM$3035,J$15,FALSE)>1,IF(VLOOKUP($E38,base!$D$4:$BM$3035,J$15,FALSE)>1000,TEXT(VLOOKUP($E38,base!$D$4:$BM$3035,J$15,FALSE),"0.000"),TEXT(VLOOKUP($E38,base!$D$4:$BM$3035,J$15,FALSE),"0")),TEXT(VLOOKUP($E38,base!$D$4:$BM$3035,J$15,FALSE),"0,0%")),"") -> NA | K38: =IFERROR(IF(VLOOKUP($E38,base!$D$4:$BM$3035,K$15,FALSE)>1,IF(VLOOKUP($E38,base!$D$4:$BM$3035,K$15,FALSE)>1000,TEXT(VLOOKUP($E38,base!$D$4:$BM$3035,K$15,FALSE),"0.000"),TEXT(VLOOKUP($E38,base!$D$4:$BM$3035,K$15,FALSE),"0")),TEXT(VLOOKUP($E38,base!$D$4:$BM$3035,K$15,FALSE),"0,0%")),"") -> NA | L38: =IFERROR(IF(VLOOKUP($E38,base!$D$4:$BM$3035,L$15,FALSE)>1,IF(VLOOKUP($E38,base!$D$4:$BM$3035,L$15,FALSE)>1000,TEXT(VLOOKUP($E38,base!$D$4:$BM$3035,L$15,FALSE),"0.000"),TEXT(VLOOKUP($E38,base!$D$4:$BM$3035,L$15,FALSE),"0")),TEXT(VLOOKUP($E38,base!$D$4:$BM$3035,L$15,FALSE),"0,0%")),"") -> NA | M38: =IFERROR(IF(VLOOKUP($E38,base!$D$4:$BM$3035,M$15,FALSE)>1,IF(VLOOKUP($E38,base!$D$4:$BM$3035,M$15,FALSE)>1000,TEXT(VLOOKUP($E38,base!$D$4:$BM$3035,M$15,FALSE),"0.000"),TEXT(VLOOKUP($E38,base!$D$4:$BM$3035,M$15,FALSE),"0")),TEXT(VLOOKUP($E38,base!$D$4:$BM$3035,M$15,FALSE),"0,0%")),"") -> NA | N38: =IFERROR(IF(VLOOKUP($E38,base!$D$4:$BM$3035,N$15,FALSE)>1,IF(VLOOKUP($E38,base!$D$4:$BM$3035,N$15,FALSE)>1000,TEXT(VLOOKUP($E38,base!$D$4:$BM$3035,N$15,FALSE),"0.000"),TEXT(VLOOKUP($E38,base!$D$4:$BM$3035,N$15,FALSE),"0")),TEXT(VLOOKUP($E38,base!$D$4:$BM$3035,N$15,FALSE),"0,0%")),"") -> NA
E39: MPE2-01Risaralda | F39: 66 | G39: Risaralda | I39: =IFERROR(IF(VLOOKUP($E39,base!$D$4:$AI$3035,I$15,FALSE)>1,IF(VLOOKUP($E39,base!$D$4:$AI$3035,I$15,FALSE)>1000,TEXT(VLOOKUP($E39,base!$D$4:$AI$3035,I$15,FALSE),"0.000"),TEXT(VLOOKUP($E39,base!$D$4:$AI$3035,I$15,FALSE),"0")),TEXT(VLOOKUP($E39,base!$D$4:$AI$3035,I$15,FALSE),"0,0%")),"") -> 85,0% | J39: =IFERROR(IF(VLOOKUP($E39,base!$D$4:$BM$3035,J$15,FALSE)>1,IF(VLOOKUP($E39,base!$D$4:$BM$3035,J$15,FALSE)>1000,TEXT(VLOOKUP($E39,base!$D$4:$BM$3035,J$15,FALSE),"0.000"),TEXT(VLOOKUP($E39,base!$D$4:$BM$3035,J$15,FALSE),"0")),TEXT(VLOOKUP($E39,base!$D$4:$BM$3035,J$15,FALSE),"0,0%")),"") -> 100,0% | K39: =IFERROR(IF(VLOOKUP($E39,base!$D$4:$BM$3035,K$15,FALSE)>1,IF(VLOOKUP($E39,base!$D$4:$BM$3035,K$15,FALSE)>1000,TEXT(VLOOKUP($E39,base!$D$4:$BM$3035,K$15,FALSE),"0.000"),TEXT(VLOOKUP($E39,base!$D$4:$BM$3035,K$15,FALSE),"0")),TEXT(VLOOKUP($E39,base!$D$4:$BM$3035,K$15,FALSE),"0,0%")),"") -> 100,0% | L39: =IFERROR(IF(VLOOKUP($E39,base!$D$4:$BM$3035,L$15,FALSE)>1,IF(VLOOKUP($E39,base!$D$4:$BM$3035,L$15,FALSE)>1000,TEXT(VLOOKUP($E39,base!$D$4:$BM$3035,L$15,FALSE),"0.000"),TEXT(VLOOKUP($E39,base!$D$4:$BM$3035,L$15,FALSE),"0")),TEXT(VLOOKUP($E39,base!$D$4:$BM$3035,L$15,FALSE),"0,0%")),"") -> 100,0% | M39: =IFERROR(IF(VLOOKUP($E39,base!$D$4:$BM$3035,M$15,FALSE)>1,IF(VLOOKUP($E39,base!$D$4:$BM$3035,M$15,FALSE)>1000,TEXT(VLOOKUP($E39,base!$D$4:$BM$3035,M$15,FALSE),"0.000"),TEXT(VLOOKUP($E39,base!$D$4:$BM$3035,M$15,FALSE),"0")),TEXT(VLOOKUP($E39,base!$D$4:$BM$3035,M$15,FALSE),"0,0%")),"") -> 100,0% | N39: =IFERROR(IF(VLOOKUP($E39,base!$D$4:$BM$3035,N$15,FALSE)>1,IF(VLOOKUP($E39,base!$D$4:$BM$3035,N$15,FALSE)>1000,TEXT(VLOOKUP($E39,base!$D$4:$BM$3035,N$15,FALSE),"0.000"),TEXT(VLOOKUP($E39,base!$D$4:$BM$3035,N$15,FALSE),"0")),TEXT(VLOOKUP($E39,base!$D$4:$BM$3035,N$15,FALSE),"0,0%")),"") -> OPTIMO
E40: MPE2-01Santander | F40: 68 | G40: Santander | I40: =IFERROR(IF(VLOOKUP($E40,base!$D$4:$AI$3035,I$15,FALSE)>1,IF(VLOOKUP($E40,base!$D$4:$AI$3035,I$15,FALSE)>1000,TEXT(VLOOKUP($E40,base!$D$4:$AI$3035,I$15,FALSE),"0.000"),TEXT(VLOOKUP($E40,base!$D$4:$AI$3035,I$15,FALSE),"0")),TEXT(VLOOKUP($E40,base!$D$4:$AI$3035,I$15,FALSE),"0,0%")),"") -> 85,0% | J40: =IFERROR(IF(VLOOKUP($E40,base!$D$4:$BM$3035,J$15,FALSE)>1,IF(VLOOKUP($E40,base!$D$4:$BM$3035,J$15,FALSE)>1000,TEXT(VLOOKUP($E40,base!$D$4:$BM$3035,J$15,FALSE),"0.000"),TEXT(VLOOKUP($E40,base!$D$4:$BM$3035,J$15,FALSE),"0")),TEXT(VLOOKUP($E40,base!$D$4:$BM$3035,J$15,FALSE),"0,0%")),"") -> 100,0% | K40: =IFERROR(IF(VLOOKUP($E40,base!$D$4:$BM$3035,K$15,FALSE)>1,IF(VLOOKUP($E40,base!$D$4:$BM$3035,K$15,FALSE)>1000,TEXT(VLOOKUP($E40,base!$D$4:$BM$3035,K$15,FALSE),"0.000"),TEXT(VLOOKUP($E40,base!$D$4:$BM$3035,K$15,FALSE),"0")),TEXT(VLOOKUP($E40,base!$D$4:$BM$3035,K$15,FALSE),"0,0%")),"") -> 100,0% | L40: =IFERROR(IF(VLOOKUP($E40,base!$D$4:$BM$3035,L$15,FALSE)>1,IF(VLOOKUP($E40,base!$D$4:$BM$3035,L$15,FALSE)>1000,TEXT(VLOOKUP($E40,base!$D$4:$BM$3035,L$15,FALSE),"0.000"),TEXT(VLOOKUP($E40,base!$D$4:$BM$3035,L$15,FALSE),"0")),TEXT(VLOOKUP($E40,base!$D$4:$BM$3035,L$15,FALSE),"0,0%")),"") -> 100,0% | M40: =IFERROR(IF(VLOOKUP($E40,base!$D$4:$BM$3035,M$15,FALSE)>1,IF(VLOOKUP($E40,base!$D$4:$BM$3035,M$15,FALSE)>1000,TEXT(VLOOKUP($E40,base!$D$4:$BM$3035,M$15,FALSE),"0.000"),TEXT(VLOOKUP($E40,base!$D$4:$BM$3035,M$15,FALSE),"0")),TEXT(VLOOKUP($E40,base!$D$4:$BM$3035,M$15,FALSE),"0,0%")),"") -> 100,0% | N40: =IFERROR(IF(VLOOKUP($E40,base!$D$4:$BM$3035,N$15,FALSE)>1,IF(VLOOKUP($E40,base!$D$4:$BM$3035,N$15,FALSE)>1000,TEXT(VLOOKUP($E40,base!$D$4:$BM$3035,N$15,FALSE),"0.000"),TEXT(VLOOKUP($E40,base!$D$4:$BM$3035,N$15,FALSE),"0")),TEXT(VLOOKUP($E40,base!$D$4:$BM$3035,N$15,FALSE),"0,0%")),"") -> OPTIMO
E41: MPE2-01Sucre | F41: 70 | G41: Sucre | I41: =IFERROR(IF(VLOOKUP($E41,base!$D$4:$AI$3035,I$15,FALSE)>1,IF(VLOOKUP($E41,base!$D$4:$AI$3035,I$15,FALSE)>1000,TEXT(VLOOKUP($E41,base!$D$4:$AI$3035,I$15,FALSE),"0.000"),TEXT(VLOOKUP($E41,base!$D$4:$AI$3035,I$15,FALSE),"0")),TEXT(VLOOKUP($E41,base!$D$4:$AI$3035,I$15,FALSE),"0,0%")),"") -> 85,0% | J41: =IFERROR(IF(VLOOKUP($E41,base!$D$4:$BM$3035,J$15,FALSE)>1,IF(VLOOKUP($E41,base!$D$4:$BM$3035,J$15,FALSE)>1000,TEXT(VLOOKUP($E41,base!$D$4:$BM$3035,J$15,FALSE),"0.000"),TEXT(VLOOKUP($E41,base!$D$4:$BM$3035,J$15,FALSE),"0")),TEXT(VLOOKUP($E41,base!$D$4:$BM$3035,J$15,FALSE),"0,0%")),"") -> 15 | K41: =IFERROR(IF(VLOOKUP($E41,base!$D$4:$BM$3035,K$15,FALSE)>1,IF(VLOOKUP($E41,base!$D$4:$BM$3035,K$15,FALSE)>1000,TEXT(VLOOKUP($E41,base!$D$4:$BM$3035,K$15,FALSE),"0.000"),TEXT(VLOOKUP($E41,base!$D$4:$BM$3035,K$15,FALSE),"0")),TEXT(VLOOKUP($E41,base!$D$4:$BM$3035,K$15,FALSE),"0,0%")),"") -> 15 | L41: =IFERROR(IF(VLOOKUP($E41,base!$D$4:$BM$3035,L$15,FALSE)>1,IF(VLOOKUP($E41,base!$D$4:$BM$3035,L$15,FALSE)>1000,TEXT(VLOOKUP($E41,base!$D$4:$BM$3035,L$15,FALSE),"0.000"),TEXT(VLOOKUP($E41,base!$D$4:$BM$3035,L$15,FALSE),"0")),TEXT(VLOOKUP($E41,base!$D$4:$BM$3035,L$15,FALSE),"0,0%")),"") -> 100,0% | M41: =IFERROR(IF(VLOOKUP($E41,base!$D$4:$BM$3035,M$15,FALSE)>1,IF(VLOOKUP($E41,base!$D$4:$BM$3035,M$15,FALSE)>1000,TEXT(VLOOKUP($E41,base!$D$4:$BM$3035,M$15,FALSE),"0.000"),TEXT(VLOOKUP($E41,base!$D$4:$BM$3035,M$15,FALSE),"0")),TEXT(VLOOKUP($E41,base!$D$4:$BM$3035,M$15,FALSE),"0,0%")),"") -> 100,0% | N41: =IFERROR(IF(VLOOKUP($E41,base!$D$4:$BM$3035,N$15,FALSE)>1,IF(VLOOKUP($E41,base!$D$4:$BM$3035,N$15,FALSE)>1000,TEXT(VLOOKUP($E41,base!$D$4:$BM$3035,N$15,FALSE),"0.000"),TEXT(VLOOKUP($E41,base!$D$4:$BM$3035,N$15,FALSE),"0")),TEXT(VLOOKUP($E41,base!$D$4:$BM$3035,N$15,FALSE),"0,0%")),"") -> OPTIMO
E42: MPE2-01Tolima | F42: 73 | G42: Tolima | I42: =IFERROR(IF(VLOOKUP($E42,base!$D$4:$AI$3035,I$15,FALSE)>1,IF(VLOOKUP($E42,base!$D$4:$AI$3035,I$15,FALSE)>1000,TEXT(VLOOKUP($E42,base!$D$4:$AI$3035,I$15,FALSE),"0.000"),TEXT(VLOOKUP($E42,base!$D$4:$AI$3035,I$15,FALSE),"0")),TEXT(VLOOKUP($E42,base!$D$4:$AI$3035,I$15,FALSE),"0,0%")),"") -> 85,0% | J42: =IFERROR(IF(VLOOKUP($E42,base!$D$4:$BM$3035,J$15,FALSE)>1,IF(VLOOKUP($E42,base!$D$4:$BM$3035,J$15,FALSE)>1000,TEXT(VLOOKUP($E42,base!$D$4:$BM$3035,J$15,FALSE),"0.000"),TEXT(VLOOKUP($E42,base!$D$4:$BM$3035,J$15,FALSE),"0")),TEXT(VLOOKUP($E42,base!$D$4:$BM$3035,J$15,FALSE),"0,0%")),"") -> 6 | K42: =IFERROR(IF(VLOOKUP($E42,base!$D$4:$BM$3035,K$15,FALSE)>1,IF(VLOOKUP($E42,base!$D$4:$BM$3035,K$15,FALSE)>1000,TEXT(VLOOKUP($E42,base!$D$4:$BM$3035,K$15,FALSE),"0.000"),TEXT(VLOOKUP($E42,base!$D$4:$BM$3035,K$15,FALSE),"0")),TEXT(VLOOKUP($E42,base!$D$4:$BM$3035,K$15,FALSE),"0,0%")),"") -> 6 | L42: =IFERROR(IF(VLOOKUP($E42,base!$D$4:$BM$3035,L$15,FALSE)>1,IF(VLOOKUP($E42,base!$D$4:$BM$3035,L$15,FALSE)>1000,TEXT(VLOOKUP($E42,base!$D$4:$BM$3035,L$15,FALSE),"0.000"),TEXT(VLOOKUP($E42,base!$D$4:$BM$3035,L$15,FALSE),"0")),TEXT(VLOOKUP($E42,base!$D$4:$BM$3035,L$15,FALSE),"0,0%")),"") -> 100,0% | M42: =IFERROR(IF(VLOOKUP($E42,base!$D$4:$BM$3035,M$15,FALSE)>1,IF(VLOOKUP($E42,base!$D$4:$BM$3035,M$15,FALSE)>1000,TEXT(VLOOKUP($E42,base!$D$4:$BM$3035,M$15,FALSE),"0.000"),TEXT(VLOOKUP($E42,base!$D$4:$BM$3035,M$15,FALSE),"0")),TEXT(VLOOKUP($E42,base!$D$4:$BM$3035,M$15,FALSE),"0,0%")),"") -> 100,0% | N42: =IFERROR(IF(VLOOKUP($E42,base!$D$4:$BM$3035,N$15,FALSE)>1,IF(VLOOKUP($E42,base!$D$4:$BM$3035,N$15,FALSE)>1000,TEXT(VLOOKUP($E42,base!$D$4:$BM$3035,N$15,FALSE),"0.000"),TEXT(VLOOKUP($E42,base!$D$4:$BM$3035,N$15,FALSE),"0")),TEXT(VLOOKUP($E42,base!$D$4:$BM$3035,N$15,FALSE),"0,0%")),"") -> OPTIMO
E43: MPE2-01Valle | F43: 76 | G43: Valle | I43: =IFERROR(IF(VLOOKUP($E43,base!$D$4:$AI$3035,I$15,FALSE)>1,IF(VLOOKUP($E43,base!$D$4:$AI$3035,I$15,FALSE)>1000,TEXT(VLOOKUP($E43,base!$D$4:$AI$3035,I$15,FALSE),"0.000"),TEXT(VLOOKUP($E43,base!$D$4:$AI$3035,I$15,FALSE),"0")),TEXT(VLOOKUP($E43,base!$D$4:$AI$3035,I$15,FALSE),"0,0%")),"") -> 85,0% | J43: =IFERROR(IF(VLOOKUP($E43,base!$D$4:$BM$3035,J$15,FALSE)>1,IF(VLOOKUP($E43,base!$D$4:$BM$3035,J$15,FALSE)>1000,TEXT(VLOOKUP($E43,base!$D$4:$BM$3035,J$15,FALSE),"0.000"),TEXT(VLOOKUP($E43,base!$D$4:$BM$3035,J$15,FALSE),"0")),TEXT(VLOOKUP($E43,base!$D$4:$BM$3035,J$15,FALSE),"0,0%")),"") -> 5 | K43: =IFERROR(IF(VLOOKUP($E43,base!$D$4:$BM$3035,K$15,FALSE)>1,IF(VLOOKUP($E43,base!$D$4:$BM$3035,K$15,FALSE)>1000,TEXT(VLOOKUP($E43,base!$D$4:$BM$3035,K$15,FALSE),"0.000"),TEXT(VLOOKUP($E43,base!$D$4:$BM$3035,K$15,FALSE),"0")),TEXT(VLOOKUP($E43,base!$D$4:$BM$3035,K$15,FALSE),"0,0%")),"") -> 5 | L43: =IFERROR(IF(VLOOKUP($E43,base!$D$4:$BM$3035,L$15,FALSE)>1,IF(VLOOKUP($E43,base!$D$4:$BM$3035,L$15,FALSE)>1000,TEXT(VLOOKUP($E43,base!$D$4:$BM$3035,L$15,FALSE),"0.000"),TEXT(VLOOKUP($E43,base!$D$4:$BM$3035,L$15,FALSE),"0")),TEXT(VLOOKUP($E43,base!$D$4:$BM$3035,L$15,FALSE),"0,0%")),"") -> 100,0% | M43: =IFERROR(IF(VLOOKUP($E43,base!$D$4:$BM$3035,M$15,FALSE)>1,IF(VLOOKUP($E43,base!$D$4:$BM$3035,M$15,FALSE)>1000,TEXT(VLOOKUP($E43,base!$D$4:$BM$3035,M$15,FALSE),"0.000"),TEXT(VLOOKUP($E43,base!$D$4:$BM$3035,M$15,FALSE),"0")),TEXT(VLOOKUP($E43,base!$D$4:$BM$3035,M$15,FALSE),"0,0%")),"") -> 100,0% | N43: =IFERROR(IF(VLOOKUP($E43,base!$D$4:$BM$3035,N$15,FALSE)>1,IF(VLOOKUP($E43,base!$D$4:$BM$3035,N$15,FALSE)>1000,TEXT(VLOOKUP($E43,base!$D$4:$BM$3035,N$15,FALSE),"0.000"),TEXT(VLOOKUP($E43,base!$D$4:$BM$3035,N$15,FALSE),"0")),TEXT(VLOOKUP($E43,base!$D$4:$BM$3035,N$15,FALSE),"0,0%")),"") -> OPTIMO
E44: MPE2-01Arauca | F44: 81 | G44: Arauca | I44: =IFERROR(IF(VLOOKUP($E44,base!$D$4:$AI$3035,I$15,FALSE)>1,IF(VLOOKUP($E44,base!$D$4:$AI$3035,I$15,FALSE)>1000,TEXT(VLOOKUP($E44,base!$D$4:$AI$3035,I$15,FALSE),"0.000"),TEXT(VLOOKUP($E44,base!$D$4:$AI$3035,I$15,FALSE),"0")),TEXT(VLOOKUP($E44,base!$D$4:$AI$3035,I$15,FALSE),"0,0%")),"") -> 85,0% | J44: =IFERROR(IF(VLOOKUP($E44,base!$D$4:$BM$3035,J$15,FALSE)>1,IF(VLOOKUP($E44,base!$D$4:$BM$3035,J$15,FALSE)>1000,TEXT(VLOOKUP($E44,base!$D$4:$BM$3035,J$15,FALSE),"0.000"),TEXT(VLOOKUP($E44,base!$D$4:$BM$3035,J$15,FALSE),"0")),TEXT(VLOOKUP($E44,base!$D$4:$BM$3035,J$15,FALSE),"0,0%")),"") -> NA | K44: =IFERROR(IF(VLOOKUP($E44,base!$D$4:$BM$3035,K$15,FALSE)>1,IF(VLOOKUP($E44,base!$D$4:$BM$3035,K$15,FALSE)>1000,TEXT(VLOOKUP($E44,base!$D$4:$BM$3035,K$15,FALSE),"0.000"),TEXT(VLOOKUP($E44,base!$D$4:$BM$3035,K$15,FALSE),"0")),TEXT(VLOOKUP($E44,base!$D$4:$BM$3035,K$15,FALSE),"0,0%")),"") -> NA | L44: =IFERROR(IF(VLOOKUP($E44,base!$D$4:$BM$3035,L$15,FALSE)>1,IF(VLOOKUP($E44,base!$D$4:$BM$3035,L$15,FALSE)>1000,TEXT(VLOOKUP($E44,base!$D$4:$BM$3035,L$15,FALSE),"0.000"),TEXT(VLOOKUP($E44,base!$D$4:$BM$3035,L$15,FALSE),"0")),TEXT(VLOOKUP($E44,base!$D$4:$BM$3035,L$15,FALSE),"0,0%")),"") -> NA | M44: =IFERROR(IF(VLOOKUP($E44,base!$D$4:$BM$3035,M$15,FALSE)>1,IF(VLOOKUP($E44,base!$D$4:$BM$3035,M$15,FALSE)>1000,TEXT(VLOOKUP($E44,base!$D$4:$BM$3035,M$15,FALSE),"0.000"),TEXT(VLOOKUP($E44,base!$D$4:$BM$3035,M$15,FALSE),"0")),TEXT(VLOOKUP($E44,base!$D$4:$BM$3035,M$15,FALSE),"0,0%")),"") -> NA | N44: =IFERROR(IF(VLOOKUP($E44,base!$D$4:$BM$3035,N$15,FALSE)>1,IF(VLOOKUP($E44,base!$D$4:$BM$3035,N$15,FALSE)>1000,TEXT(VLOOKUP($E44,base!$D$4:$BM$3035,N$15,FALSE),"0.000"),TEXT(VLOOKUP($E44,base!$D$4:$BM$3035,N$15,FALSE),"0")),TEXT(VLOOKUP($E44,base!$D$4:$BM$3035,N$15,FALSE),"0,0%")),"") -> NA
E45: MPE2-01Casanare | F45: 85 | G45: Casanare | I45: =IFERROR(IF(VLOOKUP($E45,base!$D$4:$AI$3035,I$15,FALSE)>1,IF(VLOOKUP($E45,base!$D$4:$AI$3035,I$15,FALSE)>1000,TEXT(VLOOKUP($E45,base!$D$4:$AI$3035,I$15,FALSE),"0.000"),TEXT(VLOOKUP($E45,base!$D$4:$AI$3035,I$15,FALSE),"0")),TEXT(VLOOKUP($E45,base!$D$4:$AI$3035,I$15,FALSE),"0,0%")),"") -> 85,0% | J45: =IFERROR(IF(VLOOKUP($E45,base!$D$4:$BM$3035,J$15,FALSE)>1,IF(VLOOKUP($E45,base!$D$4:$BM$3035,J$15,FALSE)>1000,TEXT(VLOOKUP($E45,base!$D$4:$BM$3035,J$15,FALSE),"0.000"),TEXT(VLOOKUP($E45,base!$D$4:$BM$3035,J$15,FALSE),"0")),TEXT(VLOOKUP($E45,base!$D$4:$BM$3035,J$15,FALSE),"0,0%")),"") -> NA | K45: =IFERROR(IF(VLOOKUP($E45,base!$D$4:$BM$3035,K$15,FALSE)>1,IF(VLOOKUP($E45,base!$D$4:$BM$3035,K$15,FALSE)>1000,TEXT(VLOOKUP($E45,base!$D$4:$BM$3035,K$15,FALSE),"0.000"),TEXT(VLOOKUP($E45,base!$D$4:$BM$3035,K$15,FALSE),"0")),TEXT(VLOOKUP($E45,base!$D$4:$BM$3035,K$15,FALSE),"0,0%")),"") -> NA | L45: =IFERROR(IF(VLOOKUP($E45,base!$D$4:$BM$3035,L$15,FALSE)>1,IF(VLOOKUP($E45,base!$D$4:$BM$3035,L$15,FALSE)>1000,TEXT(VLOOKUP($E45,base!$D$4:$BM$3035,L$15,FALSE),"0.000"),TEXT(VLOOKUP($E45,base!$D$4:$BM$3035,L$15,FALSE),"0")),TEXT(VLOOKUP($E45,base!$D$4:$BM$3035,L$15,FALSE),"0,0%")),"") -> NA | M45: =IFERROR(IF(VLOOKUP($E45,base!$D$4:$BM$3035,M$15,FALSE)>1,IF(VLOOKUP($E45,base!$D$4:$BM$3035,M$15,FALSE)>1000,TEXT(VLOOKUP($E45,base!$D$4:$BM$3035,M$15,FALSE),"0.000"),TEXT(VLOOKUP($E45,base!$D$4:$BM$3035,M$15,FALSE),"0")),TEXT(VLOOKUP($E45,base!$D$4:$BM$3035,M$15,FALSE),"0,0%")),"") -> NA | N45: =IFERROR(IF(VLOOKUP($E45,base!$D$4:$BM$3035,N$15,FALSE)>1,IF(VLOOKUP($E45,base!$D$4:$BM$3035,N$15,FALSE)>1000,TEXT(VLOOKUP($E45,base!$D$4:$BM$3035,N$15,FALSE),"0.000"),TEXT(VLOOKUP($E45,base!$D$4:$BM$3035,N$15,FALSE),"0")),TEXT(VLOOKUP($E45,base!$D$4:$BM$3035,N$15,FALSE),"0,0%")),"") -> NA
E46: MPE2-01Putumayo | F46: 86 | G46: Putumayo | I46: =IFERROR(IF(VLOOKUP($E46,base!$D$4:$AI$3035,I$15,FALSE)>1,IF(VLOOKUP($E46,base!$D$4:$AI$3035,I$15,FALSE)>1000,TEXT(VLOOKUP($E46,base!$D$4:$AI$3035,I$15,FALSE),"0.000"),TEXT(VLOOKUP($E46,base!$D$4:$AI$3035,I$15,FALSE),"0")),TEXT(VLOOKUP($E46,base!$D$4:$AI$3035,I$15,FALSE),"0,0%")),"") -> 85,0% | J46: =IFERROR(IF(VLOOKUP($E46,base!$D$4:$BM$3035,J$15,FALSE)>1,IF(VLOOKUP($E46,base!$D$4:$BM$3035,J$15,FALSE)>1000,TEXT(VLOOKUP($E46,base!$D$4:$BM$3035,J$15,FALSE),"0.000"),TEXT(VLOOKUP($E46,base!$D$4:$BM$3035,J$15,FALSE),"0")),TEXT(VLOOKUP($E46,base!$D$4:$BM$3035,J$15,FALSE),"0,0%")),"") -> NA | K46: =IFERROR(IF(VLOOKUP($E46,base!$D$4:$BM$3035,K$15,FALSE)>1,IF(VLOOKUP($E46,base!$D$4:$BM$3035,K$15,FALSE)>1000,TEXT(VLOOKUP($E46,base!$D$4:$BM$3035,K$15,FALSE),"0.000"),TEXT(VLOOKUP($E46,base!$D$4:$BM$3035,K$15,FALSE),"0")),TEXT(VLOOKUP($E46,base!$D$4:$BM$3035,K$15,FALSE),"0,0%")),"") -> NA | L46: =IFERROR(IF(VLOOKUP($E46,base!$D$4:$BM$3035,L$15,FALSE)>1,IF(VLOOKUP($E46,base!$D$4:$BM$3035,L$15,FALSE)>1000,TEXT(VLOOKUP($E46,base!$D$4:$BM$3035,L$15,FALSE),"0.000"),TEXT(VLOOKUP($E46,base!$D$4:$BM$3035,L$15,FALSE),"0")),TEXT(VLOOKUP($E46,base!$D$4:$BM$3035,L$15,FALSE),"0,0%")),"") -> NA | M46: =IFERROR(IF(VLOOKUP($E46,base!$D$4:$BM$3035,M$15,FALSE)>1,IF(VLOOKUP($E46,base!$D$4:$BM$3035,M$15,FALSE)>1000,TEXT(VLOOKUP($E46,base!$D$4:$BM$3035,M$15,FALSE),"0.000"),TEXT(VLOOKUP($E46,base!$D$4:$BM$3035,M$15,FALSE),"0")),TEXT(VLOOKUP($E46,base!$D$4:$BM$3035,M$15,FALSE),"0,0%")),"") -> NA | N46: =IFERROR(IF(VLOOKUP($E46,base!$D$4:$BM$3035,N$15,FALSE)>1,IF(VLOOKUP($E46,base!$D$4:$BM$3035,N$15,FALSE)>1000,TEXT(VLOOKUP($E46,base!$D$4:$BM$3035,N$15,FALSE),"0.000"),TEXT(VLOOKUP($E46,base!$D$4:$BM$3035,N$15,FALSE),"0")),TEXT(VLOOKUP($E46,base!$D$4:$BM$3035,N$15,FALSE),"0,0%")),"") -> NA
E47: MPE2-01San Andrés | F47: 88 | G47: San Andrés | I47: =IFERROR(IF(VLOOKUP($E47,base!$D$4:$AI$3035,I$15,FALSE)>1,IF(VLOOKUP($E47,base!$D$4:$AI$3035,I$15,FALSE)>1000,TEXT(VLOOKUP($E47,base!$D$4:$AI$3035,I$15,FALSE),"0.000"),TEXT(VLOOKUP($E47,base!$D$4:$AI$3035,I$15,FALSE),"0")),TEXT(VLOOKUP($E47,base!$D$4:$AI$3035,I$15,FALSE),"0,0%")),"") -> 85,0% | J47: =IFERROR(IF(VLOOKUP($E47,base!$D$4:$BM$3035,J$15,FALSE)>1,IF(VLOOKUP($E47,base!$D$4:$BM$3035,J$15,FALSE)>1000,TEXT(VLOOKUP($E47,base!$D$4:$BM$3035,J$15,FALSE),"0.000"),TEXT(VLOOKUP($E47,base!$D$4:$BM$3035,J$15,FALSE),"0")),TEXT(VLOOKUP($E47,base!$D$4:$BM$3035,J$15,FALSE),"0,0%")),"") -> 100,0% | K47: =IFERROR(IF(VLOOKUP($E47,base!$D$4:$BM$3035,K$15,FALSE)>1,IF(VLOOKUP($E47,base!$D$4:$BM$3035,K$15,FALSE)>1000,TEXT(VLOOKUP($E47,base!$D$4:$BM$3035,K$15,FALSE),"0.000"),TEXT(VLOOKUP($E47,base!$D$4:$BM$3035,K$15,FALSE),"0")),TEXT(VLOOKUP($E47,base!$D$4:$BM$3035,K$15,FALSE),"0,0%")),"") -> 100,0% | L47: =IFERROR(IF(VLOOKUP($E47,base!$D$4:$BM$3035,L$15,FALSE)>1,IF(VLOOKUP($E47,base!$D$4:$BM$3035,L$15,FALSE)>1000,TEXT(VLOOKUP($E47,base!$D$4:$BM$3035,L$15,FALSE),"0.000"),TEXT(VLOOKUP($E47,base!$D$4:$BM$3035,L$15,FALSE),"0")),TEXT(VLOOKUP($E47,base!$D$4:$BM$3035,L$15,FALSE),"0,0%")),"") -> 100,0% | M47: =IFERROR(IF(VLOOKUP($E47,base!$D$4:$BM$3035,M$15,FALSE)>1,IF(VLOOKUP($E47,base!$D$4:$BM$3035,M$15,FALSE)>1000,TEXT(VLOOKUP($E47,base!$D$4:$BM$3035,M$15,FALSE),"0.000"),TEXT(VLOOKUP($E47,base!$D$4:$BM$3035,M$15,FALSE),"0")),TEXT(VLOOKUP($E47,base!$D$4:$BM$3035,M$15,FALSE),"0,0%")),"") -> 100,0% | N47: =IFERROR(IF(VLOOKUP($E47,base!$D$4:$BM$3035,N$15,FALSE)>1,IF(VLOOKUP($E47,base!$D$4:$BM$3035,N$15,FALSE)>1000,TEXT(VLOOKUP($E47,base!$D$4:$BM$3035,N$15,FALSE),"0.000"),TEXT(VLOOKUP($E47,base!$D$4:$BM$3035,N$15,FALSE),"0")),TEXT(VLOOKUP($E47,base!$D$4:$BM$3035,N$15,FALSE),"0,0%")),"") -> OPTIMO
E48: MPE2-01Amazonas | F48: 91 | G48: Amazonas | I48: =IFERROR(IF(VLOOKUP($E48,base!$D$4:$AI$3035,I$15,FALSE)>1,IF(VLOOKUP($E48,base!$D$4:$AI$3035,I$15,FALSE)>1000,TEXT(VLOOKUP($E48,base!$D$4:$AI$3035,I$15,FALSE),"0.000"),TEXT(VLOOKUP($E48,base!$D$4:$AI$3035,I$15,FALSE),"0")),TEXT(VLOOKUP($E48,base!$D$4:$AI$3035,I$15,FALSE),"0,0%")),"") -> 85,0% | J48: =IFERROR(IF(VLOOKUP($E48,base!$D$4:$BM$3035,J$15,FALSE)>1,IF(VLOOKUP($E48,base!$D$4:$BM$3035,J$15,FALSE)>1000,TEXT(VLOOKUP($E48,base!$D$4:$BM$3035,J$15,FALSE),"0.000"),TEXT(VLOOKUP($E48,base!$D$4:$BM$3035,J$15,FALSE),"0")),TEXT(VLOOKUP($E48,base!$D$4:$BM$3035,J$15,FALSE),"0,0%")),"") -> 18 | K48: =IFERROR(IF(VLOOKUP($E48,base!$D$4:$BM$3035,K$15,FALSE)>1,IF(VLOOKUP($E48,base!$D$4:$BM$3035,K$15,FALSE)>1000,TEXT(VLOOKUP($E48,base!$D$4:$BM$3035,K$15,FALSE),"0.000"),TEXT(VLOOKUP($E48,base!$D$4:$BM$3035,K$15,FALSE),"0")),TEXT(VLOOKUP($E48,base!$D$4:$BM$3035,K$15,FALSE),"0,0%")),"") -> 29 | L48: =IFERROR(IF(VLOOKUP($E48,base!$D$4:$BM$3035,L$15,FALSE)>1,IF(VLOOKUP($E48,base!$D$4:$BM$3035,L$15,FALSE)>1000,TEXT(VLOOKUP($E48,base!$D$4:$BM$3035,L$15,FALSE),"0.000"),TEXT(VLOOKUP($E48,base!$D$4:$BM$3035,L$15,FALSE),"0")),TEXT(VLOOKUP($E48,base!$D$4:$BM$3035,L$15,FALSE),"0,0%")),"") -> 62,1% | M48: =IFERROR(IF(VLOOKUP($E48,base!$D$4:$BM$3035,M$15,FALSE)>1,IF(VLOOKUP($E48,base!$D$4:$BM$3035,M$15,FALSE)>1000,TEXT(VLOOKUP($E48,base!$D$4:$BM$3035,M$15,FALSE),"0.000"),TEXT(VLOOKUP($E48,base!$D$4:$BM$3035,M$15,FALSE),"0")),TEXT(VLOOKUP($E48,base!$D$4:$BM$3035,M$15,FALSE),"0,0%")),"") -> 62,1% | N48: =IFERROR(IF(VLOOKUP($E48,base!$D$4:$BM$3035,N$15,FALSE)>1,IF(VLOOKUP($E48,base!$D$4:$BM$3035,N$15,FALSE)>1000,TEXT(VLOOKUP($E48,base!$D$4:$BM$3035,N$15,FALSE),"0.000"),TEXT(VLOOKUP($E48,base!$D$4:$BM$3035,N$15,FALSE),"0")),TEXT(VLOOKUP($E48,base!$D$4:$BM$3035,N$15,FALSE),"0,0%")),"") -> EN RIESGO
E49: MPE2-01Guainía | F49: 94 | G49: Guainía | I49: =IFERROR(IF(VLOOKUP($E49,base!$D$4:$AI$3035,I$15,FALSE)>1,IF(VLOOKUP($E49,base!$D$4:$AI$3035,I$15,FALSE)>1000,TEXT(VLOOKUP($E49,base!$D$4:$AI$3035,I$15,FALSE),"0.000"),TEXT(VLOOKUP($E49,base!$D$4:$AI$3035,I$15,FALSE),"0")),TEXT(VLOOKUP($E49,base!$D$4:$AI$3035,I$15,FALSE),"0,0%")),"") -> 85,0% | J49: =IFERROR(IF(VLOOKUP($E49,base!$D$4:$BM$3035,J$15,FALSE)>1,IF(VLOOKUP($E49,base!$D$4:$BM$3035,J$15,FALSE)>1000,TEXT(VLOOKUP($E49,base!$D$4:$BM$3035,J$15,FALSE),"0.000"),TEXT(VLOOKUP($E49,base!$D$4:$BM$3035,J$15,FALSE),"0")),TEXT(VLOOKUP($E49,base!$D$4:$BM$3035,J$15,FALSE),"0,0%")),"") -> 0,0% | K49: =IFERROR(IF(VLOOKUP($E49,base!$D$4:$BM$3035,K$15,FALSE)>1,IF(VLOOKUP($E49,base!$D$4:$BM$3035,K$15,FALSE)>1000,TEXT(VLOOKUP($E49,base!$D$4:$BM$3035,K$15,FALSE),"0.000"),TEXT(VLOOKUP($E49,base!$D$4:$BM$3035,K$15,FALSE),"0")),TEXT(VLOOKUP($E49,base!$D$4:$BM$3035,K$15,FALSE),"0,0%")),"") -> 100,0% | L49: =IFERROR(IF(VLOOKUP($E49,base!$D$4:$BM$3035,L$15,FALSE)>1,IF(VLOOKUP($E49,base!$D$4:$BM$3035,L$15,FALSE)>1000,TEXT(VLOOKUP($E49,base!$D$4:$BM$3035,L$15,FALSE),"0.000"),TEXT(VLOOKUP($E49,base!$D$4:$BM$3035,L$15,FALSE),"0")),TEXT(VLOOKUP($E49,base!$D$4:$BM$3035,L$15,FALSE),"0,0%")),"") -> 0,0% | M49: =IFERROR(IF(VLOOKUP($E49,base!$D$4:$BM$3035,M$15,FALSE)>1,IF(VLOOKUP($E49,base!$D$4:$BM$3035,M$15,FALSE)>1000,TEXT(VLOOKUP($E49,base!$D$4:$BM$3035,M$15,FALSE),"0.000"),TEXT(VLOOKUP($E49,base!$D$4:$BM$3035,M$15,FALSE),"0")),TEXT(VLOOKUP($E49,base!$D$4:$BM$3035,M$15,FALSE),"0,0%")),"") -> 0,0% | N49: =IFERROR(IF(VLOOKUP($E49,base!$D$4:$BM$3035,N$15,FALSE)>1,IF(VLOOKUP($E49,base!$D$4:$BM$3035,N$15,FALSE)>1000,TEXT(VLOOKUP($E49,base!$D$4:$BM$3035,N$15,FALSE),"0.000"),TEXT(VLOOKUP($E49,base!$D$4:$BM$3035,N$15,FALSE),"0")),TEXT(VLOOKUP($E49,base!$D$4:$BM$3035,N$15,FALSE),"0,0%")),"") -> CRITICO
E50: MPE2-01Guaviare | F50: 95 | G50: Guaviare | I50: =IFERROR(IF(VLOOKUP($E50,base!$D$4:$AI$3035,I$15,FALSE)>1,IF(VLOOKUP($E50,base!$D$4:$AI$3035,I$15,FALSE)>1000,TEXT(VLOOKUP($E50,base!$D$4:$AI$3035,I$15,FALSE),"0.000"),TEXT(VLOOKUP($E50,base!$D$4:$AI$3035,I$15,FALSE),"0")),TEXT(VLOOKUP($E50,base!$D$4:$AI$3035,I$15,FALSE),"0,0%")),"") -> 85,0% | J50: =IFERROR(IF(VLOOKUP($E50,base!$D$4:$BM$3035,J$15,FALSE)>1,IF(VLOOKUP($E50,base!$D$4:$BM$3035,J$15,FALSE)>1000,TEXT(VLOOKUP($E50,base!$D$4:$BM$3035,J$15,FALSE),"0.000"),TEXT(VLOOKUP($E50,base!$D$4:$BM$3035,J$15,FALSE),"0")),TEXT(VLOOKUP($E50,base!$D$4:$BM$3035,J$15,FALSE),"0,0%")),"") -> 2 | K50: =IFERROR(IF(VLOOKUP($E50,base!$D$4:$BM$3035,K$15,FALSE)>1,IF(VLOOKUP($E50,base!$D$4:$BM$3035,K$15,FALSE)>1000,TEXT(VLOOKUP($E50,base!$D$4:$BM$3035,K$15,FALSE),"0.000"),TEXT(VLOOKUP($E50,base!$D$4:$BM$3035,K$15,FALSE),"0")),TEXT(VLOOKUP($E50,base!$D$4:$BM$3035,K$15,FALSE),"0,0%")),"") -> 2 | L50: =IFERROR(IF(VLOOKUP($E50,base!$D$4:$BM$3035,L$15,FALSE)>1,IF(VLOOKUP($E50,base!$D$4:$BM$3035,L$15,FALSE)>1000,TEXT(VLOOKUP($E50,base!$D$4:$BM$3035,L$15,FALSE),"0.000"),TEXT(VLOOKUP($E50,base!$D$4:$BM$3035,L$15,FALSE),"0")),TEXT(VLOOKUP($E50,base!$D$4:$BM$3035,L$15,FALSE),"0,0%")),"") -> 100,0% | M50: =IFERROR(IF(VLOOKUP($E50,base!$D$4:$BM$3035,M$15,FALSE)>1,IF(VLOOKUP($E50,base!$D$4:$BM$3035,M$15,FALSE)>1000,TEXT(VLOOKUP($E50,base!$D$4:$BM$3035,M$15,FALSE),"0.000"),TEXT(VLOOKUP($E50,base!$D$4:$BM$3035,M$15,FALSE),"0")),TEXT(VLOOKUP($E50,base!$D$4:$BM$3035,M$15,FALSE),"0,0%")),"") -> 100,0% | N50: =IFERROR(IF(VLOOKUP($E50,base!$D$4:$BM$3035,N$15,FALSE)>1,IF(VLOOKUP($E50,base!$D$4:$BM$3035,N$15,FALSE)>1000,TEXT(VLOOKUP($E50,base!$D$4:$BM$3035,N$15,FALSE),"0.000"),TEXT(VLOOKUP($E50,base!$D$4:$BM$3035,N$15,FALSE),"0")),TEXT(VLOOKUP($E50,base!$D$4:$BM$3035,N$15,FALSE),"0,0%")),"") -> OPTIMO
E51: MPE2-01Vaupés | F51: 97 | G51: Vaupés | I51: =IFERROR(IF(VLOOKUP($E51,base!$D$4:$AI$3035,I$15,FALSE)>1,IF(VLOOKUP($E51,base!$D$4:$AI$3035,I$15,FALSE)>1000,TEXT(VLOOKUP($E51,base!$D$4:$AI$3035,I$15,FALSE),"0.000"),TEXT(VLOOKUP($E51,base!$D$4:$AI$3035,I$15,FALSE),"0")),TEXT(VLOOKUP($E51,base!$D$4:$AI$3035,I$15,FALSE),"0,0%")),"") -> 85,0% | J51: =IFERROR(IF(VLOOKUP($E51,base!$D$4:$BM$3035,J$15,FALSE)>1,IF(VLOOKUP($E51,base!$D$4:$BM$3035,J$15,FALSE)>1000,TEXT(VLOOKUP($E51,base!$D$4:$BM$3035,J$15,FALSE),"0.000"),TEXT(VLOOKUP($E51,base!$D$4:$BM$3035,J$15,FALSE),"0")),TEXT(VLOOKUP($E51,base!$D$4:$BM$3035,J$15,FALSE),"0,0%")),"") -> NA | K51: =IFERROR(IF(VLOOKUP($E51,base!$D$4:$BM$3035,K$15,FALSE)>1,IF(VLOOKUP($E51,base!$D$4:$BM$3035,K$15,FALSE)>1000,TEXT(VLOOKUP($E51,base!$D$4:$BM$3035,K$15,FALSE),"0.000"),TEXT(VLOOKUP($E51,base!$D$4:$BM$3035,K$15,FALSE),"0")),TEXT(VLOOKUP($E51,base!$D$4:$BM$3035,K$15,FALSE),"0,0%")),"") -> NA | L51: =IFERROR(IF(VLOOKUP($E51,base!$D$4:$BM$3035,L$15,FALSE)>1,IF(VLOOKUP($E51,base!$D$4:$BM$3035,L$15,FALSE)>1000,TEXT(VLOOKUP($E51,base!$D$4:$BM$3035,L$15,FALSE),"0.000"),TEXT(VLOOKUP($E51,base!$D$4:$BM$3035,L$15,FALSE),"0")),TEXT(VLOOKUP($E51,base!$D$4:$BM$3035,L$15,FALSE),"0,0%")),"") -> NA | M51: =IFERROR(IF(VLOOKUP($E51,base!$D$4:$BM$3035,M$15,FALSE)>1,IF(VLOOKUP($E51,base!$D$4:$BM$3035,M$15,FALSE)>1000,TEXT(VLOOKUP($E51,base!$D$4:$BM$3035,M$15,FALSE),"0.000"),TEXT(VLOOKUP($E51,base!$D$4:$BM$3035,M$15,FALSE),"0")),TEXT(VLOOKUP($E51,base!$D$4:$BM$3035,M$15,FALSE),"0,0%")),"") -> NA | N51: =IFERROR(IF(VLOOKUP($E51,base!$D$4:$BM$3035,N$15,FALSE)>1,IF(VLOOKUP($E51,base!$D$4:$BM$3035,N$15,FALSE)>1000,TEXT(VLOOKUP($E51,base!$D$4:$BM$3035,N$15,FALSE),"0.000"),TEXT(VLOOKUP($E51,base!$D$4:$BM$3035,N$15,FALSE),"0")),TEXT(VLOOKUP($E51,base!$D$4:$BM$3035,N$15,FALSE),"0,0%")),"") -> NA
E52: MPE2-01Vichada | F52: 99 | G52: Vichada | I52: =IFERROR(IF(VLOOKUP($E52,base!$D$4:$AI$3035,I$15,FALSE)>1,IF(VLOOKUP($E52,base!$D$4:$AI$3035,I$15,FALSE)>1000,TEXT(VLOOKUP($E52,base!$D$4:$AI$3035,I$15,FALSE),"0.000"),TEXT(VLOOKUP($E52,base!$D$4:$AI$3035,I$15,FALSE),"0")),TEXT(VLOOKUP($E52,base!$D$4:$AI$3035,I$15,FALSE),"0,0%")),"") -> 85,0% | J52: =IFERROR(IF(VLOOKUP($E52,base!$D$4:$BM$3035,J$15,FALSE)>1,IF(VLOOKUP($E52,base!$D$4:$BM$3035,J$15,FALSE)>1000,TEXT(VLOOKUP($E52,base!$D$4:$BM$3035,J$15,FALSE),"0.000"),TEXT(VLOOKUP($E52,base!$D$4:$BM$3035,J$15,FALSE),"0")),TEXT(VLOOKUP($E52,base!$D$4:$BM$3035,J$15,FALSE),"0,0%")),"") -> 0,0% | K52: =IFERROR(IF(VLOOKUP($E52,base!$D$4:$BM$3035,K$15,FALSE)>1,IF(VLOOKUP($E52,base!$D$4:$BM$3035,K$15,FALSE)>1000,TEXT(VLOOKUP($E52,base!$D$4:$BM$3035,K$15,FALSE),"0.000"),TEXT(VLOOKUP($E52,base!$D$4:$BM$3035,K$15,FALSE),"0")),TEXT(VLOOKUP($E52,base!$D$4:$BM$3035,K$15,FALSE),"0,0%")),"") -> 100,0% | L52: =IFERROR(IF(VLOOKUP($E52,base!$D$4:$BM$3035,L$15,FALSE)>1,IF(VLOOKUP($E52,base!$D$4:$BM$3035,L$15,FALSE)>1000,TEXT(VLOOKUP($E52,base!$D$4:$BM$3035,L$15,FALSE),"0.000"),TEXT(VLOOKUP($E52,base!$D$4:$BM$3035,L$15,FALSE),"0")),TEXT(VLOOKUP($E52,base!$D$4:$BM$3035,L$15,FALSE),"0,0%")),"") -> 0,0% | M52: =IFERROR(IF(VLOOKUP($E52,base!$D$4:$BM$3035,M$15,FALSE)>1,IF(VLOOKUP($E52,base!$D$4:$BM$3035,M$15,FALSE)>1000,TEXT(VLOOKUP($E52,base!$D$4:$BM$3035,M$15,FALSE),"0.000"),TEXT(VLOOKUP($E52,base!$D$4:$BM$3035,M$15,FALSE),"0")),TEXT(VLOOKUP($E52,base!$D$4:$BM$3035,M$15,FALSE),"0,0%")),"") -> 0,0% | N52: =IFERROR(IF(VLOOKUP($E52,base!$D$4:$BM$3035,N$15,FALSE)>1,IF(VLOOKUP($E52,base!$D$4:$BM$3035,N$15,FALSE)>1000,TEXT(VLOOKUP($E52,base!$D$4:$BM$3035,N$15,FALSE),"0.000"),TEXT(VLOOKUP($E52,base!$D$4:$BM$3035,N$15,FALSE),"0")),TEXT(VLOOKUP($E52,base!$D$4:$BM$3035,N$15,FALSE),"0,0%")),"") -> CRITICO
E53: MPE2-01Sede Nacional | F53: 0 | G53: Sede Nacional | I53: =IFERROR(IF(VLOOKUP($E53,base!$D$4:$AI$3035,I$15,FALSE)>1,IF(VLOOKUP($E53,base!$D$4:$AI$3035,I$15,FALSE)>1000,TEXT(VLOOKUP($E53,base!$D$4:$AI$3035,I$15,FALSE),"0.000"),TEXT(VLOOKUP($E53,base!$D$4:$AI$3035,I$15,FALSE),"0")),TEXT(VLOOKUP($E53,base!$D$4:$AI$3035,I$15,FALSE),"0,0%")),"") -> 85,0% | J53: =IFERROR(IF(VLOOKUP($E53,base!$D$4:$BM$3035,J$15,FALSE)>1,IF(VLOOKUP($E53,base!$D$4:$BM$3035,J$15,FALSE)>1000,TEXT(VLOOKUP($E53,base!$D$4:$BM$3035,J$15,FALSE),"0.000"),TEXT(VLOOKUP($E53,base!$D$4:$BM$3035,J$15,FALSE),"0")),TEXT(VLOOKUP($E53,base!$D$4:$BM$3035,J$15,FALSE),"0,0%")),"") -> 31 | K53: =IFERROR(IF(VLOOKUP($E53,base!$D$4:$BM$3035,K$15,FALSE)>1,IF(VLOOKUP($E53,base!$D$4:$BM$3035,K$15,FALSE)>1000,TEXT(VLOOKUP($E53,base!$D$4:$BM$3035,K$15,FALSE),"0.000"),TEXT(VLOOKUP($E53,base!$D$4:$BM$3035,K$15,FALSE),"0")),TEXT(VLOOKUP($E53,base!$D$4:$BM$3035,K$15,FALSE),"0,0%")),"") -> 81 | L53: =IFERROR(IF(VLOOKUP($E53,base!$D$4:$BM$3035,L$15,FALSE)>1,IF(VLOOKUP($E53,base!$D$4:$BM$3035,L$15,FALSE)>1000,TEXT(VLOOKUP($E53,base!$D$4:$BM$3035,L$15,FALSE),"0.000"),TEXT(VLOOKUP($E53,base!$D$4:$BM$3035,L$15,FALSE),"0")),TEXT(VLOOKUP($E53,base!$D$4:$BM$3035,L$15,FALSE),"0,0%")),"") -> 38,3% | M53: =IFERROR(IF(VLOOKUP($E53,base!$D$4:$BM$3035,M$15,FALSE)>1,IF(VLOOKUP($E53,base!$D$4:$BM$3035,M$15,FALSE)>1000,TEXT(VLOOKUP($E53,base!$D$4:$BM$3035,M$15,FALSE),"0.000"),TEXT(VLOOKUP($E53,base!$D$4:$BM$3035,M$15,FALSE),"0")),TEXT(VLOOKUP($E53,base!$D$4:$BM$3035,M$15,FALSE),"0,0%")),"") -> 38,3% | N53: =IFERROR(IF(VLOOKUP($E53,base!$D$4:$BM$3035,N$15,FALSE)>1,IF(VLOOKUP($E53,base!$D$4:$BM$3035,N$15,FALSE)>1000,TEXT(VLOOKUP($E53,base!$D$4:$BM$3035,N$15,FALSE),"0.000"),TEXT(VLOOKUP($E53,base!$D$4:$BM$3035,N$15,FALSE),"0")),TEXT(VLOOKUP($E53,base!$D$4:$BM$3035,N$15,FALSE),"0,0%")),"") -> CRITICO
E54: MPE2-01Otros | F54: 2 | G54: Otros | I54: =IFERROR(IF(VLOOKUP($E54,base!$D$4:$AI$3035,I$15,FALSE)>1,IF(VLOOKUP($E54,base!$D$4:$AI$3035,I$15,FALSE)>1000,TEXT(VLOOKUP($E54,base!$D$4:$AI$3035,I$15,FALSE),"0.000"),TEXT(VLOOKUP($E54,base!$D$4:$AI$3035,I$15,FALSE),"0")),TEXT(VLOOKUP($E54,base!$D$4:$AI$3035,I$15,FALSE),"0,0%")),"") -> 0,0% | J54: =IFERROR(IF(VLOOKUP($E54,base!$D$4:$BM$3035,J$15,FALSE)>1,IF(VLOOKUP($E54,base!$D$4:$BM$3035,J$15,FALSE)>1000,TEXT(VLOOKUP($E54,base!$D$4:$BM$3035,J$15,FALSE),"0.000"),TEXT(VLOOKUP($E54,base!$D$4:$BM$3035,J$15,FALSE),"0")),TEXT(VLOOKUP($E54,base!$D$4:$BM$3035,J$15,FALSE),"0,0%")),"") -> NA | K54: =IFERROR(IF(VLOOKUP($E54,base!$D$4:$BM$3035,K$15,FALSE)>1,IF(VLOOKUP($E54,base!$D$4:$BM$3035,K$15,FALSE)>1000,TEXT(VLOOKUP($E54,base!$D$4:$BM$3035,K$15,FALSE),"0.000"),TEXT(VLOOKUP($E54,base!$D$4:$BM$3035,K$15,FALSE),"0")),TEXT(VLOOKUP($E54,base!$D$4:$BM$3035,K$15,FALSE),"0,0%")),"") -> NA | L54: =IFERROR(IF(VLOOKUP($E54,base!$D$4:$BM$3035,L$15,FALSE)>1,IF(VLOOKUP($E54,base!$D$4:$BM$3035,L$15,FALSE)>1000,TEXT(VLOOKUP($E54,base!$D$4:$BM$3035,L$15,FALSE),"0.000"),TEXT(VLOOKUP($E54,base!$D$4:$BM$3035,L$15,FALSE),"0")),TEXT(VLOOKUP($E54,base!$D$4:$BM$3035,L$15,FALSE),"0,0%")),"") -> NA | M54: =IFERROR(IF(VLOOKUP($E54,base!$D$4:$BM$3035,M$15,FALSE)>1,IF(VLOOKUP($E54,base!$D$4:$BM$3035,M$15,FALSE)>1000,TEXT(VLOOKUP($E54,base!$D$4:$BM$3035,M$15,FALSE),"0.000"),TEXT(VLOOKUP($E54,base!$D$4:$BM$3035,M$15,FALSE),"0")),TEXT(VLOOKUP($E54,base!$D$4:$BM$3035,M$15,FALSE),"0,0%")),"") -> NA | N54: =IFERROR(IF(VLOOKUP($E54,base!$D$4:$BM$3035,N$15,FALSE)>1,IF(VLOOKUP($E54,base!$D$4:$BM$3035,N$15,FALSE)>1000,TEXT(VLOOKUP($E54,base!$D$4:$BM$3035,N$15,FALSE),"0.000"),TEXT(VLOOKUP($E54,base!$D$4:$BM$3035,N$15,FALSE),"0")),TEXT(VLOOKUP($E54,base!$D$4:$BM$3035,N$15,FALSE),"0,0%")),"") -> NA
E55: MPE2-01Total | F55: 1 | G55: Total | I55: =IFERROR(IF(VLOOKUP($E55,base!$D$4:$AI$3035,I$15,FALSE)>1,IF(VLOOKUP($E55,base!$D$4:$AI$3035,I$15,FALSE)>1000,TEXT(VLOOKUP($E55,base!$D$4:$AI$3035,I$15,FALSE),"0.000"),TEXT(VLOOKUP($E55,base!$D$4:$AI$3035,I$15,FALSE),"0")),TEXT(VLOOKUP($E55,base!$D$4:$AI$3035,I$15,FALSE),"0,0%")),"") -> 85,0% | J55: =IFERROR(IF(VLOOKUP($E55,base!$D$4:$BM$3035,J$15,FALSE)>1,IF(VLOOKUP($E55,base!$D$4:$BM$3035,J$15,FALSE)>1000,TEXT(VLOOKUP($E55,base!$D$4:$BM$3035,J$15,FALSE),"0.000"),TEXT(VLOOKUP($E55,base!$D$4:$BM$3035,J$15,FALSE),"0")),TEXT(VLOOKUP($E55,base!$D$4:$BM$3035,J$15,FALSE),"0,0%")),"") -> 235 | K55: =IFERROR(IF(VLOOKUP($E55,base!$D$4:$BM$3035,K$15,FALSE)>1,IF(VLOOKUP($E55,base!$D$4:$BM$3035,K$15,FALSE)>1000,TEXT(VLOOKUP($E55,base!$D$4:$BM$3035,K$15,FALSE),"0.000"),TEXT(VLOOKUP($E55,base!$D$4:$BM$3035,K$15,FALSE),"0")),TEXT(VLOOKUP($E55,base!$D$4:$BM$3035,K$15,FALSE),"0,0%")),"") -> 323 | L55: =IFERROR(IF(VLOOKUP($E55,base!$D$4:$BM$3035,L$15,FALSE)>1,IF(VLOOKUP($E55,base!$D$4:$BM$3035,L$15,FALSE)>1000,TEXT(VLOOKUP($E55,base!$D$4:$BM$3035,L$15,FALSE),"0.000"),TEXT(VLOOKUP($E55,base!$D$4:$BM$3035,L$15,FALSE),"0")),TEXT(VLOOKUP($E55,base!$D$4:$BM$3035,L$15,FALSE),"0,0%")),"") -> 72,8% | M55: =IFERROR(IF(VLOOKUP($E55,base!$D$4:$BM$3035,M$15,FALSE)>1,IF(VLOOKUP($E55,base!$D$4:$BM$3035,M$15,FALSE)>1000,TEXT(VLOOKUP($E55,base!$D$4:$BM$3035,M$15,FALSE),"0.000"),TEXT(VLOOKUP($E55,base!$D$4:$BM$3035,M$15,FALSE),"0")),TEXT(VLOOKUP($E55,base!$D$4:$BM$3035,M$15,FALSE),"0,0%")),"") -> 72,8% | N55: =IFERROR(IF(VLOOKUP($E55,base!$D$4:$BM$3035,N$15,FALSE)>1,IF(VLOOKUP($E55,base!$D$4:$BM$3035,N$15,FALSE)>1000,TEXT(VLOOKUP($E55,base!$D$4:$BM$3035,N$15,FALSE),"0.000"),TEXT(VLOOKUP($E55,base!$D$4:$BM$3035,N$15,FALSE),"0")),TEXT(VLOOKUP($E55,base!$D$4:$BM$3035,N$15,FALSE),"0,0%")),"") -> ADECUADO

Sheet avance reg
B2: TABLERO DE CONTROL 2015 INSTITUTO COLOMBIANO DE BIENESTAR FAMILIAR ICBF SEGUIMIENTO METAS - ANÁLISIS REGIONAL
B3: =+'avances nal'!I62 -> N Santander | R3: =+VLOOKUP(B3,'tc regional gral'!$AZ$5:$BA$2690,2,FALSE) -> 54 | S3: =+VLOOKUP(D6,'info graficas'!$Y$2:$Z$7,2,FALSE) ->  | T3: =+VLOOKUP(D6,'info graficas'!$Y$2:$AA$13,3,FALSE) -> 40 | U3: =+VLOOKUP(D6,'info graficas'!$Y$2:$AB$13,4,FALSE) -> 52 | V3: =+VLOOKUP(D6,'info graficas'!$Y$2:$AC$7,5,FALSE) -> 
C6: Mes de analisis | D6: Diciembre | E6: De click para actualizar la información
C8: Sección 1: Comportamiento general regional
C10: Información regional principales agregados | H10: Comportamiento gral.
H11: Plan de Acción | I11: Plan Indicativo | J11: T. control
D12: Plan de Acción | G12: Optimo | H12: =IFERROR(IF($D$6="enero",VLOOKUP(G12,td!$A$2860:$B$2864,2,FALSE),IF($D$6="febrero",VLOOKUP(G12,td!$C$2860:$D$2864,2,FALSE),IF($D$6="marzo",VLOOKUP(G12,td!$E$2860:$F$2864,2,FALSE),IF($D$6="abril",VLOOKUP(G12,td!$G$2860:$H$2864,2,FALSE),IF($D$6="mayo",VLOOKUP(G12,td!$I$2860:$J$2864,2,FALSE),IF($D$6="junio",VLOOKUP(G12,td!$K$2860:$L$2864,2,FALSE),IF($D$6="julio",VLOOKUP(G12,td!$M$2860:$N$2864,2,FALSE),IF($D$6="agosto",VLOOKUP(G12,td!$O$2860:$P$2864,2,FALSE),IF($D$6="septiembre",VLOOKUP(G12,td!$Q$2860:$R$2864,2,FALSE),IF($D$6="octubre",VLOOKUP(G12,td!$S$2860:$T$2864,2,FALSE),IF($D$6="noviembre",VLOOKUP(G12,td!$U$2860:$V$2864,2,FALSE),IF($D$6="diciembre",VLOOKUP(G12,td!$W$2860:$X$2864,2,FALSE),0)))))))))))),0) -> 15 | I12: =IFERROR(IF($D$6="enero",VLOOKUP(G12,td!$A$2870:$B$2874,2,FALSE),IF($D$6="febrero",VLOOKUP(G12,td!$C$2870:$D$2874,2,FALSE),IF($D$6="marzo",VLOOKUP(G12,td!$E$2870:$F$2874,2,FALSE),IF($D$6="abril",VLOOKUP(G12,td!$G$2870:$H$2874,2,FALSE),IF($D$6="mayo",VLOOKUP(G12,td!$I$2870:$J$2874,2,FALSE),IF($D$6="junio",VLOOKUP(G12,td!$K$2870:$L$2874,2,FALSE),IF($D$6="julio",VLOOKUP(G12,td!$M$2870:$N$2874,2,FALSE),IF($D$6="agosto",VLOOKUP(G12,td!$O$2870:$P$2874,2,FALSE),IF($D$6="septiembre",VLOOKUP(G12,td!$Q$2870:$R$2874,2,FALSE),IF($D$6="octubre",VLOOKUP(G12,td!$S$2870:$T$2874,2,FALSE),IF($D$6="noviembre",VLOOKUP(G12,td!$U$2870:$V$2874,2,FALSE),IF($D$6="diciembre",VLOOKUP(G12,td!$W$2870:$X$2874,2,FALSE),0)))))))))))),0) -> 8 | J12: =IFERROR(IF($D$6="enero",VLOOKUP(G12,td!$A$2880:$B$2884,2,FALSE),IF($D$6="febrero",VLOOKUP(G12,td!$C$2880:$D$2884,2,FALSE),IF($D$6="marzo",VLOOKUP(G12,td!$E$2880:$F$2884,2,FALSE),IF($D$6="abril",VLOOKUP(G12,td!$G$2880:$H$2884,2,FALSE),IF($D$6="mayo",VLOOKUP(G12,td!$I$2880:$J$2884,2,FALSE),IF($D$6="junio",VLOOKUP(G12,td!$K$2880:$L$2884,2,FALSE),IF($D$6="julio",VLOOKUP(G12,td!$M$2880:$N$2884,2,FALSE),IF($D$6="agosto",VLOOKUP(G12,td!$O$2880:$P$2884,2,FALSE),IF($D$6="septiembre",VLOOKUP(G12,td!$Q$2880:$R$2884,2,FALSE),IF($D$6="octubre",VLOOKUP(G12,td!$S$2880:$T$2884,2,FALSE),IF($D$6="noviembre",VLOOKUP(G12,td!$U$2880:$V$2884,2,FALSE),IF($D$6="diciembre",VLOOKUP(G12,td!$W$2880:$X$2884,2,FALSE),0)))))))))))),0) -> 41 | M12: Información detallada del tablero regional
G13: Adecuado | H13: =IFERROR(IF($D$6="enero",VLOOKUP(G13,td!$A$2860:$B$2864,2,FALSE),IF($D$6="febrero",VLOOKUP(G13,td!$C$2860:$D$2864,2,FALSE),IF($D$6="marzo",VLOOKUP(G13,td!$E$2860:$F$2864,2,FALSE),IF($D$6="abril",VLOOKUP(G13,td!$G$2860:$H$2864,2,FALSE),IF($D$6="mayo",VLOOKUP(G13,td!$I$2860:$J$2864,2,FALSE),IF($D$6="junio",VLOOKUP(G13,td!$K$2860:$L$2864,2,FALSE),IF($D$6="julio",VLOOKUP(G13,td!$M$2860:$N$2864,2,FALSE),IF($D$6="agosto",VLOOKUP(G13,td!$O$2860:$P$2864,2,FALSE),IF($D$6="septiembre",VLOOKUP(G13,td!$Q$2860:$R$2864,2,FALSE),IF($D$6="octubre",VLOOKUP(G13,td!$S$2860:$T$2864,2,FALSE),IF($D$6="noviembre",VLOOKUP(G13,td!$U$2860:$V$2864,2,FALSE),IF($D$6="diciembre",VLOOKUP(G13,td!$W$2860:$X$2864,2,FALSE),0)))))))))))),0) -> 6 | I13: =IFERROR(IF($D$6="enero",VLOOKUP(G13,td!$A$2870:$B$2874,2,FALSE),IF($D$6="febrero",VLOOKUP(G13,td!$C$2870:$D$2874,2,FALSE),IF($D$6="marzo",VLOOKUP(G13,td!$E$2870:$F$2874,2,FALSE),IF($D$6="abril",VLOOKUP(G13,td!$G$2870:$H$2874,2,FALSE),IF($D$6="mayo",VLOOKUP(G13,td!$I$2870:$J$2874,2,FALSE),IF($D$6="junio",VLOOKUP(G13,td!$K$2870:$L$2874,2,FALSE),IF($D$6="julio",VLOOKUP(G13,td!$M$2870:$N$2874,2,FALSE),IF($D$6="agosto",VLOOKUP(G13,td!$O$2870:$P$2874,2,FALSE),IF($D$6="septiembre",VLOOKUP(G13,td!$Q$2870:$R$2874,2,FALSE),IF($D$6="octubre",VLOOKUP(G13,td!$S$2870:$T$2874,2,FALSE),IF($D$6="noviembre",VLOOKUP(G13,td!$U$2870:$V$2874,2,FALSE),IF($D$6="diciembre",VLOOKUP(G13,td!$W$2870:$X$2874,2,FALSE),0)))))))))))),0) -> 3 | J13: =IFERROR(IF($D$6="enero",VLOOKUP(G13,td!$A$2880:$B$2884,2,FALSE),IF($D$6="febrero",VLOOKUP(G13,td!$C$2880:$D$2884,2,FALSE),IF($D$6="marzo",VLOOKUP(G13,td!$E$2880:$F$2884,2,FALSE),IF($D$6="abril",VLOOKUP(G13,td!$G$2880:$H$2884,2,FALSE),IF($D$6="mayo",VLOOKUP(G13,td!$I$2880:$J$2884,2,FALSE),IF($D$6="junio",VLOOKUP(G13,td!$K$2880:$L$2884,2,FALSE),IF($D$6="julio",VLOOKUP(G13,td!$M$2880:$N$2884,2,FALSE),IF($D$6="agosto",VLOOKUP(G13,td!$O$2880:$P$2884,2,FALSE),IF($D$6="septiembre",VLOOKUP(G13,td!$Q$2880:$R$2884,2,FALSE),IF($D$6="octubre",VLOOKUP(G13,td!$S$2880:$T$2884,2,FALSE),IF($D$6="noviembre",VLOOKUP(G13,td!$U$2880:$V$2884,2,FALSE),IF($D$6="diciembre",VLOOKUP(G13,td!$W$2880:$X$2884,2,FALSE),0)))))))))))),0) -> 21
G14: En riesgo | H14: =IFERROR(IF($D$6="enero",VLOOKUP(G14,td!$A$2860:$B$2864,2,FALSE),IF($D$6="febrero",VLOOKUP(G14,td!$C$2860:$D$2864,2,FALSE),IF($D$6="marzo",VLOOKUP(G14,td!$E$2860:$F$2864,2,FALSE),IF($D$6="abril",VLOOKUP(G14,td!$G$2860:$H$2864,2,FALSE),IF($D$6="mayo",VLOOKUP(G14,td!$I$2860:$J$2864,2,FALSE),IF($D$6="junio",VLOOKUP(G14,td!$K$2860:$L$2864,2,FALSE),IF($D$6="julio",VLOOKUP(G14,td!$M$2860:$N$2864,2,FALSE),IF($D$6="agosto",VLOOKUP(G14,td!$O$2860:$P$2864,2,FALSE),IF($D$6="septiembre",VLOOKUP(G14,td!$Q$2860:$R$2864,2,FALSE),IF($D$6="octubre",VLOOKUP(G14,td!$S$2860:$T$2864,2,FALSE),IF($D$6="noviembre",VLOOKUP(G14,td!$U$2860:$V$2864,2,FALSE),IF($D$6="diciembre",VLOOKUP(G14,td!$W$2860:$X$2864,2,FALSE),0)))))))))))),0) -> 2 | I14: =IFERROR(IF($D$6="enero",VLOOKUP(G14,td!$A$2870:$B$2874,2,FALSE),IF($D$6="febrero",VLOOKUP(G14,td!$C$2870:$D$2874,2,FALSE),IF($D$6="marzo",VLOOKUP(G14,td!$E$2870:$F$2874,2,FALSE),IF($D$6="abril",VLOOKUP(G14,td!$G$2870:$H$2874,2,FALSE),IF($D$6="mayo",VLOOKUP(G14,td!$I$2870:$J$2874,2,FALSE),IF($D$6="junio",VLOOKUP(G14,td!$K$2870:$L$2874,2,FALSE),IF($D$6="julio",VLOOKUP(G14,td!$M$2870:$N$2874,2,FALSE),IF($D$6="agosto",VLOOKUP(G14,td!$O$2870:$P$2874,2,FALSE),IF($D$6="septiembre",VLOOKUP(G14,td!$Q$2870:$R$2874,2,FALSE),IF($D$6="octubre",VLOOKUP(G14,td!$S$2870:$T$2874,2,FALSE),IF($D$6="noviembre",VLOOKUP(G14,td!$U$2870:$V$2874,2,FALSE),IF($D$6="diciembre",VLOOKUP(G14,td!$W$2870:$X$2874,2,FALSE),0)))))))))))),0) -> 1 | J14: =IFERROR(IF($D$6="enero",VLOOKUP(G14,td!$A$2880:$B$2884,2,FALSE),IF($D$6="febrero",VLOOKUP(G14,td!$C$2880:$D$2884,2,FALSE),IF($D$6="marzo",VLOOKUP(G14,td!$E$2880:$F$2884,2,FALSE),IF($D$6="abril",VLOOKUP(G14,td!$G$2880:$H$2884,2,FALSE),IF($D$6="mayo",VLOOKUP(G14,td!$I$2880:$J$2884,2,FALSE),IF($D$6="junio",VLOOKUP(G14,td!$K$2880:$L$2884,2,FALSE),IF($D$6="julio",VLOOKUP(G14,td!$M$2880:$N$2884,2,FALSE),IF($D$6="agosto",VLOOKUP(G14,td!$O$2880:$P$2884,2,FALSE),IF($D$6="septiembre",VLOOKUP(G14,td!$Q$2880:$R$2884,2,FALSE),IF($D$6="octubre",VLOOKUP(G14,td!$S$2880:$T$2884,2,FALSE),IF($D$6="noviembre",VLOOKUP(G14,td!$U$2880:$V$2884,2,FALSE),IF($D$6="diciembre",VLOOKUP(G14,td!$W$2880:$X$2884,2,FALSE),0)))))))))))),0) -> 4
G15: Critico | H15: =IFERROR(IF($D$6="enero",VLOOKUP(G15,td!$A$2860:$B$2864,2,FALSE),IF($D$6="febrero",VLOOKUP(G15,td!$C$2860:$D$2864,2,FALSE),IF($D$6="marzo",VLOOKUP(G15,td!$E$2860:$F$2864,2,FALSE),IF($D$6="abril",VLOOKUP(G15,td!$G$2860:$H$2864,2,FALSE),IF($D$6="mayo",VLOOKUP(G15,td!$I$2860:$J$2864,2,FALSE),IF($D$6="junio",VLOOKUP(G15,td!$K$2860:$L$2864,2,FALSE),IF($D$6="julio",VLOOKUP(G15,td!$M$2860:$N$2864,2,FALSE),IF($D$6="agosto",VLOOKUP(G15,td!$O$2860:$P$2864,2,FALSE),IF($D$6="septiembre",VLOOKUP(G15,td!$Q$2860:$R$2864,2,FALSE),IF($D$6="octubre",VLOOKUP(G15,td!$S$2860:$T$2864,2,FALSE),IF($D$6="noviembre",VLOOKUP(G15,td!$U$2860:$V$2864,2,FALSE),IF($D$6="diciembre",VLOOKUP(G15,td!$W$2860:$X$2864,2,FALSE),0)))))))))))),0) -> 1 | I15: =IFERROR(IF($D$6="enero",VLOOKUP(G15,td!$A$2870:$B$2874,2,FALSE),IF($D$6="febrero",VLOOKUP(G15,td!$C$2870:$D$2874,2,FALSE),IF($D$6="marzo",VLOOKUP(G15,td!$E$2870:$F$2874,2,FALSE),IF($D$6="abril",VLOOKUP(G15,td!$G$2870:$H$2874,2,FALSE),IF($D$6="mayo",VLOOKUP(G15,td!$I$2870:$J$2874,2,FALSE),IF($D$6="junio",VLOOKUP(G15,td!$K$2870:$L$2874,2,FALSE),IF($D$6="julio",VLOOKUP(G15,td!$M$2870:$N$2874,2,FALSE),IF($D$6="agosto",VLOOKUP(G15,td!$O$2870:$P$2874,2,FALSE),IF($D$6="septiembre",VLOOKUP(G15,td!$Q$2870:$R$2874,2,FALSE),IF($D$6="octubre",VLOOKUP(G15,td!$S$2870:$T$2874,2,FALSE),IF($D$6="noviembre",VLOOKUP(G15,td!$U$2870:$V$2874,2,FALSE),IF($D$6="diciembre",VLOOKUP(G15,td!$W$2870:$X$2874,2,FALSE),0)))))))))))),0) -> 1 | J15: =IFERROR(IF($D$6="enero",VLOOKUP(G15,td!$A$2880:$B$2884,2,FALSE),IF($D$6="febrero",VLOOKUP(G15,td!$C$2880:$D$2884,2,FALSE),IF($D$6="marzo",VLOOKUP(G15,td!$E$2880:$F$2884,2,FALSE),IF($D$6="abril",VLOOKUP(G15,td!$G$2880:$H$2884,2,FALSE),IF($D$6="mayo",VLOOKUP(G15,td!$I$2880:$J$2884,2,FALSE),IF($D$6="junio",VLOOKUP(G15,td!$K$2880:$L$2884,2,FALSE),IF($D$6="julio",VLOOKUP(G15,td!$M$2880:$N$2884,2,FALSE),IF($D$6="agosto",VLOOKUP(G15,td!$O$2880:$P$2884,2,FALSE),IF($D$6="septiembre",VLOOKUP(G15,td!$Q$2880:$R$2884,2,FALSE),IF($D$6="octubre",VLOOKUP(G15,td!$S$2880:$T$2884,2,FALSE),IF($D$6="noviembre",VLOOKUP(G15,td!$U$2880:$V$2884,2,FALSE),IF($D$6="diciembre",VLOOKUP(G15,td!$W$2880:$X$2884,2,FALSE),0)))))))))))),0) -> 4
G16: NA | H16: =IFERROR(IF($D$6="enero",VLOOKUP(G16,td!$A$2860:$B$2864,2,FALSE),IF($D$6="febrero",VLOOKUP(G16,td!$C$2860:$D$2864,2,FALSE),IF($D$6="marzo",VLOOKUP(G16,td!$E$2860:$F$2864,2,FALSE),IF($D$6="abril",VLOOKUP(G16,td!$G$2860:$H$2864,2,FALSE),IF($D$6="mayo",VLOOKUP(G16,td!$I$2860:$J$2864,2,FALSE),IF($D$6="junio",VLOOKUP(G16,td!$K$2860:$L$2864,2,FALSE),IF($D$6="julio",VLOOKUP(G16,td!$M$2860:$N$2864,2,FALSE),IF($D$6="agosto",VLOOKUP(G16,td!$O$2860:$P$2864,2,FALSE),IF($D$6="septiembre",VLOOKUP(G16,td!$Q$2860:$R$2864,2,FALSE),IF($D$6="octubre",VLOOKUP(G16,td!$S$2860:$T$2864,2,FALSE),IF($D$6="noviembre",VLOOKUP(G16,td!$U$2860:$V$2864,2,FALSE),IF($D$6="diciembre",VLOOKUP(G16,td!$W$2860:$X$2864,2,FALSE),0)))))))))))),0) -> 3 | I16: =IFERROR(IF($D$6="enero",VLOOKUP(G16,td!$A$2870:$B$2874,2,FALSE),IF($D$6="febrero",VLOOKUP(G16,td!$C$2870:$D$2874,2,FALSE),IF($D$6="marzo",VLOOKUP(G16,td!$E$2870:$F$2874,2,FALSE),IF($D$6="abril",VLOOKUP(G16,td!$G$2870:$H$2874,2,FALSE),IF($D$6="mayo",VLOOKUP(G16,td!$I$2870:$J$2874,2,FALSE),IF($D$6="junio",VLOOKUP(G16,td!$K$2870:$L$2874,2,FALSE),IF($D$6="julio",VLOOKUP(G16,td!$M$2870:$N$2874,2,FALSE),IF($D$6="agosto",VLOOKUP(G16,td!$O$2870:$P$2874,2,FALSE),IF($D$6="septiembre",VLOOKUP(G16,td!$Q$2870:$R$2874,2,FALSE),IF($D$6="octubre",VLOOKUP(G16,td!$S$2870:$T$2874,2,FALSE),IF($D$6="noviembre",VLOOKUP(G16,td!$U$2870:$V$2874,2,FALSE),IF($D$6="diciembre",VLOOKUP(G16,td!$W$2870:$X$2874,2,FALSE),0)))))))))))),0) -> 2 | J16: =IFERROR(IF($D$6="enero",VLOOKUP(G16,td!$A$2880:$B$2884,2,FALSE),IF($D$6="febrero",VLOOKUP(G16,td!$C$2880:$D$2884,2,FALSE),IF($D$6="marzo",VLOOKUP(G16,td!$E$2880:$F$2884,2,FALSE),IF($D$6="abril",VLOOKUP(G16,td!$G$2880:$H$2884,2,FALSE),IF($D$6="mayo",VLOOKUP(G16,td!$I$2880:$J$2884,2,FALSE),IF($D$6="junio",VLOOKUP(G16,td!$K$2880:$L$2884,2,FALSE),IF($D$6="julio",VLOOKUP(G16,td!$M$2880:$N$2884,2,FALSE),IF($D$6="agosto",VLOOKUP(G16,td!$O$2880:$P$2884,2,FALSE),IF($D$6="septiembre",VLOOKUP(G16,td!$Q$2880:$R$2884,2,FALSE),IF($D$6="octubre",VLOOKUP(G16,td!$S$2880:$T$2884,2,FALSE),IF($D$6="noviembre",VLOOKUP(G16,td!$U$2880:$V$2884,2,FALSE),IF($D$6="diciembre",VLOOKUP(G16,td!$W$2880:$X$2884,2,FALSE),0)))))))))))),0) -> 9
G17: Total | H17: =SUM(H12:H16) -> 27 | I17: =SUM(I12:I16) -> 15 | J17: =SUM(J12:J16) -> 79
H19: Información macroregional
H21: Macroregional: | I21: =+VLOOKUP(B3,referencias!$T$20:$U$57,2,FALSE) -> Centro Oriente
I25: Regionales | J25: % avance | L25: puesto
H26: 1 | I26: =+IFERROR(VLOOKUP($I$21&H26,referencias!$S$20:$T$57,2,FALSE),"") -> Bogotá | J26: =+IFERROR(VLOOKUP("PA."&M26,td!$A$180:$AN$213,$T$3,FALSE),"") -> 0.9196868009 | K26: =+J26 -> 0.9196868009 | L26: =+IFERROR(VLOOKUP(M26,td!$B$180:$BA$214,$U$3,FALSE),"") -> 1 | M26: =+IFERROR(VLOOKUP(I26,'tc regional gral'!$AZ$5:$BA$2690,2,FALSE),"") -> 11
H27: 2 | I27: =+IFERROR(VLOOKUP($I$21&H27,referencias!$S$20:$T$57,2,FALSE),"") -> Boyacá | J27: =+IFERROR(VLOOKUP("PA."&M27,td!$A$180:$AN$213,$T$3,FALSE),"") -> 0.9072427293 | K27: =+J27 -> 0.9072427293 | L27: =+IFERROR(VLOOKUP(M27,td!$B$180:$BA$214,$U$3,FALSE),"") -> 2 | M27: =+IFERROR(VLOOKUP(I27,'tc regional gral'!$AZ$5:$BA$2690,2,FALSE),"") -> 15
H28: 3 | I28: =+IFERROR(VLOOKUP($I$21&H28,referencias!$S$20:$T$57,2,FALSE),"") -> Cundinamarca | J28: =+IFERROR(VLOOKUP("PA."&M28,td!$A$180:$AN$213,$T$3,FALSE),"") -> 0.9000252781 | K28: 0.9000252781 | L28: =+IFERROR(VLOOKUP(M28,td!$B$180:$BA$214,$U$3,FALSE),"") -> 5 | M28: =+IFERROR(VLOOKUP(I28,'tc regional gral'!$AZ$5:$BA$2690,2,FALSE),"") -> 25
H29: 4 | I29: =+IFERROR(VLOOKUP($I$21&H29,referencias!$S$20:$T$57,2,FALSE),"") -> N Santander | J29: =+IFERROR(VLOOKUP("PA."&M29,td!$A$180:$AN$213,$T$3,FALSE),"") -> 0.9001263903 | K29: 0.9001263903 | L29: =+IFERROR(VLOOKUP(M29,td!$B$180:$BA$214,$U$3,FALSE),"") -> 4 | M29: =+IFERROR(VLOOKUP(I29,'tc regional gral'!$AZ$5:$BA$2690,2,FALSE),"") -> 54
H30: 5 | I30: =+IFERROR(VLOOKUP($I$21&H30,referencias!$S$20:$T$57,2,FALSE),"") -> Santander | J30: =+IFERROR(VLOOKUP("PA."&M30,td!$A$180:$AN$213,$T$3,FALSE),"") -> 0.9043547531 | K30: 0.9043547531 | L30: =+IFERROR(VLOOKUP(M30,td!$B$180:$BA$214,$U$3,FALSE),"") -> 3 | M30: =+IFERROR(VLOOKUP(I30,'tc regional gral'!$AZ$5:$BA$2690,2,FALSE),"") -> 68
H31: 6 | I31: =+IFERROR(VLOOKUP($I$21&H31,referencias!$S$20:$T$57,2,FALSE),"") ->  | J31: =+IFERROR(VLOOKUP("PA."&M31,td!$A$180:$AN$213,$T$3,FALSE),"") ->  | L31: =+IFERROR(VLOOKUP(M31,td!$B$180:$BA$214,$U$3,FALSE),"") ->  | M31: =+IFERROR(VLOOKUP(I31,'tc regional gral'!$AZ$5:$BA$2690,2,FALSE),"") -> 
H32: 7 | I32: =+IFERROR(VLOOKUP($I$21&H32,referencias!$S$20:$T$57,2,FALSE),"") ->  | J32: =+IFERROR(VLOOKUP("PA."&M32,td!$A$180:$AN$213,$T$3,FALSE),"") ->  | L32: =+IFERROR(VLOOKUP(M32,td!$B$180:$BA$214,$U$3,FALSE),"") ->  | M32: =+IFERROR(VLOOKUP(I32,'tc regional gral'!$AZ$5:$BA$2690,2,FALSE),"") -> 
H33: 8 | I33: =+IFERROR(VLOOKUP($I$21&H33,referencias!$S$20:$T$57,2,FALSE),"") ->  | J33: =+IFERROR(VLOOKUP("PA."&M33,td!$A$180:$AN$213,$T$3,FALSE),"") ->  | L33: =+IFERROR(VLOOKUP(M33,td!$B$180:$BA$214,$U$3,FALSE),"") ->  | M33: =+IFERROR(VLOOKUP(I33,'tc regional gral'!$AZ$5:$BA$2690,2,FALSE),"") -> 
C65: Sección 2: Comportamiento general agregados
C67: Objetivos institucionales
E69: Objetivo 1: | F69: Ampliar cobertura y mejorar calidad en la atención integral a la Primera Infancia.
E70: Objetivo 2: | F70: Promover los derechos de los NNA y prevenir los riesgos o amenazas de vulneración de los mismos
E71: Objetivo 3: | F71: Fortalecer en las familias y comunidades étnicas capacidades que promuevan su desarrollo, fortalezcan sus vínculos de cuidado mutuo y prevengan la violencia intrafamiliar y de género.
E72: Objetivo 4: | F72: Promover la seguridad alimentaria y nutricional en el desarrollo de la primera infancia, los NNA y la familia.
E73: Objetivo 5: | F73: Garantizar la protección integral de los NNA en coordinación con las instancias del SNBF.
E74: Objetivo 6: | F74: Lograr una adecuada y eficiente gestión institucional a través de la articulación entre servidores, áreas y niveles territoriales; el apoyo administrativo a los procesos misionales, la apropiación de una cultura de la evaluación y la optimización del uso de los recursos
C79: Plan de Acción / Líneas de Política
C81: Lineas de Politica | E81: Componentes
H82: Lineas de Politica | M82: Componentes
G83: LP1: | H83: Gestión misional y de gobierno | L83: LP1-C1: | M83: Indicadores y metas de gobierno
G84: LP2: | H84: Transparencia, participación y servicio al ciudadano | L84: LP2-C2: | M84: Participación Ciudadana en la Gestión
L85: LP2-C3: | M85: Rendición de cuentas
L86: LP2-C4: | M86: Servicio al ciudadano
G87: LP3: | H87: Gestión del talento humano | L87: LP3-C3: | M87: Capacitación
L88: LP3-C4: | M88: Bienestar e Incentivos
G89: LP5: | H89: Gestión Financiera | L89: LP5-C2: | M89: Programa Anual Mensualizado de Caja – PAC
L90: LP5-C4: | M90: Plan Anual de Adquisiciones (PAA)
C95: Macroprocesos / Procesos
C97: Macroprocesos | E97: Procesos | H97: Macroprocesos | M97: Procesos
G98: MPM1: | H98: Gestión para la Atención Integral a la Primera Infancia
G99: MPM2: | H99: Gestión para la promoción y Prevención para la protección integral de las niñez y la adolescencia
G100: MPM3: | H100: Gestión para la atención de las familias y comunidades
G101: MPM4: | H101: Gestión para la Nutrición
G102: MPM5: | H102: Gestión para la Protección | L102: MPM5-P1: | M102: Gestión Restablecimiento de Derechos
L103: MPM5-P2: | M103: Gestión de Adopciones
L104: MPM5-P3: | M104: Gestión Responsabilidad Penal
G105: MPA1: | H105: Gestión Soporte | L105: MPA1-P1: | M105: Gestión Humana
L106: MPA1-P2: | M106: Gestión Financiera
L107: MPA1-P4: | M107: Gestión Abastecimiento
L108: MPA1-P5: | M108: Gestión Administrativa
L109: MPA1-P6: | M109: Gestión Contratación
G110: MPA2: | H110: Gestión Jurídica
G111: MPA5: | H111: Gestión Servicio y Atención | L111: MPA5-P2: | M111: Gestión Atención PQR y sugerencias
G112: MPA6: | H112: Gestión Tecnológica
G113: MPE2: | H113: Mejoramiento Continuo
G114: MPE3: | H114: Coordinación y Articulación del SNBF
G115: MPEV1: | H115: Evaluación, Monitoreo y Control de la Gestión | L115: MPEV1-P1: | M115: Evaluación y Monitoreo de la Gestión
C119: Objetivos SIGE
E121: SIGE1: | F121: Ampliar cobertura y mejorar calidad en la atención integral a la Primera Infancia.
E122: SIGE2: | F122: Promover los derechos de los NNA y prevenir los riesgos o amenazas de vulneración de los mismos
E123: SIGE3: | F123: Fortalecer en las familias y comunidades étnicas capacidades que promuevan su desarrollo, fortalezcan sus vínculos de cuidado mutuo y prevengan la violencia intrafamiliar y de género.
E124: SIGE4: | F124: Promover la seguridad alimentaria y nutricional en el desarrollo de la primera infancia, los NNA y la familia.
E125: SIGE5: | F125: Garantizar la protección integral de los NNA en coordinación con las instancias del SNBF.
E126: SIGE6: | F126: Lograr una adecuada y eficiente gestión institucional a través de la articulación entre servidores, áreas y niveles territoriales; el apoyo administrativo a los procesos misionales, la apropiación de una cultura de la evaluación y la optimización del uso de los recursos
E127: SIGE7: | F127: Promover condiciones laborales que hagan del ICBF el mejor lugar para trabajar.
E128: SIGE8: | F128: Reducir los impactos ambientales generados por nuestra actividad.
E129: SIGE10: | F129: Gestionar el conocimiento institucional, con sistemas de información confiables, integrados y disponibles.
C133: Areas
D136: Áreas | F136: Áreas
E137: M1 | F137: Dirección de Primera Infancia
E138: M2 | F138: Dirección de Niñez y Adolescencia
E139: M3 | F139: Dirección de Familia y Comunidades
E140: M4 | F140: Dirección de Nutrición
E141: M5 | F141: Dirección de Protección
E143: A1 | F143: Dirección de Gestión Humana
E144: A2 | F144: Dirección Financiera
E145: A4 | F145: Dirección de Abastecimiento
E146: A5 | F146: Dirección Administrativa
E147: A6 | F147: Dirección de Contratación
E148: A7 | F148: Oficina Asesora Jurídica
E149: A10 | F149: Dirección de Servicio y Atención
E150: A11 | F150: Dirección de Información y Tecnología
E151: A12 | F151: Oficina Asesora de Comunicaciones
E152: A13 | F152: Dirección de Planeación
E153: A14 | F153: Dirección del SNBF
C158: Sección 3: Analisis agregados e indicadores
C160: Categoria | D160: Objetivos Institucionales | E160: =IFERROR(VLOOKUP(D160,referencias!$I$13:$L$18,4,FALSE),"") -> objet_ins_reg
C162: =IFERROR("Seleccionar código de "&VLOOKUP(D160,referencias!$B$13:$C$18,2,FALSE),"") -> Seleccionar código de Objetivo
C164: Código | D164: 1 | E164: =+IFERROR(VLOOKUP(D164,referencias!$J$20:$K$125,2,FALSE),"") -> -
C166: =IFERROR(VLOOKUP(D160,referencias!$B$13:$C$17,2,FALSE),"") -> Objetivo | D166: =IFERROR(VLOOKUP(D164,td!$B$4:$C$175,2,FALSE),"") -> Ampliar cobertura y mejorar calidad en la atención integral a la Primera Infancia.
C168: =IFERROR(IF(VLOOKUP(D160,referencias!$B$13:$D$17,3,FALSE)="","","Seleccionar código de "&VLOOKUP(D160,referencias!$B$13:$D$17,3,FALSE)),"") -> 
C170: =+IF(C168="","","Código") -> 
C172: =+IF(C168="","",VLOOKUP(D160,referencias!$B$13:$D$17,3,FALSE)) ->  | D172: =+IFERROR(VLOOKUP(D170,td!$B$4:$C$175,2,FALSE),"") -> 
I174: Comportamiento gral.
F176: Avance reg | I176: Optimo | J176: =+COUNTIF($K$184:$K$259,"optimo") -> 3
F177: =+IFERROR(VLOOKUP(C182&"."&R3,td!$A$180:$AN$2813,$T$3,FALSE),"") -> 0.9042810985 | I177: Adecuado | J177: =+COUNTIF($K$184:$K$259,"adecuado") -> 7
I178: En riesgo | J178: =+COUNTIF($K$184:$K$259,"en riesgo") -> 0
I179: Critico | J179: =+COUNTIF($K$184:$K$259,"critico") -> 0
I180: NA | J180: =+COUNTIF($K$184:$K$259,"NA") -> 0
I181: Total | J181: =SUM(J176:J180) -> 10
C182: =+IF(D170="",D164,D170) -> 1 | F182: 2 | G182: =+VLOOKUP($D$6,referencias!$N$1:$S$12,2,FALSE) -> 58 | H182: =+VLOOKUP($D$6,referencias!$N$1:$S$12,3,FALSE) -> 59 | I182: =+VLOOKUP($D$6,referencias!$N$1:$S$12,4,FALSE) -> 60 | J182: =+VLOOKUP($D$6,referencias!$N$1:$S$12,5,FALSE) -> 61 | K182: =+VLOOKUP($D$6,referencias!$N$1:$S$12,6,FALSE) -> 62
C183: Cod indicador | D183: Indicador | F183: Meta | G183: Numerador | H183: Denominador | I183: Avance | J183: % avance
A184: 1 | B184: =+$C$182&"."&A184 -> 1.1 | C184: =+IFERROR(VLOOKUP(B184,referencias!$J$128:$K$1212,2,FALSE),"") -> PA-01 | D184: =IFERROR(VLOOKUP(C184,'tc nacional'!$AA$7:$AB$201,2,FALSE),"") -> Número de niños y niñas atendidos en el marco de la Atención Integral. | F184: =IFERROR(IF(VLOOKUP($C184&$B$3,base!$D$4:$AI$3035,F$182,FALSE)>1,IF(VLOOKUP($C184&$B$3,base!$D$4:$AI$3035,F$182,FALSE)>1000,TEXT(VLOOKUP($C184&$B$3,base!$D$4:$AI$3035,F$182,FALSE),"0.000"),TEXT(VLOOKUP($C184&$B$3,base!$D$4:$AI$3035,F$182,FALSE),"0")),TEXT(VLOOKUP($C184&$B$3,base!$D$4:$AI$3035,F$182,FALSE),"0,0%")),"") -> 22.968 | G184: =IFERROR(IF(VLOOKUP($C184&$B$3,base!$D$4:$BM$3035,G$182,FALSE)>1000,TEXT(VLOOKUP($C184&$B$3,base!$D$4:$BM$3035,G$182,FALSE),"0.000"),TEXT(VLOOKUP($C184&$B$3,base!$D$4:$BM$3035,G$182,FALSE),"0")),"") -> 23.493 | H184: =IFERROR(IF(VLOOKUP($C184&$B$3,base!$D$4:$BM$3035,H$182,FALSE)>1000,TEXT(VLOOKUP($C184&$B$3,base!$D$4:$BM$3035,H$182,FALSE),"0.000"),TEXT(VLOOKUP($C184&$B$3,base!$D$4:$BM$3035,H$182,FALSE),"0")),"") -> 23.576 | I184: =IFERROR(IF(VLOOKUP($C184&$B$3,base!$D$4:$BM$3035,I$182,FALSE)>1,IF(VLOOKUP($C184&$B$3,base!$D$4:$BM$3035,I$182,FALSE)>1000,TEXT(VLOOKUP($C184&$B$3,base!$D$4:$BM$3035,I$182,FALSE),"0.000"),TEXT(VLOOKUP($C184&$B$3,base!$D$4:$BM$3035,I$182,FALSE),"0")),TEXT(VLOOKUP($C184&$B$3,base!$D$4:$BM$3035,I$182,FALSE),"0,0%")),"") -> 23.493 | J184: =IFERROR(IF(VLOOKUP($C184&$B$3,base!$D$4:$BM$3035,J$182,FALSE)>1,IF(VLOOKUP($C184&$B$3,base!$D$4:$BM$3035,J$182,FALSE)>1000,TEXT(VLOOKUP($C184&$B$3,base!$D$4:$BM$3035,J$182,FALSE),"0.000"),TEXT(VLOOKUP($C184&$B$3,base!$D$4:$BM$3035,J$182,FALSE),"0")),TEXT(VLOOKUP($C184&$B$3,base!$D$4:$BM$3035,J$182,FALSE),"0,0%")),"") -> 99,6% | K184: =IFERROR(IF(VLOOKUP($C184&$B$3,base!$D$4:$BM$3035,K$182,FALSE)>1,IF(VLOOKUP($C184&$B$3,base!$D$4:$BM$3035,K$182,FALSE)>1000,TEXT(VLOOKUP($C184&$B$3,base!$D$4:$BM$3035,K$182,FALSE),"0.000"),TEXT(VLOOKUP($C184&$B$3,base!$D$4:$BM$3035,K$182,FALSE),"0")),TEXT(VLOOKUP($C184&$B$3,base!$D$4:$BM$3035,K$182,FALSE),"0,0%")),"") -> ADECUADO
A185: 2 | B185: =+$C$182&"."&A185 -> 1.2 | C185: =+IFERROR(VLOOKUP(B185,referencias!$J$128:$K$1212,2,FALSE),"") -> PA-10 | D185: =IFERROR(VLOOKUP(C185,'tc nacional'!$AA$7:$AB$201,2,FALSE),"") -> Número de visitas de supervisión realizadas a las modalidades de Primera Infancia. | F185: =IFERROR(IF(VLOOKUP($C185&$B$3,base!$D$4:$AI$3035,F$182,FALSE)>1,IF(VLOOKUP($C185&$B$3,base!$D$4:$AI$3035,F$182,FALSE)>1000,TEXT(VLOOKUP($C185&$B$3,base!$D$4:$AI$3035,F$182,FALSE),"0.000"),TEXT(VLOOKUP($C185&$B$3,base!$D$4:$AI$3035,F$182,FALSE),"0")),TEXT(VLOOKUP($C185&$B$3,base!$D$4:$AI$3035,F$182,FALSE),"0,0%")),"") -> 2.207 | G185: =IFERROR(IF(VLOOKUP($C185&$B$3,base!$D$4:$BM$3035,G$182,FALSE)>1000,TEXT(VLOOKUP($C185&$B$3,base!$D$4:$BM$3035,G$182,FALSE),"0.000"),TEXT(VLOOKUP($C185&$B$3,base!$D$4:$BM$3035,G$182,FALSE),"0")),"") -> 2.349 | H185: =IFERROR(IF(VLOOKUP($C185&$B$3,base!$D$4:$BM$3035,H$182,FALSE)>1000,TEXT(VLOOKUP($C185&$B$3,base!$D$4:$BM$3035,H$182,FALSE),"0.000"),TEXT(VLOOKUP($C185&$B$3,base!$D$4:$BM$3035,H$182,FALSE),"0")),"") -> 2.207 | I185: =IFERROR(IF(VLOOKUP($C185&$B$3,base!$D$4:$BM$3035,I$182,FALSE)>1,IF(VLOOKUP($C185&$B$3,base!$D$4:$BM$3035,I$182,FALSE)>1000,TEXT(VLOOKUP($C185&$B$3,base!$D$4:$BM$3035,I$182,FALSE),"0.000"),TEXT(VLOOKUP($C185&$B$3,base!$D$4:$BM$3035,I$182,FALSE),"0")),TEXT(VLOOKUP($C185&$B$3,base!$D$4:$BM$3035,I$182,FALSE),"0,0%")),"") -> 2.349 | J185: =IFERROR(IF(VLOOKUP($C185&$B$3,base!$D$4:$BM$3035,J$182,FALSE)>1,IF(VLOOKUP($C185&$B$3,base!$D$4:$BM$3035,J$182,FALSE)>1000,TEXT(VLOOKUP($C185&$B$3,base!$D$4:$BM$3035,J$182,FALSE),"0.000"),TEXT(VLOOKUP($C185&$B$3,base!$D$4:$BM$3035,J$182,FALSE),"0")),TEXT(VLOOKUP($C185&$B$3,base!$D$4:$BM$3035,J$182,FALSE),"0,0%")),"") -> 1 | K185: =IFERROR(IF(VLOOKUP($C185&$B$3,base!$D$4:$BM$3035,K$182,FALSE)>1,IF(VLOOKUP($C185&$B$3,base!$D$4:$BM$3035,K$182,FALSE)>1000,TEXT(VLOOKUP($C185&$B$3,base!$D$4:$BM$3035,K$182,FALSE),"0.000"),TEXT(VLOOKUP($C185&$B$3,base!$D$4:$BM$3035,K$182,FALSE),"0")),TEXT(VLOOKUP($C185&$B$3,base!$D$4:$BM$3035,K$182,FALSE),"0,0%")),"") -> OPTIMO
A186: 3 | B186: 1.3 | C186: =+IFERROR(VLOOKUP(B186,referencias!$J$128:$K$1212,2,FALSE),"") -> MPM1-01 | D186: =IFERROR(VLOOKUP(C186,'tc nacional'!$AA$7:$AB$201,2,FALSE),"") -> Número de niños y niñas atendidos en Hogares Comunitarios de Bienestar Tradicionales. | F186: =IFERROR(IF(VLOOKUP($C186&$B$3,base!$D$4:$AI$3035,F$182,FALSE)>1,IF(VLOOKUP($C186&$B$3,base!$D$4:$AI$3035,F$182,FALSE)>1000,TEXT(VLOOKUP($C186&$B$3,base!$D$4:$AI$3035,F$182,FALSE),"0.000"),TEXT(VLOOKUP($C186&$B$3,base!$D$4:$AI$3035,F$182,FALSE),"0")),TEXT(VLOOKUP($C186&$B$3,base!$D$4:$AI$3035,F$182,FALSE),"0,0%")),"") -> 34.764 | G186: =IFERROR(IF(VLOOKUP($C186&$B$3,base!$D$4:$BM$3035,G$182,FALSE)>1000,TEXT(VLOOKUP($C186&$B$3,base!$D$4:$BM$3035,G$182,FALSE),"0.000"),TEXT(VLOOKUP($C186&$B$3,base!$D$4:$BM$3035,G$182,FALSE),"0")),"") -> 31.682 | H186: =IFERROR(IF(VLOOKUP($C186&$B$3,base!$D$4:$BM$3035,H$182,FALSE)>1000,TEXT(VLOOKUP($C186&$B$3,base!$D$4:$BM$3035,H$182,FALSE),"0.000"),TEXT(VLOOKUP($C186&$B$3,base!$D$4:$BM$3035,H$182,FALSE),"0")),"") -> 34.620 | I186: =IFERROR(IF(VLOOKUP($C186&$B$3,base!$D$4:$BM$3035,I$182,FALSE)>1,IF(VLOOKUP($C186&$B$3,base!$D$4:$BM$3035,I$182,FALSE)>1000,TEXT(VLOOKUP($C186&$B$3,base!$D$4:$BM$3035,I$182,FALSE),"0.000"),TEXT(VLOOKUP($C186&$B$3,base!$D$4:$BM$3035,I$182,FALSE),"0")),TEXT(VLOOKUP($C186&$B$3,base!$D$4:$BM$3035,I$182,FALSE),"0,0%")),"") -> 31.682 | J186: =IFERROR(IF(VLOOKUP($C186&$B$3,base!$D$4:$BM$3035,J$182,FALSE)>1,IF(VLOOKUP($C186&$B$3,base!$D$4:$BM$3035,J$182,FALSE)>1000,TEXT(VLOOKUP($C186&$B$3,base!$D$4:$BM$3035,J$182,FALSE),"0.000"),TEXT(VLOOKUP($C186&$B$3,base!$D$4:$BM$3035,J$182,FALSE),"0")),TEXT(VLOOKUP($C186&$B$3,base!$D$4:$BM$3035,J$182,FALSE),"0,0%")),"") -> 91,5% | K186: =IFERROR(IF(VLOOKUP($C186&$B$3,base!$D$4:$BM$3035,K$182,FALSE)>1,IF(VLOOKUP($C186&$B$3,base!$D$4:$BM$3035,K$182,FALSE)>1000,TEXT(VLOOKUP($C186&$B$3,base!$D$4:$BM$3035,K$182,FALSE),"0.000"),TEXT(VLOOKUP($C186&$B$3,base!$D$4:$BM$3035,K$182,FALSE),"0")),TEXT(VLOOKUP($C186&$B$3,base!$D$4:$BM$3035,K$182,FALSE),"0,0%")),"") -> ADECUADO
A187: 4 | B187: 1.4 | C187: =+IFERROR(VLOOKUP(B187,referencias!$J$128:$K$1212,2,FALSE),"") -> MPM1-02 | D187: =IFERROR(VLOOKUP(C187,'tc nacional'!$AA$7:$AB$201,2,FALSE),"") -> Número de niños y niñas con atención a la primera infancia con valoración y seguimiento nutricional. | F187: =IFERROR(IF(VLOOKUP($C187&$B$3,base!$D$4:$AI$3035,F$182,FALSE)>1,IF(VLOOKUP($C187&$B$3,base!$D$4:$AI$3035,F$182,FALSE)>1000,TEXT(VLOOKUP($C187&$B$3,base!$D$4:$AI$3035,F$182,FALSE),"0.000"),TEXT(VLOOKUP($C187&$B$3,base!$D$4:$AI$3035,F$182,FALSE),"0")),TEXT(VLOOKUP($C187&$B$3,base!$D$4:$AI$3035,F$182,FALSE),"0,0%")),"") -> 22.968 | G187: =IFERROR(IF(VLOOKUP($C187&$B$3,base!$D$4:$BM$3035,G$182,FALSE)>1000,TEXT(VLOOKUP($C187&$B$3,base!$D$4:$BM$3035,G$182,FALSE),"0.000"),TEXT(VLOOKUP($C187&$B$3,base!$D$4:$BM$3035,G$182,FALSE),"0")),"") -> 47.917 | H187: =IFERROR(IF(VLOOKUP($C187&$B$3,base!$D$4:$BM$3035,H$182,FALSE)>1000,TEXT(VLOOKUP($C187&$B$3,base!$D$4:$BM$3035,H$182,FALSE),"0.000"),TEXT(VLOOKUP($C187&$B$3,base!$D$4:$BM$3035,H$182,FALSE),"0")),"") -> 49.424 | I187: =IFERROR(IF(VLOOKUP($C187&$B$3,base!$D$4:$BM$3035,I$182,FALSE)>1,IF(VLOOKUP($C187&$B$3,base!$D$4:$BM$3035,I$182,FALSE)>1000,TEXT(VLOOKUP($C187&$B$3,base!$D$4:$BM$3035,I$182,FALSE),"0.000"),TEXT(VLOOKUP($C187&$B$3,base!$D$4:$BM$3035,I$182,FALSE),"0")),TEXT(VLOOKUP($C187&$B$3,base!$D$4:$BM$3035,I$182,FALSE),"0,0%")),"") -> 47.917 | J187: =IFERROR(IF(VLOOKUP($C187&$B$3,base!$D$4:$BM$3035,J$182,FALSE)>1,IF(VLOOKUP($C187&$B$3,base!$D$4:$BM$3035,J$182,FALSE)>1000,TEXT(VLOOKUP($C187&$B$3,base!$D$4:$BM$3035,J$182,FALSE),"0.000"),TEXT(VLOOKUP($C187&$B$3,base!$D$4:$BM$3035,J$182,FALSE),"0")),TEXT(VLOOKUP($C187&$B$3,base!$D$4:$BM$3035,J$182,FALSE),"0,0%")),"") -> 97,0% | K187: =IFERROR(IF(VLOOKUP($C187&$B$3,base!$D$4:$BM$3035,K$182,FALSE)>1,IF(VLOOKUP($C187&$B$3,base!$D$4:$BM$3035,K$182,FALSE)>1000,TEXT(VLOOKUP($C187&$B$3,base!$D$4:$BM$3035,K$182,FALSE),"0.000"),TEXT(VLOOKUP($C187&$B$3,base!$D$4:$BM$3035,K$182,FALSE),"0")),TEXT(VLOOKUP($C187&$B$3,base!$D$4:$BM$3035,K$182,FALSE),"0,0%")),"") -> ADECUADO
A188: 5 | B188: 1.5 | C188: =+IFERROR(VLOOKUP(B188,referencias!$J$128:$K$1212,2,FALSE),"") -> MPM1-03 | D188: =IFERROR(VLOOKUP(C188,'tc nacional'!$AA$7:$AB$201,2,FALSE),"") -> Número de niños y niñas atendidos integralmente que cuentan con registro civil | F188: =IFERROR(IF(VLOOKUP($C188&$B$3,base!$D$4:$AI$3035,F$182,FALSE)>1,IF(VLOOKUP($C188&$B$3,base!$D$4:$AI$3035,F$182,FALSE)>1000,TEXT(VLOOKUP($C188&$B$3,base!$D$4:$AI$3035,F$182,FALSE),"0.000"),TEXT(VLOOKUP($C188&$B$3,base!$D$4:$AI$3035,F$182,FALSE),"0")),TEXT(VLOOKUP($C188&$B$3,base!$D$4:$AI$3035,F$182,FALSE),"0,0%")),"") -> 22.968 | G188: =IFERROR(IF(VLOOKUP($C188&$B$3,base!$D$4:$BM$3035,G$182,FALSE)>1000,TEXT(VLOOKUP($C188&$B$3,base!$D$4:$BM$3035,G$182,FALSE),"0.000"),TEXT(VLOOKUP($C188&$B$3,base!$D$4:$BM$3035,G$182,FALSE),"0")),"") -> 23.147 | H188: =IFERROR(IF(VLOOKUP($C188&$B$3,base!$D$4:$BM$3035,H$182,FALSE)>1000,TEXT(VLOOKUP($C188&$B$3,base!$D$4:$BM$3035,H$182,FALSE),"0.000"),TEXT(VLOOKUP($C188&$B$3,base!$D$4:$BM$3035,H$182,FALSE),"0")),"") -> 23.576 | I188: =IFERROR(IF(VLOOKUP($C188&$B$3,base!$D$4:$BM$3035,I$182,FALSE)>1,IF(VLOOKUP($C188&$B$3,base!$D$4:$BM$3035,I$182,FALSE)>1000,TEXT(VLOOKUP($C188&$B$3,base!$D$4:$BM$3035,I$182,FALSE),"0.000"),TEXT(VLOOKUP($C188&$B$3,base!$D$4:$BM$3035,I$182,FALSE),"0")),TEXT(VLOOKUP($C188&$B$3,base!$D$4:$BM$3035,I$182,FALSE),"0,0%")),"") -> 23.147 | J188: =IFERROR(IF(VLOOKUP($C188&$B$3,base!$D$4:$BM$3035,J$182,FALSE)>1,IF(VLOOKUP($C188&$B$3,base!$D$4:$BM$3035,J$182,FALSE)>1000,TEXT(VLOOKUP($C188&$B$3,base!$D$4:$BM$3035,J$182,FALSE),"0.000"),TEXT(VLOOKUP($C188&$B$3,base!$D$4:$BM$3035,J$182,FALSE),"0")),TEXT(VLOOKUP($C188&$B$3,base!$D$4:$BM$3035,J$182,FALSE),"0,0%")),"") -> 98,2% | K188: =IFERROR(IF(VLOOKUP($C188&$B$3,base!$D$4:$BM$3035,K$182,FALSE)>1,IF(VLOOKUP($C188&$B$3,base!$D$4:$BM$3035,K$182,FALSE)>1000,TEXT(VLOOKUP($C188&$B$3,base!$D$4:$BM$3035,K$182,FALSE),"0.000"),TEXT(VLOOKUP($C188&$B$3,base!$D$4:$BM$3035,K$182,FALSE),"0")),TEXT(VLOOKUP($C188&$B$3,base!$D$4:$BM$3035,K$182,FALSE),"0,0%")),"") -> ADECUADO
A189: 6 | B189: 1.6 | C189: =+IFERROR(VLOOKUP(B189,referencias!$J$128:$K$1212,2,FALSE),"") -> MPM1-04 | D189: =IFERROR(VLOOKUP(C189,'tc nacional'!$AA$7:$AB$201,2,FALSE),"") -> Número de niños y niñas atendidos integralmente que cuentan con esquema de vacunación completo | F189: =IFERROR(IF(VLOOKUP($C189&$B$3,base!$D$4:$AI$3035,F$182,FALSE)>1,IF(VLOOKUP($C189&$B$3,base!$D$4:$AI$3035,F$182,FALSE)>1000,TEXT(VLOOKUP($C189&$B$3,base!$D$4:$AI$3035,F$182,FALSE),"0.000"),TEXT(VLOOKUP($C189&$B$3,base!$D$4:$AI$3035,F$182,FALSE),"0")),TEXT(VLOOKUP($C189&$B$3,base!$D$4:$AI$3035,F$182,FALSE),"0,0%")),"") -> 22.968 | G189: =IFERROR(IF(VLOOKUP($C189&$B$3,base!$D$4:$BM$3035,G$182,FALSE)>1000,TEXT(VLOOKUP($C189&$B$3,base!$D$4:$BM$3035,G$182,FALSE),"0.000"),TEXT(VLOOKUP($C189&$B$3,base!$D$4:$BM$3035,G$182,FALSE),"0")),"") -> 22.802 | H189: =IFERROR(IF(VLOOKUP($C189&$B$3,base!$D$4:$BM$3035,H$182,FALSE)>1000,TEXT(VLOOKUP($C189&$B$3,base!$D$4:$BM$3035,H$182,FALSE),"0.000"),TEXT(VLOOKUP($C189&$B$3,base!$D$4:$BM$3035,H$182,FALSE),"0")),"") -> 23.576 | I189: =IFERROR(IF(VLOOKUP($C189&$B$3,base!$D$4:$BM$3035,I$182,FALSE)>1,IF(VLOOKUP($C189&$B$3,base!$D$4:$BM$3035,I$182,FALSE)>1000,TEXT(VLOOKUP($C189&$B$3,base!$D$4:$BM$3035,I$182,FALSE),"0.000"),TEXT(VLOOKUP($C189&$B$3,base!$D$4:$BM$3035,I$182,FALSE),"0")),TEXT(VLOOKUP($C189&$B$3,base!$D$4:$BM$3035,I$182,FALSE),"0,0%")),"") -> 22.802 | J189: =IFERROR(IF(VLOOKUP($C189&$B$3,base!$D$4:$BM$3035,J$182,FALSE)>1,IF(VLOOKUP($C189&$B$3,base!$D$4:$BM$3035,J$182,FALSE)>1000,TEXT(VLOOKUP($C189&$B$3,base!$D$4:$BM$3035,J$182,FALSE),"0.000"),TEXT(VLOOKUP($C189&$B$3,base!$D$4:$BM$3035,J$182,FALSE),"0")),TEXT(VLOOKUP($C189&$B$3,base!$D$4:$BM$3035,J$182,FALSE),"0,0%")),"") -> 96,7% | K189: =IFERROR(IF(VLOOKUP($C189&$B$3,base!$D$4:$BM$3035,K$182,FALSE)>1,IF(VLOOKUP($C189&$B$3,base!$D$4:$BM$3035,K$182,FALSE)>1000,TEXT(VLOOKUP($C189&$B$3,base!$D$4:$BM$3035,K$182,FALSE),"0.000"),TEXT(VLOOKUP($C189&$B$3,base!$D$4:$BM$3035,K$182,FALSE),"0")),TEXT(VLOOKUP($C189&$B$3,base!$D$4:$BM$3035,K$182,FALSE),"0,0%")),"") -> ADECUADO
A190: 7 | B190: 1.7 | C190: =+IFERROR(VLOOKUP(B190,referencias!$J$128:$K$1212,2,FALSE),"") -> MPM1-05 | D190: =IFERROR(VLOOKUP(C190,'tc nacional'!$AA$7:$AB$201,2,FALSE),"") -> Porcentaje de niños y niñas que durante la atención alcanzan tres de las realizaciones en el marco de la Estrategia de Cero a Siempre | F190: =IFERROR(IF(VLOOKUP($C190&$B$3,base!$D$4:$AI$3035,F$182,FALSE)>1,IF(VLOOKUP($C190&$B$3,base!$D$4:$AI$3035,F$182,FALSE)>1000,TEXT(VLOOKUP($C190&$B$3,base!$D$4:$AI$3035,F$182,FALSE),"0.000"),TEXT(VLOOKUP($C190&$B$3,base!$D$4:$AI$3035,F$182,FALSE),"0")),TEXT(VLOOKUP($C190&$B$3,base!$D$4:$AI$3035,F$182,FALSE),"0,0%")),"") -> 100,0% | G190: =IFERROR(IF(VLOOKUP($C190&$B$3,base!$D$4:$BM$3035,G$182,FALSE)>1000,TEXT(VLOOKUP($C190&$B$3,base!$D$4:$BM$3035,G$182,FALSE),"0.000"),TEXT(VLOOKUP($C190&$B$3,base!$D$4:$BM$3035,G$182,FALSE),"0")),"") -> 1.456 | H190: =IFERROR(IF(VLOOKUP($C190&$B$3,base!$D$4:$BM$3035,H$182,FALSE)>1000,TEXT(VLOOKUP($C190&$B$3,base!$D$4:$BM$3035,H$182,FALSE),"0.000"),TEXT(VLOOKUP($C190&$B$3,base!$D$4:$BM$3035,H$182,FALSE),"0")),"") -> 1.635 | I190: =IFERROR(IF(VLOOKUP($C190&$B$3,base!$D$4:$BM$3035,I$182,FALSE)>1,IF(VLOOKUP($C190&$B$3,base!$D$4:$BM$3035,I$182,FALSE)>1000,TEXT(VLOOKUP($C190&$B$3,base!$D$4:$BM$3035,I$182,FALSE),"0.000"),TEXT(VLOOKUP($C190&$B$3,base!$D$4:$BM$3035,I$182,FALSE),"0")),TEXT(VLOOKUP($C190&$B$3,base!$D$4:$BM$3035,I$182,FALSE),"0,0%")),"") -> 89,1% | J190: =IFERROR(IF(VLOOKUP($C190&$B$3,base!$D$4:$BM$3035,J$182,FALSE)>1,IF(VLOOKUP($C190&$B$3,base!$D$4:$BM$3035,J$182,FALSE)>1000,TEXT(VLOOKUP($C190&$B$3,base!$D$4:$BM$3035,J$182,FALSE),"0.000"),TEXT(VLOOKUP($C190&$B$3,base!$D$4:$BM$3035,J$182,FALSE),"0")),TEXT(VLOOKUP($C190&$B$3,base!$D$4:$BM$3035,J$182,FALSE),"0,0%")),"") -> 89,1% | K190: =IFERROR(IF(VLOOKUP($C190&$B$3,base!$D$4:$BM$3035,K$182,FALSE)>1,IF(VLOOKUP($C190&$B$3,base!$D$4:$BM$3035,K$182,FALSE)>1000,TEXT(VLOOKUP($C190&$B$3,base!$D$4:$BM$3035,K$182,FALSE),"0.000"),TEXT(VLOOKUP($C190&$B$3,base!$D$4:$BM$3035,K$182,FALSE),"0")),TEXT(VLOOKUP($C190&$B$3,base!$D$4:$BM$3035,K$182,FALSE),"0,0%")),"") -> ADECUADO
A191: 8 | B191: 1.8 | C191: =+IFERROR(VLOOKUP(B191,referencias!$J$128:$K$1212,2,FALSE),"") -> MPM1-07 | D191: =IFERROR(VLOOKUP(C191,'tc nacional'!$AA$7:$AB$201,2,FALSE),"") -> Número de niños y niñas en primera infancia cuyos padres o cuidadores participan en procesos de formación. | F191: =IFERROR(IF(VLOOKUP($C191&$B$3,base!$D$4:$AI$3035,F$182,FALSE)>1,IF(VLOOKUP($C191&$B$3,base!$D$4:$AI$3035,F$182,FALSE)>1000,TEXT(VLOOKUP($C191&$B$3,base!$D$4:$AI$3035,F$182,FALSE),"0.000"),TEXT(VLOOKUP($C191&$B$3,base!$D$4:$AI$3035,F$182,FALSE),"0")),TEXT(VLOOKUP($C191&$B$3,base!$D$4:$AI$3035,F$182,FALSE),"0,0%")),"") -> 22.968 | G191: =IFERROR(IF(VLOOKUP($C191&$B$3,base!$D$4:$BM$3035,G$182,FALSE)>1000,TEXT(VLOOKUP($C191&$B$3,base!$D$4:$BM$3035,G$182,FALSE),"0.000"),TEXT(VLOOKUP($C191&$B$3,base!$D$4:$BM$3035,G$182,FALSE),"0")),"") -> 22.944 | H191: =IFERROR(IF(VLOOKUP($C191&$B$3,base!$D$4:$BM$3035,H$182,FALSE)>1000,TEXT(VLOOKUP($C191&$B$3,base!$D$4:$BM$3035,H$182,FALSE),"0.000"),TEXT(VLOOKUP($C191&$B$3,base!$D$4:$BM$3035,H$182,FALSE),"0")),"") -> 23.576 | I191: =IFERROR(IF(VLOOKUP($C191&$B$3,base!$D$4:$BM$3035,I$182,FALSE)>1,IF(VLOOKUP($C191&$B$3,base!$D$4:$BM$3035,I$182,FALSE)>1000,TEXT(VLOOKUP($C191&$B$3,base!$D$4:$BM$3035,I$182,FALSE),"0.000"),TEXT(VLOOKUP($C191&$B$3,base!$D$4:$BM$3035,I$182,FALSE),"0")),TEXT(VLOOKUP($C191&$B$3,base!$D$4:$BM$3035,I$182,FALSE),"0,0%")),"") -> 22.944 | J191: =IFERROR(IF(VLOOKUP($C191&$B$3,base!$D$4:$BM$3035,J$182,FALSE)>1,IF(VLOOKUP($C191&$B$3,base!$D$4:$BM$3035,J$182,FALSE)>1000,TEXT(VLOOKUP($C191&$B$3,base!$D$4:$BM$3035,J$182,FALSE),"0.000"),TEXT(VLOOKUP($C191&$B$3,base!$D$4:$BM$3035,J$182,FALSE),"0")),TEXT(VLOOKUP($C191&$B$3,base!$D$4:$BM$3035,J$182,FALSE),"0,0%")),"") -> 97,3% | K191: =IFERROR(IF(VLOOKUP($C191&$B$3,base!$D$4:$BM$3035,K$182,FALSE)>1,IF(VLOOKUP($C191&$B$3,base!$D$4:$BM$3035,K$182,FALSE)>1000,TEXT(VLOOKUP($C191&$B$3,base!$D$4:$BM$3035,K$182,FALSE),"0.000"),TEXT(VLOOKUP($C191&$B$3,base!$D$4:$BM$3035,K$182,FALSE),"0")),TEXT(VLOOKUP($C191&$B$3,base!$D$4:$BM$3035,K$182,FALSE),"0,0%")),"") -> ADECUADO
A192: 9 | B192: 1.9 | C192: =+IFERROR(VLOOKUP(B192,referencias!$J$128:$K$1212,2,FALSE),"") -> MPM1-08 | D192: =IFERROR(VLOOKUP(C192,'tc nacional'!$AA$7:$AB$201,2,FALSE),"") -> Número de niños y niñas de la Red Unidos con Atención a la Primera Infancia - de acuerdo a criterios ANSPE de atención integral | F192: =IFERROR(IF(VLOOKUP($C192&$B$3,base!$D$4:$AI$3035,F$182,FALSE)>1,IF(VLOOKUP($C192&$B$3,base!$D$4:$AI$3035,F$182,FALSE)>1000,TEXT(VLOOKUP($C192&$B$3,base!$D$4:$AI$3035,F$182,FALSE),"0.000"),TEXT(VLOOKUP($C192&$B$3,base!$D$4:$AI$3035,F$182,FALSE),"0")),TEXT(VLOOKUP($C192&$B$3,base!$D$4:$AI$3035,F$182,FALSE),"0,0%")),"") -> 0,0% | G192: =IFERROR(IF(VLOOKUP($C192&$B$3,base!$D$4:$BM$3035,G$182,FALSE)>1000,TEXT(VLOOKUP($C192&$B$3,base!$D$4:$BM$3035,G$182,FALSE),"0.000"),TEXT(VLOOKUP($C192&$B$3,base!$D$4:$BM$3035,G$182,FALSE),"0")),"") -> 4.403 | H192: =IFERROR(IF(VLOOKUP($C192&$B$3,base!$D$4:$BM$3035,H$182,FALSE)>1000,TEXT(VLOOKUP($C192&$B$3,base!$D$4:$BM$3035,H$182,FALSE),"0.000"),TEXT(VLOOKUP($C192&$B$3,base!$D$4:$BM$3035,H$182,FALSE),"0")),"") -> 3.708 | I192: =IFERROR(IF(VLOOKUP($C192&$B$3,base!$D$4:$BM$3035,I$182,FALSE)>1,IF(VLOOKUP($C192&$B$3,base!$D$4:$BM$3035,I$182,FALSE)>1000,TEXT(VLOOKUP($C192&$B$3,base!$D$4:$BM$3035,I$182,FALSE),"0.000"),TEXT(VLOOKUP($C192&$B$3,base!$D$4:$BM$3035,I$182,FALSE),"0")),TEXT(VLOOKUP($C192&$B$3,base!$D$4:$BM$3035,I$182,FALSE),"0,0%")),"") -> 4.403 | J192: =IFERROR(IF(VLOOKUP($C192&$B$3,base!$D$4:$BM$3035,J$182,FALSE)>1,IF(VLOOKUP($C192&$B$3,base!$D$4:$BM$3035,J$182,FALSE)>1000,TEXT(VLOOKUP($C192&$B$3,base!$D$4:$BM$3035,J$182,FALSE),"0.000"),TEXT(VLOOKUP($C192&$B$3,base!$D$4:$BM$3035,J$182,FALSE),"0")),TEXT(VLOOKUP($C192&$B$3,base!$D$4:$BM$3035,J$182,FALSE),"0,0%")),"") -> 1 | K192: =IFERROR(IF(VLOOKUP($C192&$B$3,base!$D$4:$BM$3035,K$182,FALSE)>1,IF(VLOOKUP($C192&$B$3,base!$D$4:$BM$3035,K$182,FALSE)>1000,TEXT(VLOOKUP($C192&$B$3,base!$D$4:$BM$3035,K$182,FALSE),"0.000"),TEXT(VLOOKUP($C192&$B$3,base!$D$4:$BM$3035,K$182,FALSE),"0")),TEXT(VLOOKUP($C192&$B$3,base!$D$4:$BM$3035,K$182,FALSE),"0,0%")),"") -> OPTIMO
A193: 10 | B193: 1.10 | C193: =+IFERROR(VLOOKUP(B193,referencias!$J$128:$K$1212,2,FALSE),"") -> MPM1-09 | D193: =IFERROR(VLOOKUP(C193,'tc nacional'!$AA$7:$AB$201,2,FALSE),"") -> Número de niños y niñas víctimas de conflicto armado atendidos en las diferentes modalidades de Atención a la Primera Infancia. | F193: =IFERROR(IF(VLOOKUP($C193&$B$3,base!$D$4:$AI$3035,F$182,FALSE)>1,IF(VLOOKUP($C193&$B$3,base!$D$4:$AI$3035,F$182,FALSE)>1000,TEXT(VLOOKUP($C193&$B$3,base!$D$4:$AI$3035,F$182,FALSE),"0.000"),TEXT(VLOOKUP($C193&$B$3,base!$D$4:$AI$3035,F$182,FALSE),"0")),TEXT(VLOOKUP($C193&$B$3,base!$D$4:$AI$3035,F$182,FALSE),"0,0%")),"") -> 0,0% | G193: =IFERROR(IF(VLOOKUP($C193&$B$3,base!$D$4:$BM$3035,G$182,FALSE)>1000,TEXT(VLOOKUP($C193&$B$3,base!$D$4:$BM$3035,G$182,FALSE),"0.000"),TEXT(VLOOKUP($C193&$B$3,base!$D$4:$BM$3035,G$182,FALSE),"0")),"") -> 11.030 | H193: =IFERROR(IF(VLOOKUP($C193&$B$3,base!$D$4:$BM$3035,H$182,FALSE)>1000,TEXT(VLOOKUP($C193&$B$3,base!$D$4:$BM$3035,H$182,FALSE),"0.000"),TEXT(VLOOKUP($C193&$B$3,base!$D$4:$BM$3035,H$182,FALSE),"0")),"") -> 6.950 | I193: =IFERROR(IF(VLOOKUP($C193&$B$3,base!$D$4:$BM$3035,I$182,FALSE)>1,IF(VLOOKUP($C193&$B$3,base!$D$4:$BM$3035,I$182,FALSE)>1000,TEXT(VLOOKUP($C193&$B$3,base!$D$4:$BM$3035,I$182,FALSE),"0.000"),TEXT(VLOOKUP($C193&$B$3,base!$D$4:$BM$3035,I$182,FALSE),"0")),TEXT(VLOOKUP($C193&$B$3,base!$D$4:$BM$3035,I$182,FALSE),"0,0%")),"") -> 11.030 | J193: =IFERROR(IF(VLOOKUP($C193&$B$3,base!$D$4:$BM$3035,J$182,FALSE)>1,IF(VLOOKUP($C193&$B$3,base!$D$4:$BM$3035,J$182,FALSE)>1000,TEXT(VLOOKUP($C193&$B$3,base!$D$4:$BM$3035,J$182,FALSE),"0.000"),TEXT(VLOOKUP($C193&$B$3,base!$D$4:$BM$3035,J$182,FALSE),"0")),TEXT(VLOOKUP($C193&$B$3,base!$D$4:$BM$3035,J$182,FALSE),"0,0%")),"") -> 2 | K193: =IFERROR(IF(VLOOKUP($C193&$B$3,base!$D$4:$BM$3035,K$182,FALSE)>1,IF(VLOOKUP($C193&$B$3,base!$D$4:$BM$3035,K$182,FALSE)>1000,TEXT(VLOOKUP($C193&$B$3,base!$D$4:$BM$3035,K$182,FALSE),"0.000"),TEXT(VLOOKUP($C193&$B$3,base!$D$4:$BM$3035,K$182,FALSE),"0")),TEXT(VLOOKUP($C193&$B$3,base!$D$4:$BM$3035,K$182,FALSE),"0,0%")),"") -> OPTIMO
A194: 11 | B194: 1.11 | C194: =+IFERROR(VLOOKUP(B194,referencias!$J$128:$K$1212,2,FALSE),"") ->  | D194: =IFERROR(VLOOKUP(C194,'tc nacional'!$AA$7:$AB$201,2,FALSE),"") ->  | F194: =IFERROR(IF(VLOOKUP($C194&$B$3,base!$D$4:$AI$3035,F$182,FALSE)>1,IF(VLOOKUP($C194&$B$3,base!$D$4:$AI$3035,F$182,FALSE)>1000,TEXT(VLOOKUP($C194&$B$3,base!$D$4:$AI$3035,F$182,FALSE),"0.000"),TEXT(VLOOKUP($C194&$B$3,base!$D$4:$AI$3035,F$182,FALSE),"0")),TEXT(VLOOKUP($C194&$B$3,base!$D$4:$AI$3035,F$182,FALSE),"0,0%")),"") ->  | G194: =IFERROR(IF(VLOOKUP($C194&$B$3,base!$D$4:$BM$3035,G$182,FALSE)>1000,TEXT(VLOOKUP($C194&$B$3,base!$D$4:$BM$3035,G$182,FALSE),"0.000"),TEXT(VLOOKUP($C194&$B$3,base!$D$4:$BM$3035,G$182,FALSE),"0")),"") ->  | H194: =IFERROR(IF(VLOOKUP($C194&$B$3,base!$D$4:$BM$3035,H$182,FALSE)>1000,TEXT(VLOOKUP($C194&$B$3,base!$D$4:$BM$3035,H$182,FALSE),"0.000"),TEXT(VLOOKUP($C194&$B$3,base!$D$4:$BM$3035,H$182,FALSE),"0")),"") ->  | I194: =IFERROR(IF(VLOOKUP($C194&$B$3,base!$D$4:$BM$3035,I$182,FALSE)>1,IF(VLOOKUP($C194&$B$3,base!$D$4:$BM$3035,I$182,FALSE)>1000,TEXT(VLOOKUP($C194&$B$3,base!$D$4:$BM$3035,I$182,FALSE),"0.000"),TEXT(VLOOKUP($C194&$B$3,base!$D$4:$BM$3035,I$182,FALSE),"0")),TEXT(VLOOKUP($C194&$B$3,base!$D$4:$BM$3035,I$182,FALSE),"0,0%")),"") ->  | J194: =IFERROR(IF(VLOOKUP($C194&$B$3,base!$D$4:$BM$3035,J$182,FALSE)>1,IF(VLOOKUP($C194&$B$3,base!$D$4:$BM$3035,J$182,FALSE)>1000,TEXT(VLOOKUP($C194&$B$3,base!$D$4:$BM$3035,J$182,FALSE),"0.000"),TEXT(VLOOKUP($C194&$B$3,base!$D$4:$BM$3035,J$182,FALSE),"0")),TEXT(VLOOKUP($C194&$B$3,base!$D$4:$BM$3035,J$182,FALSE),"0,0%")),"") ->  | K194: =IFERROR(IF(VLOOKUP($C194&$B$3,base!$D$4:$BM$3035,K$182,FALSE)>1,IF(VLOOKUP($C194&$B$3,base!$D$4:$BM$3035,K$182,FALSE)>1000,TEXT(VLOOKUP($C194&$B$3,base!$D$4:$BM$3035,K$182,FALSE),"0.000"),TEXT(VLOOKUP($C194&$B$3,base!$D$4:$BM$3035,K$182,FALSE),"0")),TEXT(VLOOKUP($C194&$B$3,base!$D$4:$BM$3035,K$182,FALSE),"0,0%")),"") -> 
A195: 12 | B195: 1.12 | C195: =+IFERROR(VLOOKUP(B195,referencias!$J$128:$K$1212,2,FALSE),"") ->  | D195: =IFERROR(VLOOKUP(C195,'tc nacional'!$AA$7:$AB$201,2,FALSE),"") ->  | F195: =IFERROR(IF(VLOOKUP($C195&$B$3,base!$D$4:$AI$3035,F$182,FALSE)>1,IF(VLOOKUP($C195&$B$3,base!$D$4:$AI$3035,F$182,FALSE)>1000,TEXT(VLOOKUP($C195&$B$3,base!$D$4:$AI$3035,F$182,FALSE),"0.000"),TEXT(VLOOKUP($C195&$B$3,base!$D$4:$AI$3035,F$182,FALSE),"0")),TEXT(VLOOKUP($C195&$B$3,base!$D$4:$AI$3035,F$182,FALSE),"0,0%")),"") ->  | G195: =IFERROR(IF(VLOOKUP($C195&$B$3,base!$D$4:$BM$3035,G$182,FALSE)>1000,TEXT(VLOOKUP($C195&$B$3,base!$D$4:$BM$3035,G$182,FALSE),"0.000"),TEXT(VLOOKUP($C195&$B$3,base!$D$4:$BM$3035,G$182,FALSE),"0")),"") ->  | H195: =IFERROR(IF(VLOOKUP($C195&$B$3,base!$D$4:$BM$3035,H$182,FALSE)>1000,TEXT(VLOOKUP($C195&$B$3,base!$D$4:$BM$3035,H$182,FALSE),"0.000"),TEXT(VLOOKUP($C195&$B$3,base!$D$4:$BM$3035,H$182,FALSE),"0")),"") ->  | I195: =IFERROR(IF(VLOOKUP($C195&$B$3,base!$D$4:$BM$3035,I$182,FALSE)>1,IF(VLOOKUP($C195&$B$3,base!$D$4:$BM$3035,I$182,FALSE)>1000,TEXT(VLOOKUP($C195&$B$3,base!$D$4:$BM$3035,I$182,FALSE),"0.000"),TEXT(VLOOKUP($C195&$B$3,base!$D$4:$BM$3035,I$182,FALSE),"0")),TEXT(VLOOKUP($C195&$B$3,base!$D$4:$BM$3035,I$182,FALSE),"0,0%")),"") ->  | J195: =IFERROR(IF(VLOOKUP($C195&$B$3,base!$D$4:$BM$3035,J$182,FALSE)>1,IF(VLOOKUP($C195&$B$3,base!$D$4:$BM$3035,J$182,FALSE)>1000,TEXT(VLOOKUP($C195&$B$3,base!$D$4:$BM$3035,J$182,FALSE),"0.000"),TEXT(VLOOKUP($C195&$B$3,base!$D$4:$BM$3035,J$182,FALSE),"0")),TEXT(VLOOKUP($C195&$B$3,base!$D$4:$BM$3035,J$182,FALSE),"0,0%")),"") ->  | K195: =IFERROR(IF(VLOOKUP($C195&$B$3,base!$D$4:$BM$3035,K$182,FALSE)>1,IF(VLOOKUP($C195&$B$3,base!$D$4:$BM$3035,K$182,FALSE)>1000,TEXT(VLOOKUP($C195&$B$3,base!$D$4:$BM$3035,K$182,FALSE),"0.000"),TEXT(VLOOKUP($C195&$B$3,base!$D$4:$BM$3035,K$182,FALSE),"0")),TEXT(VLOOKUP($C195&$B$3,base!$D$4:$BM$3035,K$182,FALSE),"0,0%")),"") -> 
A196: 13 | B196: 1.13 | C196: =+IFERROR(VLOOKUP(B196,referencias!$J$128:$K$1212,2,FALSE),"") ->  | D196: =IFERROR(VLOOKUP(C196,'tc nacional'!$AA$7:$AB$201,2,FALSE),"") ->  | F196: =IFERROR(IF(VLOOKUP($C196&$B$3,base!$D$4:$AI$3035,F$182,FALSE)>1,IF(VLOOKUP($C196&$B$3,base!$D$4:$AI$3035,F$182,FALSE)>1000,TEXT(VLOOKUP($C196&$B$3,base!$D$4:$AI$3035,F$182,FALSE),"0.000"),TEXT(VLOOKUP($C196&$B$3,base!$D$4:$AI$3035,F$182,FALSE),"0")),TEXT(VLOOKUP($C196&$B$3,base!$D$4:$AI$3035,F$182,FALSE),"0,0%")),"") ->  | G196: =IFERROR(IF(VLOOKUP($C196&$B$3,base!$D$4:$BM$3035,G$182,FALSE)>1000,TEXT(VLOOKUP($C196&$B$3,base!$D$4:$BM$3035,G$182,FALSE),"0.000"),TEXT(VLOOKUP($C196&$B$3,base!$D$4:$BM$3035,G$182,FALSE),"0")),"") ->  | H196: =IFERROR(IF(VLOOKUP($C196&$B$3,base!$D$4:$BM$3035,H$182,FALSE)>1000,TEXT(VLOOKUP($C196&$B$3,base!$D$4:$BM$3035,H$182,FALSE),"0.000"),TEXT(VLOOKUP($C196&$B$3,base!$D$4:$BM$3035,H$182,FALSE),"0")),"") ->  | I196: =IFERROR(IF(VLOOKUP($C196&$B$3,base!$D$4:$BM$3035,I$182,FALSE)>1,IF(VLOOKUP($C196&$B$3,base!$D$4:$BM$3035,I$182,FALSE)>1000,TEXT(VLOOKUP($C196&$B$3,base!$D$4:$BM$3035,I$182,FALSE),"0.000"),TEXT(VLOOKUP($C196&$B$3,base!$D$4:$BM$3035,I$182,FALSE),"0")),TEXT(VLOOKUP($C196&$B$3,base!$D$4:$BM$3035,I$182,FALSE),"0,0%")),"") ->  | J196: =IFERROR(IF(VLOOKUP($C196&$B$3,base!$D$4:$BM$3035,J$182,FALSE)>1,IF(VLOOKUP($C196&$B$3,base!$D$4:$BM$3035,J$182,FALSE)>1000,TEXT(VLOOKUP($C196&$B$3,base!$D$4:$BM$3035,J$182,FALSE),"0.000"),TEXT(VLOOKUP($C196&$B$3,base!$D$4:$BM$3035,J$182,FALSE),"0")),TEXT(VLOOKUP($C196&$B$3,base!$D$4:$BM$3035,J$182,FALSE),"0,0%")),"") ->  | K196: =IFERROR(IF(VLOOKUP($C196&$B$3,base!$D$4:$BM$3035,K$182,FALSE)>1,IF(VLOOKUP($C196&$B$3,base!$D$4:$BM$3035,K$182,FALSE)>1000,TEXT(VLOOKUP($C196&$B$3,base!$D$4:$BM$3035,K$182,FALSE),"0.000"),TEXT(VLOOKUP($C196&$B$3,base!$D$4:$BM$3035,K$182,FALSE),"0")),TEXT(VLOOKUP($C196&$B$3,base!$D$4:$BM$3035,K$182,FALSE),"0,0%")),"") -> 
A197: 14 | B197: 1.14 | C197: =+IFERROR(VLOOKUP(B197,referencias!$J$128:$K$1212,2,FALSE),"") ->  | D197: =IFERROR(VLOOKUP(C197,'tc nacional'!$AA$7:$AB$201,2,FALSE),"") ->  | F197: =IFERROR(IF(VLOOKUP($C197&$B$3,base!$D$4:$AI$3035,F$182,FALSE)>1,IF(VLOOKUP($C197&$B$3,base!$D$4:$AI$3035,F$182,FALSE)>1000,TEXT(VLOOKUP($C197&$B$3,base!$D$4:$AI$3035,F$182,FALSE),"0.000"),TEXT(VLOOKUP($C197&$B$3,base!$D$4:$AI$3035,F$182,FALSE),"0")),TEXT(VLOOKUP($C197&$B$3,base!$D$4:$AI$3035,F$182,FALSE),"0,0%")),"") ->  | G197: =IFERROR(IF(VLOOKUP($C197&$B$3,base!$D$4:$BM$3035,G$182,FALSE)>1000,TEXT(VLOOKUP($C197&$B$3,base!$D$4:$BM$3035,G$182,FALSE),"0.000"),TEXT(VLOOKUP($C197&$B$3,base!$D$4:$BM$3035,G$182,FALSE),"0")),"") ->  | H197: =IFERROR(IF(VLOOKUP($C197&$B$3,base!$D$4:$BM$3035,H$182,FALSE)>1000,TEXT(VLOOKUP($C197&$B$3,base!$D$4:$BM$3035,H$182,FALSE),"0.000"),TEXT(VLOOKUP($C197&$B$3,base!$D$4:$BM$3035,H$182,FALSE),"0")),"") ->  | I197: =IFERROR(IF(VLOOKUP($C197&$B$3,base!$D$4:$BM$3035,I$182,FALSE)>1,IF(VLOOKUP($C197&$B$3,base!$D$4:$BM$3035,I$182,FALSE)>1000,TEXT(VLOOKUP($C197&$B$3,base!$D$4:$BM$3035,I$182,FALSE),"0.000"),TEXT(VLOOKUP($C197&$B$3,base!$D$4:$BM$3035,I$182,FALSE),"0")),TEXT(VLOOKUP($C197&$B$3,base!$D$4:$BM$3035,I$182,FALSE),"0,0%")),"") ->  | J197: =IFERROR(IF(VLOOKUP($C197&$B$3,base!$D$4:$BM$3035,J$182,FALSE)>1,IF(VLOOKUP($C197&$B$3,base!$D$4:$BM$3035,J$182,FALSE)>1000,TEXT(VLOOKUP($C197&$B$3,base!$D$4:$BM$3035,J$182,FALSE),"0.000"),TEXT(VLOOKUP($C197&$B$3,base!$D$4:$BM$3035,J$182,FALSE),"0")),TEXT(VLOOKUP($C197&$B$3,base!$D$4:$BM$3035,J$182,FALSE),"0,0%")),"") ->  | K197: =IFERROR(IF(VLOOKUP($C197&$B$3,base!$D$4:$BM$3035,K$182,FALSE)>1,IF(VLOOKUP($C197&$B$3,base!$D$4:$BM$3035,K$182,FALSE)>1000,TEXT(VLOOKUP($C197&$B$3,base!$D$4:$BM$3035,K$182,FALSE),"0.000"),TEXT(VLOOKUP($C197&$B$3,base!$D$4:$BM$3035,K$182,FALSE),"0")),TEXT(VLOOKUP($C197&$B$3,base!$D$4:$BM$3035,K$182,FALSE),"0,0%")),"") -> 
A198: 15 | B198: 1.15 | C198: =+IFERROR(VLOOKUP(B198,referencias!$J$128:$K$1212,2,FALSE),"") ->  | D198: =IFERROR(VLOOKUP(C198,'tc nacional'!$AA$7:$AB$201,2,FALSE),"") ->  | F198: =IFERROR(IF(VLOOKUP($C198&$B$3,base!$D$4:$AI$3035,F$182,FALSE)>1,IF(VLOOKUP($C198&$B$3,base!$D$4:$AI$3035,F$182,FALSE)>1000,TEXT(VLOOKUP($C198&$B$3,base!$D$4:$AI$3035,F$182,FALSE),"0.000"),TEXT(VLOOKUP($C198&$B$3,base!$D$4:$AI$3035,F$182,FALSE),"0")),TEXT(VLOOKUP($C198&$B$3,base!$D$4:$AI$3035,F$182,FALSE),"0,0%")),"") ->  | G198: =IFERROR(IF(VLOOKUP($C198&$B$3,base!$D$4:$BM$3035,G$182,FALSE)>1000,TEXT(VLOOKUP($C198&$B$3,base!$D$4:$BM$3035,G$182,FALSE),"0.000"),TEXT(VLOOKUP($C198&$B$3,base!$D$4:$BM$3035,G$182,FALSE),"0")),"") ->  | H198: =IFERROR(IF(VLOOKUP($C198&$B$3,base!$D$4:$BM$3035,H$182,FALSE)>1000,TEXT(VLOOKUP($C198&$B$3,base!$D$4:$BM$3035,H$182,FALSE),"0.000"),TEXT(VLOOKUP($C198&$B$3,base!$D$4:$BM$3035,H$182,FALSE),"0")),"") ->  | I198: =IFERROR(IF(VLOOKUP($C198&$B$3,base!$D$4:$BM$3035,I$182,FALSE)>1,IF(VLOOKUP($C198&$B$3,base!$D$4:$BM$3035,I$182,FALSE)>1000,TEXT(VLOOKUP($C198&$B$3,base!$D$4:$BM$3035,I$182,FALSE),"0.000"),TEXT(VLOOKUP($C198&$B$3,base!$D$4:$BM$3035,I$182,FALSE),"0")),TEXT(VLOOKUP($C198&$B$3,base!$D$4:$BM$3035,I$182,FALSE),"0,0%")),"") ->  | J198: =IFERROR(IF(VLOOKUP($C198&$B$3,base!$D$4:$BM$3035,J$182,FALSE)>1,IF(VLOOKUP($C198&$B$3,base!$D$4:$BM$3035,J$182,FALSE)>1000,TEXT(VLOOKUP($C198&$B$3,base!$D$4:$BM$3035,J$182,FALSE),"0.000"),TEXT(VLOOKUP($C198&$B$3,base!$D$4:$BM$3035,J$182,FALSE),"0")),TEXT(VLOOKUP($C198&$B$3,base!$D$4:$BM$3035,J$182,FALSE),"0,0%")),"") ->  | K198: =IFERROR(IF(VLOOKUP($C198&$B$3,base!$D$4:$BM$3035,K$182,FALSE)>1,IF(VLOOKUP($C198&$B$3,base!$D$4:$BM$3035,K$182,FALSE)>1000,TEXT(VLOOKUP($C198&$B$3,base!$D$4:$BM$3035,K$182,FALSE),"0.000"),TEXT(VLOOKUP($C198&$B$3,base!$D$4:$BM$3035,K$182,FALSE),"0")),TEXT(VLOOKUP($C198&$B$3,base!$D$4:$BM$3035,K$182,FALSE),"0,0%")),"") -> 
A199: 16 | B199: 1.16 | C199: =+IFERROR(VLOOKUP(B199,referencias!$J$128:$K$1212,2,FALSE),"") ->  | D199: =IFERROR(VLOOKUP(C199,'tc nacional'!$AA$7:$AB$201,2,FALSE),"") ->  | F199: =IFERROR(IF(VLOOKUP($C199&$B$3,base!$D$4:$AI$3035,F$182,FALSE)>1,IF(VLOOKUP($C199&$B$3,base!$D$4:$AI$3035,F$182,FALSE)>1000,TEXT(VLOOKUP($C199&$B$3,base!$D$4:$AI$3035,F$182,FALSE),"0.000"),TEXT(VLOOKUP($C199&$B$3,base!$D$4:$AI$3035,F$182,FALSE),"0")),TEXT(VLOOKUP($C199&$B$3,base!$D$4:$AI$3035,F$182,FALSE),"0,0%")),"") ->  | G199: =IFERROR(IF(VLOOKUP($C199&$B$3,base!$D$4:$BM$3035,G$182,FALSE)>1000,TEXT(VLOOKUP($C199&$B$3,base!$D$4:$BM$3035,G$182,FALSE),"0.000"),TEXT(VLOOKUP($C199&$B$3,base!$D$4:$BM$3035,G$182,FALSE),"0")),"") ->  | H199: =IFERROR(IF(VLOOKUP($C199&$B$3,base!$D$4:$BM$3035,H$182,FALSE)>1000,TEXT(VLOOKUP($C199&$B$3,base!$D$4:$BM$3035,H$182,FALSE),"0.000"),TEXT(VLOOKUP($C199&$B$3,base!$D$4:$BM$3035,H$182,FALSE),"0")),"") ->  | I199: =IFERROR(IF(VLOOKUP($C199&$B$3,base!$D$4:$BM$3035,I$182,FALSE)>1,IF(VLOOKUP($C199&$B$3,base!$D$4:$BM$3035,I$182,FALSE)>1000,TEXT(VLOOKUP($C199&$B$3,base!$D$4:$BM$3035,I$182,FALSE),"0.000"),TEXT(VLOOKUP($C199&$B$3,base!$D$4:$BM$3035,I$182,FALSE),"0")),TEXT(VLOOKUP($C199&$B$3,base!$D$4:$BM$3035,I$182,FALSE),"0,0%")),"") ->  | J199: =IFERROR(IF(VLOOKUP($C199&$B$3,base!$D$4:$BM$3035,J$182,FALSE)>1,IF(VLOOKUP($C199&$B$3,base!$D$4:$BM$3035,J$182,FALSE)>1000,TEXT(VLOOKUP($C199&$B$3,base!$D$4:$BM$3035,J$182,FALSE),"0.000"),TEXT(VLOOKUP($C199&$B$3,base!$D$4:$BM$3035,J$182,FALSE),"0")),TEXT(VLOOKUP($C199&$B$3,base!$D$4:$BM$3035,J$182,FALSE),"0,0%")),"") ->  | K199: =IFERROR(IF(VLOOKUP($C199&$B$3,base!$D$4:$BM$3035,K$182,FALSE)>1,IF(VLOOKUP($C199&$B$3,base!$D$4:$BM$3035,K$182,FALSE)>1000,TEXT(VLOOKUP($C199&$B$3,base!$D$4:$BM$3035,K$182,FALSE),"0.000"),TEXT(VLOOKUP($C199&$B$3,base!$D$4:$BM$3035,K$182,FALSE),"0")),TEXT(VLOOKUP($C199&$B$3,base!$D$4:$BM$3035,K$182,FALSE),"0,0%")),"") -> 
A200: 17 | B200: 1.17 | C200: =+IFERROR(VLOOKUP(B200,referencias!$J$128:$K$1212,2,FALSE),"") ->  | D200: =IFERROR(VLOOKUP(C200,'tc nacional'!$AA$7:$AB$201,2,FALSE),"") ->  | F200: =IFERROR(IF(VLOOKUP($C200&$B$3,base!$D$4:$AI$3035,F$182,FALSE)>1,IF(VLOOKUP($C200&$B$3,base!$D$4:$AI$3035,F$182,FALSE)>1000,TEXT(VLOOKUP($C200&$B$3,base!$D$4:$AI$3035,F$182,FALSE),"0.000"),TEXT(VLOOKUP($C200&$B$3,base!$D$4:$AI$3035,F$182,FALSE),"0")),TEXT(VLOOKUP($C200&$B$3,base!$D$4:$AI$3035,F$182,FALSE),"0,0%")),"") ->  | G200: =IFERROR(IF(VLOOKUP($C200&$B$3,base!$D$4:$BM$3035,G$182,FALSE)>1000,TEXT(VLOOKUP($C200&$B$3,base!$D$4:$BM$3035,G$182,FALSE),"0.000"),TEXT(VLOOKUP($C200&$B$3,base!$D$4:$BM$3035,G$182,FALSE),"0")),"") ->  | H200: =IFERROR(IF(VLOOKUP($C200&$B$3,base!$D$4:$BM$3035,H$182,FALSE)>1000,TEXT(VLOOKUP($C200&$B$3,base!$D$4:$BM$3035,H$182,FALSE),"0.000"),TEXT(VLOOKUP($C200&$B$3,base!$D$4:$BM$3035,H$182,FALSE),"0")),"") ->  | I200: =IFERROR(IF(VLOOKUP($C200&$B$3,base!$D$4:$BM$3035,I$182,FALSE)>1,IF(VLOOKUP($C200&$B$3,base!$D$4:$BM$3035,I$182,FALSE)>1000,TEXT(VLOOKUP($C200&$B$3,base!$D$4:$BM$3035,I$182,FALSE),"0.000"),TEXT(VLOOKUP($C200&$B$3,base!$D$4:$BM$3035,I$182,FALSE),"0")),TEXT(VLOOKUP($C200&$B$3,base!$D$4:$BM$3035,I$182,FALSE),"0,0%")),"") ->  | J200: =IFERROR(IF(VLOOKUP($C200&$B$3,base!$D$4:$BM$3035,J$182,FALSE)>1,IF(VLOOKUP($C200&$B$3,base!$D$4:$BM$3035,J$182,FALSE)>1000,TEXT(VLOOKUP($C200&$B$3,base!$D$4:$BM$3035,J$182,FALSE),"0.000"),TEXT(VLOOKUP($C200&$B$3,base!$D$4:$BM$3035,J$182,FALSE),"0")),TEXT(VLOOKUP($C200&$B$3,base!$D$4:$BM$3035,J$182,FALSE),"0,0%")),"") ->  | K200: =IFERROR(IF(VLOOKUP($C200&$B$3,base!$D$4:$BM$3035,K$182,FALSE)>1,IF(VLOOKUP($C200&$B$3,base!$D$4:$BM$3035,K$182,FALSE)>1000,TEXT(VLOOKUP($C200&$B$3,base!$D$4:$BM$3035,K$182,FALSE),"0.000"),TEXT(VLOOKUP($C200&$B$3,base!$D$4:$BM$3035,K$182,FALSE),"0")),TEXT(VLOOKUP($C200&$B$3,base!$D$4:$BM$3035,K$182,FALSE),"0,0%")),"") -> 
A201: 18 | B201: 1.18 | C201: =+IFERROR(VLOOKUP(B201,referencias!$J$128:$K$1212,2,FALSE),"") ->  | D201: =IFERROR(VLOOKUP(C201,'tc nacional'!$AA$7:$AB$201,2,FALSE),"") ->  | F201: =IFERROR(IF(VLOOKUP($C201&$B$3,base!$D$4:$AI$3035,F$182,FALSE)>1,IF(VLOOKUP($C201&$B$3,base!$D$4:$AI$3035,F$182,FALSE)>1000,TEXT(VLOOKUP($C201&$B$3,base!$D$4:$AI$3035,F$182,FALSE),"0.000"),TEXT(VLOOKUP($C201&$B$3,base!$D$4:$AI$3035,F$182,FALSE),"0")),TEXT(VLOOKUP($C201&$B$3,base!$D$4:$AI$3035,F$182,FALSE),"0,0%")),"") ->  | G201: =IFERROR(IF(VLOOKUP($C201&$B$3,base!$D$4:$BM$3035,G$182,FALSE)>1000,TEXT(VLOOKUP($C201&$B$3,base!$D$4:$BM$3035,G$182,FALSE),"0.000"),TEXT(VLOOKUP($C201&$B$3,base!$D$4:$BM$3035,G$182,FALSE),"0")),"") ->  | H201: =IFERROR(IF(VLOOKUP($C201&$B$3,base!$D$4:$BM$3035,H$182,FALSE)>1000,TEXT(VLOOKUP($C201&$B$3,base!$D$4:$BM$3035,H$182,FALSE),"0.000"),TEXT(VLOOKUP($C201&$B$3,base!$D$4:$BM$3035,H$182,FALSE),"0")),"") ->  | I201: =IFERROR(IF(VLOOKUP($C201&$B$3,base!$D$4:$BM$3035,I$182,FALSE)>1,IF(VLOOKUP($C201&$B$3,base!$D$4:$BM$3035,I$182,FALSE)>1000,TEXT(VLOOKUP($C201&$B$3,base!$D$4:$BM$3035,I$182,FALSE),"0.000"),TEXT(VLOOKUP($C201&$B$3,base!$D$4:$BM$3035,I$182,FALSE),"0")),TEXT(VLOOKUP($C201&$B$3,base!$D$4:$BM$3035,I$182,FALSE),"0,0%")),"") ->  | J201: =IFERROR(IF(VLOOKUP($C201&$B$3,base!$D$4:$BM$3035,J$182,FALSE)>1,IF(VLOOKUP($C201&$B$3,base!$D$4:$BM$3035,J$182,FALSE)>1000,TEXT(VLOOKUP($C201&$B$3,base!$D$4:$BM$3035,J$182,FALSE),"0.000"),TEXT(VLOOKUP($C201&$B$3,base!$D$4:$BM$3035,J$182,FALSE),"0")),TEXT(VLOOKUP($C201&$B$3,base!$D$4:$BM$3035,J$182,FALSE),"0,0%")),"") ->  | K201: =IFERROR(IF(VLOOKUP($C201&$B$3,base!$D$4:$BM$3035,K$182,FALSE)>1,IF(VLOOKUP($C201&$B$3,base!$D$4:$BM$3035,K$182,FALSE)>1000,TEXT(VLOOKUP($C201&$B$3,base!$D$4:$BM$3035,K$182,FALSE),"0.000"),TEXT(VLOOKUP($C201&$B$3,base!$D$4:$BM$3035,K$182,FALSE),"0")),TEXT(VLOOKUP($C201&$B$3,base!$D$4:$BM$3035,K$182,FALSE),"0,0%")),"") -> 
A202: 19 | B202: 1.19 | C202: =+IFERROR(VLOOKUP(B202,referencias!$J$128:$K$1212,2,FALSE),"") ->  | D202: =IFERROR(VLOOKUP(C202,'tc nacional'!$AA$7:$AB$201,2,FALSE),"") ->  | F202: =IFERROR(IF(VLOOKUP($C202&$B$3,base!$D$4:$AI$3035,F$182,FALSE)>1,IF(VLOOKUP($C202&$B$3,base!$D$4:$AI$3035,F$182,FALSE)>1000,TEXT(VLOOKUP($C202&$B$3,base!$D$4:$AI$3035,F$182,FALSE),"0.000"),TEXT(VLOOKUP($C202&$B$3,base!$D$4:$AI$3035,F$182,FALSE),"0")),TEXT(VLOOKUP($C202&$B$3,base!$D$4:$AI$3035,F$182,FALSE),"0,0%")),"") ->  | G202: =IFERROR(IF(VLOOKUP($C202&$B$3,base!$D$4:$BM$3035,G$182,FALSE)>1000,TEXT(VLOOKUP($C202&$B$3,base!$D$4:$BM$3035,G$182,FALSE),"0.000"),TEXT(VLOOKUP($C202&$B$3,base!$D$4:$BM$3035,G$182,FALSE),"0")),"") ->  | H202: =IFERROR(IF(VLOOKUP($C202&$B$3,base!$D$4:$BM$3035,H$182,FALSE)>1000,TEXT(VLOOKUP($C202&$B$3,base!$D$4:$BM$3035,H$182,FALSE),"0.000"),TEXT(VLOOKUP($C202&$B$3,base!$D$4:$BM$3035,H$182,FALSE),"0")),"") ->  | I202: =IFERROR(IF(VLOOKUP($C202&$B$3,base!$D$4:$BM$3035,I$182,FALSE)>1,IF(VLOOKUP($C202&$B$3,base!$D$4:$BM$3035,I$182,FALSE)>1000,TEXT(VLOOKUP($C202&$B$3,base!$D$4:$BM$3035,I$182,FALSE),"0.000"),TEXT(VLOOKUP($C202&$B$3,base!$D$4:$BM$3035,I$182,FALSE),"0")),TEXT(VLOOKUP($C202&$B$3,base!$D$4:$BM$3035,I$182,FALSE),"0,0%")),"") ->  | J202: =IFERROR(IF(VLOOKUP($C202&$B$3,base!$D$4:$BM$3035,J$182,FALSE)>1,IF(VLOOKUP($C202&$B$3,base!$D$4:$BM$3035,J$182,FALSE)>1000,TEXT(VLOOKUP($C202&$B$3,base!$D$4:$BM$3035,J$182,FALSE),"0.000"),TEXT(VLOOKUP($C202&$B$3,base!$D$4:$BM$3035,J$182,FALSE),"0")),TEXT(VLOOKUP($C202&$B$3,base!$D$4:$BM$3035,J$182,FALSE),"0,0%")),"") ->  | K202: =IFERROR(IF(VLOOKUP($C202&$B$3,base!$D$4:$BM$3035,K$182,FALSE)>1,IF(VLOOKUP($C202&$B$3,base!$D$4:$BM$3035,K$182,FALSE)>1000,TEXT(VLOOKUP($C202&$B$3,base!$D$4:$BM$3035,K$182,FALSE),"0.000"),TEXT(VLOOKUP($C202&$B$3,base!$D$4:$BM$3035,K$182,FALSE),"0")),TEXT(VLOOKUP($C202&$B$3,base!$D$4:$BM$3035,K$182,FALSE),"0,0%")),"") -> 
A203: 20 | B203: 1.20 | C203: =+IFERROR(VLOOKUP(B203,referencias!$J$128:$K$1212,2,FALSE),"") ->  | D203: =IFERROR(VLOOKUP(C203,'tc nacional'!$AA$7:$AB$201,2,FALSE),"") ->  | F203: =IFERROR(IF(VLOOKUP($C203&$B$3,base!$D$4:$AI$3035,F$182,FALSE)>1,IF(VLOOKUP($C203&$B$3,base!$D$4:$AI$3035,F$182,FALSE)>1000,TEXT(VLOOKUP($C203&$B$3,base!$D$4:$AI$3035,F$182,FALSE),"0.000"),TEXT(VLOOKUP($C203&$B$3,base!$D$4:$AI$3035,F$182,FALSE),"0")),TEXT(VLOOKUP($C203&$B$3,base!$D$4:$AI$3035,F$182,FALSE),"0,0%")),"") ->  | G203: =IFERROR(IF(VLOOKUP($C203&$B$3,base!$D$4:$BM$3035,G$182,FALSE)>1000,TEXT(VLOOKUP($C203&$B$3,base!$D$4:$BM$3035,G$182,FALSE),"0.000"),TEXT(VLOOKUP($C203&$B$3,base!$D$4:$BM$3035,G$182,FALSE),"0")),"") ->  | H203: =IFERROR(IF(VLOOKUP($C203&$B$3,base!$D$4:$BM$3035,H$182,FALSE)>1000,TEXT(VLOOKUP($C203&$B$3,base!$D$4:$BM$3035,H$182,FALSE),"0.000"),TEXT(VLOOKUP($C203&$B$3,base!$D$4:$BM$3035,H$182,FALSE),"0")),"") ->  | I203: =IFERROR(IF(VLOOKUP($C203&$B$3,base!$D$4:$BM$3035,I$182,FALSE)>1,IF(VLOOKUP($C203&$B$3,base!$D$4:$BM$3035,I$182,FALSE)>1000,TEXT(VLOOKUP($C203&$B$3,base!$D$4:$BM$3035,I$182,FALSE),"0.000"),TEXT(VLOOKUP($C203&$B$3,base!$D$4:$BM$3035,I$182,FALSE),"0")),TEXT(VLOOKUP($C203&$B$3,base!$D$4:$BM$3035,I$182,FALSE),"0,0%")),"") ->  | J203: =IFERROR(IF(VLOOKUP($C203&$B$3,base!$D$4:$BM$3035,J$182,FALSE)>1,IF(VLOOKUP($C203&$B$3,base!$D$4:$BM$3035,J$182,FALSE)>1000,TEXT(VLOOKUP($C203&$B$3,base!$D$4:$BM$3035,J$182,FALSE),"0.000"),TEXT(VLOOKUP($C203&$B$3,base!$D$4:$BM$3035,J$182,FALSE),"0")),TEXT(VLOOKUP($C203&$B$3,base!$D$4:$BM$3035,J$182,FALSE),"0,0%")),"") ->  | K203: =IFERROR(IF(VLOOKUP($C203&$B$3,base!$D$4:$BM$3035,K$182,FALSE)>1,IF(VLOOKUP($C203&$B$3,base!$D$4:$BM$3035,K$182,FALSE)>1000,TEXT(VLOOKUP($C203&$B$3,base!$D$4:$BM$3035,K$182,FALSE),"0.000"),TEXT(VLOOKUP($C203&$B$3,base!$D$4:$BM$3035,K$182,FALSE),"0")),TEXT(VLOOKUP($C203&$B$3,base!$D$4:$BM$3035,K$182,FALSE),"0,0%")),"") -> 
A204: 21 | B204: 1.21 | C204: =+IFERROR(VLOOKUP(B204,referencias!$J$128:$K$1212,2,FALSE),"") ->  | D204: =IFERROR(VLOOKUP(C204,'tc nacional'!$AA$7:$AB$201,2,FALSE),"") ->  | F204: =IFERROR(IF(VLOOKUP($C204&$B$3,base!$D$4:$AI$3035,F$182,FALSE)>1,IF(VLOOKUP($C204&$B$3,base!$D$4:$AI$3035,F$182,FALSE)>1000,TEXT(VLOOKUP($C204&$B$3,base!$D$4:$AI$3035,F$182,FALSE),"0.000"),TEXT(VLOOKUP($C204&$B$3,base!$D$4:$AI$3035,F$182,FALSE),"0")),TEXT(VLOOKUP($C204&$B$3,base!$D$4:$AI$3035,F$182,FALSE),"0,0%")),"") ->  | G204: =IFERROR(IF(VLOOKUP($C204&$B$3,base!$D$4:$BM$3035,G$182,FALSE)>1000,TEXT(VLOOKUP($C204&$B$3,base!$D$4:$BM$3035,G$182,FALSE),"0.000"),TEXT(VLOOKUP($C204&$B$3,base!$D$4:$BM$3035,G$182,FALSE),"0")),"") ->  | H204: =IFERROR(IF(VLOOKUP($C204&$B$3,base!$D$4:$BM$3035,H$182,FALSE)>1000,TEXT(VLOOKUP($C204&$B$3,base!$D$4:$BM$3035,H$182,FALSE),"0.000"),TEXT(VLOOKUP($C204&$B$3,base!$D$4:$BM$3035,H$182,FALSE),"0")),"") ->  | I204: =IFERROR(IF(VLOOKUP($C204&$B$3,base!$D$4:$BM$3035,I$182,FALSE)>1,IF(VLOOKUP($C204&$B$3,base!$D$4:$BM$3035,I$182,FALSE)>1000,TEXT(VLOOKUP($C204&$B$3,base!$D$4:$BM$3035,I$182,FALSE),"0.000"),TEXT(VLOOKUP($C204&$B$3,base!$D$4:$BM$3035,I$182,FALSE),"0")),TEXT(VLOOKUP($C204&$B$3,base!$D$4:$BM$3035,I$182,FALSE),"0,0%")),"") ->  | J204: =IFERROR(IF(VLOOKUP($C204&$B$3,base!$D$4:$BM$3035,J$182,FALSE)>1,IF(VLOOKUP($C204&$B$3,base!$D$4:$BM$3035,J$182,FALSE)>1000,TEXT(VLOOKUP($C204&$B$3,base!$D$4:$BM$3035,J$182,FALSE),"0.000"),TEXT(VLOOKUP($C204&$B$3,base!$D$4:$BM$3035,J$182,FALSE),"0")),TEXT(VLOOKUP($C204&$B$3,base!$D$4:$BM$3035,J$182,FALSE),"0,0%")),"") ->  | K204: =IFERROR(IF(VLOOKUP($C204&$B$3,base!$D$4:$BM$3035,K$182,FALSE)>1,IF(VLOOKUP($C204&$B$3,base!$D$4:$BM$3035,K$182,FALSE)>1000,TEXT(VLOOKUP($C204&$B$3,base!$D$4:$BM$3035,K$182,FALSE),"0.000"),TEXT(VLOOKUP($C204&$B$3,base!$D$4:$BM$3035,K$182,FALSE),"0")),TEXT(VLOOKUP($C204&$B$3,base!$D$4:$BM$3035,K$182,FALSE),"0,0%")),"") -> 
A205: 22 | B205: 1.22 | C205: =+IFERROR(VLOOKUP(B205,referencias!$J$128:$K$1212,2,FALSE),"") ->  | D205: =IFERROR(VLOOKUP(C205,'tc nacional'!$AA$7:$AB$201,2,FALSE),"") ->  | F205: =IFERROR(IF(VLOOKUP($C205&$B$3,base!$D$4:$AI$3035,F$182,FALSE)>1,IF(VLOOKUP($C205&$B$3,base!$D$4:$AI$3035,F$182,FALSE)>1000,TEXT(VLOOKUP($C205&$B$3,base!$D$4:$AI$3035,F$182,FALSE),"0.000"),TEXT(VLOOKUP($C205&$B$3,base!$D$4:$AI$3035,F$182,FALSE),"0")),TEXT(VLOOKUP($C205&$B$3,base!$D$4:$AI$3035,F$182,FALSE),"0,0%")),"") ->  | G205: =IFERROR(IF(VLOOKUP($C205&$B$3,base!$D$4:$BM$3035,G$182,FALSE)>1000,TEXT(VLOOKUP($C205&$B$3,base!$D$4:$BM$3035,G$182,FALSE),"0.000"),TEXT(VLOOKUP($C205&$B$3,base!$D$4:$BM$3035,G$182,FALSE),"0")),"") ->  | H205: =IFERROR(IF(VLOOKUP($C205&$B$3,base!$D$4:$BM$3035,H$182,FALSE)>1000,TEXT(VLOOKUP($C205&$B$3,base!$D$4:$BM$3035,H$182,FALSE),"0.000"),TEXT(VLOOKUP($C205&$B$3,base!$D$4:$BM$3035,H$182,FALSE),"0")),"") ->  | I205: =IFERROR(IF(VLOOKUP($C205&$B$3,base!$D$4:$BM$3035,I$182,FALSE)>1,IF(VLOOKUP($C205&$B$3,base!$D$4:$BM$3035,I$182,FALSE)>1000,TEXT(VLOOKUP($C205&$B$3,base!$D$4:$BM$3035,I$182,FALSE),"0.000"),TEXT(VLOOKUP($C205&$B$3,base!$D$4:$BM$3035,I$182,FALSE),"0")),TEXT(VLOOKUP($C205&$B$3,base!$D$4:$BM$3035,I$182,FALSE),"0,0%")),"") ->  | J205: =IFERROR(IF(VLOOKUP($C205&$B$3,base!$D$4:$BM$3035,J$182,FALSE)>1,IF(VLOOKUP($C205&$B$3,base!$D$4:$BM$3035,J$182,FALSE)>1000,TEXT(VLOOKUP($C205&$B$3,base!$D$4:$BM$3035,J$182,FALSE),"0.000"),TEXT(VLOOKUP($C205&$B$3,base!$D$4:$BM$3035,J$182,FALSE),"0")),TEXT(VLOOKUP($C205&$B$3,base!$D$4:$BM$3035,J$182,FALSE),"0,0%")),"") ->  | K205: =IFERROR(IF(VLOOKUP($C205&$B$3,base!$D$4:$BM$3035,K$182,FALSE)>1,IF(VLOOKUP($C205&$B$3,base!$D$4:$BM$3035,K$182,FALSE)>1000,TEXT(VLOOKUP($C205&$B$3,base!$D$4:$BM$3035,K$182,FALSE),"0.000"),TEXT(VLOOKUP($C205&$B$3,base!$D$4:$BM$3035,K$182,FALSE),"0")),TEXT(VLOOKUP($C205&$B$3,base!$D$4:$BM$3035,K$182,FALSE),"0,0%")),"") -> 
A206: 23 | B206: 1.23 | C206: =+IFERROR(VLOOKUP(B206,referencias!$J$128:$K$1212,2,FALSE),"") ->  | D206: =IFERROR(VLOOKUP(C206,'tc nacional'!$AA$7:$AB$201,2,FALSE),"") ->  | F206: =IFERROR(IF(VLOOKUP($C206&$B$3,base!$D$4:$AI$3035,F$182,FALSE)>1,IF(VLOOKUP($C206&$B$3,base!$D$4:$AI$3035,F$182,FALSE)>1000,TEXT(VLOOKUP($C206&$B$3,base!$D$4:$AI$3035,F$182,FALSE),"0.000"),TEXT(VLOOKUP($C206&$B$3,base!$D$4:$AI$3035,F$182,FALSE),"0")),TEXT(VLOOKUP($C206&$B$3,base!$D$4:$AI$3035,F$182,FALSE),"0,0%")),"") ->  | G206: =IFERROR(IF(VLOOKUP($C206&$B$3,base!$D$4:$BM$3035,G$182,FALSE)>1000,TEXT(VLOOKUP($C206&$B$3,base!$D$4:$BM$3035,G$182,FALSE),"0.000"),TEXT(VLOOKUP($C206&$B$3,base!$D$4:$BM$3035,G$182,FALSE),"0")),"") ->  | H206: =IFERROR(IF(VLOOKUP($C206&$B$3,base!$D$4:$BM$3035,H$182,FALSE)>1000,TEXT(VLOOKUP($C206&$B$3,base!$D$4:$BM$3035,H$182,FALSE),"0.000"),TEXT(VLOOKUP($C206&$B$3,base!$D$4:$BM$3035,H$182,FALSE),"0")),"") ->  | I206: =IFERROR(IF(VLOOKUP($C206&$B$3,base!$D$4:$BM$3035,I$182,FALSE)>1,IF(VLOOKUP($C206&$B$3,base!$D$4:$BM$3035,I$182,FALSE)>1000,TEXT(VLOOKUP($C206&$B$3,base!$D$4:$BM$3035,I$182,FALSE),"0.000"),TEXT(VLOOKUP($C206&$B$3,base!$D$4:$BM$3035,I$182,FALSE),"0")),TEXT(VLOOKUP($C206&$B$3,base!$D$4:$BM$3035,I$182,FALSE),"0,0%")),"") ->  | J206: =IFERROR(IF(VLOOKUP($C206&$B$3,base!$D$4:$BM$3035,J$182,FALSE)>1,IF(VLOOKUP($C206&$B$3,base!$D$4:$BM$3035,J$182,FALSE)>1000,TEXT(VLOOKUP($C206&$B$3,base!$D$4:$BM$3035,J$182,FALSE),"0.000"),TEXT(VLOOKUP($C206&$B$3,base!$D$4:$BM$3035,J$182,FALSE),"0")),TEXT(VLOOKUP($C206&$B$3,base!$D$4:$BM$3035,J$182,FALSE),"0,0%")),"") ->  | K206: =IFERROR(IF(VLOOKUP($C206&$B$3,base!$D$4:$BM$3035,K$182,FALSE)>1,IF(VLOOKUP($C206&$B$3,base!$D$4:$BM$3035,K$182,FALSE)>1000,TEXT(VLOOKUP($C206&$B$3,base!$D$4:$BM$3035,K$182,FALSE),"0.000"),TEXT(VLOOKUP($C206&$B$3,base!$D$4:$BM$3035,K$182,FALSE),"0")),TEXT(VLOOKUP($C206&$B$3,base!$D$4:$BM$3035,K$182,FALSE),"0,0%")),"") -> 
A207: 24 | B207: 1.24 | C207: =+IFERROR(VLOOKUP(B207,referencias!$J$128:$K$1212,2,FALSE),"") ->  | D207: =IFERROR(VLOOKUP(C207,'tc nacional'!$AA$7:$AB$201,2,FALSE),"") ->  | F207: =IFERROR(IF(VLOOKUP($C207&$B$3,base!$D$4:$AI$3035,F$182,FALSE)>1,IF(VLOOKUP($C207&$B$3,base!$D$4:$AI$3035,F$182,FALSE)>1000,TEXT(VLOOKUP($C207&$B$3,base!$D$4:$AI$3035,F$182,FALSE),"0.000"),TEXT(VLOOKUP($C207&$B$3,base!$D$4:$AI$3035,F$182,FALSE),"0")),TEXT(VLOOKUP($C207&$B$3,base!$D$4:$AI$3035,F$182,FALSE),"0,0%")),"") ->  | G207: =IFERROR(IF(VLOOKUP($C207&$B$3,base!$D$4:$BM$3035,G$182,FALSE)>1000,TEXT(VLOOKUP($C207&$B$3,base!$D$4:$BM$3035,G$182,FALSE),"0.000"),TEXT(VLOOKUP($C207&$B$3,base!$D$4:$BM$3035,G$182,FALSE),"0")),"") ->  | H207: =IFERROR(IF(VLOOKUP($C207&$B$3,base!$D$4:$BM$3035,H$182,FALSE)>1000,TEXT(VLOOKUP($C207&$B$3,base!$D$4:$BM$3035,H$182,FALSE),"0.000"),TEXT(VLOOKUP($C207&$B$3,base!$D$4:$BM$3035,H$182,FALSE),"0")),"") ->  | I207: =IFERROR(IF(VLOOKUP($C207&$B$3,base!$D$4:$BM$3035,I$182,FALSE)>1,IF(VLOOKUP($C207&$B$3,base!$D$4:$BM$3035,I$182,FALSE)>1000,TEXT(VLOOKUP($C207&$B$3,base!$D$4:$BM$3035,I$182,FALSE),"0.000"),TEXT(VLOOKUP($C207&$B$3,base!$D$4:$BM$3035,I$182,FALSE),"0")),TEXT(VLOOKUP($C207&$B$3,base!$D$4:$BM$3035,I$182,FALSE),"0,0%")),"") ->  | J207: =IFERROR(IF(VLOOKUP($C207&$B$3,base!$D$4:$BM$3035,J$182,FALSE)>1,IF(VLOOKUP($C207&$B$3,base!$D$4:$BM$3035,J$182,FALSE)>1000,TEXT(VLOOKUP($C207&$B$3,base!$D$4:$BM$3035,J$182,FALSE),"0.000"),TEXT(VLOOKUP($C207&$B$3,base!$D$4:$BM$3035,J$182,FALSE),"0")),TEXT(VLOOKUP($C207&$B$3,base!$D$4:$BM$3035,J$182,FALSE),"0,0%")),"") ->  | K207: =IFERROR(IF(VLOOKUP($C207&$B$3,base!$D$4:$BM$3035,K$182,FALSE)>1,IF(VLOOKUP($C207&$B$3,base!$D$4:$BM$3035,K$182,FALSE)>1000,TEXT(VLOOKUP($C207&$B$3,base!$D$4:$BM$3035,K$182,FALSE),"0.000"),TEXT(VLOOKUP($C207&$B$3,base!$D$4:$BM$3035,K$182,FALSE),"0")),TEXT(VLOOKUP($C207&$B$3,base!$D$4:$BM$3035,K$182,FALSE),"0,0%")),"") -> 
A208: 25 | B208: 1.25 | C208: =+IFERROR(VLOOKUP(B208,referencias!$J$128:$K$1212,2,FALSE),"") ->  | D208: =IFERROR(VLOOKUP(C208,'tc nacional'!$AA$7:$AB$201,2,FALSE),"") ->  | F208: =IFERROR(IF(VLOOKUP($C208&$B$3,base!$D$4:$AI$3035,F$182,FALSE)>1,IF(VLOOKUP($C208&$B$3,base!$D$4:$AI$3035,F$182,FALSE)>1000,TEXT(VLOOKUP($C208&$B$3,base!$D$4:$AI$3035,F$182,FALSE),"0.000"),TEXT(VLOOKUP($C208&$B$3,base!$D$4:$AI$3035,F$182,FALSE),"0")),TEXT(VLOOKUP($C208&$B$3,base!$D$4:$AI$3035,F$182,FALSE),"0,0%")),"") ->  | G208: =IFERROR(IF(VLOOKUP($C208&$B$3,base!$D$4:$BM$3035,G$182,FALSE)>1000,TEXT(VLOOKUP($C208&$B$3,base!$D$4:$BM$3035,G$182,FALSE),"0.000"),TEXT(VLOOKUP($C208&$B$3,base!$D$4:$BM$3035,G$182,FALSE),"0")),"") ->  | H208: =IFERROR(IF(VLOOKUP($C208&$B$3,base!$D$4:$BM$3035,H$182,FALSE)>1000,TEXT(VLOOKUP($C208&$B$3,base!$D$4:$BM$3035,H$182,FALSE),"0.000"),TEXT(VLOOKUP($C208&$B$3,base!$D$4:$BM$3035,H$182,FALSE),"0")),"") ->  | I208: =IFERROR(IF(VLOOKUP($C208&$B$3,base!$D$4:$BM$3035,I$182,FALSE)>1,IF(VLOOKUP($C208&$B$3,base!$D$4:$BM$3035,I$182,FALSE)>1000,TEXT(VLOOKUP($C208&$B$3,base!$D$4:$BM$3035,I$182,FALSE),"0.000"),TEXT(VLOOKUP($C208&$B$3,base!$D$4:$BM$3035,I$182,FALSE),"0")),TEXT(VLOOKUP($C208&$B$3,base!$D$4:$BM$3035,I$182,FALSE),"0,0%")),"") ->  | J208: =IFERROR(IF(VLOOKUP($C208&$B$3,base!$D$4:$BM$3035,J$182,FALSE)>1,IF(VLOOKUP($C208&$B$3,base!$D$4:$BM$3035,J$182,FALSE)>1000,TEXT(VLOOKUP($C208&$B$3,base!$D$4:$BM$3035,J$182,FALSE),"0.000"),TEXT(VLOOKUP($C208&$B$3,base!$D$4:$BM$3035,J$182,FALSE),"0")),TEXT(VLOOKUP($C208&$B$3,base!$D$4:$BM$3035,J$182,FALSE),"0,0%")),"") ->  | K208: =IFERROR(IF(VLOOKUP($C208&$B$3,base!$D$4:$BM$3035,K$182,FALSE)>1,IF(VLOOKUP($C208&$B$3,base!$D$4:$BM$3035,K$182,FALSE)>1000,TEXT(VLOOKUP($C208&$B$3,base!$D$4:$BM$3035,K$182,FALSE),"0.000"),TEXT(VLOOKUP($C208&$B$3,base!$D$4:$BM$3035,K$182,FALSE),"0")),TEXT(VLOOKUP($C208&$B$3,base!$D$4:$BM$3035,K$182,FALSE),"0,0%")),"") -> 
A209: 26 | B209: 1.26 | C209: =+IFERROR(VLOOKUP(B209,referencias!$J$128:$K$1212,2,FALSE),"") ->  | D209: =IFERROR(VLOOKUP(C209,'tc nacional'!$AA$7:$AB$201,2,FALSE),"") ->  | F209: =IFERROR(IF(VLOOKUP($C209&$B$3,base!$D$4:$AI$3035,F$182,FALSE)>1,IF(VLOOKUP($C209&$B$3,base!$D$4:$AI$3035,F$182,FALSE)>1000,TEXT(VLOOKUP($C209&$B$3,base!$D$4:$AI$3035,F$182,FALSE),"0.000"),TEXT(VLOOKUP($C209&$B$3,base!$D$4:$AI$3035,F$182,FALSE),"0")),TEXT(VLOOKUP($C209&$B$3,base!$D$4:$AI$3035,F$182,FALSE),"0,0%")),"") ->  | G209: =IFERROR(IF(VLOOKUP($C209&$B$3,base!$D$4:$BM$3035,G$182,FALSE)>1000,TEXT(VLOOKUP($C209&$B$3,base!$D$4:$BM$3035,G$182,FALSE),"0.000"),TEXT(VLOOKUP($C209&$B$3,base!$D$4:$BM$3035,G$182,FALSE),"0")),"") ->  | H209: =IFERROR(IF(VLOOKUP($C209&$B$3,base!$D$4:$BM$3035,H$182,FALSE)>1000,TEXT(VLOOKUP($C209&$B$3,base!$D$4:$BM$3035,H$182,FALSE),"0.000"),TEXT(VLOOKUP($C209&$B$3,base!$D$4:$BM$3035,H$182,FALSE),"0")),"") ->  | I209: =IFERROR(IF(VLOOKUP($C209&$B$3,base!$D$4:$BM$3035,I$182,FALSE)>1,IF(VLOOKUP($C209&$B$3,base!$D$4:$BM$3035,I$182,FALSE)>1000,TEXT(VLOOKUP($C209&$B$3,base!$D$4:$BM$3035,I$182,FALSE),"0.000"),TEXT(VLOOKUP($C209&$B$3,base!$D$4:$BM$3035,I$182,FALSE),"0")),TEXT(VLOOKUP($C209&$B$3,base!$D$4:$BM$3035,I$182,FALSE),"0,0%")),"") ->  | J209: =IFERROR(IF(VLOOKUP($C209&$B$3,base!$D$4:$BM$3035,J$182,FALSE)>1,IF(VLOOKUP($C209&$B$3,base!$D$4:$BM$3035,J$182,FALSE)>1000,TEXT(VLOOKUP($C209&$B$3,base!$D$4:$BM$3035,J$182,FALSE),"0.000"),TEXT(VLOOKUP($C209&$B$3,base!$D$4:$BM$3035,J$182,FALSE),"0")),TEXT(VLOOKUP($C209&$B$3,base!$D$4:$BM$3035,J$182,FALSE),"0,0%")),"") ->  | K209: =IFERROR(IF(VLOOKUP($C209&$B$3,base!$D$4:$BM$3035,K$182,FALSE)>1,IF(VLOOKUP($C209&$B$3,base!$D$4:$BM$3035,K$182,FALSE)>1000,TEXT(VLOOKUP($C209&$B$3,base!$D$4:$BM$3035,K$182,FALSE),"0.000"),TEXT(VLOOKUP($C209&$B$3,base!$D$4:$BM$3035,K$182,FALSE),"0")),TEXT(VLOOKUP($C209&$B$3,base!$D$4:$BM$3035,K$182,FALSE),"0,0%")),"") -> 
A210: 27 | B210: 1.27 | C210: =+IFERROR(VLOOKUP(B210,referencias!$J$128:$K$1212,2,FALSE),"") ->  | D210: =IFERROR(VLOOKUP(C210,'tc nacional'!$AA$7:$AB$201,2,FALSE),"") ->  | F210: =IFERROR(IF(VLOOKUP($C210&$B$3,base!$D$4:$AI$3035,F$182,FALSE)>1,IF(VLOOKUP($C210&$B$3,base!$D$4:$AI$3035,F$182,FALSE)>1000,TEXT(VLOOKUP($C210&$B$3,base!$D$4:$AI$3035,F$182,FALSE),"0.000"),TEXT(VLOOKUP($C210&$B$3,base!$D$4:$AI$3035,F$182,FALSE),"0")),TEXT(VLOOKUP($C210&$B$3,base!$D$4:$AI$3035,F$182,FALSE),"0,0%")),"") ->  | G210: =IFERROR(IF(VLOOKUP($C210&$B$3,base!$D$4:$BM$3035,G$182,FALSE)>1000,TEXT(VLOOKUP($C210&$B$3,base!$D$4:$BM$3035,G$182,FALSE),"0.000"),TEXT(VLOOKUP($C210&$B$3,base!$D$4:$BM$3035,G$182,FALSE),"0")),"") ->  | H210: =IFERROR(IF(VLOOKUP($C210&$B$3,base!$D$4:$BM$3035,H$182,FALSE)>1000,TEXT(VLOOKUP($C210&$B$3,base!$D$4:$BM$3035,H$182,FALSE),"0.000"),TEXT(VLOOKUP($C210&$B$3,base!$D$4:$BM$3035,H$182,FALSE),"0")),"") ->  | I210: =IFERROR(IF(VLOOKUP($C210&$B$3,base!$D$4:$BM$3035,I$182,FALSE)>1,IF(VLOOKUP($C210&$B$3,base!$D$4:$BM$3035,I$182,FALSE)>1000,TEXT(VLOOKUP($C210&$B$3,base!$D$4:$BM$3035,I$182,FALSE),"0.000"),TEXT(VLOOKUP($C210&$B$3,base!$D$4:$BM$3035,I$182,FALSE),"0")),TEXT(VLOOKUP($C210&$B$3,base!$D$4:$BM$3035,I$182,FALSE),"0,0%")),"") ->  | J210: =IFERROR(IF(VLOOKUP($C210&$B$3,base!$D$4:$BM$3035,J$182,FALSE)>1,IF(VLOOKUP($C210&$B$3,base!$D$4:$BM$3035,J$182,FALSE)>1000,TEXT(VLOOKUP($C210&$B$3,base!$D$4:$BM$3035,J$182,FALSE),"0.000"),TEXT(VLOOKUP($C210&$B$3,base!$D$4:$BM$3035,J$182,FALSE),"0")),TEXT(VLOOKUP($C210&$B$3,base!$D$4:$BM$3035,J$182,FALSE),"0,0%")),"") ->  | K210: =IFERROR(IF(VLOOKUP($C210&$B$3,base!$D$4:$BM$3035,K$182,FALSE)>1,IF(VLOOKUP($C210&$B$3,base!$D$4:$BM$3035,K$182,FALSE)>1000,TEXT(VLOOKUP($C210&$B$3,base!$D$4:$BM$3035,K$182,FALSE),"0.000"),TEXT(VLOOKUP($C210&$B$3,base!$D$4:$BM$3035,K$182,FALSE),"0")),TEXT(VLOOKUP($C210&$B$3,base!$D$4:$BM$3035,K$182,FALSE),"0,0%")),"") -> 
A211: 28 | B211: 1.28 | C211: =+IFERROR(VLOOKUP(B211,referencias!$J$128:$K$1212,2,FALSE),"") ->  | D211: =IFERROR(VLOOKUP(C211,'tc nacional'!$AA$7:$AB$201,2,FALSE),"") ->  | F211: =IFERROR(IF(VLOOKUP($C211&$B$3,base!$D$4:$AI$3035,F$182,FALSE)>1,IF(VLOOKUP($C211&$B$3,base!$D$4:$AI$3035,F$182,FALSE)>1000,TEXT(VLOOKUP($C211&$B$3,base!$D$4:$AI$3035,F$182,FALSE),"0.000"),TEXT(VLOOKUP($C211&$B$3,base!$D$4:$AI$3035,F$182,FALSE),"0")),TEXT(VLOOKUP($C211&$B$3,base!$D$4:$AI$3035,F$182,FALSE),"0,0%")),"") ->  | G211: =IFERROR(IF(VLOOKUP($C211&$B$3,base!$D$4:$BM$3035,G$182,FALSE)>1000,TEXT(VLOOKUP($C211&$B$3,base!$D$4:$BM$3035,G$182,FALSE),"0.000"),TEXT(VLOOKUP($C211&$B$3,base!$D$4:$BM$3035,G$182,FALSE),"0")),"") ->  | H211: =IFERROR(IF(VLOOKUP($C211&$B$3,base!$D$4:$BM$3035,H$182,FALSE)>1000,TEXT(VLOOKUP($C211&$B$3,base!$D$4:$BM$3035,H$182,FALSE),"0.000"),TEXT(VLOOKUP($C211&$B$3,base!$D$4:$BM$3035,H$182,FALSE),"0")),"") ->  | I211: =IFERROR(IF(VLOOKUP($C211&$B$3,base!$D$4:$BM$3035,I$182,FALSE)>1,IF(VLOOKUP($C211&$B$3,base!$D$4:$BM$3035,I$182,FALSE)>1000,TEXT(VLOOKUP($C211&$B$3,base!$D$4:$BM$3035,I$182,FALSE),"0.000"),TEXT(VLOOKUP($C211&$B$3,base!$D$4:$BM$3035,I$182,FALSE),"0")),TEXT(VLOOKUP($C211&$B$3,base!$D$4:$BM$3035,I$182,FALSE),"0,0%")),"") ->  | J211: =IFERROR(IF(VLOOKUP($C211&$B$3,base!$D$4:$BM$3035,J$182,FALSE)>1,IF(VLOOKUP($C211&$B$3,base!$D$4:$BM$3035,J$182,FALSE)>1000,TEXT(VLOOKUP($C211&$B$3,base!$D$4:$BM$3035,J$182,FALSE),"0.000"),TEXT(VLOOKUP($C211&$B$3,base!$D$4:$BM$3035,J$182,FALSE),"0")),TEXT(VLOOKUP($C211&$B$3,base!$D$4:$BM$3035,J$182,FALSE),"0,0%")),"") ->  | K211: =IFERROR(IF(VLOOKUP($C211&$B$3,base!$D$4:$BM$3035,K$182,FALSE)>1,IF(VLOOKUP($C211&$B$3,base!$D$4:$BM$3035,K$182,FALSE)>1000,TEXT(VLOOKUP($C211&$B$3,base!$D$4:$BM$3035,K$182,FALSE),"0.000"),TEXT(VLOOKUP($C211&$B$3,base!$D$4:$BM$3035,K$182,FALSE),"0")),TEXT(VLOOKUP($C211&$B$3,base!$D$4:$BM$3035,K$182,FALSE),"0,0%")),"") -> 
A212: 29 | B212: 1.29 | C212: =+IFERROR(VLOOKUP(B212,referencias!$J$128:$K$1212,2,FALSE),"") ->  | D212: =IFERROR(VLOOKUP(C212,'tc nacional'!$AA$7:$AB$201,2,FALSE),"") ->  | F212: =IFERROR(IF(VLOOKUP($C212&$B$3,base!$D$4:$AI$3035,F$182,FALSE)>1,IF(VLOOKUP($C212&$B$3,base!$D$4:$AI$3035,F$182,FALSE)>1000,TEXT(VLOOKUP($C212&$B$3,base!$D$4:$AI$3035,F$182,FALSE),"0.000"),TEXT(VLOOKUP($C212&$B$3,base!$D$4:$AI$3035,F$182,FALSE),"0")),TEXT(VLOOKUP($C212&$B$3,base!$D$4:$AI$3035,F$182,FALSE),"0,0%")),"") ->  | G212: =IFERROR(IF(VLOOKUP($C212&$B$3,base!$D$4:$BM$3035,G$182,FALSE)>1000,TEXT(VLOOKUP($C212&$B$3,base!$D$4:$BM$3035,G$182,FALSE),"0.000"),TEXT(VLOOKUP($C212&$B$3,base!$D$4:$BM$3035,G$182,FALSE),"0")),"") ->  | H212: =IFERROR(IF(VLOOKUP($C212&$B$3,base!$D$4:$BM$3035,H$182,FALSE)>1000,TEXT(VLOOKUP($C212&$B$3,base!$D$4:$BM$3035,H$182,FALSE),"0.000"),TEXT(VLOOKUP($C212&$B$3,base!$D$4:$BM$3035,H$182,FALSE),"0")),"") ->  | I212: =IFERROR(IF(VLOOKUP($C212&$B$3,base!$D$4:$BM$3035,I$182,FALSE)>1,IF(VLOOKUP($C212&$B$3,base!$D$4:$BM$3035,I$182,FALSE)>1000,TEXT(VLOOKUP($C212&$B$3,base!$D$4:$BM$3035,I$182,FALSE),"0.000"),TEXT(VLOOKUP($C212&$B$3,base!$D$4:$BM$3035,I$182,FALSE),"0")),TEXT(VLOOKUP($C212&$B$3,base!$D$4:$BM$3035,I$182,FALSE),"0,0%")),"") ->  | J212: =IFERROR(IF(VLOOKUP($C212&$B$3,base!$D$4:$BM$3035,J$182,FALSE)>1,IF(VLOOKUP($C212&$B$3,base!$D$4:$BM$3035,J$182,FALSE)>1000,TEXT(VLOOKUP($C212&$B$3,base!$D$4:$BM$3035,J$182,FALSE),"0.000"),TEXT(VLOOKUP($C212&$B$3,base!$D$4:$BM$3035,J$182,FALSE),"0")),TEXT(VLOOKUP($C212&$B$3,base!$D$4:$BM$3035,J$182,FALSE),"0,0%")),"") ->  | K212: =IFERROR(IF(VLOOKUP($C212&$B$3,base!$D$4:$BM$3035,K$182,FALSE)>1,IF(VLOOKUP($C212&$B$3,base!$D$4:$BM$3035,K$182,FALSE)>1000,TEXT(VLOOKUP($C212&$B$3,base!$D$4:$BM$3035,K$182,FALSE),"0.000"),TEXT(VLOOKUP($C212&$B$3,base!$D$4:$BM$3035,K$182,FALSE),"0")),TEXT(VLOOKUP($C212&$B$3,base!$D$4:$BM$3035,K$182,FALSE),"0,0%")),"") -> 
A213: 30 | B213: 1.30 | C213: =+IFERROR(VLOOKUP(B213,referencias!$J$128:$K$1212,2,FALSE),"") ->  | D213: =IFERROR(VLOOKUP(C213,'tc nacional'!$AA$7:$AB$201,2,FALSE),"") ->  | F213: =IFERROR(IF(VLOOKUP($C213&$B$3,base!$D$4:$AI$3035,F$182,FALSE)>1,IF(VLOOKUP($C213&$B$3,base!$D$4:$AI$3035,F$182,FALSE)>1000,TEXT(VLOOKUP($C213&$B$3,base!$D$4:$AI$3035,F$182,FALSE),"0.000"),TEXT(VLOOKUP($C213&$B$3,base!$D$4:$AI$3035,F$182,FALSE),"0")),TEXT(VLOOKUP($C213&$B$3,base!$D$4:$AI$3035,F$182,FALSE),"0,0%")),"") ->  | G213: =IFERROR(IF(VLOOKUP($C213&$B$3,base!$D$4:$BM$3035,G$182,FALSE)>1000,TEXT(VLOOKUP($C213&$B$3,base!$D$4:$BM$3035,G$182,FALSE),"0.000"),TEXT(VLOOKUP($C213&$B$3,base!$D$4:$BM$3035,G$182,FALSE),"0")),"") ->  | H213: =IFERROR(IF(VLOOKUP($C213&$B$3,base!$D$4:$BM$3035,H$182,FALSE)>1000,TEXT(VLOOKUP($C213&$B$3,base!$D$4:$BM$3035,H$182,FALSE),"0.000"),TEXT(VLOOKUP($C213&$B$3,base!$D$4:$BM$3035,H$182,FALSE),"0")),"") ->  | I213: =IFERROR(IF(VLOOKUP($C213&$B$3,base!$D$4:$BM$3035,I$182,FALSE)>1,IF(VLOOKUP($C213&$B$3,base!$D$4:$BM$3035,I$182,FALSE)>1000,TEXT(VLOOKUP($C213&$B$3,base!$D$4:$BM$3035,I$182,FALSE),"0.000"),TEXT(VLOOKUP($C213&$B$3,base!$D$4:$BM$3035,I$182,FALSE),"0")),TEXT(VLOOKUP($C213&$B$3,base!$D$4:$BM$3035,I$182,FALSE),"0,0%")),"") ->  | J213: =IFERROR(IF(VLOOKUP($C213&$B$3,base!$D$4:$BM$3035,J$182,FALSE)>1,IF(VLOOKUP($C213&$B$3,base!$D$4:$BM$3035,J$182,FALSE)>1000,TEXT(VLOOKUP($C213&$B$3,base!$D$4:$BM$3035,J$182,FALSE),"0.000"),TEXT(VLOOKUP($C213&$B$3,base!$D$4:$BM$3035,J$182,FALSE),"0")),TEXT(VLOOKUP($C213&$B$3,base!$D$4:$BM$3035,J$182,FALSE),"0,0%")),"") ->  | K213: =IFERROR(IF(VLOOKUP($C213&$B$3,base!$D$4:$BM$3035,K$182,FALSE)>1,IF(VLOOKUP($C213&$B$3,base!$D$4:$BM$3035,K$182,FALSE)>1000,TEXT(VLOOKUP($C213&$B$3,base!$D$4:$BM$3035,K$182,FALSE),"0.000"),TEXT(VLOOKUP($C213&$B$3,base!$D$4:$BM$3035,K$182,FALSE),"0")),TEXT(VLOOKUP($C213&$B$3,base!$D$4:$BM$3035,K$182,FALSE),"0,0%")),"") -> 
A214: 31 | B214: 1.31 | C214: =+IFERROR(VLOOKUP(B214,referencias!$J$128:$K$1212,2,FALSE),"") ->  | D214: =IFERROR(VLOOKUP(C214,'tc nacional'!$AA$7:$AB$201,2,FALSE),"") ->  | F214: =IFERROR(IF(VLOOKUP($C214&$B$3,base!$D$4:$AI$3035,F$182,FALSE)>1,IF(VLOOKUP($C214&$B$3,base!$D$4:$AI$3035,F$182,FALSE)>1000,TEXT(VLOOKUP($C214&$B$3,base!$D$4:$AI$3035,F$182,FALSE),"0.000"),TEXT(VLOOKUP($C214&$B$3,base!$D$4:$AI$3035,F$182,FALSE),"0")),TEXT(VLOOKUP($C214&$B$3,base!$D$4:$AI$3035,F$182,FALSE),"0,0%")),"") ->  | G214: =IFERROR(IF(VLOOKUP($C214&$B$3,base!$D$4:$BM$3035,G$182,FALSE)>1000,TEXT(VLOOKUP($C214&$B$3,base!$D$4:$BM$3035,G$182,FALSE),"0.000"),TEXT(VLOOKUP($C214&$B$3,base!$D$4:$BM$3035,G$182,FALSE),"0")),"") ->  | H214: =IFERROR(IF(VLOOKUP($C214&$B$3,base!$D$4:$BM$3035,H$182,FALSE)>1000,TEXT(VLOOKUP($C214&$B$3,base!$D$4:$BM$3035,H$182,FALSE),"0.000"),TEXT(VLOOKUP($C214&$B$3,base!$D$4:$BM$3035,H$182,FALSE),"0")),"") ->  | I214: =IFERROR(IF(VLOOKUP($C214&$B$3,base!$D$4:$BM$3035,I$182,FALSE)>1,IF(VLOOKUP($C214&$B$3,base!$D$4:$BM$3035,I$182,FALSE)>1000,TEXT(VLOOKUP($C214&$B$3,base!$D$4:$BM$3035,I$182,FALSE),"0.000"),TEXT(VLOOKUP($C214&$B$3,base!$D$4:$BM$3035,I$182,FALSE),"0")),TEXT(VLOOKUP($C214&$B$3,base!$D$4:$BM$3035,I$182,FALSE),"0,0%")),"") ->  | J214: =IFERROR(IF(VLOOKUP($C214&$B$3,base!$D$4:$BM$3035,J$182,FALSE)>1,IF(VLOOKUP($C214&$B$3,base!$D$4:$BM$3035,J$182,FALSE)>1000,TEXT(VLOOKUP($C214&$B$3,base!$D$4:$BM$3035,J$182,FALSE),"0.000"),TEXT(VLOOKUP($C214&$B$3,base!$D$4:$BM$3035,J$182,FALSE),"0")),TEXT(VLOOKUP($C214&$B$3,base!$D$4:$BM$3035,J$182,FALSE),"0,0%")),"") ->  | K214: =IFERROR(IF(VLOOKUP($C214&$B$3,base!$D$4:$BM$3035,K$182,FALSE)>1,IF(VLOOKUP($C214&$B$3,base!$D$4:$BM$3035,K$182,FALSE)>1000,TEXT(VLOOKUP($C214&$B$3,base!$D$4:$BM$3035,K$182,FALSE),"0.000"),TEXT(VLOOKUP($C214&$B$3,base!$D$4:$BM$3035,K$182,FALSE),"0")),TEXT(VLOOKUP($C214&$B$3,base!$D$4:$BM$3035,K$182,FALSE),"0,0%")),"") -> 
A215: 32 | B215: 1.32 | C215: =+IFERROR(VLOOKUP(B215,referencias!$J$128:$K$1212,2,FALSE),"") ->  | D215: =IFERROR(VLOOKUP(C215,'tc nacional'!$AA$7:$AB$201,2,FALSE),"") ->  | F215: =IFERROR(IF(VLOOKUP($C215&$B$3,base!$D$4:$AI$3035,F$182,FALSE)>1,IF(VLOOKUP($C215&$B$3,base!$D$4:$AI$3035,F$182,FALSE)>1000,TEXT(VLOOKUP($C215&$B$3,base!$D$4:$AI$3035,F$182,FALSE),"0.000"),TEXT(VLOOKUP($C215&$B$3,base!$D$4:$AI$3035,F$182,FALSE),"0")),TEXT(VLOOKUP($C215&$B$3,base!$D$4:$AI$3035,F$182,FALSE),"0,0%")),"") ->  | G215: =IFERROR(IF(VLOOKUP($C215&$B$3,base!$D$4:$BM$3035,G$182,FALSE)>1000,TEXT(VLOOKUP($C215&$B$3,base!$D$4:$BM$3035,G$182,FALSE),"0.000"),TEXT(VLOOKUP($C215&$B$3,base!$D$4:$BM$3035,G$182,FALSE),"0")),"") ->  | H215: =IFERROR(IF(VLOOKUP($C215&$B$3,base!$D$4:$BM$3035,H$182,FALSE)>1000,TEXT(VLOOKUP($C215&$B$3,base!$D$4:$BM$3035,H$182,FALSE),"0.000"),TEXT(VLOOKUP($C215&$B$3,base!$D$4:$BM$3035,H$182,FALSE),"0")),"") ->  | I215: =IFERROR(IF(VLOOKUP($C215&$B$3,base!$D$4:$BM$3035,I$182,FALSE)>1,IF(VLOOKUP($C215&$B$3,base!$D$4:$BM$3035,I$182,FALSE)>1000,TEXT(VLOOKUP($C215&$B$3,base!$D$4:$BM$3035,I$182,FALSE),"0.000"),TEXT(VLOOKUP($C215&$B$3,base!$D$4:$BM$3035,I$182,FALSE),"0")),TEXT(VLOOKUP($C215&$B$3,base!$D$4:$BM$3035,I$182,FALSE),"0,0%")),"") ->  | J215: =IFERROR(IF(VLOOKUP($C215&$B$3,base!$D$4:$BM$3035,J$182,FALSE)>1,IF(VLOOKUP($C215&$B$3,base!$D$4:$BM$3035,J$182,FALSE)>1000,TEXT(VLOOKUP($C215&$B$3,base!$D$4:$BM$3035,J$182,FALSE),"0.000"),TEXT(VLOOKUP($C215&$B$3,base!$D$4:$BM$3035,J$182,FALSE),"0")),TEXT(VLOOKUP($C215&$B$3,base!$D$4:$BM$3035,J$182,FALSE),"0,0%")),"") ->  | K215: =IFERROR(IF(VLOOKUP($C215&$B$3,base!$D$4:$BM$3035,K$182,FALSE)>1,IF(VLOOKUP($C215&$B$3,base!$D$4:$BM$3035,K$182,FALSE)>1000,TEXT(VLOOKUP($C215&$B$3,base!$D$4:$BM$3035,K$182,FALSE),"0.000"),TEXT(VLOOKUP($C215&$B$3,base!$D$4:$BM$3035,K$182,FALSE),"0")),TEXT(VLOOKUP($C215&$B$3,base!$D$4:$BM$3035,K$182,FALSE),"0,0%")),"") -> 
A216: 33 | B216: 1.33 | C216: =+IFERROR(VLOOKUP(B216,referencias!$J$128:$K$1212,2,FALSE),"") ->  | D216: =IFERROR(VLOOKUP(C216,'tc nacional'!$AA$7:$AB$201,2,FALSE),"") ->  | F216: =IFERROR(IF(VLOOKUP($C216&$B$3,base!$D$4:$AI$3035,F$182,FALSE)>1,IF(VLOOKUP($C216&$B$3,base!$D$4:$AI$3035,F$182,FALSE)>1000,TEXT(VLOOKUP($C216&$B$3,base!$D$4:$AI$3035,F$182,FALSE),"0.000"),TEXT(VLOOKUP($C216&$B$3,base!$D$4:$AI$3035,F$182,FALSE),"0")),TEXT(VLOOKUP($C216&$B$3,base!$D$4:$AI$3035,F$182,FALSE),"0,0%")),"") ->  | G216: =IFERROR(IF(VLOOKUP($C216&$B$3,base!$D$4:$BM$3035,G$182,FALSE)>1000,TEXT(VLOOKUP($C216&$B$3,base!$D$4:$BM$3035,G$182,FALSE),"0.000"),TEXT(VLOOKUP($C216&$B$3,base!$D$4:$BM$3035,G$182,FALSE),"0")),"") ->  | H216: =IFERROR(IF(VLOOKUP($C216&$B$3,base!$D$4:$BM$3035,H$182,FALSE)>1000,TEXT(VLOOKUP($C216&$B$3,base!$D$4:$BM$3035,H$182,FALSE),"0.000"),TEXT(VLOOKUP($C216&$B$3,base!$D$4:$BM$3035,H$182,FALSE),"0")),"") ->  | I216: =IFERROR(IF(VLOOKUP($C216&$B$3,base!$D$4:$BM$3035,I$182,FALSE)>1,IF(VLOOKUP($C216&$B$3,base!$D$4:$BM$3035,I$182,FALSE)>1000,TEXT(VLOOKUP($C216&$B$3,base!$D$4:$BM$3035,I$182,FALSE),"0.000"),TEXT(VLOOKUP($C216&$B$3,base!$D$4:$BM$3035,I$182,FALSE),"0")),TEXT(VLOOKUP($C216&$B$3,base!$D$4:$BM$3035,I$182,FALSE),"0,0%")),"") ->  | J216: =IFERROR(IF(VLOOKUP($C216&$B$3,base!$D$4:$BM$3035,J$182,FALSE)>1,IF(VLOOKUP($C216&$B$3,base!$D$4:$BM$3035,J$182,FALSE)>1000,TEXT(VLOOKUP($C216&$B$3,base!$D$4:$BM$3035,J$182,FALSE),"0.000"),TEXT(VLOOKUP($C216&$B$3,base!$D$4:$BM$3035,J$182,FALSE),"0")),TEXT(VLOOKUP($C216&$B$3,base!$D$4:$BM$3035,J$182,FALSE),"0,0%")),"") ->  | K216: =IFERROR(IF(VLOOKUP($C216&$B$3,base!$D$4:$BM$3035,K$182,FALSE)>1,IF(VLOOKUP($C216&$B$3,base!$D$4:$BM$3035,K$182,FALSE)>1000,TEXT(VLOOKUP($C216&$B$3,base!$D$4:$BM$3035,K$182,FALSE),"0.000"),TEXT(VLOOKUP($C216&$B$3,base!$D$4:$BM$3035,K$182,FALSE),"0")),TEXT(VLOOKUP($C216&$B$3,base!$D$4:$BM$3035,K$182,FALSE),"0,0%")),"") -> 
A217: 34 | B217: 1.34 | C217: =+IFERROR(VLOOKUP(B217,referencias!$J$128:$K$1212,2,FALSE),"") ->  | D217: =IFERROR(VLOOKUP(C217,'tc nacional'!$AA$7:$AB$201,2,FALSE),"") ->  | F217: =IFERROR(IF(VLOOKUP($C217&$B$3,base!$D$4:$AI$3035,F$182,FALSE)>1,IF(VLOOKUP($C217&$B$3,base!$D$4:$AI$3035,F$182,FALSE)>1000,TEXT(VLOOKUP($C217&$B$3,base!$D$4:$AI$3035,F$182,FALSE),"0.000"),TEXT(VLOOKUP($C217&$B$3,base!$D$4:$AI$3035,F$182,FALSE),"0")),TEXT(VLOOKUP($C217&$B$3,base!$D$4:$AI$3035,F$182,FALSE),"0,0%")),"") ->  | G217: =IFERROR(IF(VLOOKUP($C217&$B$3,base!$D$4:$BM$3035,G$182,FALSE)>1000,TEXT(VLOOKUP($C217&$B$3,base!$D$4:$BM$3035,G$182,FALSE),"0.000"),TEXT(VLOOKUP($C217&$B$3,base!$D$4:$BM$3035,G$182,FALSE),"0")),"") ->  | H217: =IFERROR(IF(VLOOKUP($C217&$B$3,base!$D$4:$BM$3035,H$182,FALSE)>1000,TEXT(VLOOKUP($C217&$B$3,base!$D$4:$BM$3035,H$182,FALSE),"0.000"),TEXT(VLOOKUP($C217&$B$3,base!$D$4:$BM$3035,H$182,FALSE),"0")),"") ->  | I217: =IFERROR(IF(VLOOKUP($C217&$B$3,base!$D$4:$BM$3035,I$182,FALSE)>1,IF(VLOOKUP($C217&$B$3,base!$D$4:$BM$3035,I$182,FALSE)>1000,TEXT(VLOOKUP($C217&$B$3,base!$D$4:$BM$3035,I$182,FALSE),"0.000"),TEXT(VLOOKUP($C217&$B$3,base!$D$4:$BM$3035,I$182,FALSE),"0")),TEXT(VLOOKUP($C217&$B$3,base!$D$4:$BM$3035,I$182,FALSE),"0,0%")),"") ->  | J217: =IFERROR(IF(VLOOKUP($C217&$B$3,base!$D$4:$BM$3035,J$182,FALSE)>1,IF(VLOOKUP($C217&$B$3,base!$D$4:$BM$3035,J$182,FALSE)>1000,TEXT(VLOOKUP($C217&$B$3,base!$D$4:$BM$3035,J$182,FALSE),"0.000"),TEXT(VLOOKUP($C217&$B$3,base!$D$4:$BM$3035,J$182,FALSE),"0")),TEXT(VLOOKUP($C217&$B$3,base!$D$4:$BM$3035,J$182,FALSE),"0,0%")),"") ->  | K217: =IFERROR(IF(VLOOKUP($C217&$B$3,base!$D$4:$BM$3035,K$182,FALSE)>1,IF(VLOOKUP($C217&$B$3,base!$D$4:$BM$3035,K$182,FALSE)>1000,TEXT(VLOOKUP($C217&$B$3,base!$D$4:$BM$3035,K$182,FALSE),"0.000"),TEXT(VLOOKUP($C217&$B$3,base!$D$4:$BM$3035,K$182,FALSE),"0")),TEXT(VLOOKUP($C217&$B$3,base!$D$4:$BM$3035,K$182,FALSE),"0,0%")),"") -> 
A218: 35 | B218: 1.35 | C218: =+IFERROR(VLOOKUP(B218,referencias!$J$128:$K$1212,2,FALSE),"") ->  | D218: =IFERROR(VLOOKUP(C218,'tc nacional'!$AA$7:$AB$201,2,FALSE),"") ->  | F218: =IFERROR(IF(VLOOKUP($C218&$B$3,base!$D$4:$AI$3035,F$182,FALSE)>1,IF(VLOOKUP($C218&$B$3,base!$D$4:$AI$3035,F$182,FALSE)>1000,TEXT(VLOOKUP($C218&$B$3,base!$D$4:$AI$3035,F$182,FALSE),"0.000"),TEXT(VLOOKUP($C218&$B$3,base!$D$4:$AI$3035,F$182,FALSE),"0")),TEXT(VLOOKUP($C218&$B$3,base!$D$4:$AI$3035,F$182,FALSE),"0,0%")),"") ->  | G218: =IFERROR(IF(VLOOKUP($C218&$B$3,base!$D$4:$BM$3035,G$182,FALSE)>1000,TEXT(VLOOKUP($C218&$B$3,base!$D$4:$BM$3035,G$182,FALSE),"0.000"),TEXT(VLOOKUP($C218&$B$3,base!$D$4:$BM$3035,G$182,FALSE),"0")),"") ->  | H218: =IFERROR(IF(VLOOKUP($C218&$B$3,base!$D$4:$BM$3035,H$182,FALSE)>1000,TEXT(VLOOKUP($C218&$B$3,base!$D$4:$BM$3035,H$182,FALSE),"0.000"),TEXT(VLOOKUP($C218&$B$3,base!$D$4:$BM$3035,H$182,FALSE),"0")),"") ->  | I218: =IFERROR(IF(VLOOKUP($C218&$B$3,base!$D$4:$BM$3035,I$182,FALSE)>1,IF(VLOOKUP($C218&$B$3,base!$D$4:$BM$3035,I$182,FALSE)>1000,TEXT(VLOOKUP($C218&$B$3,base!$D$4:$BM$3035,I$182,FALSE),"0.000"),TEXT(VLOOKUP($C218&$B$3,base!$D$4:$BM$3035,I$182,FALSE),"0")),TEXT(VLOOKUP($C218&$B$3,base!$D$4:$BM$3035,I$182,FALSE),"0,0%")),"") ->  | J218: =IFERROR(IF(VLOOKUP($C218&$B$3,base!$D$4:$BM$3035,J$182,FALSE)>1,IF(VLOOKUP($C218&$B$3,base!$D$4:$BM$3035,J$182,FALSE)>1000,TEXT(VLOOKUP($C218&$B$3,base!$D$4:$BM$3035,J$182,FALSE),"0.000"),TEXT(VLOOKUP($C218&$B$3,base!$D$4:$BM$3035,J$182,FALSE),"0")),TEXT(VLOOKUP($C218&$B$3,base!$D$4:$BM$3035,J$182,FALSE),"0,0%")),"") ->  | K218: =IFERROR(IF(VLOOKUP($C218&$B$3,base!$D$4:$BM$3035,K$182,FALSE)>1,IF(VLOOKUP($C218&$B$3,base!$D$4:$BM$3035,K$182,FALSE)>1000,TEXT(VLOOKUP($C218&$B$3,base!$D$4:$BM$3035,K$182,FALSE),"0.000"),TEXT(VLOOKUP($C218&$B$3,base!$D$4:$BM$3035,K$182,FALSE),"0")),TEXT(VLOOKUP($C218&$B$3,base!$D$4:$BM$3035,K$182,FALSE),"0,0%")),"") -> 
A219: 36 | B219: 1.36 | C219: =+IFERROR(VLOOKUP(B219,referencias!$J$128:$K$1212,2,FALSE),"") ->  | D219: =IFERROR(VLOOKUP(C219,'tc nacional'!$AA$7:$AB$201,2,FALSE),"") ->  | F219: =IFERROR(IF(VLOOKUP($C219&$B$3,base!$D$4:$AI$3035,F$182,FALSE)>1,IF(VLOOKUP($C219&$B$3,base!$D$4:$AI$3035,F$182,FALSE)>1000,TEXT(VLOOKUP($C219&$B$3,base!$D$4:$AI$3035,F$182,FALSE),"0.000"),TEXT(VLOOKUP($C219&$B$3,base!$D$4:$AI$3035,F$182,FALSE),"0")),TEXT(VLOOKUP($C219&$B$3,base!$D$4:$AI$3035,F$182,FALSE),"0,0%")),"") ->  | G219: =IFERROR(IF(VLOOKUP($C219&$B$3,base!$D$4:$BM$3035,G$182,FALSE)>1000,TEXT(VLOOKUP($C219&$B$3,base!$D$4:$BM$3035,G$182,FALSE),"0.000"),TEXT(VLOOKUP($C219&$B$3,base!$D$4:$BM$3035,G$182,FALSE),"0")),"") ->  | H219: =IFERROR(IF(VLOOKUP($C219&$B$3,base!$D$4:$BM$3035,H$182,FALSE)>1000,TEXT(VLOOKUP($C219&$B$3,base!$D$4:$BM$3035,H$182,FALSE),"0.000"),TEXT(VLOOKUP($C219&$B$3,base!$D$4:$BM$3035,H$182,FALSE),"0")),"") ->  | I219: =IFERROR(IF(VLOOKUP($C219&$B$3,base!$D$4:$BM$3035,I$182,FALSE)>1,IF(VLOOKUP($C219&$B$3,base!$D$4:$BM$3035,I$182,FALSE)>1000,TEXT(VLOOKUP($C219&$B$3,base!$D$4:$BM$3035,I$182,FALSE),"0.000"),TEXT(VLOOKUP($C219&$B$3,base!$D$4:$BM$3035,I$182,FALSE),"0")),TEXT(VLOOKUP($C219&$B$3,base!$D$4:$BM$3035,I$182,FALSE),"0,0%")),"") ->  | J219: =IFERROR(IF(VLOOKUP($C219&$B$3,base!$D$4:$BM$3035,J$182,FALSE)>1,IF(VLOOKUP($C219&$B$3,base!$D$4:$BM$3035,J$182,FALSE)>1000,TEXT(VLOOKUP($C219&$B$3,base!$D$4:$BM$3035,J$182,FALSE),"0.000"),TEXT(VLOOKUP($C219&$B$3,base!$D$4:$BM$3035,J$182,FALSE),"0")),TEXT(VLOOKUP($C219&$B$3,base!$D$4:$BM$3035,J$182,FALSE),"0,0%")),"") ->  | K219: =IFERROR(IF(VLOOKUP($C219&$B$3,base!$D$4:$BM$3035,K$182,FALSE)>1,IF(VLOOKUP($C219&$B$3,base!$D$4:$BM$3035,K$182,FALSE)>1000,TEXT(VLOOKUP($C219&$B$3,base!$D$4:$BM$3035,K$182,FALSE),"0.000"),TEXT(VLOOKUP($C219&$B$3,base!$D$4:$BM$3035,K$182,FALSE),"0")),TEXT(VLOOKUP($C219&$B$3,base!$D$4:$BM$3035,K$182,FALSE),"0,0%")),"") -> 
A220: 37 | B220: 1.37 | C220: =+IFERROR(VLOOKUP(B220,referencias!$J$128:$K$1212,2,FALSE),"") ->  | D220: =IFERROR(VLOOKUP(C220,'tc nacional'!$AA$7:$AB$201,2,FALSE),"") ->  | F220: =IFERROR(IF(VLOOKUP($C220&$B$3,base!$D$4:$AI$3035,F$182,FALSE)>1,IF(VLOOKUP($C220&$B$3,base!$D$4:$AI$3035,F$182,FALSE)>1000,TEXT(VLOOKUP($C220&$B$3,base!$D$4:$AI$3035,F$182,FALSE),"0.000"),TEXT(VLOOKUP($C220&$B$3,base!$D$4:$AI$3035,F$182,FALSE),"0")),TEXT(VLOOKUP($C220&$B$3,base!$D$4:$AI$3035,F$182,FALSE),"0,0%")),"") ->  | G220: =IFERROR(IF(VLOOKUP($C220&$B$3,base!$D$4:$BM$3035,G$182,FALSE)>1000,TEXT(VLOOKUP($C220&$B$3,base!$D$4:$BM$3035,G$182,FALSE),"0.000"),TEXT(VLOOKUP($C220&$B$3,base!$D$4:$BM$3035,G$182,FALSE),"0")),"") ->  | H220: =IFERROR(IF(VLOOKUP($C220&$B$3,base!$D$4:$BM$3035,H$182,FALSE)>1000,TEXT(VLOOKUP($C220&$B$3,base!$D$4:$BM$3035,H$182,FALSE),"0.000"),TEXT(VLOOKUP($C220&$B$3,base!$D$4:$BM$3035,H$182,FALSE),"0")),"") ->  | I220: =IFERROR(IF(VLOOKUP($C220&$B$3,base!$D$4:$BM$3035,I$182,FALSE)>1,IF(VLOOKUP($C220&$B$3,base!$D$4:$BM$3035,I$182,FALSE)>1000,TEXT(VLOOKUP($C220&$B$3,base!$D$4:$BM$3035,I$182,FALSE),"0.000"),TEXT(VLOOKUP($C220&$B$3,base!$D$4:$BM$3035,I$182,FALSE),"0")),TEXT(VLOOKUP($C220&$B$3,base!$D$4:$BM$3035,I$182,FALSE),"0,0%")),"") ->  | J220: =IFERROR(IF(VLOOKUP($C220&$B$3,base!$D$4:$BM$3035,J$182,FALSE)>1,IF(VLOOKUP($C220&$B$3,base!$D$4:$BM$3035,J$182,FALSE)>1000,TEXT(VLOOKUP($C220&$B$3,base!$D$4:$BM$3035,J$182,FALSE),"0.000"),TEXT(VLOOKUP($C220&$B$3,base!$D$4:$BM$3035,J$182,FALSE),"0")),TEXT(VLOOKUP($C220&$B$3,base!$D$4:$BM$3035,J$182,FALSE),"0,0%")),"") ->  | K220: =IFERROR(IF(VLOOKUP($C220&$B$3,base!$D$4:$BM$3035,K$182,FALSE)>1,IF(VLOOKUP($C220&$B$3,base!$D$4:$BM$3035,K$182,FALSE)>1000,TEXT(VLOOKUP($C220&$B$3,base!$D$4:$BM$3035,K$182,FALSE),"0.000"),TEXT(VLOOKUP($C220&$B$3,base!$D$4:$BM$3035,K$182,FALSE),"0")),TEXT(VLOOKUP($C220&$B$3,base!$D$4:$BM$3035,K$182,FALSE),"0,0%")),"") -> 
A221: 38 | B221: 1.38 | C221: =+IFERROR(VLOOKUP(B221,referencias!$J$128:$K$1212,2,FALSE),"") ->  | D221: =IFERROR(VLOOKUP(C221,'tc nacional'!$AA$7:$AB$201,2,FALSE),"") ->  | F221: =IFERROR(IF(VLOOKUP($C221&$B$3,base!$D$4:$AI$3035,F$182,FALSE)>1,IF(VLOOKUP($C221&$B$3,base!$D$4:$AI$3035,F$182,FALSE)>1000,TEXT(VLOOKUP($C221&$B$3,base!$D$4:$AI$3035,F$182,FALSE),"0.000"),TEXT(VLOOKUP($C221&$B$3,base!$D$4:$AI$3035,F$182,FALSE),"0")),TEXT(VLOOKUP($C221&$B$3,base!$D$4:$AI$3035,F$182,FALSE),"0,0%")),"") ->  | G221: =IFERROR(IF(VLOOKUP($C221&$B$3,base!$D$4:$BM$3035,G$182,FALSE)>1000,TEXT(VLOOKUP($C221&$B$3,base!$D$4:$BM$3035,G$182,FALSE),"0.000"),TEXT(VLOOKUP($C221&$B$3,base!$D$4:$BM$3035,G$182,FALSE),"0")),"") ->  | H221: =IFERROR(IF(VLOOKUP($C221&$B$3,base!$D$4:$BM$3035,H$182,FALSE)>1000,TEXT(VLOOKUP($C221&$B$3,base!$D$4:$BM$3035,H$182,FALSE),"0.000"),TEXT(VLOOKUP($C221&$B$3,base!$D$4:$BM$3035,H$182,FALSE),"0")),"") ->  | I221: =IFERROR(IF(VLOOKUP($C221&$B$3,base!$D$4:$BM$3035,I$182,FALSE)>1,IF(VLOOKUP($C221&$B$3,base!$D$4:$BM$3035,I$182,FALSE)>1000,TEXT(VLOOKUP($C221&$B$3,base!$D$4:$BM$3035,I$182,FALSE),"0.000"),TEXT(VLOOKUP($C221&$B$3,base!$D$4:$BM$3035,I$182,FALSE),"0")),TEXT(VLOOKUP($C221&$B$3,base!$D$4:$BM$3035,I$182,FALSE),"0,0%")),"") ->  | J221: =IFERROR(IF(VLOOKUP($C221&$B$3,base!$D$4:$BM$3035,J$182,FALSE)>1,IF(VLOOKUP($C221&$B$3,base!$D$4:$BM$3035,J$182,FALSE)>1000,TEXT(VLOOKUP($C221&$B$3,base!$D$4:$BM$3035,J$182,FALSE),"0.000"),TEXT(VLOOKUP($C221&$B$3,base!$D$4:$BM$3035,J$182,FALSE),"0")),TEXT(VLOOKUP($C221&$B$3,base!$D$4:$BM$3035,J$182,FALSE),"0,0%")),"") ->  | K221: =IFERROR(IF(VLOOKUP($C221&$B$3,base!$D$4:$BM$3035,K$182,FALSE)>1,IF(VLOOKUP($C221&$B$3,base!$D$4:$BM$3035,K$182,FALSE)>1000,TEXT(VLOOKUP($C221&$B$3,base!$D$4:$BM$3035,K$182,FALSE),"0.000"),TEXT(VLOOKUP($C221&$B$3,base!$D$4:$BM$3035,K$182,FALSE),"0")),TEXT(VLOOKUP($C221&$B$3,base!$D$4:$BM$3035,K$182,FALSE),"0,0%")),"") -> 
A222: 39 | B222: 1.39 | C222: =+IFERROR(VLOOKUP(B222,referencias!$J$128:$K$1212,2,FALSE),"") ->  | D222: =IFERROR(VLOOKUP(C222,'tc nacional'!$AA$7:$AB$201,2,FALSE),"") ->  | F222: =IFERROR(IF(VLOOKUP($C222&$B$3,base!$D$4:$AI$3035,F$182,FALSE)>1,IF(VLOOKUP($C222&$B$3,base!$D$4:$AI$3035,F$182,FALSE)>1000,TEXT(VLOOKUP($C222&$B$3,base!$D$4:$AI$3035,F$182,FALSE),"0.000"),TEXT(VLOOKUP($C222&$B$3,base!$D$4:$AI$3035,F$182,FALSE),"0")),TEXT(VLOOKUP($C222&$B$3,base!$D$4:$AI$3035,F$182,FALSE),"0,0%")),"") ->  | G222: =IFERROR(IF(VLOOKUP($C222&$B$3,base!$D$4:$BM$3035,G$182,FALSE)>1000,TEXT(VLOOKUP($C222&$B$3,base!$D$4:$BM$3035,G$182,FALSE),"0.000"),TEXT(VLOOKUP($C222&$B$3,base!$D$4:$BM$3035,G$182,FALSE),"0")),"") ->  | H222: =IFERROR(IF(VLOOKUP($C222&$B$3,base!$D$4:$BM$3035,H$182,FALSE)>1000,TEXT(VLOOKUP($C222&$B$3,base!$D$4:$BM$3035,H$182,FALSE),"0.000"),TEXT(VLOOKUP($C222&$B$3,base!$D$4:$BM$3035,H$182,FALSE),"0")),"") ->  | I222: =IFERROR(IF(VLOOKUP($C222&$B$3,base!$D$4:$BM$3035,I$182,FALSE)>1,IF(VLOOKUP($C222&$B$3,base!$D$4:$BM$3035,I$182,FALSE)>1000,TEXT(VLOOKUP($C222&$B$3,base!$D$4:$BM$3035,I$182,FALSE),"0.000"),TEXT(VLOOKUP($C222&$B$3,base!$D$4:$BM$3035,I$182,FALSE),"0")),TEXT(VLOOKUP($C222&$B$3,base!$D$4:$BM$3035,I$182,FALSE),"0,0%")),"") ->  | J222: =IFERROR(IF(VLOOKUP($C222&$B$3,base!$D$4:$BM$3035,J$182,FALSE)>1,IF(VLOOKUP($C222&$B$3,base!$D$4:$BM$3035,J$182,FALSE)>1000,TEXT(VLOOKUP($C222&$B$3,base!$D$4:$BM$3035,J$182,FALSE),"0.000"),TEXT(VLOOKUP($C222&$B$3,base!$D$4:$BM$3035,J$182,FALSE),"0")),TEXT(VLOOKUP($C222&$B$3,base!$D$4:$BM$3035,J$182,FALSE),"0,0%")),"") ->  | K222: =IFERROR(IF(VLOOKUP($C222&$B$3,base!$D$4:$BM$3035,K$182,FALSE)>1,IF(VLOOKUP($C222&$B$3,base!$D$4:$BM$3035,K$182,FALSE)>1000,TEXT(VLOOKUP($C222&$B$3,base!$D$4:$BM$3035,K$182,FALSE),"0.000"),TEXT(VLOOKUP($C222&$B$3,base!$D$4:$BM$3035,K$182,FALSE),"0")),TEXT(VLOOKUP($C222&$B$3,base!$D$4:$BM$3035,K$182,FALSE),"0,0%")),"") -> 
A223: 40 | B223: 1.40 | C223: =+IFERROR(VLOOKUP(B223,referencias!$J$128:$K$1212,2,FALSE),"") ->  | D223: =IFERROR(VLOOKUP(C223,'tc nacional'!$AA$7:$AB$201,2,FALSE),"") ->  | F223: =IFERROR(IF(VLOOKUP($C223&$B$3,base!$D$4:$AI$3035,F$182,FALSE)>1,IF(VLOOKUP($C223&$B$3,base!$D$4:$AI$3035,F$182,FALSE)>1000,TEXT(VLOOKUP($C223&$B$3,base!$D$4:$AI$3035,F$182,FALSE),"0.000"),TEXT(VLOOKUP($C223&$B$3,base!$D$4:$AI$3035,F$182,FALSE),"0")),TEXT(VLOOKUP($C223&$B$3,base!$D$4:$AI$3035,F$182,FALSE),"0,0%")),"") ->  | G223: =IFERROR(IF(VLOOKUP($C223&$B$3,base!$D$4:$BM$3035,G$182,FALSE)>1000,TEXT(VLOOKUP($C223&$B$3,base!$D$4:$BM$3035,G$182,FALSE),"0.000"),TEXT(VLOOKUP($C223&$B$3,base!$D$4:$BM$3035,G$182,FALSE),"0")),"") ->  | H223: =IFERROR(IF(VLOOKUP($C223&$B$3,base!$D$4:$BM$3035,H$182,FALSE)>1000,TEXT(VLOOKUP($C223&$B$3,base!$D$4:$BM$3035,H$182,FALSE),"0.000"),TEXT(VLOOKUP($C223&$B$3,base!$D$4:$BM$3035,H$182,FALSE),"0")),"") ->  | I223: =IFERROR(IF(VLOOKUP($C223&$B$3,base!$D$4:$BM$3035,I$182,FALSE)>1,IF(VLOOKUP($C223&$B$3,base!$D$4:$BM$3035,I$182,FALSE)>1000,TEXT(VLOOKUP($C223&$B$3,base!$D$4:$BM$3035,I$182,FALSE),"0.000"),TEXT(VLOOKUP($C223&$B$3,base!$D$4:$BM$3035,I$182,FALSE),"0")),TEXT(VLOOKUP($C223&$B$3,base!$D$4:$BM$3035,I$182,FALSE),"0,0%")),"") ->  | J223: =IFERROR(IF(VLOOKUP($C223&$B$3,base!$D$4:$BM$3035,J$182,FALSE)>1,IF(VLOOKUP($C223&$B$3,base!$D$4:$BM$3035,J$182,FALSE)>1000,TEXT(VLOOKUP($C223&$B$3,base!$D$4:$BM$3035,J$182,FALSE),"0.000"),TEXT(VLOOKUP($C223&$B$3,base!$D$4:$BM$3035,J$182,FALSE),"0")),TEXT(VLOOKUP($C223&$B$3,base!$D$4:$BM$3035,J$182,FALSE),"0,0%")),"") ->  | K223: =IFERROR(IF(VLOOKUP($C223&$B$3,base!$D$4:$BM$3035,K$182,FALSE)>1,IF(VLOOKUP($C223&$B$3,base!$D$4:$BM$3035,K$182,FALSE)>1000,TEXT(VLOOKUP($C223&$B$3,base!$D$4:$BM$3035,K$182,FALSE),"0.000"),TEXT(VLOOKUP($C223&$B$3,base!$D$4:$BM$3035,K$182,FALSE),"0")),TEXT(VLOOKUP($C223&$B$3,base!$D$4:$BM$3035,K$182,FALSE),"0,0%")),"") -> 
A224: 41 | B224: 1.41 | C224: =+IFERROR(VLOOKUP(B224,referencias!$J$128:$K$1212,2,FALSE),"") ->  | D224: =IFERROR(VLOOKUP(C224,'tc nacional'!$AA$7:$AB$201,2,FALSE),"") ->  | F224: =IFERROR(IF(VLOOKUP($C224&$B$3,base!$D$4:$AI$3035,F$182,FALSE)>1,IF(VLOOKUP($C224&$B$3,base!$D$4:$AI$3035,F$182,FALSE)>1000,TEXT(VLOOKUP($C224&$B$3,base!$D$4:$AI$3035,F$182,FALSE),"0.000"),TEXT(VLOOKUP($C224&$B$3,base!$D$4:$AI$3035,F$182,FALSE),"0")),TEXT(VLOOKUP($C224&$B$3,base!$D$4:$AI$3035,F$182,FALSE),"0,0%")),"") ->  | G224: =IFERROR(IF(VLOOKUP($C224&$B$3,base!$D$4:$BM$3035,G$182,FALSE)>1000,TEXT(VLOOKUP($C224&$B$3,base!$D$4:$BM$3035,G$182,FALSE),"0.000"),TEXT(VLOOKUP($C224&$B$3,base!$D$4:$BM$3035,G$182,FALSE),"0")),"") ->  | H224: =IFERROR(IF(VLOOKUP($C224&$B$3,base!$D$4:$BM$3035,H$182,FALSE)>1000,TEXT(VLOOKUP($C224&$B$3,base!$D$4:$BM$3035,H$182,FALSE),"0.000"),TEXT(VLOOKUP($C224&$B$3,base!$D$4:$BM$3035,H$182,FALSE),"0")),"") ->  | I224: =IFERROR(IF(VLOOKUP($C224&$B$3,base!$D$4:$BM$3035,I$182,FALSE)>1,IF(VLOOKUP($C224&$B$3,base!$D$4:$BM$3035,I$182,FALSE)>1000,TEXT(VLOOKUP($C224&$B$3,base!$D$4:$BM$3035,I$182,FALSE),"0.000"),TEXT(VLOOKUP($C224&$B$3,base!$D$4:$BM$3035,I$182,FALSE),"0")),TEXT(VLOOKUP($C224&$B$3,base!$D$4:$BM$3035,I$182,FALSE),"0,0%")),"") ->  | J224: =IFERROR(IF(VLOOKUP($C224&$B$3,base!$D$4:$BM$3035,J$182,FALSE)>1,IF(VLOOKUP($C224&$B$3,base!$D$4:$BM$3035,J$182,FALSE)>1000,TEXT(VLOOKUP($C224&$B$3,base!$D$4:$BM$3035,J$182,FALSE),"0.000"),TEXT(VLOOKUP($C224&$B$3,base!$D$4:$BM$3035,J$182,FALSE),"0")),TEXT(VLOOKUP($C224&$B$3,base!$D$4:$BM$3035,J$182,FALSE),"0,0%")),"") ->  | K224: =IFERROR(IF(VLOOKUP($C224&$B$3,base!$D$4:$BM$3035,K$182,FALSE)>1,IF(VLOOKUP($C224&$B$3,base!$D$4:$BM$3035,K$182,FALSE)>1000,TEXT(VLOOKUP($C224&$B$3,base!$D$4:$BM$3035,K$182,FALSE),"0.000"),TEXT(VLOOKUP($C224&$B$3,base!$D$4:$BM$3035,K$182,FALSE),"0")),TEXT(VLOOKUP($C224&$B$3,base!$D$4:$BM$3035,K$182,FALSE),"0,0%")),"") -> 
A225: 42 | B225: 1.42 | C225: =+IFERROR(VLOOKUP(B225,referencias!$J$128:$K$1212,2,FALSE),"") ->  | D225: =IFERROR(VLOOKUP(C225,'tc nacional'!$AA$7:$AB$201,2,FALSE),"") ->  | F225: =IFERROR(IF(VLOOKUP($C225&$B$3,base!$D$4:$AI$3035,F$182,FALSE)>1,IF(VLOOKUP($C225&$B$3,base!$D$4:$AI$3035,F$182,FALSE)>1000,TEXT(VLOOKUP($C225&$B$3,base!$D$4:$AI$3035,F$182,FALSE),"0.000"),TEXT(VLOOKUP($C225&$B$3,base!$D$4:$AI$3035,F$182,FALSE),"0")),TEXT(VLOOKUP($C225&$B$3,base!$D$4:$AI$3035,F$182,FALSE),"0,0%")),"") ->  | G225: =IFERROR(IF(VLOOKUP($C225&$B$3,base!$D$4:$BM$3035,G$182,FALSE)>1000,TEXT(VLOOKUP($C225&$B$3,base!$D$4:$BM$3035,G$182,FALSE),"0.000"),TEXT(VLOOKUP($C225&$B$3,base!$D$4:$BM$3035,G$182,FALSE),"0")),"") ->  | H225: =IFERROR(IF(VLOOKUP($C225&$B$3,base!$D$4:$BM$3035,H$182,FALSE)>1000,TEXT(VLOOKUP($C225&$B$3,base!$D$4:$BM$3035,H$182,FALSE),"0.000"),TEXT(VLOOKUP($C225&$B$3,base!$D$4:$BM$3035,H$182,FALSE),"0")),"") ->  | I225: =IFERROR(IF(VLOOKUP($C225&$B$3,base!$D$4:$BM$3035,I$182,FALSE)>1,IF(VLOOKUP($C225&$B$3,base!$D$4:$BM$3035,I$182,FALSE)>1000,TEXT(VLOOKUP($C225&$B$3,base!$D$4:$BM$3035,I$182,FALSE),"0.000"),TEXT(VLOOKUP($C225&$B$3,base!$D$4:$BM$3035,I$182,FALSE),"0")),TEXT(VLOOKUP($C225&$B$3,base!$D$4:$BM$3035,I$182,FALSE),"0,0%")),"") ->  | J225: =IFERROR(IF(VLOOKUP($C225&$B$3,base!$D$4:$BM$3035,J$182,FALSE)>1,IF(VLOOKUP($C225&$B$3,base!$D$4:$BM$3035,J$182,FALSE)>1000,TEXT(VLOOKUP($C225&$B$3,base!$D$4:$BM$3035,J$182,FALSE),"0.000"),TEXT(VLOOKUP($C225&$B$3,base!$D$4:$BM$3035,J$182,FALSE),"0")),TEXT(VLOOKUP($C225&$B$3,base!$D$4:$BM$3035,J$182,FALSE),"0,0%")),"") ->  | K225: =IFERROR(IF(VLOOKUP($C225&$B$3,base!$D$4:$BM$3035,K$182,FALSE)>1,IF(VLOOKUP($C225&$B$3,base!$D$4:$BM$3035,K$182,FALSE)>1000,TEXT(VLOOKUP($C225&$B$3,base!$D$4:$BM$3035,K$182,FALSE),"0.000"),TEXT(VLOOKUP($C225&$B$3,base!$D$4:$BM$3035,K$182,FALSE),"0")),TEXT(VLOOKUP($C225&$B$3,base!$D$4:$BM$3035,K$182,FALSE),"0,0%")),"") -> 
A226: 43 | B226: 1.43 | C226: =+IFERROR(VLOOKUP(B226,referencias!$J$128:$K$1212,2,FALSE),"") ->  | D226: =IFERROR(VLOOKUP(C226,'tc nacional'!$AA$7:$AB$201,2,FALSE),"") ->  | F226: =IFERROR(IF(VLOOKUP($C226&$B$3,base!$D$4:$AI$3035,F$182,FALSE)>1,IF(VLOOKUP($C226&$B$3,base!$D$4:$AI$3035,F$182,FALSE)>1000,TEXT(VLOOKUP($C226&$B$3,base!$D$4:$AI$3035,F$182,FALSE),"0.000"),TEXT(VLOOKUP($C226&$B$3,base!$D$4:$AI$3035,F$182,FALSE),"0")),TEXT(VLOOKUP($C226&$B$3,base!$D$4:$AI$3035,F$182,FALSE),"0,0%")),"") ->  | G226: =IFERROR(IF(VLOOKUP($C226&$B$3,base!$D$4:$BM$3035,G$182,FALSE)>1000,TEXT(VLOOKUP($C226&$B$3,base!$D$4:$BM$3035,G$182,FALSE),"0.000"),TEXT(VLOOKUP($C226&$B$3,base!$D$4:$BM$3035,G$182,FALSE),"0")),"") ->  | H226: =IFERROR(IF(VLOOKUP($C226&$B$3,base!$D$4:$BM$3035,H$182,FALSE)>1000,TEXT(VLOOKUP($C226&$B$3,base!$D$4:$BM$3035,H$182,FALSE),"0.000"),TEXT(VLOOKUP($C226&$B$3,base!$D$4:$BM$3035,H$182,FALSE),"0")),"") ->  | I226: =IFERROR(IF(VLOOKUP($C226&$B$3,base!$D$4:$BM$3035,I$182,FALSE)>1,IF(VLOOKUP($C226&$B$3,base!$D$4:$BM$3035,I$182,FALSE)>1000,TEXT(VLOOKUP($C226&$B$3,base!$D$4:$BM$3035,I$182,FALSE),"0.000"),TEXT(VLOOKUP($C226&$B$3,base!$D$4:$BM$3035,I$182,FALSE),"0")),TEXT(VLOOKUP($C226&$B$3,base!$D$4:$BM$3035,I$182,FALSE),"0,0%")),"") ->  | J226: =IFERROR(IF(VLOOKUP($C226&$B$3,base!$D$4:$BM$3035,J$182,FALSE)>1,IF(VLOOKUP($C226&$B$3,base!$D$4:$BM$3035,J$182,FALSE)>1000,TEXT(VLOOKUP($C226&$B$3,base!$D$4:$BM$3035,J$182,FALSE),"0.000"),TEXT(VLOOKUP($C226&$B$3,base!$D$4:$BM$3035,J$182,FALSE),"0")),TEXT(VLOOKUP($C226&$B$3,base!$D$4:$BM$3035,J$182,FALSE),"0,0%")),"") ->  | K226: =IFERROR(IF(VLOOKUP($C226&$B$3,base!$D$4:$BM$3035,K$182,FALSE)>1,IF(VLOOKUP($C226&$B$3,base!$D$4:$BM$3035,K$182,FALSE)>1000,TEXT(VLOOKUP($C226&$B$3,base!$D$4:$BM$3035,K$182,FALSE),"0.000"),TEXT(VLOOKUP($C226&$B$3,base!$D$4:$BM$3035,K$182,FALSE),"0")),TEXT(VLOOKUP($C226&$B$3,base!$D$4:$BM$3035,K$182,FALSE),"0,0%")),"") -> 
A227: 44 | B227: 1.44 | C227: =+IFERROR(VLOOKUP(B227,referencias!$J$128:$K$1212,2,FALSE),"") ->  | D227: =IFERROR(VLOOKUP(C227,'tc nacional'!$AA$7:$AB$201,2,FALSE),"") ->  | F227: =IFERROR(IF(VLOOKUP($C227&$B$3,base!$D$4:$AI$3035,F$182,FALSE)>1,IF(VLOOKUP($C227&$B$3,base!$D$4:$AI$3035,F$182,FALSE)>1000,TEXT(VLOOKUP($C227&$B$3,base!$D$4:$AI$3035,F$182,FALSE),"0.000"),TEXT(VLOOKUP($C227&$B$3,base!$D$4:$AI$3035,F$182,FALSE),"0")),TEXT(VLOOKUP($C227&$B$3,base!$D$4:$AI$3035,F$182,FALSE),"0,0%")),"") ->  | G227: =IFERROR(IF(VLOOKUP($C227&$B$3,base!$D$4:$BM$3035,G$182,FALSE)>1000,TEXT(VLOOKUP($C227&$B$3,base!$D$4:$BM$3035,G$182,FALSE),"0.000"),TEXT(VLOOKUP($C227&$B$3,base!$D$4:$BM$3035,G$182,FALSE),"0")),"") ->  | H227: =IFERROR(IF(VLOOKUP($C227&$B$3,base!$D$4:$BM$3035,H$182,FALSE)>1000,TEXT(VLOOKUP($C227&$B$3,base!$D$4:$BM$3035,H$182,FALSE),"0.000"),TEXT(VLOOKUP($C227&$B$3,base!$D$4:$BM$3035,H$182,FALSE),"0")),"") ->  | I227: =IFERROR(IF(VLOOKUP($C227&$B$3,base!$D$4:$BM$3035,I$182,FALSE)>1,IF(VLOOKUP($C227&$B$3,base!$D$4:$BM$3035,I$182,FALSE)>1000,TEXT(VLOOKUP($C227&$B$3,base!$D$4:$BM$3035,I$182,FALSE),"0.000"),TEXT(VLOOKUP($C227&$B$3,base!$D$4:$BM$3035,I$182,FALSE),"0")),TEXT(VLOOKUP($C227&$B$3,base!$D$4:$BM$3035,I$182,FALSE),"0,0%")),"") ->  | J227: =IFERROR(IF(VLOOKUP($C227&$B$3,base!$D$4:$BM$3035,J$182,FALSE)>1,IF(VLOOKUP($C227&$B$3,base!$D$4:$BM$3035,J$182,FALSE)>1000,TEXT(VLOOKUP($C227&$B$3,base!$D$4:$BM$3035,J$182,FALSE),"0.000"),TEXT(VLOOKUP($C227&$B$3,base!$D$4:$BM$3035,J$182,FALSE),"0")),TEXT(VLOOKUP($C227&$B$3,base!$D$4:$BM$3035,J$182,FALSE),"0,0%")),"") ->  | K227: =IFERROR(IF(VLOOKUP($C227&$B$3,base!$D$4:$BM$3035,K$182,FALSE)>1,IF(VLOOKUP($C227&$B$3,base!$D$4:$BM$3035,K$182,FALSE)>1000,TEXT(VLOOKUP($C227&$B$3,base!$D$4:$BM$3035,K$182,FALSE),"0.000"),TEXT(VLOOKUP($C227&$B$3,base!$D$4:$BM$3035,K$182,FALSE),"0")),TEXT(VLOOKUP($C227&$B$3,base!$D$4:$BM$3035,K$182,FALSE),"0,0%")),"") -> 
A228: 45 | B228: 1.45 | C228: =+IFERROR(VLOOKUP(B228,referencias!$J$128:$K$1212,2,FALSE),"") ->  | D228: =IFERROR(VLOOKUP(C228,'tc nacional'!$AA$7:$AB$201,2,FALSE),"") ->  | F228: =IFERROR(IF(VLOOKUP($C228&$B$3,base!$D$4:$AI$3035,F$182,FALSE)>1,IF(VLOOKUP($C228&$B$3,base!$D$4:$AI$3035,F$182,FALSE)>1000,TEXT(VLOOKUP($C228&$B$3,base!$D$4:$AI$3035,F$182,FALSE),"0.000"),TEXT(VLOOKUP($C228&$B$3,base!$D$4:$AI$3035,F$182,FALSE),"0")),TEXT(VLOOKUP($C228&$B$3,base!$D$4:$AI$3035,F$182,FALSE),"0,0%")),"") ->  | G228: =IFERROR(IF(VLOOKUP($C228&$B$3,base!$D$4:$BM$3035,G$182,FALSE)>1000,TEXT(VLOOKUP($C228&$B$3,base!$D$4:$BM$3035,G$182,FALSE),"0.000"),TEXT(VLOOKUP($C228&$B$3,base!$D$4:$BM$3035,G$182,FALSE),"0")),"") ->  | H228: =IFERROR(IF(VLOOKUP($C228&$B$3,base!$D$4:$BM$3035,H$182,FALSE)>1000,TEXT(VLOOKUP($C228&$B$3,base!$D$4:$BM$3035,H$182,FALSE),"0.000"),TEXT(VLOOKUP($C228&$B$3,base!$D$4:$BM$3035,H$182,FALSE),"0")),"") ->  | I228: =IFERROR(IF(VLOOKUP($C228&$B$3,base!$D$4:$BM$3035,I$182,FALSE)>1,IF(VLOOKUP($C228&$B$3,base!$D$4:$BM$3035,I$182,FALSE)>1000,TEXT(VLOOKUP($C228&$B$3,base!$D$4:$BM$3035,I$182,FALSE),"0.000"),TEXT(VLOOKUP($C228&$B$3,base!$D$4:$BM$3035,I$182,FALSE),"0")),TEXT(VLOOKUP($C228&$B$3,base!$D$4:$BM$3035,I$182,FALSE),"0,0%")),"") ->  | J228: =IFERROR(IF(VLOOKUP($C228&$B$3,base!$D$4:$BM$3035,J$182,FALSE)>1,IF(VLOOKUP($C228&$B$3,base!$D$4:$BM$3035,J$182,FALSE)>1000,TEXT(VLOOKUP($C228&$B$3,base!$D$4:$BM$3035,J$182,FALSE),"0.000"),TEXT(VLOOKUP($C228&$B$3,base!$D$4:$BM$3035,J$182,FALSE),"0")),TEXT(VLOOKUP($C228&$B$3,base!$D$4:$BM$3035,J$182,FALSE),"0,0%")),"") ->  | K228: =IFERROR(IF(VLOOKUP($C228&$B$3,base!$D$4:$BM$3035,K$182,FALSE)>1,IF(VLOOKUP($C228&$B$3,base!$D$4:$BM$3035,K$182,FALSE)>1000,TEXT(VLOOKUP($C228&$B$3,base!$D$4:$BM$3035,K$182,FALSE),"0.000"),TEXT(VLOOKUP($C228&$B$3,base!$D$4:$BM$3035,K$182,FALSE),"0")),TEXT(VLOOKUP($C228&$B$3,base!$D$4:$BM$3035,K$182,FALSE),"0,0%")),"") -> 
A229: 46 | B229: 1.46 | C229: =+IFERROR(VLOOKUP(B229,referencias!$J$128:$K$1212,2,FALSE),"") ->  | D229: =IFERROR(VLOOKUP(C229,'tc nacional'!$AA$7:$AB$201,2,FALSE),"") ->  | F229: =IFERROR(IF(VLOOKUP($C229&$B$3,base!$D$4:$AI$3035,F$182,FALSE)>1,IF(VLOOKUP($C229&$B$3,base!$D$4:$AI$3035,F$182,FALSE)>1000,TEXT(VLOOKUP($C229&$B$3,base!$D$4:$AI$3035,F$182,FALSE),"0.000"),TEXT(VLOOKUP($C229&$B$3,base!$D$4:$AI$3035,F$182,FALSE),"0")),TEXT(VLOOKUP($C229&$B$3,base!$D$4:$AI$3035,F$182,FALSE),"0,0%")),"") ->  | G229: =IFERROR(IF(VLOOKUP($C229&$B$3,base!$D$4:$BM$3035,G$182,FALSE)>1000,TEXT(VLOOKUP($C229&$B$3,base!$D$4:$BM$3035,G$182,FALSE),"0.000"),TEXT(VLOOKUP($C229&$B$3,base!$D$4:$BM$3035,G$182,FALSE),"0")),"") ->  | H229: =IFERROR(IF(VLOOKUP($C229&$B$3,base!$D$4:$BM$3035,H$182,FALSE)>1000,TEXT(VLOOKUP($C229&$B$3,base!$D$4:$BM$3035,H$182,FALSE),"0.000"),TEXT(VLOOKUP($C229&$B$3,base!$D$4:$BM$3035,H$182,FALSE),"0")),"") ->  | I229: =IFERROR(IF(VLOOKUP($C229&$B$3,base!$D$4:$BM$3035,I$182,FALSE)>1,IF(VLOOKUP($C229&$B$3,base!$D$4:$BM$3035,I$182,FALSE)>1000,TEXT(VLOOKUP($C229&$B$3,base!$D$4:$BM$3035,I$182,FALSE),"0.000"),TEXT(VLOOKUP($C229&$B$3,base!$D$4:$BM$3035,I$182,FALSE),"0")),TEXT(VLOOKUP($C229&$B$3,base!$D$4:$BM$3035,I$182,FALSE),"0,0%")),"") ->  | J229: =IFERROR(IF(VLOOKUP($C229&$B$3,base!$D$4:$BM$3035,J$182,FALSE)>1,IF(VLOOKUP($C229&$B$3,base!$D$4:$BM$3035,J$182,FALSE)>1000,TEXT(VLOOKUP($C229&$B$3,base!$D$4:$BM$3035,J$182,FALSE),"0.000"),TEXT(VLOOKUP($C229&$B$3,base!$D$4:$BM$3035,J$182,FALSE),"0")),TEXT(VLOOKUP($C229&$B$3,base!$D$4:$BM$3035,J$182,FALSE),"0,0%")),"") ->  | K229: =IFERROR(IF(VLOOKUP($C229&$B$3,base!$D$4:$BM$3035,K$182,FALSE)>1,IF(VLOOKUP($C229&$B$3,base!$D$4:$BM$3035,K$182,FALSE)>1000,TEXT(VLOOKUP($C229&$B$3,base!$D$4:$BM$3035,K$182,FALSE),"0.000"),TEXT(VLOOKUP($C229&$B$3,base!$D$4:$BM$3035,K$182,FALSE),"0")),TEXT(VLOOKUP($C229&$B$3,base!$D$4:$BM$3035,K$182,FALSE),"0,0%")),"") -> 
A230: 47 | B230: 1.47 | C230: =+IFERROR(VLOOKUP(B230,referencias!$J$128:$K$1212,2,FALSE),"") ->  | D230: =IFERROR(VLOOKUP(C230,'tc nacional'!$AA$7:$AB$201,2,FALSE),"") ->  | F230: =IFERROR(IF(VLOOKUP($C230&$B$3,base!$D$4:$AI$3035,F$182,FALSE)>1,IF(VLOOKUP($C230&$B$3,base!$D$4:$AI$3035,F$182,FALSE)>1000,TEXT(VLOOKUP($C230&$B$3,base!$D$4:$AI$3035,F$182,FALSE),"0.000"),TEXT(VLOOKUP($C230&$B$3,base!$D$4:$AI$3035,F$182,FALSE),"0")),TEXT(VLOOKUP($C230&$B$3,base!$D$4:$AI$3035,F$182,FALSE),"0,0%")),"") ->  | G230: =IFERROR(IF(VLOOKUP($C230&$B$3,base!$D$4:$BM$3035,G$182,FALSE)>1000,TEXT(VLOOKUP($C230&$B$3,base!$D$4:$BM$3035,G$182,FALSE),"0.000"),TEXT(VLOOKUP($C230&$B$3,base!$D$4:$BM$3035,G$182,FALSE),"0")),"") ->  | H230: =IFERROR(IF(VLOOKUP($C230&$B$3,base!$D$4:$BM$3035,H$182,FALSE)>1000,TEXT(VLOOKUP($C230&$B$3,base!$D$4:$BM$3035,H$182,FALSE),"0.000"),TEXT(VLOOKUP($C230&$B$3,base!$D$4:$BM$3035,H$182,FALSE),"0")),"") ->  | I230: =IFERROR(IF(VLOOKUP($C230&$B$3,base!$D$4:$BM$3035,I$182,FALSE)>1,IF(VLOOKUP($C230&$B$3,base!$D$4:$BM$3035,I$182,FALSE)>1000,TEXT(VLOOKUP($C230&$B$3,base!$D$4:$BM$3035,I$182,FALSE),"0.000"),TEXT(VLOOKUP($C230&$B$3,base!$D$4:$BM$3035,I$182,FALSE),"0")),TEXT(VLOOKUP($C230&$B$3,base!$D$4:$BM$3035,I$182,FALSE),"0,0%")),"") ->  | J230: =IFERROR(IF(VLOOKUP($C230&$B$3,base!$D$4:$BM$3035,J$182,FALSE)>1,IF(VLOOKUP($C230&$B$3,base!$D$4:$BM$3035,J$182,FALSE)>1000,TEXT(VLOOKUP($C230&$B$3,base!$D$4:$BM$3035,J$182,FALSE),"0.000"),TEXT(VLOOKUP($C230&$B$3,base!$D$4:$BM$3035,J$182,FALSE),"0")),TEXT(VLOOKUP($C230&$B$3,base!$D$4:$BM$3035,J$182,FALSE),"0,0%")),"") ->  | K230: =IFERROR(IF(VLOOKUP($C230&$B$3,base!$D$4:$BM$3035,K$182,FALSE)>1,IF(VLOOKUP($C230&$B$3,base!$D$4:$BM$3035,K$182,FALSE)>1000,TEXT(VLOOKUP($C230&$B$3,base!$D$4:$BM$3035,K$182,FALSE),"0.000"),TEXT(VLOOKUP($C230&$B$3,base!$D$4:$BM$3035,K$182,FALSE),"0")),TEXT(VLOOKUP($C230&$B$3,base!$D$4:$BM$3035,K$182,FALSE),"0,0%")),"") -> 
A231: 48 | B231: 1.48 | C231: =+IFERROR(VLOOKUP(B231,referencias!$J$128:$K$1212,2,FALSE),"") ->  | D231: =IFERROR(VLOOKUP(C231,'tc nacional'!$AA$7:$AB$201,2,FALSE),"") ->  | F231: =IFERROR(IF(VLOOKUP($C231&$B$3,base!$D$4:$AI$3035,F$182,FALSE)>1,IF(VLOOKUP($C231&$B$3,base!$D$4:$AI$3035,F$182,FALSE)>1000,TEXT(VLOOKUP($C231&$B$3,base!$D$4:$AI$3035,F$182,FALSE),"0.000"),TEXT(VLOOKUP($C231&$B$3,base!$D$4:$AI$3035,F$182,FALSE),"0")),TEXT(VLOOKUP($C231&$B$3,base!$D$4:$AI$3035,F$182,FALSE),"0,0%")),"") ->  | G231: =IFERROR(IF(VLOOKUP($C231&$B$3,base!$D$4:$BM$3035,G$182,FALSE)>1000,TEXT(VLOOKUP($C231&$B$3,base!$D$4:$BM$3035,G$182,FALSE),"0.000"),TEXT(VLOOKUP($C231&$B$3,base!$D$4:$BM$3035,G$182,FALSE),"0")),"") ->  | H231: =IFERROR(IF(VLOOKUP($C231&$B$3,base!$D$4:$BM$3035,H$182,FALSE)>1000,TEXT(VLOOKUP($C231&$B$3,base!$D$4:$BM$3035,H$182,FALSE),"0.000"),TEXT(VLOOKUP($C231&$B$3,base!$D$4:$BM$3035,H$182,FALSE),"0")),"") ->  | I231: =IFERROR(IF(VLOOKUP($C231&$B$3,base!$D$4:$BM$3035,I$182,FALSE)>1,IF(VLOOKUP($C231&$B$3,base!$D$4:$BM$3035,I$182,FALSE)>1000,TEXT(VLOOKUP($C231&$B$3,base!$D$4:$BM$3035,I$182,FALSE),"0.000"),TEXT(VLOOKUP($C231&$B$3,base!$D$4:$BM$3035,I$182,FALSE),"0")),TEXT(VLOOKUP($C231&$B$3,base!$D$4:$BM$3035,I$182,FALSE),"0,0%")),"") ->  | J231: =IFERROR(IF(VLOOKUP($C231&$B$3,base!$D$4:$BM$3035,J$182,FALSE)>1,IF(VLOOKUP($C231&$B$3,base!$D$4:$BM$3035,J$182,FALSE)>1000,TEXT(VLOOKUP($C231&$B$3,base!$D$4:$BM$3035,J$182,FALSE),"0.000"),TEXT(VLOOKUP($C231&$B$3,base!$D$4:$BM$3035,J$182,FALSE),"0")),TEXT(VLOOKUP($C231&$B$3,base!$D$4:$BM$3035,J$182,FALSE),"0,0%")),"") ->  | K231: =IFERROR(IF(VLOOKUP($C231&$B$3,base!$D$4:$BM$3035,K$182,FALSE)>1,IF(VLOOKUP($C231&$B$3,base!$D$4:$BM$3035,K$182,FALSE)>1000,TEXT(VLOOKUP($C231&$B$3,base!$D$4:$BM$3035,K$182,FALSE),"0.000"),TEXT(VLOOKUP($C231&$B$3,base!$D$4:$BM$3035,K$182,FALSE),"0")),TEXT(VLOOKUP($C231&$B$3,base!$D$4:$BM$3035,K$182,FALSE),"0,0%")),"") -> 
A232: 49 | B232: 1.49 | C232: =+IFERROR(VLOOKUP(B232,referencias!$J$128:$K$1212,2,FALSE),"") ->  | D232: =IFERROR(VLOOKUP(C232,'tc nacional'!$AA$7:$AB$201,2,FALSE),"") ->  | F232: =IFERROR(IF(VLOOKUP($C232&$B$3,base!$D$4:$AI$3035,F$182,FALSE)>1,IF(VLOOKUP($C232&$B$3,base!$D$4:$AI$3035,F$182,FALSE)>1000,TEXT(VLOOKUP($C232&$B$3,base!$D$4:$AI$3035,F$182,FALSE),"0.000"),TEXT(VLOOKUP($C232&$B$3,base!$D$4:$AI$3035,F$182,FALSE),"0")),TEXT(VLOOKUP($C232&$B$3,base!$D$4:$AI$3035,F$182,FALSE),"0,0%")),"") ->  | G232: =IFERROR(IF(VLOOKUP($C232&$B$3,base!$D$4:$BM$3035,G$182,FALSE)>1000,TEXT(VLOOKUP($C232&$B$3,base!$D$4:$BM$3035,G$182,FALSE),"0.000"),TEXT(VLOOKUP($C232&$B$3,base!$D$4:$BM$3035,G$182,FALSE),"0")),"") ->  | H232: =IFERROR(IF(VLOOKUP($C232&$B$3,base!$D$4:$BM$3035,H$182,FALSE)>1000,TEXT(VLOOKUP($C232&$B$3,base!$D$4:$BM$3035,H$182,FALSE),"0.000"),TEXT(VLOOKUP($C232&$B$3,base!$D$4:$BM$3035,H$182,FALSE),"0")),"") ->  | I232: =IFERROR(IF(VLOOKUP($C232&$B$3,base!$D$4:$BM$3035,I$182,FALSE)>1,IF(VLOOKUP($C232&$B$3,base!$D$4:$BM$3035,I$182,FALSE)>1000,TEXT(VLOOKUP($C232&$B$3,base!$D$4:$BM$3035,I$182,FALSE),"0.000"),TEXT(VLOOKUP($C232&$B$3,base!$D$4:$BM$3035,I$182,FALSE),"0")),TEXT(VLOOKUP($C232&$B$3,base!$D$4:$BM$3035,I$182,FALSE),"0,0%")),"") ->  | J232: =IFERROR(IF(VLOOKUP($C232&$B$3,base!$D$4:$BM$3035,J$182,FALSE)>1,IF(VLOOKUP($C232&$B$3,base!$D$4:$BM$3035,J$182,FALSE)>1000,TEXT(VLOOKUP($C232&$B$3,base!$D$4:$BM$3035,J$182,FALSE),"0.000"),TEXT(VLOOKUP($C232&$B$3,base!$D$4:$BM$3035,J$182,FALSE),"0")),TEXT(VLOOKUP($C232&$B$3,base!$D$4:$BM$3035,J$182,FALSE),"0,0%")),"") ->  | K232: =IFERROR(IF(VLOOKUP($C232&$B$3,base!$D$4:$BM$3035,K$182,FALSE)>1,IF(VLOOKUP($C232&$B$3,base!$D$4:$BM$3035,K$182,FALSE)>1000,TEXT(VLOOKUP($C232&$B$3,base!$D$4:$BM$3035,K$182,FALSE),"0.000"),TEXT(VLOOKUP($C232&$B$3,base!$D$4:$BM$3035,K$182,FALSE),"0")),TEXT(VLOOKUP($C232&$B$3,base!$D$4:$BM$3035,K$182,FALSE),"0,0%")),"") -> 
A233: 50 | B233: 1.50 | C233: =+IFERROR(VLOOKUP(B233,referencias!$J$128:$K$1212,2,FALSE),"") ->  | D233: =IFERROR(VLOOKUP(C233,'tc nacional'!$AA$7:$AB$201,2,FALSE),"") ->  | F233: =IFERROR(IF(VLOOKUP($C233&$B$3,base!$D$4:$AI$3035,F$182,FALSE)>1,IF(VLOOKUP($C233&$B$3,base!$D$4:$AI$3035,F$182,FALSE)>1000,TEXT(VLOOKUP($C233&$B$3,base!$D$4:$AI$3035,F$182,FALSE),"0.000"),TEXT(VLOOKUP($C233&$B$3,base!$D$4:$AI$3035,F$182,FALSE),"0")),TEXT(VLOOKUP($C233&$B$3,base!$D$4:$AI$3035,F$182,FALSE),"0,0%")),"") ->  | G233: =IFERROR(IF(VLOOKUP($C233&$B$3,base!$D$4:$BM$3035,G$182,FALSE)>1000,TEXT(VLOOKUP($C233&$B$3,base!$D$4:$BM$3035,G$182,FALSE),"0.000"),TEXT(VLOOKUP($C233&$B$3,base!$D$4:$BM$3035,G$182,FALSE),"0")),"") ->  | H233: =IFERROR(IF(VLOOKUP($C233&$B$3,base!$D$4:$BM$3035,H$182,FALSE)>1000,TEXT(VLOOKUP($C233&$B$3,base!$D$4:$BM$3035,H$182,FALSE),"0.000"),TEXT(VLOOKUP($C233&$B$3,base!$D$4:$BM$3035,H$182,FALSE),"0")),"") ->  | I233: =IFERROR(IF(VLOOKUP($C233&$B$3,base!$D$4:$BM$3035,I$182,FALSE)>1,IF(VLOOKUP($C233&$B$3,base!$D$4:$BM$3035,I$182,FALSE)>1000,TEXT(VLOOKUP($C233&$B$3,base!$D$4:$BM$3035,I$182,FALSE),"0.000"),TEXT(VLOOKUP($C233&$B$3,base!$D$4:$BM$3035,I$182,FALSE),"0")),TEXT(VLOOKUP($C233&$B$3,base!$D$4:$BM$3035,I$182,FALSE),"0,0%")),"") ->  | J233: =IFERROR(IF(VLOOKUP($C233&$B$3,base!$D$4:$BM$3035,J$182,FALSE)>1,IF(VLOOKUP($C233&$B$3,base!$D$4:$BM$3035,J$182,FALSE)>1000,TEXT(VLOOKUP($C233&$B$3,base!$D$4:$BM$3035,J$182,FALSE),"0.000"),TEXT(VLOOKUP($C233&$B$3,base!$D$4:$BM$3035,J$182,FALSE),"0")),TEXT(VLOOKUP($C233&$B$3,base!$D$4:$BM$3035,J$182,FALSE),"0,0%")),"") ->  | K233: =IFERROR(IF(VLOOKUP($C233&$B$3,base!$D$4:$BM$3035,K$182,FALSE)>1,IF(VLOOKUP($C233&$B$3,base!$D$4:$BM$3035,K$182,FALSE)>1000,TEXT(VLOOKUP($C233&$B$3,base!$D$4:$BM$3035,K$182,FALSE),"0.000"),TEXT(VLOOKUP($C233&$B$3,base!$D$4:$BM$3035,K$182,FALSE),"0")),TEXT(VLOOKUP($C233&$B$3,base!$D$4:$BM$3035,K$182,FALSE),"0,0%")),"") -> 
A234: 51 | B234: 1.51 | C234: =+IFERROR(VLOOKUP(B234,referencias!$J$128:$K$1212,2,FALSE),"") ->  | D234: =IFERROR(VLOOKUP(C234,'tc nacional'!$AA$7:$AB$201,2,FALSE),"") ->  | F234: =IFERROR(IF(VLOOKUP($C234&$B$3,base!$D$4:$AI$3035,F$182,FALSE)>1,IF(VLOOKUP($C234&$B$3,base!$D$4:$AI$3035,F$182,FALSE)>1000,TEXT(VLOOKUP($C234&$B$3,base!$D$4:$AI$3035,F$182,FALSE),"0.000"),TEXT(VLOOKUP($C234&$B$3,base!$D$4:$AI$3035,F$182,FALSE),"0")),TEXT(VLOOKUP($C234&$B$3,base!$D$4:$AI$3035,F$182,FALSE),"0,0%")),"") ->  | G234: =IFERROR(IF(VLOOKUP($C234&$B$3,base!$D$4:$BM$3035,G$182,FALSE)>1000,TEXT(VLOOKUP($C234&$B$3,base!$D$4:$BM$3035,G$182,FALSE),"0.000"),TEXT(VLOOKUP($C234&$B$3,base!$D$4:$BM$3035,G$182,FALSE),"0")),"") ->  | H234: =IFERROR(IF(VLOOKUP($C234&$B$3,base!$D$4:$BM$3035,H$182,FALSE)>1000,TEXT(VLOOKUP($C234&$B$3,base!$D$4:$BM$3035,H$182,FALSE),"0.000"),TEXT(VLOOKUP($C234&$B$3,base!$D$4:$BM$3035,H$182,FALSE),"0")),"") ->  | I234: =IFERROR(IF(VLOOKUP($C234&$B$3,base!$D$4:$BM$3035,I$182,FALSE)>1,IF(VLOOKUP($C234&$B$3,base!$D$4:$BM$3035,I$182,FALSE)>1000,TEXT(VLOOKUP($C234&$B$3,base!$D$4:$BM$3035,I$182,FALSE),"0.000"),TEXT(VLOOKUP($C234&$B$3,base!$D$4:$BM$3035,I$182,FALSE),"0")),TEXT(VLOOKUP($C234&$B$3,base!$D$4:$BM$3035,I$182,FALSE),"0,0%")),"") ->  | J234: =IFERROR(IF(VLOOKUP($C234&$B$3,base!$D$4:$BM$3035,J$182,FALSE)>1,IF(VLOOKUP($C234&$B$3,base!$D$4:$BM$3035,J$182,FALSE)>1000,TEXT(VLOOKUP($C234&$B$3,base!$D$4:$BM$3035,J$182,FALSE),"0.000"),TEXT(VLOOKUP($C234&$B$3,base!$D$4:$BM$3035,J$182,FALSE),"0")),TEXT(VLOOKUP($C234&$B$3,base!$D$4:$BM$3035,J$182,FALSE),"0,0%")),"") ->  | K234: =IFERROR(IF(VLOOKUP($C234&$B$3,base!$D$4:$BM$3035,K$182,FALSE)>1,IF(VLOOKUP($C234&$B$3,base!$D$4:$BM$3035,K$182,FALSE)>1000,TEXT(VLOOKUP($C234&$B$3,base!$D$4:$BM$3035,K$182,FALSE),"0.000"),TEXT(VLOOKUP($C234&$B$3,base!$D$4:$BM$3035,K$182,FALSE),"0")),TEXT(VLOOKUP($C234&$B$3,base!$D$4:$BM$3035,K$182,FALSE),"0,0%")),"") -> 
